Workbook

Sheet Instruktion och Projektinfo
A2: Så här gör du för att fylla i excelverktyget och beräkna utsläppen av växthusgaser för ditt projekt | L2: Här anger du information om ditt projekt. Fetmarkerad information bör alltid fyllas, övrig information är frivilligt.
L3: Projektnamn: | N3: Organisation: | P3: Kontaktperson:
A4: OBS - läs nedan punkter noga då de är viktiga för att verktyget ska fungera optimalt
A5: Alla rader som läggs till i flik "Input - Mängder A1-A3, A4, A5" förs automatiskt över till flikarna "Kommentarer" och "Resultat - enskilt scenario". | L5: Datum: | M5: 202X-XX-XX | N5: Typ av projekt:
A6: Använd inte filterfunktionen på tabellerna i kommande flikar, det kan skapa problem med beräkningarna i verktyget. | P6: Ingår återställning av håtdjorda ytor i projektet (JA/NEJ)?:
A7: Lägg inte till rader ovanför tabellerna i denna eller kommande flikar. Använd istället knappen "lägg till 10 rader till tabell(erna)", i fliken Input. | L7: Projektskede: | N7: Placering:
A8: Skapa inte nya kolumner i tabellerna i denna eller kommande flikar. Använd istället fliken "Kommentarer" för mer utförlig information.
A9: Börja med att fylla i data i fliken "Input - Mängder A1-A3, A4 och A5" överst, rad för rad. | L9: Storlek (m ledning): | N9: Storlek (MSEK): | P9: Storlek (arbetsområde, m²):
A10: Ta inte bort rader om något blir fel, eller behöver ändras. Ta istället bort siffror/text/data och ersätt med rätt information.
A11: Lämna inga tomma rader mellan anläggningsdelarna i fliken "Input - Mängder A1-A3, A4, A5", då kan resultat och diagram visa fel. | L11: Kommentar avseende omfattning och avgränsning (ange vad som ingår och inte ingår i beräkningen)
A12: Byt inte namn på flikar, tabellernas kolumnnamn eller dylikt - det kan förstöra koppling mellan tabellerna och göra så att resultatet blir fel.
A14: Instruktion flik "Input - Mängder A1-A3, A4 och A5
A15: - Klimatberäkningen startas genom att data fylla i data i kolumnerna för modulerna A1-A3, A4 och A5.
A16: - Glöm inte ange ett namn på ditt scenario, detta namn kan sen bytas när ett nytt scenario skapas.
A17: - Vid behov av fler rader, klicka på knappen "Lägg till 10 rader till tabellen".
A18: - Varje post/anläggningsdel registreras som en rad i tabellen.
A19: - För en rad är det möjligt att ange klimatpåverkan för alla moduler (A1-A3, A4 och A5) eller för endast någon/några av dem.
A20: - Fyll i kolumnerna "Anläggningsdel", "Kategori" och "Kommentar". Informationen i dessa kolumner överförs automatiskt till övriga flikar.
A21: - Under Anläggningsdel fyller du i ett lämpligt namn på aktuell post som ska klimatberäknas.
A22: - Under Kategori fyller du i önskad kategori för posten och resultatet redovisas sedan uppdelat efter valda kategorierier.
A23: - Val av kategori är frivilligt och kan väljas helt fritt. Lämnas cellent tom kommer posten att kategoriseras som "kategori saknas".
A24: - Under Kommentar kan du skriva kort beskrivning eller förtydligande (Tex. AMA-kod). Mer plats att skriva finns i fliken ”Kommentarer”.
A26: A1-A3 (Produktskedet)
A27: - Indata för A1-A3 skriv in i kolumnerna F-L
A28: - Ange mängd och enhet för varje post/anläggningsdel som ska beräknas.
A29: - Ange emissionsfaktor och FU/DU för posten.
A30: - Om enheten för mängd och FU/DU för emissionsfaktorns inte är samma, kommer kollum K att rödmarkeras.
A31: - Ange eventuell omräkningsfaktor som ett värde (ej formel) i kolumn K (rödmarkerad cell).
A33: För modul A4 (Transporter) finns 2 alternativ för indata. För varje rad väljs endast ett av alternativen, för att beräkningen ska bli korrekt.
A34: A4 - Alt 1 - Med alternativ 1 anges emissionsfaktor för A4 från en EPD, och beräkningen baseras på mängd som angivits för A1-A3.
A35: - Skriv in emissionsfaktor för A4 från aktuell EPD som nyttjats för A1-A3. DU/FU fylls i automatiskt (det är samma som för A1-A3).
A37: A4 - Alt 2 - Med alternativ 2 anges projektspecifik data för transporter, som drivmedel, körsträcka, bränsleförbrukning etc.
A38: - Välj typ drivmedel för transporterna från listan, emissionsfaktor och DU/FU anges automatiskt.
A39: - Ange total sträcka (km) för Transporterna (avser alla transporter som behövs för den aktuella posten/anläggningsdelen, och ska räknas med tur/retur).
A40: - Ange bränsleförbrukning per km och enhet för förbrukningen.
A41: - Om enheten inte är samma som för emissionsfaktorn, fyll i omräkningsfaktorn i rödmarkerad cell i kolumn X.
A43: A5.2 (Transporter och arbeten inom arbetsplatsen)
A44: - Välj typ av fordon/maskin från listan eller välj fritt. Observera att detta val inte påverkar beräkningarna.
A45: - Välj typ av drivmedel från listan, emissionsfaktor och DU/FU anges automatiskt.
A46: - Ange förbrukad mängd och enhet.
A47: - Om enheten inte är samma som för emissionsfaktorn, fyll i omräkningsfaktorn i rödmarkerad cell i kolumn AH.
A48: - I kolumn AI kan du t.ex. ange om A5 avser annat inom Modul A5 än A5.2 (arbetsplatsens fordon och maskiner).

Sheet Input - Mängder A1-A3, A4, A5
B2: I denna flik anger du all indata till ditt VA-projekt.
B4: Varning - lägg inte till rader ovan för tabellen, varken in denna flik eller följande flikar, gäller även kolumner varken i flikarna eller tabellerna.
BZ5: Gör förklaringar vad varje kolumn vad som händer
B6: ='Instruktion och Projektinfo'!M3 -> 0 | C6: Scenarionamn: | F6: A1 - A3 (Produktskede) | N6: A4 Alternativ 1 - Transporter till (och från) Byggarbetsplats Använd endast ett av alternativen 1 eller 2 (Alternativ 1 - Använd emissionsfaktor för A4 från EPD.) | R6: A4 Alternativ 2 (A4) - Transporter till (och från) Byggarbetsplats Använd endast ett av alternativen 1 eller 2. Alternativ 2 - För alternativ 2 används schablon för emissionsfaktor. | AB6: A5.2 - Arbetsplatsens fordon, maskiner (transporter inom arbetsplatsen och arbetsmoment)
B7: Anläggningsdel | C7: Kategori (egen kategorisering) | D7: Kommentar | E7: A1A3 | F7: Mängd A1A3 | G7: Enhet Mängd (A1A3) | H7: EF A1A3 [kg CO₂-ekv.] | I7: FU/DU (EF A1A3) | J7: *Omräkningsfaktorn (A1A3) behöver vara denna enhet (fylls i automatisk): | K7: Omräkning till FU/DU (Skriv in värde, ej formel) | L7: Kommentar till omräkning A1A3 (Endast text) | M7: A4 - alternativ 1 | N7: EPD - EF A4 | O7: *DU/FU (EPD - ED A4) [kg CO₂-ekv.] (Fylls i automatiskt) | P7: Kommentar till A4 alternativ 1 | Q7: A4 - Alternativ 2 | R7: Drivmedel (A4) (endast förval ur lista) | S7: *EF (A4) [kg CO₂-ekv.] | T7: *DU/FU (EF A4) för valt drivmedel (schablon) | U7: Sträcka - totalt [km], (tur och retur, alla transporter) | V7: (Bränsle-) Förbrukning per km | W7: Enhet (bränsleförbrukning per km) | X7: *Omräkningsfaktorn behöver vara av denna enhet (fylls i automatiskt); | Y7: Omräkningsfaktor (A4), (vid behov, värde eller formel) | Z7: Kommentar till A4.2 Alternativ 2 | AA7: A5.2 | AB7: A5.2 Typ av fordon/maskin (behöver ej anges). | AC7: Drivmedel (A5.2) | AD7: Mängd (A5.2) | AE7: Enhet för mängd (A5.2) | AF7: *EF (A5.2) [kg CO₂-ekv.] | AG7: *DU/FU (EF A5.2) | AH7: *Omräkningsfaktorn (A5.5) behöver vara av denna enhet; | AI7: Omräkningsfaktor (A5.2) (ange värde), (vid behov) | AJ7: Kommentar tiil A5 | BW7: Finns anläggningsdel-namn. | BX7: True/False A1A3 Enhet | BY7: True/False A1A3 om A1A3 kan beräknas | BZ7: Utsläpp A1A3 [kg] | CA7: TRUE/FALSE - om Al1 är ifyllt | CB7: True/False A4 - Alt 2 | CC7: True/False A4 Enhet - Alt2 | CD7: A4 - Resultat alt 1 [kg] | CE7: A4 - Alt 2 - beräkning utsläpp | CF7: Utsläpp A2 [kg] (alt1 och alt2) | CG7: A4 - Alt 2 TRUE/FALSE auto | CH7: Utsläpp A5[kg] | CI7: True/False A5 | CJ7: True/False A5 Enhet | CK7: TRUE/FALSE om kategori saknas. | CL7: Kategorier
J8: =IF(ISBLANK(InputA1A3[[#This Row],[Anläggningsdel ]]),"",IF(OR(KontrollTabell[[#This Row],[True/False A1A3 Enhet]]=TRUE,KontrollTabell[[#This Row],[True/False A1A3 Enhet]]="Värde Behövs",KontrollTabell[[#This Row],[True/False A1A3 Enhet]]=""), "", InputA1A3[[#This Row],[FU/DU (EF A1A3)]] & "/" & InputA1A3[[#This Row],[Enhet Mängd (A1A3)]])) ->  | O8: =IF(ISBLANK(InputA1A3[[#This Row],[EPD - EF A4]]),"",InputA1A3[[#This Row],[FU/DU (EF A1A3)]]) ->  | T8: =IFERROR(INDEX(TabellEFDrivmedel[],MATCH(InputA1A3[[#This Row],[Drivmedel (A4) (endast förval ur lista)]],TabellEFDrivmedel[Drivmedel],0),4),"") ->  | X8: =IF(InputA1A3[[#This Row],[*DU/FU (EF A4) för valt drivmedel (schablon)]]="","",IF(OR(InputA1A3[[#This Row],[*DU/FU (EF A4) för valt drivmedel (schablon)]]=InputA1A3[[#This Row],[Enhet (bränsleförbrukning per km)]],KontrollTabell[[#This Row],[True/False A4 - Alt 2]]="Värde Behövs"),"",InputA1A3[[#This Row],[Enhet (bränsleförbrukning per km)]]& "/" & InputA1A3[[#This Row],[*DU/FU (EF A4) för valt drivmedel (schablon)]])) ->  | AF8: =IFERROR(INDEX(TabellEFDrivmedel[],MATCH(InputA1A3[[#This Row],[Drivmedel (A5.2)]],TabellEFDrivmedel[Drivmedel],0),2),"") ->  | AG8: =IFERROR(INDEX(TabellEFDrivmedel[],MATCH(InputA1A3[[#This Row],[Drivmedel (A5.2)]],TabellEFDrivmedel[Drivmedel],0),4),"") ->  | AH8: =IF(OR(KontrollTabell[[#This Row],[True/False A5 Enhet]]=TRUE,KontrollTabell[[#This Row],[True/False A5 Enhet]]=""), "", InputA1A3[[#This Row],[*DU/FU (EF A5.2)]] & "/" & InputA1A3[[#This Row],[Enhet för mängd (A5.2)]]) ->  | BW8: =IF(ISBLANK(InputA1A3[[#This Row],[Anläggningsdel ]]),FALSE,TRUE) -> FALSE | BX8: =IF(ISBLANK(InputA1A3[[#This Row],[Anläggningsdel ]]),"",IF(ISBLANK(InputA1A3[[#This Row],[Enhet Mängd (A1A3)]]),"",IF(ISBLANK(InputA1A3[[#This Row],[FU/DU (EF A1A3)]]),"Värde Behövs",IF(InputA1A3[[#This Row],[Enhet Mängd (A1A3)]] = InputA1A3[[#This Row],[FU/DU (EF A1A3)]], TRUE, FALSE)))) ->  | BY8: =IF(KontrollTabell[[#This Row],[Finns anläggningsdel-namn.]]=FALSE,"",(IF(KontrollTabell[[#This Row],[True/False A1A3 Enhet]]=TRUE,TRUE,IF(OR(KontrollTabell[[#This Row],[True/False A1A3 Enhet]]="Värde Behövs",(KontrollTabell[[#This Row],[True/False A1A3 Enhet]]="")),"",IF(ISBLANK(InputA1A3[[#This Row],[Omräkning till FU/DU (Skriv in värde, ej formel)]]),FALSE,TRUE))))) ->  | BZ8: =IF(KontrollTabell[[#This Row],[Finns anläggningsdel-namn.]]=FALSE,,IF(KontrollTabell[[#This Row],[True/False A1A3 Enhet]]=TRUE,InputA1A3[[#This Row],[Mängd A1A3]]*InputA1A3[[#This Row],[EF A1A3 '[kg CO₂-ekv.']]],IF(KontrollTabell[[#This Row],[True/False A1A3 om A1A3 kan beräknas]]=TRUE,InputA1A3[[#This Row],[Mängd A1A3]]*InputA1A3[[#This Row],[EF A1A3 '[kg CO₂-ekv.']]]*InputA1A3[[#This Row],[Omräkning till FU/DU (Skriv in värde, ej formel)]],0))) -> 0 | CA8: =IF(ISBLANK(InputA1A3[[#This Row],[Anläggningsdel ]]),"",IF(ISBLANK(InputA1A3[[#This Row],[EPD - EF A4]]),FALSE,TRUE)) ->  | CB8: =IF(InputA1A3[[#This Row],[*DU/FU (EF A4) för valt drivmedel (schablon)]]="","",IF(InputA1A3[[#This Row],[Enhet (bränsleförbrukning per km)]]="","Värde Behövs",IF(OR(InputA1A3[[#This Row],[Enhet (bränsleförbrukning per km)]]=InputA1A3[[#This Row],[*DU/FU (EF A4) för valt drivmedel (schablon)]],AND(InputA1A3[[#This Row],[Enhet (bränsleförbrukning per km)]]<>InputA1A3[[#This Row],[*DU/FU (EF A4) för valt drivmedel (schablon)]],ISNUMBER(InputA1A3[[#This Row],[Omräkningsfaktor (A4), (vid behov, värde eller formel)]]))),TRUE(),FALSE()))) ->  | CC8: =IF(KontrollTabell[[#This Row],[Finns anläggningsdel-namn.]]=FALSE,"",(IF(InputA1A3[[#This Row],[Enhet (bränsleförbrukning per km)]] =InputA1A3[[#This Row],[*DU/FU (EF A4) för valt drivmedel (schablon)]],TRUE,IF(KontrollTabell[[#This Row],[True/False A4 - Alt 2]]="Värde Behövs","",IF(ISBLANK(InputA1A3[[#This Row],[Omräkningsfaktor (A4), (vid behov, värde eller formel)]]),FALSE,TRUE))))) ->  | CD8: =IF(ISBLANK(InputA1A3[[#This Row],[EPD - EF A4]]),"",IF(ISBLANK(InputA1A3[[#This Row],[Omräkning till FU/DU (Skriv in värde, ej formel)]]),InputA1A3[[#This Row],[EPD - EF A4]]*InputA1A3[[#This Row],[Mängd A1A3]],InputA1A3[[#This Row],[Mängd A1A3]]*InputA1A3[[#This Row],[Omräkning till FU/DU (Skriv in värde, ej formel)]]*InputA1A3[[#This Row],[EPD - EF A4]])) ->  | CE8: =IFERROR(IF(KontrollTabell[[#This Row],[True/False A4 - Alt 2]]="","",IF(KontrollTabell[[#This Row],[True/False A4 Enhet - Alt2]]=TRUE, IF(ISNUMBER(InputA1A3[[#This Row],[Omräkningsfaktor (A4), (vid behov, värde eller formel)]]),InputA1A3[[#This Row],[Sträcka - totalt '[km'], (tur och retur, alla transporter)]]*InputA1A3[[#This Row],[(Bränsle-) Förbrukning per km]]/InputA1A3[[#This Row],[Omräkningsfaktor (A4), (vid behov, värde eller formel)]]*InputA1A3[[#This Row],[*EF (A4) '[kg CO₂-ekv.']]], InputA1A3[[#This Row],[Sträcka - totalt '[km'], (tur och retur, alla transporter)]]*InputA1A3[[#This Row],[(Bränsle-) Förbrukning per km]]*InputA1A3[[#This Row],[*EF (A4) '[kg CO₂-ekv.']]]),"Sen då")),0) ->  | CF8: =SUM(KontrollTabell[[#This Row],[A4 - Resultat alt 1 '[kg']]:[A4 - Alt 2 - beräkning utsläpp]]) -> 0 | CG8: =IF(KontrollTabell[[#This Row],[Finns anläggningsdel-namn.]]=FALSE,"",IF(ISBLANK(InputA1A3[[#This Row],[EPD - EF A4]]),FALSE,TRUE)) ->  | CH8: =IFERROR(IF(KontrollTabell[[#This Row],[True/False A5]]=FALSE(),"Enheter",IF(ISBLANK(InputA1A3[[#This Row],[Omräkningsfaktor (A5.2) (ange värde), (vid behov)]]),InputA1A3[[#This Row],[Mängd (A5.2)]]*InputA1A3[[#This Row],[*EF (A5.2) '[kg CO₂-ekv.']]],InputA1A3[[#This Row],[Mängd (A5.2)]]*InputA1A3[[#This Row],[*EF (A5.2) '[kg CO₂-ekv.']]]*InputA1A3[[#This Row],[Omräkningsfaktor (A5.2) (ange värde), (vid behov)]])),0) -> 0 | CI8: =IF(InputA1A3[[#This Row],[*DU/FU (EF A5.2)]]="","",IF(InputA1A3[[#This Row],[Enhet för mängd (A5.2)]]="","Värde Behövs",IF(OR(InputA1A3[[#This Row],[Enhet för mängd (A5.2)]]=InputA1A3[[#This Row],[*DU/FU (EF A5.2)]],AND(InputA1A3[[#This Row],[Enhet för mängd (A5.2)]]<>InputA1A3[[#This Row],[*DU/FU (EF A5.2)]],ISNUMBER(InputA1A3[[#This Row],[Omräkningsfaktor (A5.2) (ange värde), (vid behov)]]))),TRUE,FALSE))) ->  | CJ8: =IF(OR(KontrollTabell[[#This Row],[Finns anläggningsdel-namn.]]=FALSE,KontrollTabell[[#This Row],[True/False A5]]="Värde Behövs"),"",IF(InputA1A3[[#This Row],[Enhet för mängd (A5.2)]] = InputA1A3[[#This Row],[*DU/FU (EF A5.2)]], TRUE, FALSE)) ->  | CK8: =IF(KontrollTabell[[#This Row],[Finns anläggningsdel-namn.]]=FALSE,"",IF(OR(ISBLANK(InputA1A3[[#This Row],[Kategori (egen kategorisering)]])=FALSE,ISBLANK(InputA1A3[[#This Row],[Anläggningsdel ]]))=FALSE,TRUE,FALSE)) ->  | CL8: =IF(ISBLANK(InputA1A3[[#This Row],[Anläggningsdel ]]),"",IF(KontrollTabell[[#This Row],[TRUE/FALSE om kategori saknas.]] =FALSE,InputA1A3[[#This Row],[Kategori (egen kategorisering)]],"Kategori saknas")) -> 
J9: =IF(ISBLANK(InputA1A3[[#This Row],[Anläggningsdel ]]),"",IF(OR(KontrollTabell[[#This Row],[True/False A1A3 Enhet]]=TRUE,KontrollTabell[[#This Row],[True/False A1A3 Enhet]]="Värde Behövs",KontrollTabell[[#This Row],[True/False A1A3 Enhet]]=""), "", InputA1A3[[#This Row],[FU/DU (EF A1A3)]] & "/" & InputA1A3[[#This Row],[Enhet Mängd (A1A3)]])) ->  | O9: =IF(ISBLANK(InputA1A3[[#This Row],[EPD - EF A4]]),"",InputA1A3[[#This Row],[FU/DU (EF A1A3)]]) ->  | T9: =IFERROR(INDEX(TabellEFDrivmedel[],MATCH(InputA1A3[[#This Row],[Drivmedel (A4) (endast förval ur lista)]],TabellEFDrivmedel[Drivmedel],0),4),"") ->  | X9: =IF(InputA1A3[[#This Row],[*DU/FU (EF A4) för valt drivmedel (schablon)]]="","",IF(OR(InputA1A3[[#This Row],[*DU/FU (EF A4) för valt drivmedel (schablon)]]=InputA1A3[[#This Row],[Enhet (bränsleförbrukning per km)]],KontrollTabell[[#This Row],[True/False A4 - Alt 2]]="Värde Behövs"),"",InputA1A3[[#This Row],[Enhet (bränsleförbrukning per km)]]& "/" & InputA1A3[[#This Row],[*DU/FU (EF A4) för valt drivmedel (schablon)]])) ->  | AF9: =IFERROR(INDEX(TabellEFDrivmedel[],MATCH(InputA1A3[[#This Row],[Drivmedel (A5.2)]],TabellEFDrivmedel[Drivmedel],0),2),"") ->  | AG9: =IFERROR(INDEX(TabellEFDrivmedel[],MATCH(InputA1A3[[#This Row],[Drivmedel (A5.2)]],TabellEFDrivmedel[Drivmedel],0),4),"") ->  | AH9: =IF(OR(KontrollTabell[[#This Row],[True/False A5 Enhet]]=TRUE,KontrollTabell[[#This Row],[True/False A5 Enhet]]=""), "", InputA1A3[[#This Row],[*DU/FU (EF A5.2)]] & "/" & InputA1A3[[#This Row],[Enhet för mängd (A5.2)]]) ->  | BW9: =IF(ISBLANK(InputA1A3[[#This Row],[Anläggningsdel ]]),FALSE,TRUE) -> FALSE | BX9: =IF(ISBLANK(InputA1A3[[#This Row],[Anläggningsdel ]]),"",IF(ISBLANK(InputA1A3[[#This Row],[Enhet Mängd (A1A3)]]),"",IF(ISBLANK(InputA1A3[[#This Row],[FU/DU (EF A1A3)]]),"Värde Behövs",IF(InputA1A3[[#This Row],[Enhet Mängd (A1A3)]] = InputA1A3[[#This Row],[FU/DU (EF A1A3)]], TRUE, FALSE)))) ->  | BY9: =IF(KontrollTabell[[#This Row],[Finns anläggningsdel-namn.]]=FALSE,"",(IF(KontrollTabell[[#This Row],[True/False A1A3 Enhet]]=TRUE,TRUE,IF(OR(KontrollTabell[[#This Row],[True/False A1A3 Enhet]]="Värde Behövs",(KontrollTabell[[#This Row],[True/False A1A3 Enhet]]="")),"",IF(ISBLANK(InputA1A3[[#This Row],[Omräkning till FU/DU (Skriv in värde, ej formel)]]),FALSE,TRUE))))) ->  | BZ9: =IF(KontrollTabell[[#This Row],[Finns anläggningsdel-namn.]]=FALSE,,IF(KontrollTabell[[#This Row],[True/False A1A3 Enhet]]=TRUE,InputA1A3[[#This Row],[Mängd A1A3]]*InputA1A3[[#This Row],[EF A1A3 '[kg CO₂-ekv.']]],IF(KontrollTabell[[#This Row],[True/False A1A3 om A1A3 kan beräknas]]=TRUE,InputA1A3[[#This Row],[Mängd A1A3]]*InputA1A3[[#This Row],[EF A1A3 '[kg CO₂-ekv.']]]*InputA1A3[[#This Row],[Omräkning till FU/DU (Skriv in värde, ej formel)]],0))) -> 0 | CA9: =IF(ISBLANK(InputA1A3[[#This Row],[Anläggningsdel ]]),"",IF(ISBLANK(InputA1A3[[#This Row],[EPD - EF A4]]),FALSE,TRUE)) ->  | CB9: =IF(InputA1A3[[#This Row],[*DU/FU (EF A4) för valt drivmedel (schablon)]]="","",IF(InputA1A3[[#This Row],[Enhet (bränsleförbrukning per km)]]="","Värde Behövs",IF(OR(InputA1A3[[#This Row],[Enhet (bränsleförbrukning per km)]]=InputA1A3[[#This Row],[*DU/FU (EF A4) för valt drivmedel (schablon)]],AND(InputA1A3[[#This Row],[Enhet (bränsleförbrukning per km)]]<>InputA1A3[[#This Row],[*DU/FU (EF A4) för valt drivmedel (schablon)]],ISNUMBER(InputA1A3[[#This Row],[Omräkningsfaktor (A4), (vid behov, värde eller formel)]]))),TRUE(),FALSE()))) ->  | CC9: =IF(KontrollTabell[[#This Row],[Finns anläggningsdel-namn.]]=FALSE,"",(IF(InputA1A3[[#This Row],[Enhet (bränsleförbrukning per km)]] =InputA1A3[[#This Row],[*DU/FU (EF A4) för valt drivmedel (schablon)]],TRUE,IF(KontrollTabell[[#This Row],[True/False A4 - Alt 2]]="Värde Behövs","",IF(ISBLANK(InputA1A3[[#This Row],[Omräkningsfaktor (A4), (vid behov, värde eller formel)]]),FALSE,TRUE))))) ->  | CD9: =IF(ISBLANK(InputA1A3[[#This Row],[EPD - EF A4]]),"",IF(ISBLANK(InputA1A3[[#This Row],[Omräkning till FU/DU (Skriv in värde, ej formel)]]),InputA1A3[[#This Row],[EPD - EF A4]]*InputA1A3[[#This Row],[Mängd A1A3]],InputA1A3[[#This Row],[Mängd A1A3]]*InputA1A3[[#This Row],[Omräkning till FU/DU (Skriv in värde, ej formel)]]*InputA1A3[[#This Row],[EPD - EF A4]])) ->  | CE9: =IFERROR(IF(KontrollTabell[[#This Row],[True/False A4 - Alt 2]]="","",IF(KontrollTabell[[#This Row],[True/False A4 Enhet - Alt2]]=TRUE, IF(ISNUMBER(InputA1A3[[#This Row],[Omräkningsfaktor (A4), (vid behov, värde eller formel)]]),InputA1A3[[#This Row],[Sträcka - totalt '[km'], (tur och retur, alla transporter)]]*InputA1A3[[#This Row],[(Bränsle-) Förbrukning per km]]/InputA1A3[[#This Row],[Omräkningsfaktor (A4), (vid behov, värde eller formel)]]*InputA1A3[[#This Row],[*EF (A4) '[kg CO₂-ekv.']]], InputA1A3[[#This Row],[Sträcka - totalt '[km'], (tur och retur, alla transporter)]]*InputA1A3[[#This Row],[(Bränsle-) Förbrukning per km]]*InputA1A3[[#This Row],[*EF (A4) '[kg CO₂-ekv.']]]),"Sen då")),0) ->  | CF9: =SUM(KontrollTabell[[#This Row],[A4 - Resultat alt 1 '[kg']]:[A4 - Alt 2 - beräkning utsläpp]]) -> 0 | CG9: =IF(KontrollTabell[[#This Row],[Finns anläggningsdel-namn.]]=FALSE,"",IF(ISBLANK(InputA1A3[[#This Row],[EPD - EF A4]]),FALSE,TRUE)) ->  | CH9: =IFERROR(IF(KontrollTabell[[#This Row],[True/False A5]]=FALSE(),"Enheter",IF(ISBLANK(InputA1A3[[#This Row],[Omräkningsfaktor (A5.2) (ange värde), (vid behov)]]),InputA1A3[[#This Row],[Mängd (A5.2)]]*InputA1A3[[#This Row],[*EF (A5.2) '[kg CO₂-ekv.']]],InputA1A3[[#This Row],[Mängd (A5.2)]]*InputA1A3[[#This Row],[*EF (A5.2) '[kg CO₂-ekv.']]]*InputA1A3[[#This Row],[Omräkningsfaktor (A5.2) (ange värde), (vid behov)]])),0) -> 0 | CI9: =IF(InputA1A3[[#This Row],[*DU/FU (EF A5.2)]]="","",IF(InputA1A3[[#This Row],[Enhet för mängd (A5.2)]]="","Värde Behövs",IF(OR(InputA1A3[[#This Row],[Enhet för mängd (A5.2)]]=InputA1A3[[#This Row],[*DU/FU (EF A5.2)]],AND(InputA1A3[[#This Row],[Enhet för mängd (A5.2)]]<>InputA1A3[[#This Row],[*DU/FU (EF A5.2)]],ISNUMBER(InputA1A3[[#This Row],[Omräkningsfaktor (A5.2) (ange värde), (vid behov)]]))),TRUE,FALSE))) ->  | CJ9: =IF(OR(KontrollTabell[[#This Row],[Finns anläggningsdel-namn.]]=FALSE,KontrollTabell[[#This Row],[True/False A5]]="Värde Behövs"),"",IF(InputA1A3[[#This Row],[Enhet för mängd (A5.2)]] = InputA1A3[[#This Row],[*DU/FU (EF A5.2)]], TRUE, FALSE)) ->  | CK9: =IF(KontrollTabell[[#This Row],[Finns anläggningsdel-namn.]]=FALSE,"",IF(OR(ISBLANK(InputA1A3[[#This Row],[Kategori (egen kategorisering)]])=FALSE,ISBLANK(InputA1A3[[#This Row],[Anläggningsdel ]]))=FALSE,TRUE,FALSE)) ->  | CL9: =IF(ISBLANK(InputA1A3[[#This Row],[Anläggningsdel ]]),"",IF(KontrollTabell[[#This Row],[TRUE/FALSE om kategori saknas.]] =FALSE,InputA1A3[[#This Row],[Kategori (egen kategorisering)]],"Kategori saknas")) -> 
J10: =IF(ISBLANK(InputA1A3[[#This Row],[Anläggningsdel ]]),"",IF(OR(KontrollTabell[[#This Row],[True/False A1A3 Enhet]]=TRUE,KontrollTabell[[#This Row],[True/False A1A3 Enhet]]="Värde Behövs",KontrollTabell[[#This Row],[True/False A1A3 Enhet]]=""), "", InputA1A3[[#This Row],[FU/DU (EF A1A3)]] & "/" & InputA1A3[[#This Row],[Enhet Mängd (A1A3)]])) ->  | O10: =IF(ISBLANK(InputA1A3[[#This Row],[EPD - EF A4]]),"",InputA1A3[[#This Row],[FU/DU (EF A1A3)]]) ->  | T10: =IFERROR(INDEX(TabellEFDrivmedel[],MATCH(InputA1A3[[#This Row],[Drivmedel (A4) (endast förval ur lista)]],TabellEFDrivmedel[Drivmedel],0),4),"") ->  | X10: =IF(InputA1A3[[#This Row],[*DU/FU (EF A4) för valt drivmedel (schablon)]]="","",IF(OR(InputA1A3[[#This Row],[*DU/FU (EF A4) för valt drivmedel (schablon)]]=InputA1A3[[#This Row],[Enhet (bränsleförbrukning per km)]],KontrollTabell[[#This Row],[True/False A4 - Alt 2]]="Värde Behövs"),"",InputA1A3[[#This Row],[Enhet (bränsleförbrukning per km)]]& "/" & InputA1A3[[#This Row],[*DU/FU (EF A4) för valt drivmedel (schablon)]])) ->  | AF10: =IFERROR(INDEX(TabellEFDrivmedel[],MATCH(InputA1A3[[#This Row],[Drivmedel (A5.2)]],TabellEFDrivmedel[Drivmedel],0),2),"") ->  | AG10: =IFERROR(INDEX(TabellEFDrivmedel[],MATCH(InputA1A3[[#This Row],[Drivmedel (A5.2)]],TabellEFDrivmedel[Drivmedel],0),4),"") ->  | AH10: =IF(OR(KontrollTabell[[#This Row],[True/False A5 Enhet]]=TRUE,KontrollTabell[[#This Row],[True/False A5 Enhet]]=""), "", InputA1A3[[#This Row],[*DU/FU (EF A5.2)]] & "/" & InputA1A3[[#This Row],[Enhet för mängd (A5.2)]]) ->  | BW10: =IF(ISBLANK(InputA1A3[[#This Row],[Anläggningsdel ]]),FALSE,TRUE) -> FALSE | BX10: =IF(ISBLANK(InputA1A3[[#This Row],[Anläggningsdel ]]),"",IF(ISBLANK(InputA1A3[[#This Row],[Enhet Mängd (A1A3)]]),"",IF(ISBLANK(InputA1A3[[#This Row],[FU/DU (EF A1A3)]]),"Värde Behövs",IF(InputA1A3[[#This Row],[Enhet Mängd (A1A3)]] = InputA1A3[[#This Row],[FU/DU (EF A1A3)]], TRUE, FALSE)))) ->  | BY10: =IF(KontrollTabell[[#This Row],[Finns anläggningsdel-namn.]]=FALSE,"",(IF(KontrollTabell[[#This Row],[True/False A1A3 Enhet]]=TRUE,TRUE,IF(OR(KontrollTabell[[#This Row],[True/False A1A3 Enhet]]="Värde Behövs",(KontrollTabell[[#This Row],[True/False A1A3 Enhet]]="")),"",IF(ISBLANK(InputA1A3[[#This Row],[Omräkning till FU/DU (Skriv in värde, ej formel)]]),FALSE,TRUE))))) ->  | BZ10: =IF(KontrollTabell[[#This Row],[Finns anläggningsdel-namn.]]=FALSE,,IF(KontrollTabell[[#This Row],[True/False A1A3 Enhet]]=TRUE,InputA1A3[[#This Row],[Mängd A1A3]]*InputA1A3[[#This Row],[EF A1A3 '[kg CO₂-ekv.']]],IF(KontrollTabell[[#This Row],[True/False A1A3 om A1A3 kan beräknas]]=TRUE,InputA1A3[[#This Row],[Mängd A1A3]]*InputA1A3[[#This Row],[EF A1A3 '[kg CO₂-ekv.']]]*InputA1A3[[#This Row],[Omräkning till FU/DU (Skriv in värde, ej formel)]],0))) -> 0 | CA10: =IF(ISBLANK(InputA1A3[[#This Row],[Anläggningsdel ]]),"",IF(ISBLANK(InputA1A3[[#This Row],[EPD - EF A4]]),FALSE,TRUE)) ->  | CB10: =IF(InputA1A3[[#This Row],[*DU/FU (EF A4) för valt drivmedel (schablon)]]="","",IF(InputA1A3[[#This Row],[Enhet (bränsleförbrukning per km)]]="","Värde Behövs",IF(OR(InputA1A3[[#This Row],[Enhet (bränsleförbrukning per km)]]=InputA1A3[[#This Row],[*DU/FU (EF A4) för valt drivmedel (schablon)]],AND(InputA1A3[[#This Row],[Enhet (bränsleförbrukning per km)]]<>InputA1A3[[#This Row],[*DU/FU (EF A4) för valt drivmedel (schablon)]],ISNUMBER(InputA1A3[[#This Row],[Omräkningsfaktor (A4), (vid behov, värde eller formel)]]))),TRUE(),FALSE()))) ->  | CC10: =IF(KontrollTabell[[#This Row],[Finns anläggningsdel-namn.]]=FALSE,"",(IF(InputA1A3[[#This Row],[Enhet (bränsleförbrukning per km)]] =InputA1A3[[#This Row],[*DU/FU (EF A4) för valt drivmedel (schablon)]],TRUE,IF(KontrollTabell[[#This Row],[True/False A4 - Alt 2]]="Värde Behövs","",IF(ISBLANK(InputA1A3[[#This Row],[Omräkningsfaktor (A4), (vid behov, värde eller formel)]]),FALSE,TRUE))))) ->  | CD10: =IF(ISBLANK(InputA1A3[[#This Row],[EPD - EF A4]]),"",IF(ISBLANK(InputA1A3[[#This Row],[Omräkning till FU/DU (Skriv in värde, ej formel)]]),InputA1A3[[#This Row],[EPD - EF A4]]*InputA1A3[[#This Row],[Mängd A1A3]],InputA1A3[[#This Row],[Mängd A1A3]]*InputA1A3[[#This Row],[Omräkning till FU/DU (Skriv in värde, ej formel)]]*InputA1A3[[#This Row],[EPD - EF A4]])) ->  | CE10: =IFERROR(IF(KontrollTabell[[#This Row],[True/False A4 - Alt 2]]="","",IF(KontrollTabell[[#This Row],[True/False A4 Enhet - Alt2]]=TRUE, IF(ISNUMBER(InputA1A3[[#This Row],[Omräkningsfaktor (A4), (vid behov, värde eller formel)]]),InputA1A3[[#This Row],[Sträcka - totalt '[km'], (tur och retur, alla transporter)]]*InputA1A3[[#This Row],[(Bränsle-) Förbrukning per km]]/InputA1A3[[#This Row],[Omräkningsfaktor (A4), (vid behov, värde eller formel)]]*InputA1A3[[#This Row],[*EF (A4) '[kg CO₂-ekv.']]], InputA1A3[[#This Row],[Sträcka - totalt '[km'], (tur och retur, alla transporter)]]*InputA1A3[[#This Row],[(Bränsle-) Förbrukning per km]]*InputA1A3[[#This Row],[*EF (A4) '[kg CO₂-ekv.']]]),"Sen då")),0) ->  | CF10: =SUM(KontrollTabell[[#This Row],[A4 - Resultat alt 1 '[kg']]:[A4 - Alt 2 - beräkning utsläpp]]) -> 0 | CG10: =IF(KontrollTabell[[#This Row],[Finns anläggningsdel-namn.]]=FALSE,"",IF(ISBLANK(InputA1A3[[#This Row],[EPD - EF A4]]),FALSE,TRUE)) ->  | CH10: =IFERROR(IF(KontrollTabell[[#This Row],[True/False A5]]=FALSE(),"Enheter",IF(ISBLANK(InputA1A3[[#This Row],[Omräkningsfaktor (A5.2) (ange värde), (vid behov)]]),InputA1A3[[#This Row],[Mängd (A5.2)]]*InputA1A3[[#This Row],[*EF (A5.2) '[kg CO₂-ekv.']]],InputA1A3[[#This Row],[Mängd (A5.2)]]*InputA1A3[[#This Row],[*EF (A5.2) '[kg CO₂-ekv.']]]*InputA1A3[[#This Row],[Omräkningsfaktor (A5.2) (ange värde), (vid behov)]])),0) -> 0 | CI10: =IF(InputA1A3[[#This Row],[*DU/FU (EF A5.2)]]="","",IF(InputA1A3[[#This Row],[Enhet för mängd (A5.2)]]="","Värde Behövs",IF(OR(InputA1A3[[#This Row],[Enhet för mängd (A5.2)]]=InputA1A3[[#This Row],[*DU/FU (EF A5.2)]],AND(InputA1A3[[#This Row],[Enhet för mängd (A5.2)]]<>InputA1A3[[#This Row],[*DU/FU (EF A5.2)]],ISNUMBER(InputA1A3[[#This Row],[Omräkningsfaktor (A5.2) (ange värde), (vid behov)]]))),TRUE,FALSE))) ->  | CJ10: =IF(OR(KontrollTabell[[#This Row],[Finns anläggningsdel-namn.]]=FALSE,KontrollTabell[[#This Row],[True/False A5]]="Värde Behövs"),"",IF(InputA1A3[[#This Row],[Enhet för mängd (A5.2)]] = InputA1A3[[#This Row],[*DU/FU (EF A5.2)]], TRUE, FALSE)) ->  | CK10: =IF(KontrollTabell[[#This Row],[Finns anläggningsdel-namn.]]=FALSE,"",IF(OR(ISBLANK(InputA1A3[[#This Row],[Kategori (egen kategorisering)]])=FALSE,ISBLANK(InputA1A3[[#This Row],[Anläggningsdel ]]))=FALSE,TRUE,FALSE)) ->  | CL10: =IF(ISBLANK(InputA1A3[[#This Row],[Anläggningsdel ]]),"",IF(KontrollTabell[[#This Row],[TRUE/FALSE om kategori saknas.]] =FALSE,InputA1A3[[#This Row],[Kategori (egen kategorisering)]],"Kategori saknas")) -> 
J11: =IF(ISBLANK(InputA1A3[[#This Row],[Anläggningsdel ]]),"",IF(OR(KontrollTabell[[#This Row],[True/False A1A3 Enhet]]=TRUE,KontrollTabell[[#This Row],[True/False A1A3 Enhet]]="Värde Behövs",KontrollTabell[[#This Row],[True/False A1A3 Enhet]]=""), "", InputA1A3[[#This Row],[FU/DU (EF A1A3)]] & "/" & InputA1A3[[#This Row],[Enhet Mängd (A1A3)]])) ->  | O11: =IF(ISBLANK(InputA1A3[[#This Row],[EPD - EF A4]]),"",InputA1A3[[#This Row],[FU/DU (EF A1A3)]]) ->  | T11: =IFERROR(INDEX(TabellEFDrivmedel[],MATCH(InputA1A3[[#This Row],[Drivmedel (A4) (endast förval ur lista)]],TabellEFDrivmedel[Drivmedel],0),4),"") ->  | X11: =IF(InputA1A3[[#This Row],[*DU/FU (EF A4) för valt drivmedel (schablon)]]="","",IF(OR(InputA1A3[[#This Row],[*DU/FU (EF A4) för valt drivmedel (schablon)]]=InputA1A3[[#This Row],[Enhet (bränsleförbrukning per km)]],KontrollTabell[[#This Row],[True/False A4 - Alt 2]]="Värde Behövs"),"",InputA1A3[[#This Row],[Enhet (bränsleförbrukning per km)]]& "/" & InputA1A3[[#This Row],[*DU/FU (EF A4) för valt drivmedel (schablon)]])) ->  | AF11: =IFERROR(INDEX(TabellEFDrivmedel[],MATCH(InputA1A3[[#This Row],[Drivmedel (A5.2)]],TabellEFDrivmedel[Drivmedel],0),2),"") ->  | AG11: =IFERROR(INDEX(TabellEFDrivmedel[],MATCH(InputA1A3[[#This Row],[Drivmedel (A5.2)]],TabellEFDrivmedel[Drivmedel],0),4),"") ->  | AH11: =IF(OR(KontrollTabell[[#This Row],[True/False A5 Enhet]]=TRUE,KontrollTabell[[#This Row],[True/False A5 Enhet]]=""), "", InputA1A3[[#This Row],[*DU/FU (EF A5.2)]] & "/" & InputA1A3[[#This Row],[Enhet för mängd (A5.2)]]) ->  | BW11: =IF(ISBLANK(InputA1A3[[#This Row],[Anläggningsdel ]]),FALSE,TRUE) -> FALSE | BX11: =IF(ISBLANK(InputA1A3[[#This Row],[Anläggningsdel ]]),"",IF(ISBLANK(InputA1A3[[#This Row],[Enhet Mängd (A1A3)]]),"",IF(ISBLANK(InputA1A3[[#This Row],[FU/DU (EF A1A3)]]),"Värde Behövs",IF(InputA1A3[[#This Row],[Enhet Mängd (A1A3)]] = InputA1A3[[#This Row],[FU/DU (EF A1A3)]], TRUE, FALSE)))) ->  | BY11: =IF(KontrollTabell[[#This Row],[Finns anläggningsdel-namn.]]=FALSE,"",(IF(KontrollTabell[[#This Row],[True/False A1A3 Enhet]]=TRUE,TRUE,IF(OR(KontrollTabell[[#This Row],[True/False A1A3 Enhet]]="Värde Behövs",(KontrollTabell[[#This Row],[True/False A1A3 Enhet]]="")),"",IF(ISBLANK(InputA1A3[[#This Row],[Omräkning till FU/DU (Skriv in värde, ej formel)]]),FALSE,TRUE))))) ->  | BZ11: =IF(KontrollTabell[[#This Row],[Finns anläggningsdel-namn.]]=FALSE,,IF(KontrollTabell[[#This Row],[True/False A1A3 Enhet]]=TRUE,InputA1A3[[#This Row],[Mängd A1A3]]*InputA1A3[[#This Row],[EF A1A3 '[kg CO₂-ekv.']]],IF(KontrollTabell[[#This Row],[True/False A1A3 om A1A3 kan beräknas]]=TRUE,InputA1A3[[#This Row],[Mängd A1A3]]*InputA1A3[[#This Row],[EF A1A3 '[kg CO₂-ekv.']]]*InputA1A3[[#This Row],[Omräkning till FU/DU (Skriv in värde, ej formel)]],0))) -> 0 | CA11: =IF(ISBLANK(InputA1A3[[#This Row],[Anläggningsdel ]]),"",IF(ISBLANK(InputA1A3[[#This Row],[EPD - EF A4]]),FALSE,TRUE)) ->  | CB11: =IF(InputA1A3[[#This Row],[*DU/FU (EF A4) för valt drivmedel (schablon)]]="","",IF(InputA1A3[[#This Row],[Enhet (bränsleförbrukning per km)]]="","Värde Behövs",IF(OR(InputA1A3[[#This Row],[Enhet (bränsleförbrukning per km)]]=InputA1A3[[#This Row],[*DU/FU (EF A4) för valt drivmedel (schablon)]],AND(InputA1A3[[#This Row],[Enhet (bränsleförbrukning per km)]]<>InputA1A3[[#This Row],[*DU/FU (EF A4) för valt drivmedel (schablon)]],ISNUMBER(InputA1A3[[#This Row],[Omräkningsfaktor (A4), (vid behov, värde eller formel)]]))),TRUE(),FALSE()))) ->  | CC11: =IF(KontrollTabell[[#This Row],[Finns anläggningsdel-namn.]]=FALSE,"",(IF(InputA1A3[[#This Row],[Enhet (bränsleförbrukning per km)]] =InputA1A3[[#This Row],[*DU/FU (EF A4) för valt drivmedel (schablon)]],TRUE,IF(KontrollTabell[[#This Row],[True/False A4 - Alt 2]]="Värde Behövs","",IF(ISBLANK(InputA1A3[[#This Row],[Omräkningsfaktor (A4), (vid behov, värde eller formel)]]),FALSE,TRUE))))) ->  | CD11: =IF(ISBLANK(InputA1A3[[#This Row],[EPD - EF A4]]),"",IF(ISBLANK(InputA1A3[[#This Row],[Omräkning till FU/DU (Skriv in värde, ej formel)]]),InputA1A3[[#This Row],[EPD - EF A4]]*InputA1A3[[#This Row],[Mängd A1A3]],InputA1A3[[#This Row],[Mängd A1A3]]*InputA1A3[[#This Row],[Omräkning till FU/DU (Skriv in värde, ej formel)]]*InputA1A3[[#This Row],[EPD - EF A4]])) ->  | CE11: =IFERROR(IF(KontrollTabell[[#This Row],[True/False A4 - Alt 2]]="","",IF(KontrollTabell[[#This Row],[True/False A4 Enhet - Alt2]]=TRUE, IF(ISNUMBER(InputA1A3[[#This Row],[Omräkningsfaktor (A4), (vid behov, värde eller formel)]]),InputA1A3[[#This Row],[Sträcka - totalt '[km'], (tur och retur, alla transporter)]]*InputA1A3[[#This Row],[(Bränsle-) Förbrukning per km]]/InputA1A3[[#This Row],[Omräkningsfaktor (A4), (vid behov, värde eller formel)]]*InputA1A3[[#This Row],[*EF (A4) '[kg CO₂-ekv.']]], InputA1A3[[#This Row],[Sträcka - totalt '[km'], (tur och retur, alla transporter)]]*InputA1A3[[#This Row],[(Bränsle-) Förbrukning per km]]*InputA1A3[[#This Row],[*EF (A4) '[kg CO₂-ekv.']]]),"Sen då")),0) ->  | CF11: =SUM(KontrollTabell[[#This Row],[A4 - Resultat alt 1 '[kg']]:[A4 - Alt 2 - beräkning utsläpp]]) -> 0 | CG11: =IF(KontrollTabell[[#This Row],[Finns anläggningsdel-namn.]]=FALSE,"",IF(ISBLANK(InputA1A3[[#This Row],[EPD - EF A4]]),FALSE,TRUE)) ->  | CH11: =IFERROR(IF(KontrollTabell[[#This Row],[True/False A5]]=FALSE(),"Enheter",IF(ISBLANK(InputA1A3[[#This Row],[Omräkningsfaktor (A5.2) (ange värde), (vid behov)]]),InputA1A3[[#This Row],[Mängd (A5.2)]]*InputA1A3[[#This Row],[*EF (A5.2) '[kg CO₂-ekv.']]],InputA1A3[[#This Row],[Mängd (A5.2)]]*InputA1A3[[#This Row],[*EF (A5.2) '[kg CO₂-ekv.']]]*InputA1A3[[#This Row],[Omräkningsfaktor (A5.2) (ange värde), (vid behov)]])),0) -> 0 | CI11: =IF(InputA1A3[[#This Row],[*DU/FU (EF A5.2)]]="","",IF(InputA1A3[[#This Row],[Enhet för mängd (A5.2)]]="","Värde Behövs",IF(OR(InputA1A3[[#This Row],[Enhet för mängd (A5.2)]]=InputA1A3[[#This Row],[*DU/FU (EF A5.2)]],AND(InputA1A3[[#This Row],[Enhet för mängd (A5.2)]]<>InputA1A3[[#This Row],[*DU/FU (EF A5.2)]],ISNUMBER(InputA1A3[[#This Row],[Omräkningsfaktor (A5.2) (ange värde), (vid behov)]]))),TRUE,FALSE))) ->  | CJ11: =IF(OR(KontrollTabell[[#This Row],[Finns anläggningsdel-namn.]]=FALSE,KontrollTabell[[#This Row],[True/False A5]]="Värde Behövs"),"",IF(InputA1A3[[#This Row],[Enhet för mängd (A5.2)]] = InputA1A3[[#This Row],[*DU/FU (EF A5.2)]], TRUE, FALSE)) ->  | CK11: =IF(KontrollTabell[[#This Row],[Finns anläggningsdel-namn.]]=FALSE,"",IF(OR(ISBLANK(InputA1A3[[#This Row],[Kategori (egen kategorisering)]])=FALSE,ISBLANK(InputA1A3[[#This Row],[Anläggningsdel ]]))=FALSE,TRUE,FALSE)) ->  | CL11: =IF(ISBLANK(InputA1A3[[#This Row],[Anläggningsdel ]]),"",IF(KontrollTabell[[#This Row],[TRUE/FALSE om kategori saknas.]] =FALSE,InputA1A3[[#This Row],[Kategori (egen kategorisering)]],"Kategori saknas")) -> 
J12: =IF(ISBLANK(InputA1A3[[#This Row],[Anläggningsdel ]]),"",IF(OR(KontrollTabell[[#This Row],[True/False A1A3 Enhet]]=TRUE,KontrollTabell[[#This Row],[True/False A1A3 Enhet]]="Värde Behövs",KontrollTabell[[#This Row],[True/False A1A3 Enhet]]=""), "", InputA1A3[[#This Row],[FU/DU (EF A1A3)]] & "/" & InputA1A3[[#This Row],[Enhet Mängd (A1A3)]])) ->  | O12: =IF(ISBLANK(InputA1A3[[#This Row],[EPD - EF A4]]),"",InputA1A3[[#This Row],[FU/DU (EF A1A3)]]) ->  | T12: =IFERROR(INDEX(TabellEFDrivmedel[],MATCH(InputA1A3[[#This Row],[Drivmedel (A4) (endast förval ur lista)]],TabellEFDrivmedel[Drivmedel],0),4),"") ->  | X12: =IF(InputA1A3[[#This Row],[*DU/FU (EF A4) för valt drivmedel (schablon)]]="","",IF(OR(InputA1A3[[#This Row],[*DU/FU (EF A4) för valt drivmedel (schablon)]]=InputA1A3[[#This Row],[Enhet (bränsleförbrukning per km)]],KontrollTabell[[#This Row],[True/False A4 - Alt 2]]="Värde Behövs"),"",InputA1A3[[#This Row],[Enhet (bränsleförbrukning per km)]]& "/" & InputA1A3[[#This Row],[*DU/FU (EF A4) för valt drivmedel (schablon)]])) ->  | AF12: =IFERROR(INDEX(TabellEFDrivmedel[],MATCH(InputA1A3[[#This Row],[Drivmedel (A5.2)]],TabellEFDrivmedel[Drivmedel],0),2),"") ->  | AG12: =IFERROR(INDEX(TabellEFDrivmedel[],MATCH(InputA1A3[[#This Row],[Drivmedel (A5.2)]],TabellEFDrivmedel[Drivmedel],0),4),"") ->  | AH12: =IF(OR(KontrollTabell[[#This Row],[True/False A5 Enhet]]=TRUE,KontrollTabell[[#This Row],[True/False A5 Enhet]]=""), "", InputA1A3[[#This Row],[*DU/FU (EF A5.2)]] & "/" & InputA1A3[[#This Row],[Enhet för mängd (A5.2)]]) ->  | BW12: =IF(ISBLANK(InputA1A3[[#This Row],[Anläggningsdel ]]),FALSE,TRUE) -> FALSE | BX12: =IF(ISBLANK(InputA1A3[[#This Row],[Anläggningsdel ]]),"",IF(ISBLANK(InputA1A3[[#This Row],[Enhet Mängd (A1A3)]]),"",IF(ISBLANK(InputA1A3[[#This Row],[FU/DU (EF A1A3)]]),"Värde Behövs",IF(InputA1A3[[#This Row],[Enhet Mängd (A1A3)]] = InputA1A3[[#This Row],[FU/DU (EF A1A3)]], TRUE, FALSE)))) ->  | BY12: =IF(KontrollTabell[[#This Row],[Finns anläggningsdel-namn.]]=FALSE,"",(IF(KontrollTabell[[#This Row],[True/False A1A3 Enhet]]=TRUE,TRUE,IF(OR(KontrollTabell[[#This Row],[True/False A1A3 Enhet]]="Värde Behövs",(KontrollTabell[[#This Row],[True/False A1A3 Enhet]]="")),"",IF(ISBLANK(InputA1A3[[#This Row],[Omräkning till FU/DU (Skriv in värde, ej formel)]]),FALSE,TRUE))))) ->  | BZ12: =IF(KontrollTabell[[#This Row],[Finns anläggningsdel-namn.]]=FALSE,,IF(KontrollTabell[[#This Row],[True/False A1A3 Enhet]]=TRUE,InputA1A3[[#This Row],[Mängd A1A3]]*InputA1A3[[#This Row],[EF A1A3 '[kg CO₂-ekv.']]],IF(KontrollTabell[[#This Row],[True/False A1A3 om A1A3 kan beräknas]]=TRUE,InputA1A3[[#This Row],[Mängd A1A3]]*InputA1A3[[#This Row],[EF A1A3 '[kg CO₂-ekv.']]]*InputA1A3[[#This Row],[Omräkning till FU/DU (Skriv in värde, ej formel)]],0))) -> 0 | CA12: =IF(ISBLANK(InputA1A3[[#This Row],[Anläggningsdel ]]),"",IF(ISBLANK(InputA1A3[[#This Row],[EPD - EF A4]]),FALSE,TRUE)) ->  | CB12: =IF(InputA1A3[[#This Row],[*DU/FU (EF A4) för valt drivmedel (schablon)]]="","",IF(InputA1A3[[#This Row],[Enhet (bränsleförbrukning per km)]]="","Värde Behövs",IF(OR(InputA1A3[[#This Row],[Enhet (bränsleförbrukning per km)]]=InputA1A3[[#This Row],[*DU/FU (EF A4) för valt drivmedel (schablon)]],AND(InputA1A3[[#This Row],[Enhet (bränsleförbrukning per km)]]<>InputA1A3[[#This Row],[*DU/FU (EF A4) för valt drivmedel (schablon)]],ISNUMBER(InputA1A3[[#This Row],[Omräkningsfaktor (A4), (vid behov, värde eller formel)]]))),TRUE(),FALSE()))) ->  | CC12: =IF(KontrollTabell[[#This Row],[Finns anläggningsdel-namn.]]=FALSE,"",(IF(InputA1A3[[#This Row],[Enhet (bränsleförbrukning per km)]] =InputA1A3[[#This Row],[*DU/FU (EF A4) för valt drivmedel (schablon)]],TRUE,IF(KontrollTabell[[#This Row],[True/False A4 - Alt 2]]="Värde Behövs","",IF(ISBLANK(InputA1A3[[#This Row],[Omräkningsfaktor (A4), (vid behov, värde eller formel)]]),FALSE,TRUE))))) ->  | CD12: =IF(ISBLANK(InputA1A3[[#This Row],[EPD - EF A4]]),"",IF(ISBLANK(InputA1A3[[#This Row],[Omräkning till FU/DU (Skriv in värde, ej formel)]]),InputA1A3[[#This Row],[EPD - EF A4]]*InputA1A3[[#This Row],[Mängd A1A3]],InputA1A3[[#This Row],[Mängd A1A3]]*InputA1A3[[#This Row],[Omräkning till FU/DU (Skriv in värde, ej formel)]]*InputA1A3[[#This Row],[EPD - EF A4]])) ->  | CE12: =IFERROR(IF(KontrollTabell[[#This Row],[True/False A4 - Alt 2]]="","",IF(KontrollTabell[[#This Row],[True/False A4 Enhet - Alt2]]=TRUE, IF(ISNUMBER(InputA1A3[[#This Row],[Omräkningsfaktor (A4), (vid behov, värde eller formel)]]),InputA1A3[[#This Row],[Sträcka - totalt '[km'], (tur och retur, alla transporter)]]*InputA1A3[[#This Row],[(Bränsle-) Förbrukning per km]]/InputA1A3[[#This Row],[Omräkningsfaktor (A4), (vid behov, värde eller formel)]]*InputA1A3[[#This Row],[*EF (A4) '[kg CO₂-ekv.']]], InputA1A3[[#This Row],[Sträcka - totalt '[km'], (tur och retur, alla transporter)]]*InputA1A3[[#This Row],[(Bränsle-) Förbrukning per km]]*InputA1A3[[#This Row],[*EF (A4) '[kg CO₂-ekv.']]]),"Sen då")),0) ->  | CF12: =SUM(KontrollTabell[[#This Row],[A4 - Resultat alt 1 '[kg']]:[A4 - Alt 2 - beräkning utsläpp]]) -> 0 | CG12: =IF(KontrollTabell[[#This Row],[Finns anläggningsdel-namn.]]=FALSE,"",IF(ISBLANK(InputA1A3[[#This Row],[EPD - EF A4]]),FALSE,TRUE)) ->  | CH12: =IFERROR(IF(KontrollTabell[[#This Row],[True/False A5]]=FALSE(),"Enheter",IF(ISBLANK(InputA1A3[[#This Row],[Omräkningsfaktor (A5.2) (ange värde), (vid behov)]]),InputA1A3[[#This Row],[Mängd (A5.2)]]*InputA1A3[[#This Row],[*EF (A5.2) '[kg CO₂-ekv.']]],InputA1A3[[#This Row],[Mängd (A5.2)]]*InputA1A3[[#This Row],[*EF (A5.2) '[kg CO₂-ekv.']]]*InputA1A3[[#This Row],[Omräkningsfaktor (A5.2) (ange värde), (vid behov)]])),0) -> 0 | CI12: =IF(InputA1A3[[#This Row],[*DU/FU (EF A5.2)]]="","",IF(InputA1A3[[#This Row],[Enhet för mängd (A5.2)]]="","Värde Behövs",IF(OR(InputA1A3[[#This Row],[Enhet för mängd (A5.2)]]=InputA1A3[[#This Row],[*DU/FU (EF A5.2)]],AND(InputA1A3[[#This Row],[Enhet för mängd (A5.2)]]<>InputA1A3[[#This Row],[*DU/FU (EF A5.2)]],ISNUMBER(InputA1A3[[#This Row],[Omräkningsfaktor (A5.2) (ange värde), (vid behov)]]))),TRUE,FALSE))) ->  | CJ12: =IF(OR(KontrollTabell[[#This Row],[Finns anläggningsdel-namn.]]=FALSE,KontrollTabell[[#This Row],[True/False A5]]="Värde Behövs"),"",IF(InputA1A3[[#This Row],[Enhet för mängd (A5.2)]] = InputA1A3[[#This Row],[*DU/FU (EF A5.2)]], TRUE, FALSE)) ->  | CK12: =IF(KontrollTabell[[#This Row],[Finns anläggningsdel-namn.]]=FALSE,"",IF(OR(ISBLANK(InputA1A3[[#This Row],[Kategori (egen kategorisering)]])=FALSE,ISBLANK(InputA1A3[[#This Row],[Anläggningsdel ]]))=FALSE,TRUE,FALSE)) ->  | CL12: =IF(ISBLANK(InputA1A3[[#This Row],[Anläggningsdel ]]),"",IF(KontrollTabell[[#This Row],[TRUE/FALSE om kategori saknas.]] =FALSE,InputA1A3[[#This Row],[Kategori (egen kategorisering)]],"Kategori saknas")) -> 
J13: =IF(ISBLANK(InputA1A3[[#This Row],[Anläggningsdel ]]),"",IF(OR(KontrollTabell[[#This Row],[True/False A1A3 Enhet]]=TRUE,KontrollTabell[[#This Row],[True/False A1A3 Enhet]]="Värde Behövs",KontrollTabell[[#This Row],[True/False A1A3 Enhet]]=""), "", InputA1A3[[#This Row],[FU/DU (EF A1A3)]] & "/" & InputA1A3[[#This Row],[Enhet Mängd (A1A3)]])) ->  | O13: =IF(ISBLANK(InputA1A3[[#This Row],[EPD - EF A4]]),"",InputA1A3[[#This Row],[FU/DU (EF A1A3)]]) ->  | T13: =IFERROR(INDEX(TabellEFDrivmedel[],MATCH(InputA1A3[[#This Row],[Drivmedel (A4) (endast förval ur lista)]],TabellEFDrivmedel[Drivmedel],0),4),"") ->  | X13: =IF(InputA1A3[[#This Row],[*DU/FU (EF A4) för valt drivmedel (schablon)]]="","",IF(OR(InputA1A3[[#This Row],[*DU/FU (EF A4) för valt drivmedel (schablon)]]=InputA1A3[[#This Row],[Enhet (bränsleförbrukning per km)]],KontrollTabell[[#This Row],[True/False A4 - Alt 2]]="Värde Behövs"),"",InputA1A3[[#This Row],[Enhet (bränsleförbrukning per km)]]& "/" & InputA1A3[[#This Row],[*DU/FU (EF A4) för valt drivmedel (schablon)]])) ->  | AF13: =IFERROR(INDEX(TabellEFDrivmedel[],MATCH(InputA1A3[[#This Row],[Drivmedel (A5.2)]],TabellEFDrivmedel[Drivmedel],0),2),"") ->  | AG13: =IFERROR(INDEX(TabellEFDrivmedel[],MATCH(InputA1A3[[#This Row],[Drivmedel (A5.2)]],TabellEFDrivmedel[Drivmedel],0),4),"") ->  | AH13: =IF(OR(KontrollTabell[[#This Row],[True/False A5 Enhet]]=TRUE,KontrollTabell[[#This Row],[True/False A5 Enhet]]=""), "", InputA1A3[[#This Row],[*DU/FU (EF A5.2)]] & "/" & InputA1A3[[#This Row],[Enhet för mängd (A5.2)]]) ->  | BW13: =IF(ISBLANK(InputA1A3[[#This Row],[Anläggningsdel ]]),FALSE,TRUE) -> FALSE | BX13: =IF(ISBLANK(InputA1A3[[#This Row],[Anläggningsdel ]]),"",IF(ISBLANK(InputA1A3[[#This Row],[Enhet Mängd (A1A3)]]),"",IF(ISBLANK(InputA1A3[[#This Row],[FU/DU (EF A1A3)]]),"Värde Behövs",IF(InputA1A3[[#This Row],[Enhet Mängd (A1A3)]] = InputA1A3[[#This Row],[FU/DU (EF A1A3)]], TRUE, FALSE)))) ->  | BY13: =IF(KontrollTabell[[#This Row],[Finns anläggningsdel-namn.]]=FALSE,"",(IF(KontrollTabell[[#This Row],[True/False A1A3 Enhet]]=TRUE,TRUE,IF(OR(KontrollTabell[[#This Row],[True/False A1A3 Enhet]]="Värde Behövs",(KontrollTabell[[#This Row],[True/False A1A3 Enhet]]="")),"",IF(ISBLANK(InputA1A3[[#This Row],[Omräkning till FU/DU (Skriv in värde, ej formel)]]),FALSE,TRUE))))) ->  | BZ13: =IF(KontrollTabell[[#This Row],[Finns anläggningsdel-namn.]]=FALSE,,IF(KontrollTabell[[#This Row],[True/False A1A3 Enhet]]=TRUE,InputA1A3[[#This Row],[Mängd A1A3]]*InputA1A3[[#This Row],[EF A1A3 '[kg CO₂-ekv.']]],IF(KontrollTabell[[#This Row],[True/False A1A3 om A1A3 kan beräknas]]=TRUE,InputA1A3[[#This Row],[Mängd A1A3]]*InputA1A3[[#This Row],[EF A1A3 '[kg CO₂-ekv.']]]*InputA1A3[[#This Row],[Omräkning till FU/DU (Skriv in värde, ej formel)]],0))) -> 0 | CA13: =IF(ISBLANK(InputA1A3[[#This Row],[Anläggningsdel ]]),"",IF(ISBLANK(InputA1A3[[#This Row],[EPD - EF A4]]),FALSE,TRUE)) ->  | CB13: =IF(InputA1A3[[#This Row],[*DU/FU (EF A4) för valt drivmedel (schablon)]]="","",IF(InputA1A3[[#This Row],[Enhet (bränsleförbrukning per km)]]="","Värde Behövs",IF(OR(InputA1A3[[#This Row],[Enhet (bränsleförbrukning per km)]]=InputA1A3[[#This Row],[*DU/FU (EF A4) för valt drivmedel (schablon)]],AND(InputA1A3[[#This Row],[Enhet (bränsleförbrukning per km)]]<>InputA1A3[[#This Row],[*DU/FU (EF A4) för valt drivmedel (schablon)]],ISNUMBER(InputA1A3[[#This Row],[Omräkningsfaktor (A4), (vid behov, värde eller formel)]]))),TRUE(),FALSE()))) ->  | CC13: =IF(KontrollTabell[[#This Row],[Finns anläggningsdel-namn.]]=FALSE,"",(IF(InputA1A3[[#This Row],[Enhet (bränsleförbrukning per km)]] =InputA1A3[[#This Row],[*DU/FU (EF A4) för valt drivmedel (schablon)]],TRUE,IF(KontrollTabell[[#This Row],[True/False A4 - Alt 2]]="Värde Behövs","",IF(ISBLANK(InputA1A3[[#This Row],[Omräkningsfaktor (A4), (vid behov, värde eller formel)]]),FALSE,TRUE))))) ->  | CD13: =IF(ISBLANK(InputA1A3[[#This Row],[EPD - EF A4]]),"",IF(ISBLANK(InputA1A3[[#This Row],[Omräkning till FU/DU (Skriv in värde, ej formel)]]),InputA1A3[[#This Row],[EPD - EF A4]]*InputA1A3[[#This Row],[Mängd A1A3]],InputA1A3[[#This Row],[Mängd A1A3]]*InputA1A3[[#This Row],[Omräkning till FU/DU (Skriv in värde, ej formel)]]*InputA1A3[[#This Row],[EPD - EF A4]])) ->  | CE13: =IFERROR(IF(KontrollTabell[[#This Row],[True/False A4 - Alt 2]]="","",IF(KontrollTabell[[#This Row],[True/False A4 Enhet - Alt2]]=TRUE, IF(ISNUMBER(InputA1A3[[#This Row],[Omräkningsfaktor (A4), (vid behov, värde eller formel)]]),InputA1A3[[#This Row],[Sträcka - totalt '[km'], (tur och retur, alla transporter)]]*InputA1A3[[#This Row],[(Bränsle-) Förbrukning per km]]/InputA1A3[[#This Row],[Omräkningsfaktor (A4), (vid behov, värde eller formel)]]*InputA1A3[[#This Row],[*EF (A4) '[kg CO₂-ekv.']]], InputA1A3[[#This Row],[Sträcka - totalt '[km'], (tur och retur, alla transporter)]]*InputA1A3[[#This Row],[(Bränsle-) Förbrukning per km]]*InputA1A3[[#This Row],[*EF (A4) '[kg CO₂-ekv.']]]),"Sen då")),0) ->  | CF13: =SUM(KontrollTabell[[#This Row],[A4 - Resultat alt 1 '[kg']]:[A4 - Alt 2 - beräkning utsläpp]]) -> 0 | CG13: =IF(KontrollTabell[[#This Row],[Finns anläggningsdel-namn.]]=FALSE,"",IF(ISBLANK(InputA1A3[[#This Row],[EPD - EF A4]]),FALSE,TRUE)) ->  | CH13: =IFERROR(IF(KontrollTabell[[#This Row],[True/False A5]]=FALSE(),"Enheter",IF(ISBLANK(InputA1A3[[#This Row],[Omräkningsfaktor (A5.2) (ange värde), (vid behov)]]),InputA1A3[[#This Row],[Mängd (A5.2)]]*InputA1A3[[#This Row],[*EF (A5.2) '[kg CO₂-ekv.']]],InputA1A3[[#This Row],[Mängd (A5.2)]]*InputA1A3[[#This Row],[*EF (A5.2) '[kg CO₂-ekv.']]]*InputA1A3[[#This Row],[Omräkningsfaktor (A5.2) (ange värde), (vid behov)]])),0) -> 0 | CI13: =IF(InputA1A3[[#This Row],[*DU/FU (EF A5.2)]]="","",IF(InputA1A3[[#This Row],[Enhet för mängd (A5.2)]]="","Värde Behövs",IF(OR(InputA1A3[[#This Row],[Enhet för mängd (A5.2)]]=InputA1A3[[#This Row],[*DU/FU (EF A5.2)]],AND(InputA1A3[[#This Row],[Enhet för mängd (A5.2)]]<>InputA1A3[[#This Row],[*DU/FU (EF A5.2)]],ISNUMBER(InputA1A3[[#This Row],[Omräkningsfaktor (A5.2) (ange värde), (vid behov)]]))),TRUE,FALSE))) ->  | CJ13: =IF(OR(KontrollTabell[[#This Row],[Finns anläggningsdel-namn.]]=FALSE,KontrollTabell[[#This Row],[True/False A5]]="Värde Behövs"),"",IF(InputA1A3[[#This Row],[Enhet för mängd (A5.2)]] = InputA1A3[[#This Row],[*DU/FU (EF A5.2)]], TRUE, FALSE)) ->  | CK13: =IF(KontrollTabell[[#This Row],[Finns anläggningsdel-namn.]]=FALSE,"",IF(OR(ISBLANK(InputA1A3[[#This Row],[Kategori (egen kategorisering)]])=FALSE,ISBLANK(InputA1A3[[#This Row],[Anläggningsdel ]]))=FALSE,TRUE,FALSE)) ->  | CL13: =IF(ISBLANK(InputA1A3[[#This Row],[Anläggningsdel ]]),"",IF(KontrollTabell[[#This Row],[TRUE/FALSE om kategori saknas.]] =FALSE,InputA1A3[[#This Row],[Kategori (egen kategorisering)]],"Kategori saknas")) -> 
J14: =IF(ISBLANK(InputA1A3[[#This Row],[Anläggningsdel ]]),"",IF(OR(KontrollTabell[[#This Row],[True/False A1A3 Enhet]]=TRUE,KontrollTabell[[#This Row],[True/False A1A3 Enhet]]="Värde Behövs",KontrollTabell[[#This Row],[True/False A1A3 Enhet]]=""), "", InputA1A3[[#This Row],[FU/DU (EF A1A3)]] & "/" & InputA1A3[[#This Row],[Enhet Mängd (A1A3)]])) ->  | O14: =IF(ISBLANK(InputA1A3[[#This Row],[EPD - EF A4]]),"",InputA1A3[[#This Row],[FU/DU (EF A1A3)]]) ->  | T14: =IFERROR(INDEX(TabellEFDrivmedel[],MATCH(InputA1A3[[#This Row],[Drivmedel (A4) (endast förval ur lista)]],TabellEFDrivmedel[Drivmedel],0),4),"") ->  | X14: =IF(InputA1A3[[#This Row],[*DU/FU (EF A4) för valt drivmedel (schablon)]]="","",IF(OR(InputA1A3[[#This Row],[*DU/FU (EF A4) för valt drivmedel (schablon)]]=InputA1A3[[#This Row],[Enhet (bränsleförbrukning per km)]],KontrollTabell[[#This Row],[True/False A4 - Alt 2]]="Värde Behövs"),"",InputA1A3[[#This Row],[Enhet (bränsleförbrukning per km)]]& "/" & InputA1A3[[#This Row],[*DU/FU (EF A4) för valt drivmedel (schablon)]])) ->  | AF14: =IFERROR(INDEX(TabellEFDrivmedel[],MATCH(InputA1A3[[#This Row],[Drivmedel (A5.2)]],TabellEFDrivmedel[Drivmedel],0),2),"") ->  | AG14: =IFERROR(INDEX(TabellEFDrivmedel[],MATCH(InputA1A3[[#This Row],[Drivmedel (A5.2)]],TabellEFDrivmedel[Drivmedel],0),4),"") ->  | AH14: =IF(OR(KontrollTabell[[#This Row],[True/False A5 Enhet]]=TRUE,KontrollTabell[[#This Row],[True/False A5 Enhet]]=""), "", InputA1A3[[#This Row],[*DU/FU (EF A5.2)]] & "/" & InputA1A3[[#This Row],[Enhet för mängd (A5.2)]]) ->  | BW14: =IF(ISBLANK(InputA1A3[[#This Row],[Anläggningsdel ]]),FALSE,TRUE) -> FALSE | BX14: =IF(ISBLANK(InputA1A3[[#This Row],[Anläggningsdel ]]),"",IF(ISBLANK(InputA1A3[[#This Row],[Enhet Mängd (A1A3)]]),"",IF(ISBLANK(InputA1A3[[#This Row],[FU/DU (EF A1A3)]]),"Värde Behövs",IF(InputA1A3[[#This Row],[Enhet Mängd (A1A3)]] = InputA1A3[[#This Row],[FU/DU (EF A1A3)]], TRUE, FALSE)))) ->  | BY14: =IF(KontrollTabell[[#This Row],[Finns anläggningsdel-namn.]]=FALSE,"",(IF(KontrollTabell[[#This Row],[True/False A1A3 Enhet]]=TRUE,TRUE,IF(OR(KontrollTabell[[#This Row],[True/False A1A3 Enhet]]="Värde Behövs",(KontrollTabell[[#This Row],[True/False A1A3 Enhet]]="")),"",IF(ISBLANK(InputA1A3[[#This Row],[Omräkning till FU/DU (Skriv in värde, ej formel)]]),FALSE,TRUE))))) ->  | BZ14: =IF(KontrollTabell[[#This Row],[Finns anläggningsdel-namn.]]=FALSE,,IF(KontrollTabell[[#This Row],[True/False A1A3 Enhet]]=TRUE,InputA1A3[[#This Row],[Mängd A1A3]]*InputA1A3[[#This Row],[EF A1A3 '[kg CO₂-ekv.']]],IF(KontrollTabell[[#This Row],[True/False A1A3 om A1A3 kan beräknas]]=TRUE,InputA1A3[[#This Row],[Mängd A1A3]]*InputA1A3[[#This Row],[EF A1A3 '[kg CO₂-ekv.']]]*InputA1A3[[#This Row],[Omräkning till FU/DU (Skriv in värde, ej formel)]],0))) -> 0 | CA14: =IF(ISBLANK(InputA1A3[[#This Row],[Anläggningsdel ]]),"",IF(ISBLANK(InputA1A3[[#This Row],[EPD - EF A4]]),FALSE,TRUE)) ->  | CB14: =IF(InputA1A3[[#This Row],[*DU/FU (EF A4) för valt drivmedel (schablon)]]="","",IF(InputA1A3[[#This Row],[Enhet (bränsleförbrukning per km)]]="","Värde Behövs",IF(OR(InputA1A3[[#This Row],[Enhet (bränsleförbrukning per km)]]=InputA1A3[[#This Row],[*DU/FU (EF A4) för valt drivmedel (schablon)]],AND(InputA1A3[[#This Row],[Enhet (bränsleförbrukning per km)]]<>InputA1A3[[#This Row],[*DU/FU (EF A4) för valt drivmedel (schablon)]],ISNUMBER(InputA1A3[[#This Row],[Omräkningsfaktor (A4), (vid behov, värde eller formel)]]))),TRUE(),FALSE()))) ->  | CC14: =IF(KontrollTabell[[#This Row],[Finns anläggningsdel-namn.]]=FALSE,"",(IF(InputA1A3[[#This Row],[Enhet (bränsleförbrukning per km)]] =InputA1A3[[#This Row],[*DU/FU (EF A4) för valt drivmedel (schablon)]],TRUE,IF(KontrollTabell[[#This Row],[True/False A4 - Alt 2]]="Värde Behövs","",IF(ISBLANK(InputA1A3[[#This Row],[Omräkningsfaktor (A4), (vid behov, värde eller formel)]]),FALSE,TRUE))))) ->  | CD14: =IF(ISBLANK(InputA1A3[[#This Row],[EPD - EF A4]]),"",IF(ISBLANK(InputA1A3[[#This Row],[Omräkning till FU/DU (Skriv in värde, ej formel)]]),InputA1A3[[#This Row],[EPD - EF A4]]*InputA1A3[[#This Row],[Mängd A1A3]],InputA1A3[[#This Row],[Mängd A1A3]]*InputA1A3[[#This Row],[Omräkning till FU/DU (Skriv in värde, ej formel)]]*InputA1A3[[#This Row],[EPD - EF A4]])) ->  | CE14: =IFERROR(IF(KontrollTabell[[#This Row],[True/False A4 - Alt 2]]="","",IF(KontrollTabell[[#This Row],[True/False A4 Enhet - Alt2]]=TRUE, IF(ISNUMBER(InputA1A3[[#This Row],[Omräkningsfaktor (A4), (vid behov, värde eller formel)]]),InputA1A3[[#This Row],[Sträcka - totalt '[km'], (tur och retur, alla transporter)]]*InputA1A3[[#This Row],[(Bränsle-) Förbrukning per km]]/InputA1A3[[#This Row],[Omräkningsfaktor (A4), (vid behov, värde eller formel)]]*InputA1A3[[#This Row],[*EF (A4) '[kg CO₂-ekv.']]], InputA1A3[[#This Row],[Sträcka - totalt '[km'], (tur och retur, alla transporter)]]*InputA1A3[[#This Row],[(Bränsle-) Förbrukning per km]]*InputA1A3[[#This Row],[*EF (A4) '[kg CO₂-ekv.']]]),"Sen då")),0) ->  | CF14: =SUM(KontrollTabell[[#This Row],[A4 - Resultat alt 1 '[kg']]:[A4 - Alt 2 - beräkning utsläpp]]) -> 0 | CG14: =IF(KontrollTabell[[#This Row],[Finns anläggningsdel-namn.]]=FALSE,"",IF(ISBLANK(InputA1A3[[#This Row],[EPD - EF A4]]),FALSE,TRUE)) ->  | CH14: =IFERROR(IF(KontrollTabell[[#This Row],[True/False A5]]=FALSE(),"Enheter",IF(ISBLANK(InputA1A3[[#This Row],[Omräkningsfaktor (A5.2) (ange värde), (vid behov)]]),InputA1A3[[#This Row],[Mängd (A5.2)]]*InputA1A3[[#This Row],[*EF (A5.2) '[kg CO₂-ekv.']]],InputA1A3[[#This Row],[Mängd (A5.2)]]*InputA1A3[[#This Row],[*EF (A5.2) '[kg CO₂-ekv.']]]*InputA1A3[[#This Row],[Omräkningsfaktor (A5.2) (ange värde), (vid behov)]])),0) -> 0 | CI14: =IF(InputA1A3[[#This Row],[*DU/FU (EF A5.2)]]="","",IF(InputA1A3[[#This Row],[Enhet för mängd (A5.2)]]="","Värde Behövs",IF(OR(InputA1A3[[#This Row],[Enhet för mängd (A5.2)]]=InputA1A3[[#This Row],[*DU/FU (EF A5.2)]],AND(InputA1A3[[#This Row],[Enhet för mängd (A5.2)]]<>InputA1A3[[#This Row],[*DU/FU (EF A5.2)]],ISNUMBER(InputA1A3[[#This Row],[Omräkningsfaktor (A5.2) (ange värde), (vid behov)]]))),TRUE,FALSE))) ->  | CJ14: =IF(OR(KontrollTabell[[#This Row],[Finns anläggningsdel-namn.]]=FALSE,KontrollTabell[[#This Row],[True/False A5]]="Värde Behövs"),"",IF(InputA1A3[[#This Row],[Enhet för mängd (A5.2)]] = InputA1A3[[#This Row],[*DU/FU (EF A5.2)]], TRUE, FALSE)) ->  | CK14: =IF(KontrollTabell[[#This Row],[Finns anläggningsdel-namn.]]=FALSE,"",IF(OR(ISBLANK(InputA1A3[[#This Row],[Kategori (egen kategorisering)]])=FALSE,ISBLANK(InputA1A3[[#This Row],[Anläggningsdel ]]))=FALSE,TRUE,FALSE)) ->  | CL14: =IF(ISBLANK(InputA1A3[[#This Row],[Anläggningsdel ]]),"",IF(KontrollTabell[[#This Row],[TRUE/FALSE om kategori saknas.]] =FALSE,InputA1A3[[#This Row],[Kategori (egen kategorisering)]],"Kategori saknas")) -> 
J15: =IF(ISBLANK(InputA1A3[[#This Row],[Anläggningsdel ]]),"",IF(OR(KontrollTabell[[#This Row],[True/False A1A3 Enhet]]=TRUE,KontrollTabell[[#This Row],[True/False A1A3 Enhet]]="Värde Behövs",KontrollTabell[[#This Row],[True/False A1A3 Enhet]]=""), "", InputA1A3[[#This Row],[FU/DU (EF A1A3)]] & "/" & InputA1A3[[#This Row],[Enhet Mängd (A1A3)]])) ->  | O15: =IF(ISBLANK(InputA1A3[[#This Row],[EPD - EF A4]]),"",InputA1A3[[#This Row],[FU/DU (EF A1A3)]]) ->  | T15: =IFERROR(INDEX(TabellEFDrivmedel[],MATCH(InputA1A3[[#This Row],[Drivmedel (A4) (endast förval ur lista)]],TabellEFDrivmedel[Drivmedel],0),4),"") ->  | X15: =IF(InputA1A3[[#This Row],[*DU/FU (EF A4) för valt drivmedel (schablon)]]="","",IF(OR(InputA1A3[[#This Row],[*DU/FU (EF A4) för valt drivmedel (schablon)]]=InputA1A3[[#This Row],[Enhet (bränsleförbrukning per km)]],KontrollTabell[[#This Row],[True/False A4 - Alt 2]]="Värde Behövs"),"",InputA1A3[[#This Row],[Enhet (bränsleförbrukning per km)]]& "/" & InputA1A3[[#This Row],[*DU/FU (EF A4) för valt drivmedel (schablon)]])) ->  | AF15: =IFERROR(INDEX(TabellEFDrivmedel[],MATCH(InputA1A3[[#This Row],[Drivmedel (A5.2)]],TabellEFDrivmedel[Drivmedel],0),2),"") ->  | AG15: =IFERROR(INDEX(TabellEFDrivmedel[],MATCH(InputA1A3[[#This Row],[Drivmedel (A5.2)]],TabellEFDrivmedel[Drivmedel],0),4),"") ->  | AH15: =IF(OR(KontrollTabell[[#This Row],[True/False A5 Enhet]]=TRUE,KontrollTabell[[#This Row],[True/False A5 Enhet]]=""), "", InputA1A3[[#This Row],[*DU/FU (EF A5.2)]] & "/" & InputA1A3[[#This Row],[Enhet för mängd (A5.2)]]) ->  | BW15: =IF(ISBLANK(InputA1A3[[#This Row],[Anläggningsdel ]]),FALSE,TRUE) -> FALSE | BX15: =IF(ISBLANK(InputA1A3[[#This Row],[Anläggningsdel ]]),"",IF(ISBLANK(InputA1A3[[#This Row],[Enhet Mängd (A1A3)]]),"",IF(ISBLANK(InputA1A3[[#This Row],[FU/DU (EF A1A3)]]),"Värde Behövs",IF(InputA1A3[[#This Row],[Enhet Mängd (A1A3)]] = InputA1A3[[#This Row],[FU/DU (EF A1A3)]], TRUE, FALSE)))) ->  | BY15: =IF(KontrollTabell[[#This Row],[Finns anläggningsdel-namn.]]=FALSE,"",(IF(KontrollTabell[[#This Row],[True/False A1A3 Enhet]]=TRUE,TRUE,IF(OR(KontrollTabell[[#This Row],[True/False A1A3 Enhet]]="Värde Behövs",(KontrollTabell[[#This Row],[True/False A1A3 Enhet]]="")),"",IF(ISBLANK(InputA1A3[[#This Row],[Omräkning till FU/DU (Skriv in värde, ej formel)]]),FALSE,TRUE))))) ->  | BZ15: =IF(KontrollTabell[[#This Row],[Finns anläggningsdel-namn.]]=FALSE,,IF(KontrollTabell[[#This Row],[True/False A1A3 Enhet]]=TRUE,InputA1A3[[#This Row],[Mängd A1A3]]*InputA1A3[[#This Row],[EF A1A3 '[kg CO₂-ekv.']]],IF(KontrollTabell[[#This Row],[True/False A1A3 om A1A3 kan beräknas]]=TRUE,InputA1A3[[#This Row],[Mängd A1A3]]*InputA1A3[[#This Row],[EF A1A3 '[kg CO₂-ekv.']]]*InputA1A3[[#This Row],[Omräkning till FU/DU (Skriv in värde, ej formel)]],0))) -> 0 | CA15: =IF(ISBLANK(InputA1A3[[#This Row],[Anläggningsdel ]]),"",IF(ISBLANK(InputA1A3[[#This Row],[EPD - EF A4]]),FALSE,TRUE)) ->  | CB15: =IF(InputA1A3[[#This Row],[*DU/FU (EF A4) för valt drivmedel (schablon)]]="","",IF(InputA1A3[[#This Row],[Enhet (bränsleförbrukning per km)]]="","Värde Behövs",IF(OR(InputA1A3[[#This Row],[Enhet (bränsleförbrukning per km)]]=InputA1A3[[#This Row],[*DU/FU (EF A4) för valt drivmedel (schablon)]],AND(InputA1A3[[#This Row],[Enhet (bränsleförbrukning per km)]]<>InputA1A3[[#This Row],[*DU/FU (EF A4) för valt drivmedel (schablon)]],ISNUMBER(InputA1A3[[#This Row],[Omräkningsfaktor (A4), (vid behov, värde eller formel)]]))),TRUE(),FALSE()))) ->  | CC15: =IF(KontrollTabell[[#This Row],[Finns anläggningsdel-namn.]]=FALSE,"",(IF(InputA1A3[[#This Row],[Enhet (bränsleförbrukning per km)]] =InputA1A3[[#This Row],[*DU/FU (EF A4) för valt drivmedel (schablon)]],TRUE,IF(KontrollTabell[[#This Row],[True/False A4 - Alt 2]]="Värde Behövs","",IF(ISBLANK(InputA1A3[[#This Row],[Omräkningsfaktor (A4), (vid behov, värde eller formel)]]),FALSE,TRUE))))) ->  | CD15: =IF(ISBLANK(InputA1A3[[#This Row],[EPD - EF A4]]),"",IF(ISBLANK(InputA1A3[[#This Row],[Omräkning till FU/DU (Skriv in värde, ej formel)]]),InputA1A3[[#This Row],[EPD - EF A4]]*InputA1A3[[#This Row],[Mängd A1A3]],InputA1A3[[#This Row],[Mängd A1A3]]*InputA1A3[[#This Row],[Omräkning till FU/DU (Skriv in värde, ej formel)]]*InputA1A3[[#This Row],[EPD - EF A4]])) ->  | CE15: =IFERROR(IF(KontrollTabell[[#This Row],[True/False A4 - Alt 2]]="","",IF(KontrollTabell[[#This Row],[True/False A4 Enhet - Alt2]]=TRUE, IF(ISNUMBER(InputA1A3[[#This Row],[Omräkningsfaktor (A4), (vid behov, värde eller formel)]]),InputA1A3[[#This Row],[Sträcka - totalt '[km'], (tur och retur, alla transporter)]]*InputA1A3[[#This Row],[(Bränsle-) Förbrukning per km]]/InputA1A3[[#This Row],[Omräkningsfaktor (A4), (vid behov, värde eller formel)]]*InputA1A3[[#This Row],[*EF (A4) '[kg CO₂-ekv.']]], InputA1A3[[#This Row],[Sträcka - totalt '[km'], (tur och retur, alla transporter)]]*InputA1A3[[#This Row],[(Bränsle-) Förbrukning per km]]*InputA1A3[[#This Row],[*EF (A4) '[kg CO₂-ekv.']]]),"Sen då")),0) ->  | CF15: =SUM(KontrollTabell[[#This Row],[A4 - Resultat alt 1 '[kg']]:[A4 - Alt 2 - beräkning utsläpp]]) -> 0 | CG15: =IF(KontrollTabell[[#This Row],[Finns anläggningsdel-namn.]]=FALSE,"",IF(ISBLANK(InputA1A3[[#This Row],[EPD - EF A4]]),FALSE,TRUE)) ->  | CH15: =IFERROR(IF(KontrollTabell[[#This Row],[True/False A5]]=FALSE(),"Enheter",IF(ISBLANK(InputA1A3[[#This Row],[Omräkningsfaktor (A5.2) (ange värde), (vid behov)]]),InputA1A3[[#This Row],[Mängd (A5.2)]]*InputA1A3[[#This Row],[*EF (A5.2) '[kg CO₂-ekv.']]],InputA1A3[[#This Row],[Mängd (A5.2)]]*InputA1A3[[#This Row],[*EF (A5.2) '[kg CO₂-ekv.']]]*InputA1A3[[#This Row],[Omräkningsfaktor (A5.2) (ange värde), (vid behov)]])),0) -> 0 | CI15: =IF(InputA1A3[[#This Row],[*DU/FU (EF A5.2)]]="","",IF(InputA1A3[[#This Row],[Enhet för mängd (A5.2)]]="","Värde Behövs",IF(OR(InputA1A3[[#This Row],[Enhet för mängd (A5.2)]]=InputA1A3[[#This Row],[*DU/FU (EF A5.2)]],AND(InputA1A3[[#This Row],[Enhet för mängd (A5.2)]]<>InputA1A3[[#This Row],[*DU/FU (EF A5.2)]],ISNUMBER(InputA1A3[[#This Row],[Omräkningsfaktor (A5.2) (ange värde), (vid behov)]]))),TRUE,FALSE))) ->  | CJ15: =IF(OR(KontrollTabell[[#This Row],[Finns anläggningsdel-namn.]]=FALSE,KontrollTabell[[#This Row],[True/False A5]]="Värde Behövs"),"",IF(InputA1A3[[#This Row],[Enhet för mängd (A5.2)]] = InputA1A3[[#This Row],[*DU/FU (EF A5.2)]], TRUE, FALSE)) ->  | CK15: =IF(KontrollTabell[[#This Row],[Finns anläggningsdel-namn.]]=FALSE,"",IF(OR(ISBLANK(InputA1A3[[#This Row],[Kategori (egen kategorisering)]])=FALSE,ISBLANK(InputA1A3[[#This Row],[Anläggningsdel ]]))=FALSE,TRUE,FALSE)) ->  | CL15: =IF(ISBLANK(InputA1A3[[#This Row],[Anläggningsdel ]]),"",IF(KontrollTabell[[#This Row],[TRUE/FALSE om kategori saknas.]] =FALSE,InputA1A3[[#This Row],[Kategori (egen kategorisering)]],"Kategori saknas")) -> 
J16: =IF(ISBLANK(InputA1A3[[#This Row],[Anläggningsdel ]]),"",IF(OR(KontrollTabell[[#This Row],[True/False A1A3 Enhet]]=TRUE,KontrollTabell[[#This Row],[True/False A1A3 Enhet]]="Värde Behövs",KontrollTabell[[#This Row],[True/False A1A3 Enhet]]=""), "", InputA1A3[[#This Row],[FU/DU (EF A1A3)]] & "/" & InputA1A3[[#This Row],[Enhet Mängd (A1A3)]])) ->  | O16: =IF(ISBLANK(InputA1A3[[#This Row],[EPD - EF A4]]),"",InputA1A3[[#This Row],[FU/DU (EF A1A3)]]) ->  | T16: =IFERROR(INDEX(TabellEFDrivmedel[],MATCH(InputA1A3[[#This Row],[Drivmedel (A4) (endast förval ur lista)]],TabellEFDrivmedel[Drivmedel],0),4),"") ->  | X16: =IF(InputA1A3[[#This Row],[*DU/FU (EF A4) för valt drivmedel (schablon)]]="","",IF(OR(InputA1A3[[#This Row],[*DU/FU (EF A4) för valt drivmedel (schablon)]]=InputA1A3[[#This Row],[Enhet (bränsleförbrukning per km)]],KontrollTabell[[#This Row],[True/False A4 - Alt 2]]="Värde Behövs"),"",InputA1A3[[#This Row],[Enhet (bränsleförbrukning per km)]]& "/" & InputA1A3[[#This Row],[*DU/FU (EF A4) för valt drivmedel (schablon)]])) ->  | AF16: =IFERROR(INDEX(TabellEFDrivmedel[],MATCH(InputA1A3[[#This Row],[Drivmedel (A5.2)]],TabellEFDrivmedel[Drivmedel],0),2),"") ->  | AG16: =IFERROR(INDEX(TabellEFDrivmedel[],MATCH(InputA1A3[[#This Row],[Drivmedel (A5.2)]],TabellEFDrivmedel[Drivmedel],0),4),"") ->  | AH16: =IF(OR(KontrollTabell[[#This Row],[True/False A5 Enhet]]=TRUE,KontrollTabell[[#This Row],[True/False A5 Enhet]]=""), "", InputA1A3[[#This Row],[*DU/FU (EF A5.2)]] & "/" & InputA1A3[[#This Row],[Enhet för mängd (A5.2)]]) ->  | BW16: =IF(ISBLANK(InputA1A3[[#This Row],[Anläggningsdel ]]),FALSE,TRUE) -> FALSE | BX16: =IF(ISBLANK(InputA1A3[[#This Row],[Anläggningsdel ]]),"",IF(ISBLANK(InputA1A3[[#This Row],[Enhet Mängd (A1A3)]]),"",IF(ISBLANK(InputA1A3[[#This Row],[FU/DU (EF A1A3)]]),"Värde Behövs",IF(InputA1A3[[#This Row],[Enhet Mängd (A1A3)]] = InputA1A3[[#This Row],[FU/DU (EF A1A3)]], TRUE, FALSE)))) ->  | BY16: =IF(KontrollTabell[[#This Row],[Finns anläggningsdel-namn.]]=FALSE,"",(IF(KontrollTabell[[#This Row],[True/False A1A3 Enhet]]=TRUE,TRUE,IF(OR(KontrollTabell[[#This Row],[True/False A1A3 Enhet]]="Värde Behövs",(KontrollTabell[[#This Row],[True/False A1A3 Enhet]]="")),"",IF(ISBLANK(InputA1A3[[#This Row],[Omräkning till FU/DU (Skriv in värde, ej formel)]]),FALSE,TRUE))))) ->  | BZ16: =IF(KontrollTabell[[#This Row],[Finns anläggningsdel-namn.]]=FALSE,,IF(KontrollTabell[[#This Row],[True/False A1A3 Enhet]]=TRUE,InputA1A3[[#This Row],[Mängd A1A3]]*InputA1A3[[#This Row],[EF A1A3 '[kg CO₂-ekv.']]],IF(KontrollTabell[[#This Row],[True/False A1A3 om A1A3 kan beräknas]]=TRUE,InputA1A3[[#This Row],[Mängd A1A3]]*InputA1A3[[#This Row],[EF A1A3 '[kg CO₂-ekv.']]]*InputA1A3[[#This Row],[Omräkning till FU/DU (Skriv in värde, ej formel)]],0))) -> 0 | CA16: =IF(ISBLANK(InputA1A3[[#This Row],[Anläggningsdel ]]),"",IF(ISBLANK(InputA1A3[[#This Row],[EPD - EF A4]]),FALSE,TRUE)) ->  | CB16: =IF(InputA1A3[[#This Row],[*DU/FU (EF A4) för valt drivmedel (schablon)]]="","",IF(InputA1A3[[#This Row],[Enhet (bränsleförbrukning per km)]]="","Värde Behövs",IF(OR(InputA1A3[[#This Row],[Enhet (bränsleförbrukning per km)]]=InputA1A3[[#This Row],[*DU/FU (EF A4) för valt drivmedel (schablon)]],AND(InputA1A3[[#This Row],[Enhet (bränsleförbrukning per km)]]<>InputA1A3[[#This Row],[*DU/FU (EF A4) för valt drivmedel (schablon)]],ISNUMBER(InputA1A3[[#This Row],[Omräkningsfaktor (A4), (vid behov, värde eller formel)]]))),TRUE(),FALSE()))) ->  | CC16: =IF(KontrollTabell[[#This Row],[Finns anläggningsdel-namn.]]=FALSE,"",(IF(InputA1A3[[#This Row],[Enhet (bränsleförbrukning per km)]] =InputA1A3[[#This Row],[*DU/FU (EF A4) för valt drivmedel (schablon)]],TRUE,IF(KontrollTabell[[#This Row],[True/False A4 - Alt 2]]="Värde Behövs","",IF(ISBLANK(InputA1A3[[#This Row],[Omräkningsfaktor (A4), (vid behov, värde eller formel)]]),FALSE,TRUE))))) ->  | CD16: =IF(ISBLANK(InputA1A3[[#This Row],[EPD - EF A4]]),"",IF(ISBLANK(InputA1A3[[#This Row],[Omräkning till FU/DU (Skriv in värde, ej formel)]]),InputA1A3[[#This Row],[EPD - EF A4]]*InputA1A3[[#This Row],[Mängd A1A3]],InputA1A3[[#This Row],[Mängd A1A3]]*InputA1A3[[#This Row],[Omräkning till FU/DU (Skriv in värde, ej formel)]]*InputA1A3[[#This Row],[EPD - EF A4]])) ->  | CE16: =IFERROR(IF(KontrollTabell[[#This Row],[True/False A4 - Alt 2]]="","",IF(KontrollTabell[[#This Row],[True/False A4 Enhet - Alt2]]=TRUE, IF(ISNUMBER(InputA1A3[[#This Row],[Omräkningsfaktor (A4), (vid behov, värde eller formel)]]),InputA1A3[[#This Row],[Sträcka - totalt '[km'], (tur och retur, alla transporter)]]*InputA1A3[[#This Row],[(Bränsle-) Förbrukning per km]]/InputA1A3[[#This Row],[Omräkningsfaktor (A4), (vid behov, värde eller formel)]]*InputA1A3[[#This Row],[*EF (A4) '[kg CO₂-ekv.']]], InputA1A3[[#This Row],[Sträcka - totalt '[km'], (tur och retur, alla transporter)]]*InputA1A3[[#This Row],[(Bränsle-) Förbrukning per km]]*InputA1A3[[#This Row],[*EF (A4) '[kg CO₂-ekv.']]]),"Sen då")),0) ->  | CF16: =SUM(KontrollTabell[[#This Row],[A4 - Resultat alt 1 '[kg']]:[A4 - Alt 2 - beräkning utsläpp]]) -> 0 | CG16: =IF(KontrollTabell[[#This Row],[Finns anläggningsdel-namn.]]=FALSE,"",IF(ISBLANK(InputA1A3[[#This Row],[EPD - EF A4]]),FALSE,TRUE)) ->  | CH16: =IFERROR(IF(KontrollTabell[[#This Row],[True/False A5]]=FALSE(),"Enheter",IF(ISBLANK(InputA1A3[[#This Row],[Omräkningsfaktor (A5.2) (ange värde), (vid behov)]]),InputA1A3[[#This Row],[Mängd (A5.2)]]*InputA1A3[[#This Row],[*EF (A5.2) '[kg CO₂-ekv.']]],InputA1A3[[#This Row],[Mängd (A5.2)]]*InputA1A3[[#This Row],[*EF (A5.2) '[kg CO₂-ekv.']]]*InputA1A3[[#This Row],[Omräkningsfaktor (A5.2) (ange värde), (vid behov)]])),0) -> 0 | CI16: =IF(InputA1A3[[#This Row],[*DU/FU (EF A5.2)]]="","",IF(InputA1A3[[#This Row],[Enhet för mängd (A5.2)]]="","Värde Behövs",IF(OR(InputA1A3[[#This Row],[Enhet för mängd (A5.2)]]=InputA1A3[[#This Row],[*DU/FU (EF A5.2)]],AND(InputA1A3[[#This Row],[Enhet för mängd (A5.2)]]<>InputA1A3[[#This Row],[*DU/FU (EF A5.2)]],ISNUMBER(InputA1A3[[#This Row],[Omräkningsfaktor (A5.2) (ange värde), (vid behov)]]))),TRUE,FALSE))) ->  | CJ16: =IF(OR(KontrollTabell[[#This Row],[Finns anläggningsdel-namn.]]=FALSE,KontrollTabell[[#This Row],[True/False A5]]="Värde Behövs"),"",IF(InputA1A3[[#This Row],[Enhet för mängd (A5.2)]] = InputA1A3[[#This Row],[*DU/FU (EF A5.2)]], TRUE, FALSE)) ->  | CK16: =IF(KontrollTabell[[#This Row],[Finns anläggningsdel-namn.]]=FALSE,"",IF(OR(ISBLANK(InputA1A3[[#This Row],[Kategori (egen kategorisering)]])=FALSE,ISBLANK(InputA1A3[[#This Row],[Anläggningsdel ]]))=FALSE,TRUE,FALSE)) ->  | CL16: =IF(ISBLANK(InputA1A3[[#This Row],[Anläggningsdel ]]),"",IF(KontrollTabell[[#This Row],[TRUE/FALSE om kategori saknas.]] =FALSE,InputA1A3[[#This Row],[Kategori (egen kategorisering)]],"Kategori saknas")) -> 
J17: =IF(ISBLANK(InputA1A3[[#This Row],[Anläggningsdel ]]),"",IF(OR(KontrollTabell[[#This Row],[True/False A1A3 Enhet]]=TRUE,KontrollTabell[[#This Row],[True/False A1A3 Enhet]]="Värde Behövs",KontrollTabell[[#This Row],[True/False A1A3 Enhet]]=""), "", InputA1A3[[#This Row],[FU/DU (EF A1A3)]] & "/" & InputA1A3[[#This Row],[Enhet Mängd (A1A3)]])) ->  | O17: =IF(ISBLANK(InputA1A3[[#This Row],[EPD - EF A4]]),"",InputA1A3[[#This Row],[FU/DU (EF A1A3)]]) ->  | T17: =IFERROR(INDEX(TabellEFDrivmedel[],MATCH(InputA1A3[[#This Row],[Drivmedel (A4) (endast förval ur lista)]],TabellEFDrivmedel[Drivmedel],0),4),"") ->  | X17: =IF(InputA1A3[[#This Row],[*DU/FU (EF A4) för valt drivmedel (schablon)]]="","",IF(OR(InputA1A3[[#This Row],[*DU/FU (EF A4) för valt drivmedel (schablon)]]=InputA1A3[[#This Row],[Enhet (bränsleförbrukning per km)]],KontrollTabell[[#This Row],[True/False A4 - Alt 2]]="Värde Behövs"),"",InputA1A3[[#This Row],[Enhet (bränsleförbrukning per km)]]& "/" & InputA1A3[[#This Row],[*DU/FU (EF A4) för valt drivmedel (schablon)]])) ->  | AF17: =IFERROR(INDEX(TabellEFDrivmedel[],MATCH(InputA1A3[[#This Row],[Drivmedel (A5.2)]],TabellEFDrivmedel[Drivmedel],0),2),"") ->  | AG17: =IFERROR(INDEX(TabellEFDrivmedel[],MATCH(InputA1A3[[#This Row],[Drivmedel (A5.2)]],TabellEFDrivmedel[Drivmedel],0),4),"") ->  | AH17: =IF(OR(KontrollTabell[[#This Row],[True/False A5 Enhet]]=TRUE,KontrollTabell[[#This Row],[True/False A5 Enhet]]=""), "", InputA1A3[[#This Row],[*DU/FU (EF A5.2)]] & "/" & InputA1A3[[#This Row],[Enhet för mängd (A5.2)]]) ->  | BW17: =IF(ISBLANK(InputA1A3[[#This Row],[Anläggningsdel ]]),FALSE,TRUE) -> FALSE | BX17: =IF(ISBLANK(InputA1A3[[#This Row],[Anläggningsdel ]]),"",IF(ISBLANK(InputA1A3[[#This Row],[Enhet Mängd (A1A3)]]),"",IF(ISBLANK(InputA1A3[[#This Row],[FU/DU (EF A1A3)]]),"Värde Behövs",IF(InputA1A3[[#This Row],[Enhet Mängd (A1A3)]] = InputA1A3[[#This Row],[FU/DU (EF A1A3)]], TRUE, FALSE)))) ->  | BY17: =IF(KontrollTabell[[#This Row],[Finns anläggningsdel-namn.]]=FALSE,"",(IF(KontrollTabell[[#This Row],[True/False A1A3 Enhet]]=TRUE,TRUE,IF(OR(KontrollTabell[[#This Row],[True/False A1A3 Enhet]]="Värde Behövs",(KontrollTabell[[#This Row],[True/False A1A3 Enhet]]="")),"",IF(ISBLANK(InputA1A3[[#This Row],[Omräkning till FU/DU (Skriv in värde, ej formel)]]),FALSE,TRUE))))) ->  | BZ17: =IF(KontrollTabell[[#This Row],[Finns anläggningsdel-namn.]]=FALSE,,IF(KontrollTabell[[#This Row],[True/False A1A3 Enhet]]=TRUE,InputA1A3[[#This Row],[Mängd A1A3]]*InputA1A3[[#This Row],[EF A1A3 '[kg CO₂-ekv.']]],IF(KontrollTabell[[#This Row],[True/False A1A3 om A1A3 kan beräknas]]=TRUE,InputA1A3[[#This Row],[Mängd A1A3]]*InputA1A3[[#This Row],[EF A1A3 '[kg CO₂-ekv.']]]*InputA1A3[[#This Row],[Omräkning till FU/DU (Skriv in värde, ej formel)]],0))) -> 0 | CA17: =IF(ISBLANK(InputA1A3[[#This Row],[Anläggningsdel ]]),"",IF(ISBLANK(InputA1A3[[#This Row],[EPD - EF A4]]),FALSE,TRUE)) ->  | CB17: =IF(InputA1A3[[#This Row],[*DU/FU (EF A4) för valt drivmedel (schablon)]]="","",IF(InputA1A3[[#This Row],[Enhet (bränsleförbrukning per km)]]="","Värde Behövs",IF(OR(InputA1A3[[#This Row],[Enhet (bränsleförbrukning per km)]]=InputA1A3[[#This Row],[*DU/FU (EF A4) för valt drivmedel (schablon)]],AND(InputA1A3[[#This Row],[Enhet (bränsleförbrukning per km)]]<>InputA1A3[[#This Row],[*DU/FU (EF A4) för valt drivmedel (schablon)]],ISNUMBER(InputA1A3[[#This Row],[Omräkningsfaktor (A4), (vid behov, värde eller formel)]]))),TRUE(),FALSE()))) ->  | CC17: =IF(KontrollTabell[[#This Row],[Finns anläggningsdel-namn.]]=FALSE,"",(IF(InputA1A3[[#This Row],[Enhet (bränsleförbrukning per km)]] =InputA1A3[[#This Row],[*DU/FU (EF A4) för valt drivmedel (schablon)]],TRUE,IF(KontrollTabell[[#This Row],[True/False A4 - Alt 2]]="Värde Behövs","",IF(ISBLANK(InputA1A3[[#This Row],[Omräkningsfaktor (A4), (vid behov, värde eller formel)]]),FALSE,TRUE))))) ->  | CD17: =IF(ISBLANK(InputA1A3[[#This Row],[EPD - EF A4]]),"",IF(ISBLANK(InputA1A3[[#This Row],[Omräkning till FU/DU (Skriv in värde, ej formel)]]),InputA1A3[[#This Row],[EPD - EF A4]]*InputA1A3[[#This Row],[Mängd A1A3]],InputA1A3[[#This Row],[Mängd A1A3]]*InputA1A3[[#This Row],[Omräkning till FU/DU (Skriv in värde, ej formel)]]*InputA1A3[[#This Row],[EPD - EF A4]])) ->  | CE17: =IFERROR(IF(KontrollTabell[[#This Row],[True/False A4 - Alt 2]]="","",IF(KontrollTabell[[#This Row],[True/False A4 Enhet - Alt2]]=TRUE, IF(ISNUMBER(InputA1A3[[#This Row],[Omräkningsfaktor (A4), (vid behov, värde eller formel)]]),InputA1A3[[#This Row],[Sträcka - totalt '[km'], (tur och retur, alla transporter)]]*InputA1A3[[#This Row],[(Bränsle-) Förbrukning per km]]/InputA1A3[[#This Row],[Omräkningsfaktor (A4), (vid behov, värde eller formel)]]*InputA1A3[[#This Row],[*EF (A4) '[kg CO₂-ekv.']]], InputA1A3[[#This Row],[Sträcka - totalt '[km'], (tur och retur, alla transporter)]]*InputA1A3[[#This Row],[(Bränsle-) Förbrukning per km]]*InputA1A3[[#This Row],[*EF (A4) '[kg CO₂-ekv.']]]),"Sen då")),0) ->  | CF17: =SUM(KontrollTabell[[#This Row],[A4 - Resultat alt 1 '[kg']]:[A4 - Alt 2 - beräkning utsläpp]]) -> 0 | CG17: =IF(KontrollTabell[[#This Row],[Finns anläggningsdel-namn.]]=FALSE,"",IF(ISBLANK(InputA1A3[[#This Row],[EPD - EF A4]]),FALSE,TRUE)) ->  | CH17: =IFERROR(IF(KontrollTabell[[#This Row],[True/False A5]]=FALSE(),"Enheter",IF(ISBLANK(InputA1A3[[#This Row],[Omräkningsfaktor (A5.2) (ange värde), (vid behov)]]),InputA1A3[[#This Row],[Mängd (A5.2)]]*InputA1A3[[#This Row],[*EF (A5.2) '[kg CO₂-ekv.']]],InputA1A3[[#This Row],[Mängd (A5.2)]]*InputA1A3[[#This Row],[*EF (A5.2) '[kg CO₂-ekv.']]]*InputA1A3[[#This Row],[Omräkningsfaktor (A5.2) (ange värde), (vid behov)]])),0) -> 0 | CI17: =IF(InputA1A3[[#This Row],[*DU/FU (EF A5.2)]]="","",IF(InputA1A3[[#This Row],[Enhet för mängd (A5.2)]]="","Värde Behövs",IF(OR(InputA1A3[[#This Row],[Enhet för mängd (A5.2)]]=InputA1A3[[#This Row],[*DU/FU (EF A5.2)]],AND(InputA1A3[[#This Row],[Enhet för mängd (A5.2)]]<>InputA1A3[[#This Row],[*DU/FU (EF A5.2)]],ISNUMBER(InputA1A3[[#This Row],[Omräkningsfaktor (A5.2) (ange värde), (vid behov)]]))),TRUE,FALSE))) ->  | CJ17: =IF(OR(KontrollTabell[[#This Row],[Finns anläggningsdel-namn.]]=FALSE,KontrollTabell[[#This Row],[True/False A5]]="Värde Behövs"),"",IF(InputA1A3[[#This Row],[Enhet för mängd (A5.2)]] = InputA1A3[[#This Row],[*DU/FU (EF A5.2)]], TRUE, FALSE)) ->  | CK17: =IF(KontrollTabell[[#This Row],[Finns anläggningsdel-namn.]]=FALSE,"",IF(OR(ISBLANK(InputA1A3[[#This Row],[Kategori (egen kategorisering)]])=FALSE,ISBLANK(InputA1A3[[#This Row],[Anläggningsdel ]]))=FALSE,TRUE,FALSE)) ->  | CL17: =IF(ISBLANK(InputA1A3[[#This Row],[Anläggningsdel ]]),"",IF(KontrollTabell[[#This Row],[TRUE/FALSE om kategori saknas.]] =FALSE,InputA1A3[[#This Row],[Kategori (egen kategorisering)]],"Kategori saknas")) -> 
J18: =IF(ISBLANK(InputA1A3[[#This Row],[Anläggningsdel ]]),"",IF(OR(KontrollTabell[[#This Row],[True/False A1A3 Enhet]]=TRUE,KontrollTabell[[#This Row],[True/False A1A3 Enhet]]="Värde Behövs",KontrollTabell[[#This Row],[True/False A1A3 Enhet]]=""), "", InputA1A3[[#This Row],[FU/DU (EF A1A3)]] & "/" & InputA1A3[[#This Row],[Enhet Mängd (A1A3)]])) ->  | O18: =IF(ISBLANK(InputA1A3[[#This Row],[EPD - EF A4]]),"",InputA1A3[[#This Row],[FU/DU (EF A1A3)]]) ->  | T18: =IFERROR(INDEX(TabellEFDrivmedel[],MATCH(InputA1A3[[#This Row],[Drivmedel (A4) (endast förval ur lista)]],TabellEFDrivmedel[Drivmedel],0),4),"") ->  | X18: =IF(InputA1A3[[#This Row],[*DU/FU (EF A4) för valt drivmedel (schablon)]]="","",IF(OR(InputA1A3[[#This Row],[*DU/FU (EF A4) för valt drivmedel (schablon)]]=InputA1A3[[#This Row],[Enhet (bränsleförbrukning per km)]],KontrollTabell[[#This Row],[True/False A4 - Alt 2]]="Värde Behövs"),"",InputA1A3[[#This Row],[Enhet (bränsleförbrukning per km)]]& "/" & InputA1A3[[#This Row],[*DU/FU (EF A4) för valt drivmedel (schablon)]])) ->  | AF18: =IFERROR(INDEX(TabellEFDrivmedel[],MATCH(InputA1A3[[#This Row],[Drivmedel (A5.2)]],TabellEFDrivmedel[Drivmedel],0),2),"") ->  | AG18: =IFERROR(INDEX(TabellEFDrivmedel[],MATCH(InputA1A3[[#This Row],[Drivmedel (A5.2)]],TabellEFDrivmedel[Drivmedel],0),4),"") ->  | AH18: =IF(OR(KontrollTabell[[#This Row],[True/False A5 Enhet]]=TRUE,KontrollTabell[[#This Row],[True/False A5 Enhet]]=""), "", InputA1A3[[#This Row],[*DU/FU (EF A5.2)]] & "/" & InputA1A3[[#This Row],[Enhet för mängd (A5.2)]]) ->  | BW18: =IF(ISBLANK(InputA1A3[[#This Row],[Anläggningsdel ]]),FALSE,TRUE) -> FALSE | BX18: =IF(ISBLANK(InputA1A3[[#This Row],[Anläggningsdel ]]),"",IF(ISBLANK(InputA1A3[[#This Row],[Enhet Mängd (A1A3)]]),"",IF(ISBLANK(InputA1A3[[#This Row],[FU/DU (EF A1A3)]]),"Värde Behövs",IF(InputA1A3[[#This Row],[Enhet Mängd (A1A3)]] = InputA1A3[[#This Row],[FU/DU (EF A1A3)]], TRUE, FALSE)))) ->  | BY18: =IF(KontrollTabell[[#This Row],[Finns anläggningsdel-namn.]]=FALSE,"",(IF(KontrollTabell[[#This Row],[True/False A1A3 Enhet]]=TRUE,TRUE,IF(OR(KontrollTabell[[#This Row],[True/False A1A3 Enhet]]="Värde Behövs",(KontrollTabell[[#This Row],[True/False A1A3 Enhet]]="")),"",IF(ISBLANK(InputA1A3[[#This Row],[Omräkning till FU/DU (Skriv in värde, ej formel)]]),FALSE,TRUE))))) ->  | BZ18: =IF(KontrollTabell[[#This Row],[Finns anläggningsdel-namn.]]=FALSE,,IF(KontrollTabell[[#This Row],[True/False A1A3 Enhet]]=TRUE,InputA1A3[[#This Row],[Mängd A1A3]]*InputA1A3[[#This Row],[EF A1A3 '[kg CO₂-ekv.']]],IF(KontrollTabell[[#This Row],[True/False A1A3 om A1A3 kan beräknas]]=TRUE,InputA1A3[[#This Row],[Mängd A1A3]]*InputA1A3[[#This Row],[EF A1A3 '[kg CO₂-ekv.']]]*InputA1A3[[#This Row],[Omräkning till FU/DU (Skriv in värde, ej formel)]],0))) -> 0 | CA18: =IF(ISBLANK(InputA1A3[[#This Row],[Anläggningsdel ]]),"",IF(ISBLANK(InputA1A3[[#This Row],[EPD - EF A4]]),FALSE,TRUE)) ->  | CB18: =IF(InputA1A3[[#This Row],[*DU/FU (EF A4) för valt drivmedel (schablon)]]="","",IF(InputA1A3[[#This Row],[Enhet (bränsleförbrukning per km)]]="","Värde Behövs",IF(OR(InputA1A3[[#This Row],[Enhet (bränsleförbrukning per km)]]=InputA1A3[[#This Row],[*DU/FU (EF A4) för valt drivmedel (schablon)]],AND(InputA1A3[[#This Row],[Enhet (bränsleförbrukning per km)]]<>InputA1A3[[#This Row],[*DU/FU (EF A4) för valt drivmedel (schablon)]],ISNUMBER(InputA1A3[[#This Row],[Omräkningsfaktor (A4), (vid behov, värde eller formel)]]))),TRUE(),FALSE()))) ->  | CC18: =IF(KontrollTabell[[#This Row],[Finns anläggningsdel-namn.]]=FALSE,"",(IF(InputA1A3[[#This Row],[Enhet (bränsleförbrukning per km)]] =InputA1A3[[#This Row],[*DU/FU (EF A4) för valt drivmedel (schablon)]],TRUE,IF(KontrollTabell[[#This Row],[True/False A4 - Alt 2]]="Värde Behövs","",IF(ISBLANK(InputA1A3[[#This Row],[Omräkningsfaktor (A4), (vid behov, värde eller formel)]]),FALSE,TRUE))))) ->  | CD18: =IF(ISBLANK(InputA1A3[[#This Row],[EPD - EF A4]]),"",IF(ISBLANK(InputA1A3[[#This Row],[Omräkning till FU/DU (Skriv in värde, ej formel)]]),InputA1A3[[#This Row],[EPD - EF A4]]*InputA1A3[[#This Row],[Mängd A1A3]],InputA1A3[[#This Row],[Mängd A1A3]]*InputA1A3[[#This Row],[Omräkning till FU/DU (Skriv in värde, ej formel)]]*InputA1A3[[#This Row],[EPD - EF A4]])) ->  | CE18: =IFERROR(IF(KontrollTabell[[#This Row],[True/False A4 - Alt 2]]="","",IF(KontrollTabell[[#This Row],[True/False A4 Enhet - Alt2]]=TRUE, IF(ISNUMBER(InputA1A3[[#This Row],[Omräkningsfaktor (A4), (vid behov, värde eller formel)]]),InputA1A3[[#This Row],[Sträcka - totalt '[km'], (tur och retur, alla transporter)]]*InputA1A3[[#This Row],[(Bränsle-) Förbrukning per km]]/InputA1A3[[#This Row],[Omräkningsfaktor (A4), (vid behov, värde eller formel)]]*InputA1A3[[#This Row],[*EF (A4) '[kg CO₂-ekv.']]], InputA1A3[[#This Row],[Sträcka - totalt '[km'], (tur och retur, alla transporter)]]*InputA1A3[[#This Row],[(Bränsle-) Förbrukning per km]]*InputA1A3[[#This Row],[*EF (A4) '[kg CO₂-ekv.']]]),"Sen då")),0) ->  | CF18: =SUM(KontrollTabell[[#This Row],[A4 - Resultat alt 1 '[kg']]:[A4 - Alt 2 - beräkning utsläpp]]) -> 0 | CG18: =IF(KontrollTabell[[#This Row],[Finns anläggningsdel-namn.]]=FALSE,"",IF(ISBLANK(InputA1A3[[#This Row],[EPD - EF A4]]),FALSE,TRUE)) ->  | CH18: =IFERROR(IF(KontrollTabell[[#This Row],[True/False A5]]=FALSE(),"Enheter",IF(ISBLANK(InputA1A3[[#This Row],[Omräkningsfaktor (A5.2) (ange värde), (vid behov)]]),InputA1A3[[#This Row],[Mängd (A5.2)]]*InputA1A3[[#This Row],[*EF (A5.2) '[kg CO₂-ekv.']]],InputA1A3[[#This Row],[Mängd (A5.2)]]*InputA1A3[[#This Row],[*EF (A5.2) '[kg CO₂-ekv.']]]*InputA1A3[[#This Row],[Omräkningsfaktor (A5.2) (ange värde), (vid behov)]])),0) -> 0 | CI18: =IF(InputA1A3[[#This Row],[*DU/FU (EF A5.2)]]="","",IF(InputA1A3[[#This Row],[Enhet för mängd (A5.2)]]="","Värde Behövs",IF(OR(InputA1A3[[#This Row],[Enhet för mängd (A5.2)]]=InputA1A3[[#This Row],[*DU/FU (EF A5.2)]],AND(InputA1A3[[#This Row],[Enhet för mängd (A5.2)]]<>InputA1A3[[#This Row],[*DU/FU (EF A5.2)]],ISNUMBER(InputA1A3[[#This Row],[Omräkningsfaktor (A5.2) (ange värde), (vid behov)]]))),TRUE,FALSE))) ->  | CJ18: =IF(OR(KontrollTabell[[#This Row],[Finns anläggningsdel-namn.]]=FALSE,KontrollTabell[[#This Row],[True/False A5]]="Värde Behövs"),"",IF(InputA1A3[[#This Row],[Enhet för mängd (A5.2)]] = InputA1A3[[#This Row],[*DU/FU (EF A5.2)]], TRUE, FALSE)) ->  | CK18: =IF(KontrollTabell[[#This Row],[Finns anläggningsdel-namn.]]=FALSE,"",IF(OR(ISBLANK(InputA1A3[[#This Row],[Kategori (egen kategorisering)]])=FALSE,ISBLANK(InputA1A3[[#This Row],[Anläggningsdel ]]))=FALSE,TRUE,FALSE)) ->  | CL18: =IF(ISBLANK(InputA1A3[[#This Row],[Anläggningsdel ]]),"",IF(KontrollTabell[[#This Row],[TRUE/FALSE om kategori saknas.]] =FALSE,InputA1A3[[#This Row],[Kategori (egen kategorisering)]],"Kategori saknas")) -> 
J19: =IF(ISBLANK(InputA1A3[[#This Row],[Anläggningsdel ]]),"",IF(OR(KontrollTabell[[#This Row],[True/False A1A3 Enhet]]=TRUE,KontrollTabell[[#This Row],[True/False A1A3 Enhet]]="Värde Behövs",KontrollTabell[[#This Row],[True/False A1A3 Enhet]]=""), "", InputA1A3[[#This Row],[FU/DU (EF A1A3)]] & "/" & InputA1A3[[#This Row],[Enhet Mängd (A1A3)]])) ->  | O19: =IF(ISBLANK(InputA1A3[[#This Row],[EPD - EF A4]]),"",InputA1A3[[#This Row],[FU/DU (EF A1A3)]]) ->  | T19: =IFERROR(INDEX(TabellEFDrivmedel[],MATCH(InputA1A3[[#This Row],[Drivmedel (A4) (endast förval ur lista)]],TabellEFDrivmedel[Drivmedel],0),4),"") ->  | X19: =IF(InputA1A3[[#This Row],[*DU/FU (EF A4) för valt drivmedel (schablon)]]="","",IF(OR(InputA1A3[[#This Row],[*DU/FU (EF A4) för valt drivmedel (schablon)]]=InputA1A3[[#This Row],[Enhet (bränsleförbrukning per km)]],KontrollTabell[[#This Row],[True/False A4 - Alt 2]]="Värde Behövs"),"",InputA1A3[[#This Row],[Enhet (bränsleförbrukning per km)]]& "/" & InputA1A3[[#This Row],[*DU/FU (EF A4) för valt drivmedel (schablon)]])) ->  | AF19: =IFERROR(INDEX(TabellEFDrivmedel[],MATCH(InputA1A3[[#This Row],[Drivmedel (A5.2)]],TabellEFDrivmedel[Drivmedel],0),2),"") ->  | AG19: =IFERROR(INDEX(TabellEFDrivmedel[],MATCH(InputA1A3[[#This Row],[Drivmedel (A5.2)]],TabellEFDrivmedel[Drivmedel],0),4),"") ->  | AH19: =IF(OR(KontrollTabell[[#This Row],[True/False A5 Enhet]]=TRUE,KontrollTabell[[#This Row],[True/False A5 Enhet]]=""), "", InputA1A3[[#This Row],[*DU/FU (EF A5.2)]] & "/" & InputA1A3[[#This Row],[Enhet för mängd (A5.2)]]) ->  | BW19: =IF(ISBLANK(InputA1A3[[#This Row],[Anläggningsdel ]]),FALSE,TRUE) -> FALSE | BX19: =IF(ISBLANK(InputA1A3[[#This Row],[Anläggningsdel ]]),"",IF(ISBLANK(InputA1A3[[#This Row],[Enhet Mängd (A1A3)]]),"",IF(ISBLANK(InputA1A3[[#This Row],[FU/DU (EF A1A3)]]),"Värde Behövs",IF(InputA1A3[[#This Row],[Enhet Mängd (A1A3)]] = InputA1A3[[#This Row],[FU/DU (EF A1A3)]], TRUE, FALSE)))) ->  | BY19: =IF(KontrollTabell[[#This Row],[Finns anläggningsdel-namn.]]=FALSE,"",(IF(KontrollTabell[[#This Row],[True/False A1A3 Enhet]]=TRUE,TRUE,IF(OR(KontrollTabell[[#This Row],[True/False A1A3 Enhet]]="Värde Behövs",(KontrollTabell[[#This Row],[True/False A1A3 Enhet]]="")),"",IF(ISBLANK(InputA1A3[[#This Row],[Omräkning till FU/DU (Skriv in värde, ej formel)]]),FALSE,TRUE))))) ->  | BZ19: =IF(KontrollTabell[[#This Row],[Finns anläggningsdel-namn.]]=FALSE,,IF(KontrollTabell[[#This Row],[True/False A1A3 Enhet]]=TRUE,InputA1A3[[#This Row],[Mängd A1A3]]*InputA1A3[[#This Row],[EF A1A3 '[kg CO₂-ekv.']]],IF(KontrollTabell[[#This Row],[True/False A1A3 om A1A3 kan beräknas]]=TRUE,InputA1A3[[#This Row],[Mängd A1A3]]*InputA1A3[[#This Row],[EF A1A3 '[kg CO₂-ekv.']]]*InputA1A3[[#This Row],[Omräkning till FU/DU (Skriv in värde, ej formel)]],0))) -> 0 | CA19: =IF(ISBLANK(InputA1A3[[#This Row],[Anläggningsdel ]]),"",IF(ISBLANK(InputA1A3[[#This Row],[EPD - EF A4]]),FALSE,TRUE)) ->  | CB19: =IF(InputA1A3[[#This Row],[*DU/FU (EF A4) för valt drivmedel (schablon)]]="","",IF(InputA1A3[[#This Row],[Enhet (bränsleförbrukning per km)]]="","Värde Behövs",IF(OR(InputA1A3[[#This Row],[Enhet (bränsleförbrukning per km)]]=InputA1A3[[#This Row],[*DU/FU (EF A4) för valt drivmedel (schablon)]],AND(InputA1A3[[#This Row],[Enhet (bränsleförbrukning per km)]]<>InputA1A3[[#This Row],[*DU/FU (EF A4) för valt drivmedel (schablon)]],ISNUMBER(InputA1A3[[#This Row],[Omräkningsfaktor (A4), (vid behov, värde eller formel)]]))),TRUE(),FALSE()))) ->  | CC19: =IF(KontrollTabell[[#This Row],[Finns anläggningsdel-namn.]]=FALSE,"",(IF(InputA1A3[[#This Row],[Enhet (bränsleförbrukning per km)]] =InputA1A3[[#This Row],[*DU/FU (EF A4) för valt drivmedel (schablon)]],TRUE,IF(KontrollTabell[[#This Row],[True/False A4 - Alt 2]]="Värde Behövs","",IF(ISBLANK(InputA1A3[[#This Row],[Omräkningsfaktor (A4), (vid behov, värde eller formel)]]),FALSE,TRUE))))) ->  | CD19: =IF(ISBLANK(InputA1A3[[#This Row],[EPD - EF A4]]),"",IF(ISBLANK(InputA1A3[[#This Row],[Omräkning till FU/DU (Skriv in värde, ej formel)]]),InputA1A3[[#This Row],[EPD - EF A4]]*InputA1A3[[#This Row],[Mängd A1A3]],InputA1A3[[#This Row],[Mängd A1A3]]*InputA1A3[[#This Row],[Omräkning till FU/DU (Skriv in värde, ej formel)]]*InputA1A3[[#This Row],[EPD - EF A4]])) ->  | CE19: =IFERROR(IF(KontrollTabell[[#This Row],[True/False A4 - Alt 2]]="","",IF(KontrollTabell[[#This Row],[True/False A4 Enhet - Alt2]]=TRUE, IF(ISNUMBER(InputA1A3[[#This Row],[Omräkningsfaktor (A4), (vid behov, värde eller formel)]]),InputA1A3[[#This Row],[Sträcka - totalt '[km'], (tur och retur, alla transporter)]]*InputA1A3[[#This Row],[(Bränsle-) Förbrukning per km]]/InputA1A3[[#This Row],[Omräkningsfaktor (A4), (vid behov, värde eller formel)]]*InputA1A3[[#This Row],[*EF (A4) '[kg CO₂-ekv.']]], InputA1A3[[#This Row],[Sträcka - totalt '[km'], (tur och retur, alla transporter)]]*InputA1A3[[#This Row],[(Bränsle-) Förbrukning per km]]*InputA1A3[[#This Row],[*EF (A4) '[kg CO₂-ekv.']]]),"Sen då")),0) ->  | CF19: =SUM(KontrollTabell[[#This Row],[A4 - Resultat alt 1 '[kg']]:[A4 - Alt 2 - beräkning utsläpp]]) -> 0 | CG19: =IF(KontrollTabell[[#This Row],[Finns anläggningsdel-namn.]]=FALSE,"",IF(ISBLANK(InputA1A3[[#This Row],[EPD - EF A4]]),FALSE,TRUE)) ->  | CH19: =IFERROR(IF(KontrollTabell[[#This Row],[True/False A5]]=FALSE(),"Enheter",IF(ISBLANK(InputA1A3[[#This Row],[Omräkningsfaktor (A5.2) (ange värde), (vid behov)]]),InputA1A3[[#This Row],[Mängd (A5.2)]]*InputA1A3[[#This Row],[*EF (A5.2) '[kg CO₂-ekv.']]],InputA1A3[[#This Row],[Mängd (A5.2)]]*InputA1A3[[#This Row],[*EF (A5.2) '[kg CO₂-ekv.']]]*InputA1A3[[#This Row],[Omräkningsfaktor (A5.2) (ange värde), (vid behov)]])),0) -> 0 | CI19: =IF(InputA1A3[[#This Row],[*DU/FU (EF A5.2)]]="","",IF(InputA1A3[[#This Row],[Enhet för mängd (A5.2)]]="","Värde Behövs",IF(OR(InputA1A3[[#This Row],[Enhet för mängd (A5.2)]]=InputA1A3[[#This Row],[*DU/FU (EF A5.2)]],AND(InputA1A3[[#This Row],[Enhet för mängd (A5.2)]]<>InputA1A3[[#This Row],[*DU/FU (EF A5.2)]],ISNUMBER(InputA1A3[[#This Row],[Omräkningsfaktor (A5.2) (ange värde), (vid behov)]]))),TRUE,FALSE))) ->  | CJ19: =IF(OR(KontrollTabell[[#This Row],[Finns anläggningsdel-namn.]]=FALSE,KontrollTabell[[#This Row],[True/False A5]]="Värde Behövs"),"",IF(InputA1A3[[#This Row],[Enhet för mängd (A5.2)]] = InputA1A3[[#This Row],[*DU/FU (EF A5.2)]], TRUE, FALSE)) ->  | CK19: =IF(KontrollTabell[[#This Row],[Finns anläggningsdel-namn.]]=FALSE,"",IF(OR(ISBLANK(InputA1A3[[#This Row],[Kategori (egen kategorisering)]])=FALSE,ISBLANK(InputA1A3[[#This Row],[Anläggningsdel ]]))=FALSE,TRUE,FALSE)) ->  | CL19: =IF(ISBLANK(InputA1A3[[#This Row],[Anläggningsdel ]]),"",IF(KontrollTabell[[#This Row],[TRUE/FALSE om kategori saknas.]] =FALSE,InputA1A3[[#This Row],[Kategori (egen kategorisering)]],"Kategori saknas")) -> 
J20: =IF(ISBLANK(InputA1A3[[#This Row],[Anläggningsdel ]]),"",IF(OR(KontrollTabell[[#This Row],[True/False A1A3 Enhet]]=TRUE,KontrollTabell[[#This Row],[True/False A1A3 Enhet]]="Värde Behövs",KontrollTabell[[#This Row],[True/False A1A3 Enhet]]=""), "", InputA1A3[[#This Row],[FU/DU (EF A1A3)]] & "/" & InputA1A3[[#This Row],[Enhet Mängd (A1A3)]])) ->  | O20: =IF(ISBLANK(InputA1A3[[#This Row],[EPD - EF A4]]),"",InputA1A3[[#This Row],[FU/DU (EF A1A3)]]) ->  | T20: =IFERROR(INDEX(TabellEFDrivmedel[],MATCH(InputA1A3[[#This Row],[Drivmedel (A4) (endast förval ur lista)]],TabellEFDrivmedel[Drivmedel],0),4),"") ->  | X20: =IF(InputA1A3[[#This Row],[*DU/FU (EF A4) för valt drivmedel (schablon)]]="","",IF(OR(InputA1A3[[#This Row],[*DU/FU (EF A4) för valt drivmedel (schablon)]]=InputA1A3[[#This Row],[Enhet (bränsleförbrukning per km)]],KontrollTabell[[#This Row],[True/False A4 - Alt 2]]="Värde Behövs"),"",InputA1A3[[#This Row],[Enhet (bränsleförbrukning per km)]]& "/" & InputA1A3[[#This Row],[*DU/FU (EF A4) för valt drivmedel (schablon)]])) ->  | AF20: =IFERROR(INDEX(TabellEFDrivmedel[],MATCH(InputA1A3[[#This Row],[Drivmedel (A5.2)]],TabellEFDrivmedel[Drivmedel],0),2),"") ->  | AG20: =IFERROR(INDEX(TabellEFDrivmedel[],MATCH(InputA1A3[[#This Row],[Drivmedel (A5.2)]],TabellEFDrivmedel[Drivmedel],0),4),"") ->  | AH20: =IF(OR(KontrollTabell[[#This Row],[True/False A5 Enhet]]=TRUE,KontrollTabell[[#This Row],[True/False A5 Enhet]]=""), "", InputA1A3[[#This Row],[*DU/FU (EF A5.2)]] & "/" & InputA1A3[[#This Row],[Enhet för mängd (A5.2)]]) ->  | BW20: =IF(ISBLANK(InputA1A3[[#This Row],[Anläggningsdel ]]),FALSE,TRUE) -> FALSE | BX20: =IF(ISBLANK(InputA1A3[[#This Row],[Anläggningsdel ]]),"",IF(ISBLANK(InputA1A3[[#This Row],[Enhet Mängd (A1A3)]]),"",IF(ISBLANK(InputA1A3[[#This Row],[FU/DU (EF A1A3)]]),"Värde Behövs",IF(InputA1A3[[#This Row],[Enhet Mängd (A1A3)]] = InputA1A3[[#This Row],[FU/DU (EF A1A3)]], TRUE, FALSE)))) ->  | BY20: =IF(KontrollTabell[[#This Row],[Finns anläggningsdel-namn.]]=FALSE,"",(IF(KontrollTabell[[#This Row],[True/False A1A3 Enhet]]=TRUE,TRUE,IF(OR(KontrollTabell[[#This Row],[True/False A1A3 Enhet]]="Värde Behövs",(KontrollTabell[[#This Row],[True/False A1A3 Enhet]]="")),"",IF(ISBLANK(InputA1A3[[#This Row],[Omräkning till FU/DU (Skriv in värde, ej formel)]]),FALSE,TRUE))))) ->  | BZ20: =IF(KontrollTabell[[#This Row],[Finns anläggningsdel-namn.]]=FALSE,,IF(KontrollTabell[[#This Row],[True/False A1A3 Enhet]]=TRUE,InputA1A3[[#This Row],[Mängd A1A3]]*InputA1A3[[#This Row],[EF A1A3 '[kg CO₂-ekv.']]],IF(KontrollTabell[[#This Row],[True/False A1A3 om A1A3 kan beräknas]]=TRUE,InputA1A3[[#This Row],[Mängd A1A3]]*InputA1A3[[#This Row],[EF A1A3 '[kg CO₂-ekv.']]]*InputA1A3[[#This Row],[Omräkning till FU/DU (Skriv in värde, ej formel)]],0))) -> 0 | CA20: =IF(ISBLANK(InputA1A3[[#This Row],[Anläggningsdel ]]),"",IF(ISBLANK(InputA1A3[[#This Row],[EPD - EF A4]]),FALSE,TRUE)) ->  | CB20: =IF(InputA1A3[[#This Row],[*DU/FU (EF A4) för valt drivmedel (schablon)]]="","",IF(InputA1A3[[#This Row],[Enhet (bränsleförbrukning per km)]]="","Värde Behövs",IF(OR(InputA1A3[[#This Row],[Enhet (bränsleförbrukning per km)]]=InputA1A3[[#This Row],[*DU/FU (EF A4) för valt drivmedel (schablon)]],AND(InputA1A3[[#This Row],[Enhet (bränsleförbrukning per km)]]<>InputA1A3[[#This Row],[*DU/FU (EF A4) för valt drivmedel (schablon)]],ISNUMBER(InputA1A3[[#This Row],[Omräkningsfaktor (A4), (vid behov, värde eller formel)]]))),TRUE(),FALSE()))) ->  | CC20: =IF(KontrollTabell[[#This Row],[Finns anläggningsdel-namn.]]=FALSE,"",(IF(InputA1A3[[#This Row],[Enhet (bränsleförbrukning per km)]] =InputA1A3[[#This Row],[*DU/FU (EF A4) för valt drivmedel (schablon)]],TRUE,IF(KontrollTabell[[#This Row],[True/False A4 - Alt 2]]="Värde Behövs","",IF(ISBLANK(InputA1A3[[#This Row],[Omräkningsfaktor (A4), (vid behov, värde eller formel)]]),FALSE,TRUE))))) ->  | CD20: =IF(ISBLANK(InputA1A3[[#This Row],[EPD - EF A4]]),"",IF(ISBLANK(InputA1A3[[#This Row],[Omräkning till FU/DU (Skriv in värde, ej formel)]]),InputA1A3[[#This Row],[EPD - EF A4]]*InputA1A3[[#This Row],[Mängd A1A3]],InputA1A3[[#This Row],[Mängd A1A3]]*InputA1A3[[#This Row],[Omräkning till FU/DU (Skriv in värde, ej formel)]]*InputA1A3[[#This Row],[EPD - EF A4]])) ->  | CE20: =IFERROR(IF(KontrollTabell[[#This Row],[True/False A4 - Alt 2]]="","",IF(KontrollTabell[[#This Row],[True/False A4 Enhet - Alt2]]=TRUE, IF(ISNUMBER(InputA1A3[[#This Row],[Omräkningsfaktor (A4), (vid behov, värde eller formel)]]),InputA1A3[[#This Row],[Sträcka - totalt '[km'], (tur och retur, alla transporter)]]*InputA1A3[[#This Row],[(Bränsle-) Förbrukning per km]]/InputA1A3[[#This Row],[Omräkningsfaktor (A4), (vid behov, värde eller formel)]]*InputA1A3[[#This Row],[*EF (A4) '[kg CO₂-ekv.']]], InputA1A3[[#This Row],[Sträcka - totalt '[km'], (tur och retur, alla transporter)]]*InputA1A3[[#This Row],[(Bränsle-) Förbrukning per km]]*InputA1A3[[#This Row],[*EF (A4) '[kg CO₂-ekv.']]]),"Sen då")),0) ->  | CF20: =SUM(KontrollTabell[[#This Row],[A4 - Resultat alt 1 '[kg']]:[A4 - Alt 2 - beräkning utsläpp]]) -> 0 | CG20: =IF(KontrollTabell[[#This Row],[Finns anläggningsdel-namn.]]=FALSE,"",IF(ISBLANK(InputA1A3[[#This Row],[EPD - EF A4]]),FALSE,TRUE)) ->  | CH20: =IFERROR(IF(KontrollTabell[[#This Row],[True/False A5]]=FALSE(),"Enheter",IF(ISBLANK(InputA1A3[[#This Row],[Omräkningsfaktor (A5.2) (ange värde), (vid behov)]]),InputA1A3[[#This Row],[Mängd (A5.2)]]*InputA1A3[[#This Row],[*EF (A5.2) '[kg CO₂-ekv.']]],InputA1A3[[#This Row],[Mängd (A5.2)]]*InputA1A3[[#This Row],[*EF (A5.2) '[kg CO₂-ekv.']]]*InputA1A3[[#This Row],[Omräkningsfaktor (A5.2) (ange värde), (vid behov)]])),0) -> 0 | CI20: =IF(InputA1A3[[#This Row],[*DU/FU (EF A5.2)]]="","",IF(InputA1A3[[#This Row],[Enhet för mängd (A5.2)]]="","Värde Behövs",IF(OR(InputA1A3[[#This Row],[Enhet för mängd (A5.2)]]=InputA1A3[[#This Row],[*DU/FU (EF A5.2)]],AND(InputA1A3[[#This Row],[Enhet för mängd (A5.2)]]<>InputA1A3[[#This Row],[*DU/FU (EF A5.2)]],ISNUMBER(InputA1A3[[#This Row],[Omräkningsfaktor (A5.2) (ange värde), (vid behov)]]))),TRUE,FALSE))) ->  | CJ20: =IF(OR(KontrollTabell[[#This Row],[Finns anläggningsdel-namn.]]=FALSE,KontrollTabell[[#This Row],[True/False A5]]="Värde Behövs"),"",IF(InputA1A3[[#This Row],[Enhet för mängd (A5.2)]] = InputA1A3[[#This Row],[*DU/FU (EF A5.2)]], TRUE, FALSE)) ->  | CK20: =IF(KontrollTabell[[#This Row],[Finns anläggningsdel-namn.]]=FALSE,"",IF(OR(ISBLANK(InputA1A3[[#This Row],[Kategori (egen kategorisering)]])=FALSE,ISBLANK(InputA1A3[[#This Row],[Anläggningsdel ]]))=FALSE,TRUE,FALSE)) ->  | CL20: =IF(ISBLANK(InputA1A3[[#This Row],[Anläggningsdel ]]),"",IF(KontrollTabell[[#This Row],[TRUE/FALSE om kategori saknas.]] =FALSE,InputA1A3[[#This Row],[Kategori (egen kategorisering)]],"Kategori saknas")) -> 
J21: =IF(ISBLANK(InputA1A3[[#This Row],[Anläggningsdel ]]),"",IF(OR(KontrollTabell[[#This Row],[True/False A1A3 Enhet]]=TRUE,KontrollTabell[[#This Row],[True/False A1A3 Enhet]]="Värde Behövs",KontrollTabell[[#This Row],[True/False A1A3 Enhet]]=""), "", InputA1A3[[#This Row],[FU/DU (EF A1A3)]] & "/" & InputA1A3[[#This Row],[Enhet Mängd (A1A3)]])) ->  | O21: =IF(ISBLANK(InputA1A3[[#This Row],[EPD - EF A4]]),"",InputA1A3[[#This Row],[FU/DU (EF A1A3)]]) ->  | T21: =IFERROR(INDEX(TabellEFDrivmedel[],MATCH(InputA1A3[[#This Row],[Drivmedel (A4) (endast förval ur lista)]],TabellEFDrivmedel[Drivmedel],0),4),"") ->  | X21: =IF(InputA1A3[[#This Row],[*DU/FU (EF A4) för valt drivmedel (schablon)]]="","",IF(OR(InputA1A3[[#This Row],[*DU/FU (EF A4) för valt drivmedel (schablon)]]=InputA1A3[[#This Row],[Enhet (bränsleförbrukning per km)]],KontrollTabell[[#This Row],[True/False A4 - Alt 2]]="Värde Behövs"),"",InputA1A3[[#This Row],[Enhet (bränsleförbrukning per km)]]& "/" & InputA1A3[[#This Row],[*DU/FU (EF A4) för valt drivmedel (schablon)]])) ->  | AF21: =IFERROR(INDEX(TabellEFDrivmedel[],MATCH(InputA1A3[[#This Row],[Drivmedel (A5.2)]],TabellEFDrivmedel[Drivmedel],0),2),"") ->  | AG21: =IFERROR(INDEX(TabellEFDrivmedel[],MATCH(InputA1A3[[#This Row],[Drivmedel (A5.2)]],TabellEFDrivmedel[Drivmedel],0),4),"") ->  | AH21: =IF(OR(KontrollTabell[[#This Row],[True/False A5 Enhet]]=TRUE,KontrollTabell[[#This Row],[True/False A5 Enhet]]=""), "", InputA1A3[[#This Row],[*DU/FU (EF A5.2)]] & "/" & InputA1A3[[#This Row],[Enhet för mängd (A5.2)]]) ->  | BW21: =IF(ISBLANK(InputA1A3[[#This Row],[Anläggningsdel ]]),FALSE,TRUE) -> FALSE | BX21: =IF(ISBLANK(InputA1A3[[#This Row],[Anläggningsdel ]]),"",IF(ISBLANK(InputA1A3[[#This Row],[Enhet Mängd (A1A3)]]),"",IF(ISBLANK(InputA1A3[[#This Row],[FU/DU (EF A1A3)]]),"Värde Behövs",IF(InputA1A3[[#This Row],[Enhet Mängd (A1A3)]] = InputA1A3[[#This Row],[FU/DU (EF A1A3)]], TRUE, FALSE)))) ->  | BY21: =IF(KontrollTabell[[#This Row],[Finns anläggningsdel-namn.]]=FALSE,"",(IF(KontrollTabell[[#This Row],[True/False A1A3 Enhet]]=TRUE,TRUE,IF(OR(KontrollTabell[[#This Row],[True/False A1A3 Enhet]]="Värde Behövs",(KontrollTabell[[#This Row],[True/False A1A3 Enhet]]="")),"",IF(ISBLANK(InputA1A3[[#This Row],[Omräkning till FU/DU (Skriv in värde, ej formel)]]),FALSE,TRUE))))) ->  | BZ21: =IF(KontrollTabell[[#This Row],[Finns anläggningsdel-namn.]]=FALSE,,IF(KontrollTabell[[#This Row],[True/False A1A3 Enhet]]=TRUE,InputA1A3[[#This Row],[Mängd A1A3]]*InputA1A3[[#This Row],[EF A1A3 '[kg CO₂-ekv.']]],IF(KontrollTabell[[#This Row],[True/False A1A3 om A1A3 kan beräknas]]=TRUE,InputA1A3[[#This Row],[Mängd A1A3]]*InputA1A3[[#This Row],[EF A1A3 '[kg CO₂-ekv.']]]*InputA1A3[[#This Row],[Omräkning till FU/DU (Skriv in värde, ej formel)]],0))) -> 0 | CA21: =IF(ISBLANK(InputA1A3[[#This Row],[Anläggningsdel ]]),"",IF(ISBLANK(InputA1A3[[#This Row],[EPD - EF A4]]),FALSE,TRUE)) ->  | CB21: =IF(InputA1A3[[#This Row],[*DU/FU (EF A4) för valt drivmedel (schablon)]]="","",IF(InputA1A3[[#This Row],[Enhet (bränsleförbrukning per km)]]="","Värde Behövs",IF(OR(InputA1A3[[#This Row],[Enhet (bränsleförbrukning per km)]]=InputA1A3[[#This Row],[*DU/FU (EF A4) för valt drivmedel (schablon)]],AND(InputA1A3[[#This Row],[Enhet (bränsleförbrukning per km)]]<>InputA1A3[[#This Row],[*DU/FU (EF A4) för valt drivmedel (schablon)]],ISNUMBER(InputA1A3[[#This Row],[Omräkningsfaktor (A4), (vid behov, värde eller formel)]]))),TRUE(),FALSE()))) ->  | CC21: =IF(KontrollTabell[[#This Row],[Finns anläggningsdel-namn.]]=FALSE,"",(IF(InputA1A3[[#This Row],[Enhet (bränsleförbrukning per km)]] =InputA1A3[[#This Row],[*DU/FU (EF A4) för valt drivmedel (schablon)]],TRUE,IF(KontrollTabell[[#This Row],[True/False A4 - Alt 2]]="Värde Behövs","",IF(ISBLANK(InputA1A3[[#This Row],[Omräkningsfaktor (A4), (vid behov, värde eller formel)]]),FALSE,TRUE))))) ->  | CD21: =IF(ISBLANK(InputA1A3[[#This Row],[EPD - EF A4]]),"",IF(ISBLANK(InputA1A3[[#This Row],[Omräkning till FU/DU (Skriv in värde, ej formel)]]),InputA1A3[[#This Row],[EPD - EF A4]]*InputA1A3[[#This Row],[Mängd A1A3]],InputA1A3[[#This Row],[Mängd A1A3]]*InputA1A3[[#This Row],[Omräkning till FU/DU (Skriv in värde, ej formel)]]*InputA1A3[[#This Row],[EPD - EF A4]])) ->  | CE21: =IFERROR(IF(KontrollTabell[[#This Row],[True/False A4 - Alt 2]]="","",IF(KontrollTabell[[#This Row],[True/False A4 Enhet - Alt2]]=TRUE, IF(ISNUMBER(InputA1A3[[#This Row],[Omräkningsfaktor (A4), (vid behov, värde eller formel)]]),InputA1A3[[#This Row],[Sträcka - totalt '[km'], (tur och retur, alla transporter)]]*InputA1A3[[#This Row],[(Bränsle-) Förbrukning per km]]/InputA1A3[[#This Row],[Omräkningsfaktor (A4), (vid behov, värde eller formel)]]*InputA1A3[[#This Row],[*EF (A4) '[kg CO₂-ekv.']]], InputA1A3[[#This Row],[Sträcka - totalt '[km'], (tur och retur, alla transporter)]]*InputA1A3[[#This Row],[(Bränsle-) Förbrukning per km]]*InputA1A3[[#This Row],[*EF (A4) '[kg CO₂-ekv.']]]),"Sen då")),0) ->  | CF21: =SUM(KontrollTabell[[#This Row],[A4 - Resultat alt 1 '[kg']]:[A4 - Alt 2 - beräkning utsläpp]]) -> 0 | CG21: =IF(KontrollTabell[[#This Row],[Finns anläggningsdel-namn.]]=FALSE,"",IF(ISBLANK(InputA1A3[[#This Row],[EPD - EF A4]]),FALSE,TRUE)) ->  | CH21: =IFERROR(IF(KontrollTabell[[#This Row],[True/False A5]]=FALSE(),"Enheter",IF(ISBLANK(InputA1A3[[#This Row],[Omräkningsfaktor (A5.2) (ange värde), (vid behov)]]),InputA1A3[[#This Row],[Mängd (A5.2)]]*InputA1A3[[#This Row],[*EF (A5.2) '[kg CO₂-ekv.']]],InputA1A3[[#This Row],[Mängd (A5.2)]]*InputA1A3[[#This Row],[*EF (A5.2) '[kg CO₂-ekv.']]]*InputA1A3[[#This Row],[Omräkningsfaktor (A5.2) (ange värde), (vid behov)]])),0) -> 0 | CI21: =IF(InputA1A3[[#This Row],[*DU/FU (EF A5.2)]]="","",IF(InputA1A3[[#This Row],[Enhet för mängd (A5.2)]]="","Värde Behövs",IF(OR(InputA1A3[[#This Row],[Enhet för mängd (A5.2)]]=InputA1A3[[#This Row],[*DU/FU (EF A5.2)]],AND(InputA1A3[[#This Row],[Enhet för mängd (A5.2)]]<>InputA1A3[[#This Row],[*DU/FU (EF A5.2)]],ISNUMBER(InputA1A3[[#This Row],[Omräkningsfaktor (A5.2) (ange värde), (vid behov)]]))),TRUE,FALSE))) ->  | CJ21: =IF(OR(KontrollTabell[[#This Row],[Finns anläggningsdel-namn.]]=FALSE,KontrollTabell[[#This Row],[True/False A5]]="Värde Behövs"),"",IF(InputA1A3[[#This Row],[Enhet för mängd (A5.2)]] = InputA1A3[[#This Row],[*DU/FU (EF A5.2)]], TRUE, FALSE)) ->  | CK21: =IF(KontrollTabell[[#This Row],[Finns anläggningsdel-namn.]]=FALSE,"",IF(OR(ISBLANK(InputA1A3[[#This Row],[Kategori (egen kategorisering)]])=FALSE,ISBLANK(InputA1A3[[#This Row],[Anläggningsdel ]]))=FALSE,TRUE,FALSE)) ->  | CL21: =IF(ISBLANK(InputA1A3[[#This Row],[Anläggningsdel ]]),"",IF(KontrollTabell[[#This Row],[TRUE/FALSE om kategori saknas.]] =FALSE,InputA1A3[[#This Row],[Kategori (egen kategorisering)]],"Kategori saknas")) -> 
J22: =IF(ISBLANK(InputA1A3[[#This Row],[Anläggningsdel ]]),"",IF(OR(KontrollTabell[[#This Row],[True/False A1A3 Enhet]]=TRUE,KontrollTabell[[#This Row],[True/False A1A3 Enhet]]="Värde Behövs",KontrollTabell[[#This Row],[True/False A1A3 Enhet]]=""), "", InputA1A3[[#This Row],[FU/DU (EF A1A3)]] & "/" & InputA1A3[[#This Row],[Enhet Mängd (A1A3)]])) ->  | O22: =IF(ISBLANK(InputA1A3[[#This Row],[EPD - EF A4]]),"",InputA1A3[[#This Row],[FU/DU (EF A1A3)]]) ->  | T22: =IFERROR(INDEX(TabellEFDrivmedel[],MATCH(InputA1A3[[#This Row],[Drivmedel (A4) (endast förval ur lista)]],TabellEFDrivmedel[Drivmedel],0),4),"") ->  | X22: =IF(InputA1A3[[#This Row],[*DU/FU (EF A4) för valt drivmedel (schablon)]]="","",IF(OR(InputA1A3[[#This Row],[*DU/FU (EF A4) för valt drivmedel (schablon)]]=InputA1A3[[#This Row],[Enhet (bränsleförbrukning per km)]],KontrollTabell[[#This Row],[True/False A4 - Alt 2]]="Värde Behövs"),"",InputA1A3[[#This Row],[Enhet (bränsleförbrukning per km)]]& "/" & InputA1A3[[#This Row],[*DU/FU (EF A4) för valt drivmedel (schablon)]])) ->  | AF22: =IFERROR(INDEX(TabellEFDrivmedel[],MATCH(InputA1A3[[#This Row],[Drivmedel (A5.2)]],TabellEFDrivmedel[Drivmedel],0),2),"") ->  | AG22: =IFERROR(INDEX(TabellEFDrivmedel[],MATCH(InputA1A3[[#This Row],[Drivmedel (A5.2)]],TabellEFDrivmedel[Drivmedel],0),4),"") ->  | AH22: =IF(OR(KontrollTabell[[#This Row],[True/False A5 Enhet]]=TRUE,KontrollTabell[[#This Row],[True/False A5 Enhet]]=""), "", InputA1A3[[#This Row],[*DU/FU (EF A5.2)]] & "/" & InputA1A3[[#This Row],[Enhet för mängd (A5.2)]]) ->  | BW22: =IF(ISBLANK(InputA1A3[[#This Row],[Anläggningsdel ]]),FALSE,TRUE) -> FALSE | BX22: =IF(ISBLANK(InputA1A3[[#This Row],[Anläggningsdel ]]),"",IF(ISBLANK(InputA1A3[[#This Row],[Enhet Mängd (A1A3)]]),"",IF(ISBLANK(InputA1A3[[#This Row],[FU/DU (EF A1A3)]]),"Värde Behövs",IF(InputA1A3[[#This Row],[Enhet Mängd (A1A3)]] = InputA1A3[[#This Row],[FU/DU (EF A1A3)]], TRUE, FALSE)))) ->  | BY22: =IF(KontrollTabell[[#This Row],[Finns anläggningsdel-namn.]]=FALSE,"",(IF(KontrollTabell[[#This Row],[True/False A1A3 Enhet]]=TRUE,TRUE,IF(OR(KontrollTabell[[#This Row],[True/False A1A3 Enhet]]="Värde Behövs",(KontrollTabell[[#This Row],[True/False A1A3 Enhet]]="")),"",IF(ISBLANK(InputA1A3[[#This Row],[Omräkning till FU/DU (Skriv in värde, ej formel)]]),FALSE,TRUE))))) ->  | BZ22: =IF(KontrollTabell[[#This Row],[Finns anläggningsdel-namn.]]=FALSE,,IF(KontrollTabell[[#This Row],[True/False A1A3 Enhet]]=TRUE,InputA1A3[[#This Row],[Mängd A1A3]]*InputA1A3[[#This Row],[EF A1A3 '[kg CO₂-ekv.']]],IF(KontrollTabell[[#This Row],[True/False A1A3 om A1A3 kan beräknas]]=TRUE,InputA1A3[[#This Row],[Mängd A1A3]]*InputA1A3[[#This Row],[EF A1A3 '[kg CO₂-ekv.']]]*InputA1A3[[#This Row],[Omräkning till FU/DU (Skriv in värde, ej formel)]],0))) -> 0 | CA22: =IF(ISBLANK(InputA1A3[[#This Row],[Anläggningsdel ]]),"",IF(ISBLANK(InputA1A3[[#This Row],[EPD - EF A4]]),FALSE,TRUE)) ->  | CB22: =IF(InputA1A3[[#This Row],[*DU/FU (EF A4) för valt drivmedel (schablon)]]="","",IF(InputA1A3[[#This Row],[Enhet (bränsleförbrukning per km)]]="","Värde Behövs",IF(OR(InputA1A3[[#This Row],[Enhet (bränsleförbrukning per km)]]=InputA1A3[[#This Row],[*DU/FU (EF A4) för valt drivmedel (schablon)]],AND(InputA1A3[[#This Row],[Enhet (bränsleförbrukning per km)]]<>InputA1A3[[#This Row],[*DU/FU (EF A4) för valt drivmedel (schablon)]],ISNUMBER(InputA1A3[[#This Row],[Omräkningsfaktor (A4), (vid behov, värde eller formel)]]))),TRUE(),FALSE()))) ->  | CC22: =IF(KontrollTabell[[#This Row],[Finns anläggningsdel-namn.]]=FALSE,"",(IF(InputA1A3[[#This Row],[Enhet (bränsleförbrukning per km)]] =InputA1A3[[#This Row],[*DU/FU (EF A4) för valt drivmedel (schablon)]],TRUE,IF(KontrollTabell[[#This Row],[True/False A4 - Alt 2]]="Värde Behövs","",IF(ISBLANK(InputA1A3[[#This Row],[Omräkningsfaktor (A4), (vid behov, värde eller formel)]]),FALSE,TRUE))))) ->  | CD22: =IF(ISBLANK(InputA1A3[[#This Row],[EPD - EF A4]]),"",IF(ISBLANK(InputA1A3[[#This Row],[Omräkning till FU/DU (Skriv in värde, ej formel)]]),InputA1A3[[#This Row],[EPD - EF A4]]*InputA1A3[[#This Row],[Mängd A1A3]],InputA1A3[[#This Row],[Mängd A1A3]]*InputA1A3[[#This Row],[Omräkning till FU/DU (Skriv in värde, ej formel)]]*InputA1A3[[#This Row],[EPD - EF A4]])) ->  | CE22: =IFERROR(IF(KontrollTabell[[#This Row],[True/False A4 - Alt 2]]="","",IF(KontrollTabell[[#This Row],[True/False A4 Enhet - Alt2]]=TRUE, IF(ISNUMBER(InputA1A3[[#This Row],[Omräkningsfaktor (A4), (vid behov, värde eller formel)]]),InputA1A3[[#This Row],[Sträcka - totalt '[km'], (tur och retur, alla transporter)]]*InputA1A3[[#This Row],[(Bränsle-) Förbrukning per km]]/InputA1A3[[#This Row],[Omräkningsfaktor (A4), (vid behov, värde eller formel)]]*InputA1A3[[#This Row],[*EF (A4) '[kg CO₂-ekv.']]], InputA1A3[[#This Row],[Sträcka - totalt '[km'], (tur och retur, alla transporter)]]*InputA1A3[[#This Row],[(Bränsle-) Förbrukning per km]]*InputA1A3[[#This Row],[*EF (A4) '[kg CO₂-ekv.']]]),"Sen då")),0) ->  | CF22: =SUM(KontrollTabell[[#This Row],[A4 - Resultat alt 1 '[kg']]:[A4 - Alt 2 - beräkning utsläpp]]) -> 0 | CG22: =IF(KontrollTabell[[#This Row],[Finns anläggningsdel-namn.]]=FALSE,"",IF(ISBLANK(InputA1A3[[#This Row],[EPD - EF A4]]),FALSE,TRUE)) ->  | CH22: =IFERROR(IF(KontrollTabell[[#This Row],[True/False A5]]=FALSE(),"Enheter",IF(ISBLANK(InputA1A3[[#This Row],[Omräkningsfaktor (A5.2) (ange värde), (vid behov)]]),InputA1A3[[#This Row],[Mängd (A5.2)]]*InputA1A3[[#This Row],[*EF (A5.2) '[kg CO₂-ekv.']]],InputA1A3[[#This Row],[Mängd (A5.2)]]*InputA1A3[[#This Row],[*EF (A5.2) '[kg CO₂-ekv.']]]*InputA1A3[[#This Row],[Omräkningsfaktor (A5.2) (ange värde), (vid behov)]])),0) -> 0 | CI22: =IF(InputA1A3[[#This Row],[*DU/FU (EF A5.2)]]="","",IF(InputA1A3[[#This Row],[Enhet för mängd (A5.2)]]="","Värde Behövs",IF(OR(InputA1A3[[#This Row],[Enhet för mängd (A5.2)]]=InputA1A3[[#This Row],[*DU/FU (EF A5.2)]],AND(InputA1A3[[#This Row],[Enhet för mängd (A5.2)]]<>InputA1A3[[#This Row],[*DU/FU (EF A5.2)]],ISNUMBER(InputA1A3[[#This Row],[Omräkningsfaktor (A5.2) (ange värde), (vid behov)]]))),TRUE,FALSE))) ->  | CJ22: =IF(OR(KontrollTabell[[#This Row],[Finns anläggningsdel-namn.]]=FALSE,KontrollTabell[[#This Row],[True/False A5]]="Värde Behövs"),"",IF(InputA1A3[[#This Row],[Enhet för mängd (A5.2)]] = InputA1A3[[#This Row],[*DU/FU (EF A5.2)]], TRUE, FALSE)) ->  | CK22: =IF(KontrollTabell[[#This Row],[Finns anläggningsdel-namn.]]=FALSE,"",IF(OR(ISBLANK(InputA1A3[[#This Row],[Kategori (egen kategorisering)]])=FALSE,ISBLANK(InputA1A3[[#This Row],[Anläggningsdel ]]))=FALSE,TRUE,FALSE)) ->  | CL22: =IF(ISBLANK(InputA1A3[[#This Row],[Anläggningsdel ]]),"",IF(KontrollTabell[[#This Row],[TRUE/FALSE om kategori saknas.]] =FALSE,InputA1A3[[#This Row],[Kategori (egen kategorisering)]],"Kategori saknas")) -> 
J23: =IF(ISBLANK(InputA1A3[[#This Row],[Anläggningsdel ]]),"",IF(OR(KontrollTabell[[#This Row],[True/False A1A3 Enhet]]=TRUE,KontrollTabell[[#This Row],[True/False A1A3 Enhet]]="Värde Behövs",KontrollTabell[[#This Row],[True/False A1A3 Enhet]]=""), "", InputA1A3[[#This Row],[FU/DU (EF A1A3)]] & "/" & InputA1A3[[#This Row],[Enhet Mängd (A1A3)]])) ->  | O23: =IF(ISBLANK(InputA1A3[[#This Row],[EPD - EF A4]]),"",InputA1A3[[#This Row],[FU/DU (EF A1A3)]]) ->  | T23: =IFERROR(INDEX(TabellEFDrivmedel[],MATCH(InputA1A3[[#This Row],[Drivmedel (A4) (endast förval ur lista)]],TabellEFDrivmedel[Drivmedel],0),4),"") ->  | X23: =IF(InputA1A3[[#This Row],[*DU/FU (EF A4) för valt drivmedel (schablon)]]="","",IF(OR(InputA1A3[[#This Row],[*DU/FU (EF A4) för valt drivmedel (schablon)]]=InputA1A3[[#This Row],[Enhet (bränsleförbrukning per km)]],KontrollTabell[[#This Row],[True/False A4 - Alt 2]]="Värde Behövs"),"",InputA1A3[[#This Row],[Enhet (bränsleförbrukning per km)]]& "/" & InputA1A3[[#This Row],[*DU/FU (EF A4) för valt drivmedel (schablon)]])) ->  | AF23: =IFERROR(INDEX(TabellEFDrivmedel[],MATCH(InputA1A3[[#This Row],[Drivmedel (A5.2)]],TabellEFDrivmedel[Drivmedel],0),2),"") ->  | AG23: =IFERROR(INDEX(TabellEFDrivmedel[],MATCH(InputA1A3[[#This Row],[Drivmedel (A5.2)]],TabellEFDrivmedel[Drivmedel],0),4),"") ->  | AH23: =IF(OR(KontrollTabell[[#This Row],[True/False A5 Enhet]]=TRUE,KontrollTabell[[#This Row],[True/False A5 Enhet]]=""), "", InputA1A3[[#This Row],[*DU/FU (EF A5.2)]] & "/" & InputA1A3[[#This Row],[Enhet för mängd (A5.2)]]) ->  | BW23: =IF(ISBLANK(InputA1A3[[#This Row],[Anläggningsdel ]]),FALSE,TRUE) -> FALSE | BX23: =IF(ISBLANK(InputA1A3[[#This Row],[Anläggningsdel ]]),"",IF(ISBLANK(InputA1A3[[#This Row],[Enhet Mängd (A1A3)]]),"",IF(ISBLANK(InputA1A3[[#This Row],[FU/DU (EF A1A3)]]),"Värde Behövs",IF(InputA1A3[[#This Row],[Enhet Mängd (A1A3)]] = InputA1A3[[#This Row],[FU/DU (EF A1A3)]], TRUE, FALSE)))) ->  | BY23: =IF(KontrollTabell[[#This Row],[Finns anläggningsdel-namn.]]=FALSE,"",(IF(KontrollTabell[[#This Row],[True/False A1A3 Enhet]]=TRUE,TRUE,IF(OR(KontrollTabell[[#This Row],[True/False A1A3 Enhet]]="Värde Behövs",(KontrollTabell[[#This Row],[True/False A1A3 Enhet]]="")),"",IF(ISBLANK(InputA1A3[[#This Row],[Omräkning till FU/DU (Skriv in värde, ej formel)]]),FALSE,TRUE))))) ->  | BZ23: =IF(KontrollTabell[[#This Row],[Finns anläggningsdel-namn.]]=FALSE,,IF(KontrollTabell[[#This Row],[True/False A1A3 Enhet]]=TRUE,InputA1A3[[#This Row],[Mängd A1A3]]*InputA1A3[[#This Row],[EF A1A3 '[kg CO₂-ekv.']]],IF(KontrollTabell[[#This Row],[True/False A1A3 om A1A3 kan beräknas]]=TRUE,InputA1A3[[#This Row],[Mängd A1A3]]*InputA1A3[[#This Row],[EF A1A3 '[kg CO₂-ekv.']]]*InputA1A3[[#This Row],[Omräkning till FU/DU (Skriv in värde, ej formel)]],0))) -> 0 | CA23: =IF(ISBLANK(InputA1A3[[#This Row],[Anläggningsdel ]]),"",IF(ISBLANK(InputA1A3[[#This Row],[EPD - EF A4]]),FALSE,TRUE)) ->  | CB23: =IF(InputA1A3[[#This Row],[*DU/FU (EF A4) för valt drivmedel (schablon)]]="","",IF(InputA1A3[[#This Row],[Enhet (bränsleförbrukning per km)]]="","Värde Behövs",IF(OR(InputA1A3[[#This Row],[Enhet (bränsleförbrukning per km)]]=InputA1A3[[#This Row],[*DU/FU (EF A4) för valt drivmedel (schablon)]],AND(InputA1A3[[#This Row],[Enhet (bränsleförbrukning per km)]]<>InputA1A3[[#This Row],[*DU/FU (EF A4) för valt drivmedel (schablon)]],ISNUMBER(InputA1A3[[#This Row],[Omräkningsfaktor (A4), (vid behov, värde eller formel)]]))),TRUE(),FALSE()))) ->  | CC23: =IF(KontrollTabell[[#This Row],[Finns anläggningsdel-namn.]]=FALSE,"",(IF(InputA1A3[[#This Row],[Enhet (bränsleförbrukning per km)]] =InputA1A3[[#This Row],[*DU/FU (EF A4) för valt drivmedel (schablon)]],TRUE,IF(KontrollTabell[[#This Row],[True/False A4 - Alt 2]]="Värde Behövs","",IF(ISBLANK(InputA1A3[[#This Row],[Omräkningsfaktor (A4), (vid behov, värde eller formel)]]),FALSE,TRUE))))) ->  | CD23: =IF(ISBLANK(InputA1A3[[#This Row],[EPD - EF A4]]),"",IF(ISBLANK(InputA1A3[[#This Row],[Omräkning till FU/DU (Skriv in värde, ej formel)]]),InputA1A3[[#This Row],[EPD - EF A4]]*InputA1A3[[#This Row],[Mängd A1A3]],InputA1A3[[#This Row],[Mängd A1A3]]*InputA1A3[[#This Row],[Omräkning till FU/DU (Skriv in värde, ej formel)]]*InputA1A3[[#This Row],[EPD - EF A4]])) ->  | CE23: =IFERROR(IF(KontrollTabell[[#This Row],[True/False A4 - Alt 2]]="","",IF(KontrollTabell[[#This Row],[True/False A4 Enhet - Alt2]]=TRUE, IF(ISNUMBER(InputA1A3[[#This Row],[Omräkningsfaktor (A4), (vid behov, värde eller formel)]]),InputA1A3[[#This Row],[Sträcka - totalt '[km'], (tur och retur, alla transporter)]]*InputA1A3[[#This Row],[(Bränsle-) Förbrukning per km]]/InputA1A3[[#This Row],[Omräkningsfaktor (A4), (vid behov, värde eller formel)]]*InputA1A3[[#This Row],[*EF (A4) '[kg CO₂-ekv.']]], InputA1A3[[#This Row],[Sträcka - totalt '[km'], (tur och retur, alla transporter)]]*InputA1A3[[#This Row],[(Bränsle-) Förbrukning per km]]*InputA1A3[[#This Row],[*EF (A4) '[kg CO₂-ekv.']]]),"Sen då")),0) ->  | CF23: =SUM(KontrollTabell[[#This Row],[A4 - Resultat alt 1 '[kg']]:[A4 - Alt 2 - beräkning utsläpp]]) -> 0 | CG23: =IF(KontrollTabell[[#This Row],[Finns anläggningsdel-namn.]]=FALSE,"",IF(ISBLANK(InputA1A3[[#This Row],[EPD - EF A4]]),FALSE,TRUE)) ->  | CH23: =IFERROR(IF(KontrollTabell[[#This Row],[True/False A5]]=FALSE(),"Enheter",IF(ISBLANK(InputA1A3[[#This Row],[Omräkningsfaktor (A5.2) (ange värde), (vid behov)]]),InputA1A3[[#This Row],[Mängd (A5.2)]]*InputA1A3[[#This Row],[*EF (A5.2) '[kg CO₂-ekv.']]],InputA1A3[[#This Row],[Mängd (A5.2)]]*InputA1A3[[#This Row],[*EF (A5.2) '[kg CO₂-ekv.']]]*InputA1A3[[#This Row],[Omräkningsfaktor (A5.2) (ange värde), (vid behov)]])),0) -> 0 | CI23: =IF(InputA1A3[[#This Row],[*DU/FU (EF A5.2)]]="","",IF(InputA1A3[[#This Row],[Enhet för mängd (A5.2)]]="","Värde Behövs",IF(OR(InputA1A3[[#This Row],[Enhet för mängd (A5.2)]]=InputA1A3[[#This Row],[*DU/FU (EF A5.2)]],AND(InputA1A3[[#This Row],[Enhet för mängd (A5.2)]]<>InputA1A3[[#This Row],[*DU/FU (EF A5.2)]],ISNUMBER(InputA1A3[[#This Row],[Omräkningsfaktor (A5.2) (ange värde), (vid behov)]]))),TRUE,FALSE))) ->  | CJ23: =IF(OR(KontrollTabell[[#This Row],[Finns anläggningsdel-namn.]]=FALSE,KontrollTabell[[#This Row],[True/False A5]]="Värde Behövs"),"",IF(InputA1A3[[#This Row],[Enhet för mängd (A5.2)]] = InputA1A3[[#This Row],[*DU/FU (EF A5.2)]], TRUE, FALSE)) ->  | CK23: =IF(KontrollTabell[[#This Row],[Finns anläggningsdel-namn.]]=FALSE,"",IF(OR(ISBLANK(InputA1A3[[#This Row],[Kategori (egen kategorisering)]])=FALSE,ISBLANK(InputA1A3[[#This Row],[Anläggningsdel ]]))=FALSE,TRUE,FALSE)) ->  | CL23: =IF(ISBLANK(InputA1A3[[#This Row],[Anläggningsdel ]]),"",IF(KontrollTabell[[#This Row],[TRUE/FALSE om kategori saknas.]] =FALSE,InputA1A3[[#This Row],[Kategori (egen kategorisering)]],"Kategori saknas")) -> 
J24: =IF(ISBLANK(InputA1A3[[#This Row],[Anläggningsdel ]]),"",IF(OR(KontrollTabell[[#This Row],[True/False A1A3 Enhet]]=TRUE,KontrollTabell[[#This Row],[True/False A1A3 Enhet]]="Värde Behövs",KontrollTabell[[#This Row],[True/False A1A3 Enhet]]=""), "", InputA1A3[[#This Row],[FU/DU (EF A1A3)]] & "/" & InputA1A3[[#This Row],[Enhet Mängd (A1A3)]])) ->  | O24: =IF(ISBLANK(InputA1A3[[#This Row],[EPD - EF A4]]),"",InputA1A3[[#This Row],[FU/DU (EF A1A3)]]) ->  | T24: =IFERROR(INDEX(TabellEFDrivmedel[],MATCH(InputA1A3[[#This Row],[Drivmedel (A4) (endast förval ur lista)]],TabellEFDrivmedel[Drivmedel],0),4),"") ->  | X24: =IF(InputA1A3[[#This Row],[*DU/FU (EF A4) för valt drivmedel (schablon)]]="","",IF(OR(InputA1A3[[#This Row],[*DU/FU (EF A4) för valt drivmedel (schablon)]]=InputA1A3[[#This Row],[Enhet (bränsleförbrukning per km)]],KontrollTabell[[#This Row],[True/False A4 - Alt 2]]="Värde Behövs"),"",InputA1A3[[#This Row],[Enhet (bränsleförbrukning per km)]]& "/" & InputA1A3[[#This Row],[*DU/FU (EF A4) för valt drivmedel (schablon)]])) ->  | AF24: =IFERROR(INDEX(TabellEFDrivmedel[],MATCH(InputA1A3[[#This Row],[Drivmedel (A5.2)]],TabellEFDrivmedel[Drivmedel],0),2),"") ->  | AG24: =IFERROR(INDEX(TabellEFDrivmedel[],MATCH(InputA1A3[[#This Row],[Drivmedel (A5.2)]],TabellEFDrivmedel[Drivmedel],0),4),"") ->  | AH24: =IF(OR(KontrollTabell[[#This Row],[True/False A5 Enhet]]=TRUE,KontrollTabell[[#This Row],[True/False A5 Enhet]]=""), "", InputA1A3[[#This Row],[*DU/FU (EF A5.2)]] & "/" & InputA1A3[[#This Row],[Enhet för mängd (A5.2)]]) ->  | BW24: =IF(ISBLANK(InputA1A3[[#This Row],[Anläggningsdel ]]),FALSE,TRUE) -> FALSE | BX24: =IF(ISBLANK(InputA1A3[[#This Row],[Anläggningsdel ]]),"",IF(ISBLANK(InputA1A3[[#This Row],[Enhet Mängd (A1A3)]]),"",IF(ISBLANK(InputA1A3[[#This Row],[FU/DU (EF A1A3)]]),"Värde Behövs",IF(InputA1A3[[#This Row],[Enhet Mängd (A1A3)]] = InputA1A3[[#This Row],[FU/DU (EF A1A3)]], TRUE, FALSE)))) ->  | BY24: =IF(KontrollTabell[[#This Row],[Finns anläggningsdel-namn.]]=FALSE,"",(IF(KontrollTabell[[#This Row],[True/False A1A3 Enhet]]=TRUE,TRUE,IF(OR(KontrollTabell[[#This Row],[True/False A1A3 Enhet]]="Värde Behövs",(KontrollTabell[[#This Row],[True/False A1A3 Enhet]]="")),"",IF(ISBLANK(InputA1A3[[#This Row],[Omräkning till FU/DU (Skriv in värde, ej formel)]]),FALSE,TRUE))))) ->  | BZ24: =IF(KontrollTabell[[#This Row],[Finns anläggningsdel-namn.]]=FALSE,,IF(KontrollTabell[[#This Row],[True/False A1A3 Enhet]]=TRUE,InputA1A3[[#This Row],[Mängd A1A3]]*InputA1A3[[#This Row],[EF A1A3 '[kg CO₂-ekv.']]],IF(KontrollTabell[[#This Row],[True/False A1A3 om A1A3 kan beräknas]]=TRUE,InputA1A3[[#This Row],[Mängd A1A3]]*InputA1A3[[#This Row],[EF A1A3 '[kg CO₂-ekv.']]]*InputA1A3[[#This Row],[Omräkning till FU/DU (Skriv in värde, ej formel)]],0))) -> 0 | CA24: =IF(ISBLANK(InputA1A3[[#This Row],[Anläggningsdel ]]),"",IF(ISBLANK(InputA1A3[[#This Row],[EPD - EF A4]]),FALSE,TRUE)) ->  | CB24: =IF(InputA1A3[[#This Row],[*DU/FU (EF A4) för valt drivmedel (schablon)]]="","",IF(InputA1A3[[#This Row],[Enhet (bränsleförbrukning per km)]]="","Värde Behövs",IF(OR(InputA1A3[[#This Row],[Enhet (bränsleförbrukning per km)]]=InputA1A3[[#This Row],[*DU/FU (EF A4) för valt drivmedel (schablon)]],AND(InputA1A3[[#This Row],[Enhet (bränsleförbrukning per km)]]<>InputA1A3[[#This Row],[*DU/FU (EF A4) för valt drivmedel (schablon)]],ISNUMBER(InputA1A3[[#This Row],[Omräkningsfaktor (A4), (vid behov, värde eller formel)]]))),TRUE(),FALSE()))) ->  | CC24: =IF(KontrollTabell[[#This Row],[Finns anläggningsdel-namn.]]=FALSE,"",(IF(InputA1A3[[#This Row],[Enhet (bränsleförbrukning per km)]] =InputA1A3[[#This Row],[*DU/FU (EF A4) för valt drivmedel (schablon)]],TRUE,IF(KontrollTabell[[#This Row],[True/False A4 - Alt 2]]="Värde Behövs","",IF(ISBLANK(InputA1A3[[#This Row],[Omräkningsfaktor (A4), (vid behov, värde eller formel)]]),FALSE,TRUE))))) ->  | CD24: =IF(ISBLANK(InputA1A3[[#This Row],[EPD - EF A4]]),"",IF(ISBLANK(InputA1A3[[#This Row],[Omräkning till FU/DU (Skriv in värde, ej formel)]]),InputA1A3[[#This Row],[EPD - EF A4]]*InputA1A3[[#This Row],[Mängd A1A3]],InputA1A3[[#This Row],[Mängd A1A3]]*InputA1A3[[#This Row],[Omräkning till FU/DU (Skriv in värde, ej formel)]]*InputA1A3[[#This Row],[EPD - EF A4]])) ->  | CE24: =IFERROR(IF(KontrollTabell[[#This Row],[True/False A4 - Alt 2]]="","",IF(KontrollTabell[[#This Row],[True/False A4 Enhet - Alt2]]=TRUE, IF(ISNUMBER(InputA1A3[[#This Row],[Omräkningsfaktor (A4), (vid behov, värde eller formel)]]),InputA1A3[[#This Row],[Sträcka - totalt '[km'], (tur och retur, alla transporter)]]*InputA1A3[[#This Row],[(Bränsle-) Förbrukning per km]]/InputA1A3[[#This Row],[Omräkningsfaktor (A4), (vid behov, värde eller formel)]]*InputA1A3[[#This Row],[*EF (A4) '[kg CO₂-ekv.']]], InputA1A3[[#This Row],[Sträcka - totalt '[km'], (tur och retur, alla transporter)]]*InputA1A3[[#This Row],[(Bränsle-) Förbrukning per km]]*InputA1A3[[#This Row],[*EF (A4) '[kg CO₂-ekv.']]]),"Sen då")),0) ->  | CF24: =SUM(KontrollTabell[[#This Row],[A4 - Resultat alt 1 '[kg']]:[A4 - Alt 2 - beräkning utsläpp]]) -> 0 | CG24: =IF(KontrollTabell[[#This Row],[Finns anläggningsdel-namn.]]=FALSE,"",IF(ISBLANK(InputA1A3[[#This Row],[EPD - EF A4]]),FALSE,TRUE)) ->  | CH24: =IFERROR(IF(KontrollTabell[[#This Row],[True/False A5]]=FALSE(),"Enheter",IF(ISBLANK(InputA1A3[[#This Row],[Omräkningsfaktor (A5.2) (ange värde), (vid behov)]]),InputA1A3[[#This Row],[Mängd (A5.2)]]*InputA1A3[[#This Row],[*EF (A5.2) '[kg CO₂-ekv.']]],InputA1A3[[#This Row],[Mängd (A5.2)]]*InputA1A3[[#This Row],[*EF (A5.2) '[kg CO₂-ekv.']]]*InputA1A3[[#This Row],[Omräkningsfaktor (A5.2) (ange värde), (vid behov)]])),0) -> 0 | CI24: =IF(InputA1A3[[#This Row],[*DU/FU (EF A5.2)]]="","",IF(InputA1A3[[#This Row],[Enhet för mängd (A5.2)]]="","Värde Behövs",IF(OR(InputA1A3[[#This Row],[Enhet för mängd (A5.2)]]=InputA1A3[[#This Row],[*DU/FU (EF A5.2)]],AND(InputA1A3[[#This Row],[Enhet för mängd (A5.2)]]<>InputA1A3[[#This Row],[*DU/FU (EF A5.2)]],ISNUMBER(InputA1A3[[#This Row],[Omräkningsfaktor (A5.2) (ange värde), (vid behov)]]))),TRUE,FALSE))) ->  | CJ24: =IF(OR(KontrollTabell[[#This Row],[Finns anläggningsdel-namn.]]=FALSE,KontrollTabell[[#This Row],[True/False A5]]="Värde Behövs"),"",IF(InputA1A3[[#This Row],[Enhet för mängd (A5.2)]] = InputA1A3[[#This Row],[*DU/FU (EF A5.2)]], TRUE, FALSE)) ->  | CK24: =IF(KontrollTabell[[#This Row],[Finns anläggningsdel-namn.]]=FALSE,"",IF(OR(ISBLANK(InputA1A3[[#This Row],[Kategori (egen kategorisering)]])=FALSE,ISBLANK(InputA1A3[[#This Row],[Anläggningsdel ]]))=FALSE,TRUE,FALSE)) ->  | CL24: =IF(ISBLANK(InputA1A3[[#This Row],[Anläggningsdel ]]),"",IF(KontrollTabell[[#This Row],[TRUE/FALSE om kategori saknas.]] =FALSE,InputA1A3[[#This Row],[Kategori (egen kategorisering)]],"Kategori saknas")) -> 
J25: =IF(ISBLANK(InputA1A3[[#This Row],[Anläggningsdel ]]),"",IF(OR(KontrollTabell[[#This Row],[True/False A1A3 Enhet]]=TRUE,KontrollTabell[[#This Row],[True/False A1A3 Enhet]]="Värde Behövs",KontrollTabell[[#This Row],[True/False A1A3 Enhet]]=""), "", InputA1A3[[#This Row],[FU/DU (EF A1A3)]] & "/" & InputA1A3[[#This Row],[Enhet Mängd (A1A3)]])) ->  | O25: =IF(ISBLANK(InputA1A3[[#This Row],[EPD - EF A4]]),"",InputA1A3[[#This Row],[FU/DU (EF A1A3)]]) ->  | T25: =IFERROR(INDEX(TabellEFDrivmedel[],MATCH(InputA1A3[[#This Row],[Drivmedel (A4) (endast förval ur lista)]],TabellEFDrivmedel[Drivmedel],0),4),"") ->  | X25: =IF(InputA1A3[[#This Row],[*DU/FU (EF A4) för valt drivmedel (schablon)]]="","",IF(OR(InputA1A3[[#This Row],[*DU/FU (EF A4) för valt drivmedel (schablon)]]=InputA1A3[[#This Row],[Enhet (bränsleförbrukning per km)]],KontrollTabell[[#This Row],[True/False A4 - Alt 2]]="Värde Behövs"),"",InputA1A3[[#This Row],[Enhet (bränsleförbrukning per km)]]& "/" & InputA1A3[[#This Row],[*DU/FU (EF A4) för valt drivmedel (schablon)]])) ->  | AF25: =IFERROR(INDEX(TabellEFDrivmedel[],MATCH(InputA1A3[[#This Row],[Drivmedel (A5.2)]],TabellEFDrivmedel[Drivmedel],0),2),"") ->  | AG25: =IFERROR(INDEX(TabellEFDrivmedel[],MATCH(InputA1A3[[#This Row],[Drivmedel (A5.2)]],TabellEFDrivmedel[Drivmedel],0),4),"") ->  | AH25: =IF(OR(KontrollTabell[[#This Row],[True/False A5 Enhet]]=TRUE,KontrollTabell[[#This Row],[True/False A5 Enhet]]=""), "", InputA1A3[[#This Row],[*DU/FU (EF A5.2)]] & "/" & InputA1A3[[#This Row],[Enhet för mängd (A5.2)]]) ->  | BW25: =IF(ISBLANK(InputA1A3[[#This Row],[Anläggningsdel ]]),FALSE,TRUE) -> FALSE | BX25: =IF(ISBLANK(InputA1A3[[#This Row],[Anläggningsdel ]]),"",IF(ISBLANK(InputA1A3[[#This Row],[Enhet Mängd (A1A3)]]),"",IF(ISBLANK(InputA1A3[[#This Row],[FU/DU (EF A1A3)]]),"Värde Behövs",IF(InputA1A3[[#This Row],[Enhet Mängd (A1A3)]] = InputA1A3[[#This Row],[FU/DU (EF A1A3)]], TRUE, FALSE)))) ->  | BY25: =IF(KontrollTabell[[#This Row],[Finns anläggningsdel-namn.]]=FALSE,"",(IF(KontrollTabell[[#This Row],[True/False A1A3 Enhet]]=TRUE,TRUE,IF(OR(KontrollTabell[[#This Row],[True/False A1A3 Enhet]]="Värde Behövs",(KontrollTabell[[#This Row],[True/False A1A3 Enhet]]="")),"",IF(ISBLANK(InputA1A3[[#This Row],[Omräkning till FU/DU (Skriv in värde, ej formel)]]),FALSE,TRUE))))) ->  | BZ25: =IF(KontrollTabell[[#This Row],[Finns anläggningsdel-namn.]]=FALSE,,IF(KontrollTabell[[#This Row],[True/False A1A3 Enhet]]=TRUE,InputA1A3[[#This Row],[Mängd A1A3]]*InputA1A3[[#This Row],[EF A1A3 '[kg CO₂-ekv.']]],IF(KontrollTabell[[#This Row],[True/False A1A3 om A1A3 kan beräknas]]=TRUE,InputA1A3[[#This Row],[Mängd A1A3]]*InputA1A3[[#This Row],[EF A1A3 '[kg CO₂-ekv.']]]*InputA1A3[[#This Row],[Omräkning till FU/DU (Skriv in värde, ej formel)]],0))) -> 0 | CA25: =IF(ISBLANK(InputA1A3[[#This Row],[Anläggningsdel ]]),"",IF(ISBLANK(InputA1A3[[#This Row],[EPD - EF A4]]),FALSE,TRUE)) ->  | CB25: =IF(InputA1A3[[#This Row],[*DU/FU (EF A4) för valt drivmedel (schablon)]]="","",IF(InputA1A3[[#This Row],[Enhet (bränsleförbrukning per km)]]="","Värde Behövs",IF(OR(InputA1A3[[#This Row],[Enhet (bränsleförbrukning per km)]]=InputA1A3[[#This Row],[*DU/FU (EF A4) för valt drivmedel (schablon)]],AND(InputA1A3[[#This Row],[Enhet (bränsleförbrukning per km)]]<>InputA1A3[[#This Row],[*DU/FU (EF A4) för valt drivmedel (schablon)]],ISNUMBER(InputA1A3[[#This Row],[Omräkningsfaktor (A4), (vid behov, värde eller formel)]]))),TRUE(),FALSE()))) ->  | CC25: =IF(KontrollTabell[[#This Row],[Finns anläggningsdel-namn.]]=FALSE,"",(IF(InputA1A3[[#This Row],[Enhet (bränsleförbrukning per km)]] =InputA1A3[[#This Row],[*DU/FU (EF A4) för valt drivmedel (schablon)]],TRUE,IF(KontrollTabell[[#This Row],[True/False A4 - Alt 2]]="Värde Behövs","",IF(ISBLANK(InputA1A3[[#This Row],[Omräkningsfaktor (A4), (vid behov, värde eller formel)]]),FALSE,TRUE))))) ->  | CD25: =IF(ISBLANK(InputA1A3[[#This Row],[EPD - EF A4]]),"",IF(ISBLANK(InputA1A3[[#This Row],[Omräkning till FU/DU (Skriv in värde, ej formel)]]),InputA1A3[[#This Row],[EPD - EF A4]]*InputA1A3[[#This Row],[Mängd A1A3]],InputA1A3[[#This Row],[Mängd A1A3]]*InputA1A3[[#This Row],[Omräkning till FU/DU (Skriv in värde, ej formel)]]*InputA1A3[[#This Row],[EPD - EF A4]])) ->  | CE25: =IFERROR(IF(KontrollTabell[[#This Row],[True/False A4 - Alt 2]]="","",IF(KontrollTabell[[#This Row],[True/False A4 Enhet - Alt2]]=TRUE, IF(ISNUMBER(InputA1A3[[#This Row],[Omräkningsfaktor (A4), (vid behov, värde eller formel)]]),InputA1A3[[#This Row],[Sträcka - totalt '[km'], (tur och retur, alla transporter)]]*InputA1A3[[#This Row],[(Bränsle-) Förbrukning per km]]/InputA1A3[[#This Row],[Omräkningsfaktor (A4), (vid behov, värde eller formel)]]*InputA1A3[[#This Row],[*EF (A4) '[kg CO₂-ekv.']]], InputA1A3[[#This Row],[Sträcka - totalt '[km'], (tur och retur, alla transporter)]]*InputA1A3[[#This Row],[(Bränsle-) Förbrukning per km]]*InputA1A3[[#This Row],[*EF (A4) '[kg CO₂-ekv.']]]),"Sen då")),0) ->  | CF25: =SUM(KontrollTabell[[#This Row],[A4 - Resultat alt 1 '[kg']]:[A4 - Alt 2 - beräkning utsläpp]]) -> 0 | CG25: =IF(KontrollTabell[[#This Row],[Finns anläggningsdel-namn.]]=FALSE,"",IF(ISBLANK(InputA1A3[[#This Row],[EPD - EF A4]]),FALSE,TRUE)) ->  | CH25: =IFERROR(IF(KontrollTabell[[#This Row],[True/False A5]]=FALSE(),"Enheter",IF(ISBLANK(InputA1A3[[#This Row],[Omräkningsfaktor (A5.2) (ange värde), (vid behov)]]),InputA1A3[[#This Row],[Mängd (A5.2)]]*InputA1A3[[#This Row],[*EF (A5.2) '[kg CO₂-ekv.']]],InputA1A3[[#This Row],[Mängd (A5.2)]]*InputA1A3[[#This Row],[*EF (A5.2) '[kg CO₂-ekv.']]]*InputA1A3[[#This Row],[Omräkningsfaktor (A5.2) (ange värde), (vid behov)]])),0) -> 0 | CI25: =IF(InputA1A3[[#This Row],[*DU/FU (EF A5.2)]]="","",IF(InputA1A3[[#This Row],[Enhet för mängd (A5.2)]]="","Värde Behövs",IF(OR(InputA1A3[[#This Row],[Enhet för mängd (A5.2)]]=InputA1A3[[#This Row],[*DU/FU (EF A5.2)]],AND(InputA1A3[[#This Row],[Enhet för mängd (A5.2)]]<>InputA1A3[[#This Row],[*DU/FU (EF A5.2)]],ISNUMBER(InputA1A3[[#This Row],[Omräkningsfaktor (A5.2) (ange värde), (vid behov)]]))),TRUE,FALSE))) ->  | CJ25: =IF(OR(KontrollTabell[[#This Row],[Finns anläggningsdel-namn.]]=FALSE,KontrollTabell[[#This Row],[True/False A5]]="Värde Behövs"),"",IF(InputA1A3[[#This Row],[Enhet för mängd (A5.2)]] = InputA1A3[[#This Row],[*DU/FU (EF A5.2)]], TRUE, FALSE)) ->  | CK25: =IF(KontrollTabell[[#This Row],[Finns anläggningsdel-namn.]]=FALSE,"",IF(OR(ISBLANK(InputA1A3[[#This Row],[Kategori (egen kategorisering)]])=FALSE,ISBLANK(InputA1A3[[#This Row],[Anläggningsdel ]]))=FALSE,TRUE,FALSE)) ->  | CL25: =IF(ISBLANK(InputA1A3[[#This Row],[Anläggningsdel ]]),"",IF(KontrollTabell[[#This Row],[TRUE/FALSE om kategori saknas.]] =FALSE,InputA1A3[[#This Row],[Kategori (egen kategorisering)]],"Kategori saknas")) -> 
J26: =IF(ISBLANK(InputA1A3[[#This Row],[Anläggningsdel ]]),"",IF(OR(KontrollTabell[[#This Row],[True/False A1A3 Enhet]]=TRUE,KontrollTabell[[#This Row],[True/False A1A3 Enhet]]="Värde Behövs",KontrollTabell[[#This Row],[True/False A1A3 Enhet]]=""), "", InputA1A3[[#This Row],[FU/DU (EF A1A3)]] & "/" & InputA1A3[[#This Row],[Enhet Mängd (A1A3)]])) ->  | O26: =IF(ISBLANK(InputA1A3[[#This Row],[EPD - EF A4]]),"",InputA1A3[[#This Row],[FU/DU (EF A1A3)]]) ->  | T26: =IFERROR(INDEX(TabellEFDrivmedel[],MATCH(InputA1A3[[#This Row],[Drivmedel (A4) (endast förval ur lista)]],TabellEFDrivmedel[Drivmedel],0),4),"") ->  | X26: =IF(InputA1A3[[#This Row],[*DU/FU (EF A4) för valt drivmedel (schablon)]]="","",IF(OR(InputA1A3[[#This Row],[*DU/FU (EF A4) för valt drivmedel (schablon)]]=InputA1A3[[#This Row],[Enhet (bränsleförbrukning per km)]],KontrollTabell[[#This Row],[True/False A4 - Alt 2]]="Värde Behövs"),"",InputA1A3[[#This Row],[Enhet (bränsleförbrukning per km)]]& "/" & InputA1A3[[#This Row],[*DU/FU (EF A4) för valt drivmedel (schablon)]])) ->  | AF26: =IFERROR(INDEX(TabellEFDrivmedel[],MATCH(InputA1A3[[#This Row],[Drivmedel (A5.2)]],TabellEFDrivmedel[Drivmedel],0),2),"") ->  | AG26: =IFERROR(INDEX(TabellEFDrivmedel[],MATCH(InputA1A3[[#This Row],[Drivmedel (A5.2)]],TabellEFDrivmedel[Drivmedel],0),4),"") ->  | AH26: =IF(OR(KontrollTabell[[#This Row],[True/False A5 Enhet]]=TRUE,KontrollTabell[[#This Row],[True/False A5 Enhet]]=""), "", InputA1A3[[#This Row],[*DU/FU (EF A5.2)]] & "/" & InputA1A3[[#This Row],[Enhet för mängd (A5.2)]]) ->  | BW26: =IF(ISBLANK(InputA1A3[[#This Row],[Anläggningsdel ]]),FALSE,TRUE) -> FALSE | BX26: =IF(ISBLANK(InputA1A3[[#This Row],[Anläggningsdel ]]),"",IF(ISBLANK(InputA1A3[[#This Row],[Enhet Mängd (A1A3)]]),"",IF(ISBLANK(InputA1A3[[#This Row],[FU/DU (EF A1A3)]]),"Värde Behövs",IF(InputA1A3[[#This Row],[Enhet Mängd (A1A3)]] = InputA1A3[[#This Row],[FU/DU (EF A1A3)]], TRUE, FALSE)))) ->  | BY26: =IF(KontrollTabell[[#This Row],[Finns anläggningsdel-namn.]]=FALSE,"",(IF(KontrollTabell[[#This Row],[True/False A1A3 Enhet]]=TRUE,TRUE,IF(OR(KontrollTabell[[#This Row],[True/False A1A3 Enhet]]="Värde Behövs",(KontrollTabell[[#This Row],[True/False A1A3 Enhet]]="")),"",IF(ISBLANK(InputA1A3[[#This Row],[Omräkning till FU/DU (Skriv in värde, ej formel)]]),FALSE,TRUE))))) ->  | BZ26: =IF(KontrollTabell[[#This Row],[Finns anläggningsdel-namn.]]=FALSE,,IF(KontrollTabell[[#This Row],[True/False A1A3 Enhet]]=TRUE,InputA1A3[[#This Row],[Mängd A1A3]]*InputA1A3[[#This Row],[EF A1A3 '[kg CO₂-ekv.']]],IF(KontrollTabell[[#This Row],[True/False A1A3 om A1A3 kan beräknas]]=TRUE,InputA1A3[[#This Row],[Mängd A1A3]]*InputA1A3[[#This Row],[EF A1A3 '[kg CO₂-ekv.']]]*InputA1A3[[#This Row],[Omräkning till FU/DU (Skriv in värde, ej formel)]],0))) -> 0 | CA26: =IF(ISBLANK(InputA1A3[[#This Row],[Anläggningsdel ]]),"",IF(ISBLANK(InputA1A3[[#This Row],[EPD - EF A4]]),FALSE,TRUE)) ->  | CB26: =IF(InputA1A3[[#This Row],[*DU/FU (EF A4) för valt drivmedel (schablon)]]="","",IF(InputA1A3[[#This Row],[Enhet (bränsleförbrukning per km)]]="","Värde Behövs",IF(OR(InputA1A3[[#This Row],[Enhet (bränsleförbrukning per km)]]=InputA1A3[[#This Row],[*DU/FU (EF A4) för valt drivmedel (schablon)]],AND(InputA1A3[[#This Row],[Enhet (bränsleförbrukning per km)]]<>InputA1A3[[#This Row],[*DU/FU (EF A4) för valt drivmedel (schablon)]],ISNUMBER(InputA1A3[[#This Row],[Omräkningsfaktor (A4), (vid behov, värde eller formel)]]))),TRUE(),FALSE()))) ->  | CC26: =IF(KontrollTabell[[#This Row],[Finns anläggningsdel-namn.]]=FALSE,"",(IF(InputA1A3[[#This Row],[Enhet (bränsleförbrukning per km)]] =InputA1A3[[#This Row],[*DU/FU (EF A4) för valt drivmedel (schablon)]],TRUE,IF(KontrollTabell[[#This Row],[True/False A4 - Alt 2]]="Värde Behövs","",IF(ISBLANK(InputA1A3[[#This Row],[Omräkningsfaktor (A4), (vid behov, värde eller formel)]]),FALSE,TRUE))))) ->  | CD26: =IF(ISBLANK(InputA1A3[[#This Row],[EPD - EF A4]]),"",IF(ISBLANK(InputA1A3[[#This Row],[Omräkning till FU/DU (Skriv in värde, ej formel)]]),InputA1A3[[#This Row],[EPD - EF A4]]*InputA1A3[[#This Row],[Mängd A1A3]],InputA1A3[[#This Row],[Mängd A1A3]]*InputA1A3[[#This Row],[Omräkning till FU/DU (Skriv in värde, ej formel)]]*InputA1A3[[#This Row],[EPD - EF A4]])) ->  | CE26: =IFERROR(IF(KontrollTabell[[#This Row],[True/False A4 - Alt 2]]="","",IF(KontrollTabell[[#This Row],[True/False A4 Enhet - Alt2]]=TRUE, IF(ISNUMBER(InputA1A3[[#This Row],[Omräkningsfaktor (A4), (vid behov, värde eller formel)]]),InputA1A3[[#This Row],[Sträcka - totalt '[km'], (tur och retur, alla transporter)]]*InputA1A3[[#This Row],[(Bränsle-) Förbrukning per km]]/InputA1A3[[#This Row],[Omräkningsfaktor (A4), (vid behov, värde eller formel)]]*InputA1A3[[#This Row],[*EF (A4) '[kg CO₂-ekv.']]], InputA1A3[[#This Row],[Sträcka - totalt '[km'], (tur och retur, alla transporter)]]*InputA1A3[[#This Row],[(Bränsle-) Förbrukning per km]]*InputA1A3[[#This Row],[*EF (A4) '[kg CO₂-ekv.']]]),"Sen då")),0) ->  | CF26: =SUM(KontrollTabell[[#This Row],[A4 - Resultat alt 1 '[kg']]:[A4 - Alt 2 - beräkning utsläpp]]) -> 0 | CG26: =IF(KontrollTabell[[#This Row],[Finns anläggningsdel-namn.]]=FALSE,"",IF(ISBLANK(InputA1A3[[#This Row],[EPD - EF A4]]),FALSE,TRUE)) ->  | CH26: =IFERROR(IF(KontrollTabell[[#This Row],[True/False A5]]=FALSE(),"Enheter",IF(ISBLANK(InputA1A3[[#This Row],[Omräkningsfaktor (A5.2) (ange värde), (vid behov)]]),InputA1A3[[#This Row],[Mängd (A5.2)]]*InputA1A3[[#This Row],[*EF (A5.2) '[kg CO₂-ekv.']]],InputA1A3[[#This Row],[Mängd (A5.2)]]*InputA1A3[[#This Row],[*EF (A5.2) '[kg CO₂-ekv.']]]*InputA1A3[[#This Row],[Omräkningsfaktor (A5.2) (ange värde), (vid behov)]])),0) -> 0 | CI26: =IF(InputA1A3[[#This Row],[*DU/FU (EF A5.2)]]="","",IF(InputA1A3[[#This Row],[Enhet för mängd (A5.2)]]="","Värde Behövs",IF(OR(InputA1A3[[#This Row],[Enhet för mängd (A5.2)]]=InputA1A3[[#This Row],[*DU/FU (EF A5.2)]],AND(InputA1A3[[#This Row],[Enhet för mängd (A5.2)]]<>InputA1A3[[#This Row],[*DU/FU (EF A5.2)]],ISNUMBER(InputA1A3[[#This Row],[Omräkningsfaktor (A5.2) (ange värde), (vid behov)]]))),TRUE,FALSE))) ->  | CJ26: =IF(OR(KontrollTabell[[#This Row],[Finns anläggningsdel-namn.]]=FALSE,KontrollTabell[[#This Row],[True/False A5]]="Värde Behövs"),"",IF(InputA1A3[[#This Row],[Enhet för mängd (A5.2)]] = InputA1A3[[#This Row],[*DU/FU (EF A5.2)]], TRUE, FALSE)) ->  | CK26: =IF(KontrollTabell[[#This Row],[Finns anläggningsdel-namn.]]=FALSE,"",IF(OR(ISBLANK(InputA1A3[[#This Row],[Kategori (egen kategorisering)]])=FALSE,ISBLANK(InputA1A3[[#This Row],[Anläggningsdel ]]))=FALSE,TRUE,FALSE)) ->  | CL26: =IF(ISBLANK(InputA1A3[[#This Row],[Anläggningsdel ]]),"",IF(KontrollTabell[[#This Row],[TRUE/FALSE om kategori saknas.]] =FALSE,InputA1A3[[#This Row],[Kategori (egen kategorisering)]],"Kategori saknas")) -> 
J27: =IF(ISBLANK(InputA1A3[[#This Row],[Anläggningsdel ]]),"",IF(OR(KontrollTabell[[#This Row],[True/False A1A3 Enhet]]=TRUE,KontrollTabell[[#This Row],[True/False A1A3 Enhet]]="Värde Behövs",KontrollTabell[[#This Row],[True/False A1A3 Enhet]]=""), "", InputA1A3[[#This Row],[FU/DU (EF A1A3)]] & "/" & InputA1A3[[#This Row],[Enhet Mängd (A1A3)]])) ->  | O27: =IF(ISBLANK(InputA1A3[[#This Row],[EPD - EF A4]]),"",InputA1A3[[#This Row],[FU/DU (EF A1A3)]]) ->  | T27: =IFERROR(INDEX(TabellEFDrivmedel[],MATCH(InputA1A3[[#This Row],[Drivmedel (A4) (endast förval ur lista)]],TabellEFDrivmedel[Drivmedel],0),4),"") ->  | X27: =IF(InputA1A3[[#This Row],[*DU/FU (EF A4) för valt drivmedel (schablon)]]="","",IF(OR(InputA1A3[[#This Row],[*DU/FU (EF A4) för valt drivmedel (schablon)]]=InputA1A3[[#This Row],[Enhet (bränsleförbrukning per km)]],KontrollTabell[[#This Row],[True/False A4 - Alt 2]]="Värde Behövs"),"",InputA1A3[[#This Row],[Enhet (bränsleförbrukning per km)]]& "/" & InputA1A3[[#This Row],[*DU/FU (EF A4) för valt drivmedel (schablon)]])) ->  | AF27: =IFERROR(INDEX(TabellEFDrivmedel[],MATCH(InputA1A3[[#This Row],[Drivmedel (A5.2)]],TabellEFDrivmedel[Drivmedel],0),2),"") ->  | AG27: =IFERROR(INDEX(TabellEFDrivmedel[],MATCH(InputA1A3[[#This Row],[Drivmedel (A5.2)]],TabellEFDrivmedel[Drivmedel],0),4),"") ->  | AH27: =IF(OR(KontrollTabell[[#This Row],[True/False A5 Enhet]]=TRUE,KontrollTabell[[#This Row],[True/False A5 Enhet]]=""), "", InputA1A3[[#This Row],[*DU/FU (EF A5.2)]] & "/" & InputA1A3[[#This Row],[Enhet för mängd (A5.2)]]) ->  | BW27: =IF(ISBLANK(InputA1A3[[#This Row],[Anläggningsdel ]]),FALSE,TRUE) -> FALSE | BX27: =IF(ISBLANK(InputA1A3[[#This Row],[Anläggningsdel ]]),"",IF(ISBLANK(InputA1A3[[#This Row],[Enhet Mängd (A1A3)]]),"",IF(ISBLANK(InputA1A3[[#This Row],[FU/DU (EF A1A3)]]),"Värde Behövs",IF(InputA1A3[[#This Row],[Enhet Mängd (A1A3)]] = InputA1A3[[#This Row],[FU/DU (EF A1A3)]], TRUE, FALSE)))) ->  | BY27: =IF(KontrollTabell[[#This Row],[Finns anläggningsdel-namn.]]=FALSE,"",(IF(KontrollTabell[[#This Row],[True/False A1A3 Enhet]]=TRUE,TRUE,IF(OR(KontrollTabell[[#This Row],[True/False A1A3 Enhet]]="Värde Behövs",(KontrollTabell[[#This Row],[True/False A1A3 Enhet]]="")),"",IF(ISBLANK(InputA1A3[[#This Row],[Omräkning till FU/DU (Skriv in värde, ej formel)]]),FALSE,TRUE))))) ->  | BZ27: =IF(KontrollTabell[[#This Row],[Finns anläggningsdel-namn.]]=FALSE,,IF(KontrollTabell[[#This Row],[True/False A1A3 Enhet]]=TRUE,InputA1A3[[#This Row],[Mängd A1A3]]*InputA1A3[[#This Row],[EF A1A3 '[kg CO₂-ekv.']]],IF(KontrollTabell[[#This Row],[True/False A1A3 om A1A3 kan beräknas]]=TRUE,InputA1A3[[#This Row],[Mängd A1A3]]*InputA1A3[[#This Row],[EF A1A3 '[kg CO₂-ekv.']]]*InputA1A3[[#This Row],[Omräkning till FU/DU (Skriv in värde, ej formel)]],0))) -> 0 | CA27: =IF(ISBLANK(InputA1A3[[#This Row],[Anläggningsdel ]]),"",IF(ISBLANK(InputA1A3[[#This Row],[EPD - EF A4]]),FALSE,TRUE)) ->  | CB27: =IF(InputA1A3[[#This Row],[*DU/FU (EF A4) för valt drivmedel (schablon)]]="","",IF(InputA1A3[[#This Row],[Enhet (bränsleförbrukning per km)]]="","Värde Behövs",IF(OR(InputA1A3[[#This Row],[Enhet (bränsleförbrukning per km)]]=InputA1A3[[#This Row],[*DU/FU (EF A4) för valt drivmedel (schablon)]],AND(InputA1A3[[#This Row],[Enhet (bränsleförbrukning per km)]]<>InputA1A3[[#This Row],[*DU/FU (EF A4) för valt drivmedel (schablon)]],ISNUMBER(InputA1A3[[#This Row],[Omräkningsfaktor (A4), (vid behov, värde eller formel)]]))),TRUE(),FALSE()))) ->  | CC27: =IF(KontrollTabell[[#This Row],[Finns anläggningsdel-namn.]]=FALSE,"",(IF(InputA1A3[[#This Row],[Enhet (bränsleförbrukning per km)]] =InputA1A3[[#This Row],[*DU/FU (EF A4) för valt drivmedel (schablon)]],TRUE,IF(KontrollTabell[[#This Row],[True/False A4 - Alt 2]]="Värde Behövs","",IF(ISBLANK(InputA1A3[[#This Row],[Omräkningsfaktor (A4), (vid behov, värde eller formel)]]),FALSE,TRUE))))) ->  | CD27: =IF(ISBLANK(InputA1A3[[#This Row],[EPD - EF A4]]),"",IF(ISBLANK(InputA1A3[[#This Row],[Omräkning till FU/DU (Skriv in värde, ej formel)]]),InputA1A3[[#This Row],[EPD - EF A4]]*InputA1A3[[#This Row],[Mängd A1A3]],InputA1A3[[#This Row],[Mängd A1A3]]*InputA1A3[[#This Row],[Omräkning till FU/DU (Skriv in värde, ej formel)]]*InputA1A3[[#This Row],[EPD - EF A4]])) ->  | CE27: =IFERROR(IF(KontrollTabell[[#This Row],[True/False A4 - Alt 2]]="","",IF(KontrollTabell[[#This Row],[True/False A4 Enhet - Alt2]]=TRUE, IF(ISNUMBER(InputA1A3[[#This Row],[Omräkningsfaktor (A4), (vid behov, värde eller formel)]]),InputA1A3[[#This Row],[Sträcka - totalt '[km'], (tur och retur, alla transporter)]]*InputA1A3[[#This Row],[(Bränsle-) Förbrukning per km]]/InputA1A3[[#This Row],[Omräkningsfaktor (A4), (vid behov, värde eller formel)]]*InputA1A3[[#This Row],[*EF (A4) '[kg CO₂-ekv.']]], InputA1A3[[#This Row],[Sträcka - totalt '[km'], (tur och retur, alla transporter)]]*InputA1A3[[#This Row],[(Bränsle-) Förbrukning per km]]*InputA1A3[[#This Row],[*EF (A4) '[kg CO₂-ekv.']]]),"Sen då")),0) ->  | CF27: =SUM(KontrollTabell[[#This Row],[A4 - Resultat alt 1 '[kg']]:[A4 - Alt 2 - beräkning utsläpp]]) -> 0 | CG27: =IF(KontrollTabell[[#This Row],[Finns anläggningsdel-namn.]]=FALSE,"",IF(ISBLANK(InputA1A3[[#This Row],[EPD - EF A4]]),FALSE,TRUE)) ->  | CH27: =IFERROR(IF(KontrollTabell[[#This Row],[True/False A5]]=FALSE(),"Enheter",IF(ISBLANK(InputA1A3[[#This Row],[Omräkningsfaktor (A5.2) (ange värde), (vid behov)]]),InputA1A3[[#This Row],[Mängd (A5.2)]]*InputA1A3[[#This Row],[*EF (A5.2) '[kg CO₂-ekv.']]],InputA1A3[[#This Row],[Mängd (A5.2)]]*InputA1A3[[#This Row],[*EF (A5.2) '[kg CO₂-ekv.']]]*InputA1A3[[#This Row],[Omräkningsfaktor (A5.2) (ange värde), (vid behov)]])),0) -> 0 | CI27: =IF(InputA1A3[[#This Row],[*DU/FU (EF A5.2)]]="","",IF(InputA1A3[[#This Row],[Enhet för mängd (A5.2)]]="","Värde Behövs",IF(OR(InputA1A3[[#This Row],[Enhet för mängd (A5.2)]]=InputA1A3[[#This Row],[*DU/FU (EF A5.2)]],AND(InputA1A3[[#This Row],[Enhet för mängd (A5.2)]]<>InputA1A3[[#This Row],[*DU/FU (EF A5.2)]],ISNUMBER(InputA1A3[[#This Row],[Omräkningsfaktor (A5.2) (ange värde), (vid behov)]]))),TRUE,FALSE))) ->  | CJ27: =IF(OR(KontrollTabell[[#This Row],[Finns anläggningsdel-namn.]]=FALSE,KontrollTabell[[#This Row],[True/False A5]]="Värde Behövs"),"",IF(InputA1A3[[#This Row],[Enhet för mängd (A5.2)]] = InputA1A3[[#This Row],[*DU/FU (EF A5.2)]], TRUE, FALSE)) ->  | CK27: =IF(KontrollTabell[[#This Row],[Finns anläggningsdel-namn.]]=FALSE,"",IF(OR(ISBLANK(InputA1A3[[#This Row],[Kategori (egen kategorisering)]])=FALSE,ISBLANK(InputA1A3[[#This Row],[Anläggningsdel ]]))=FALSE,TRUE,FALSE)) ->  | CL27: =IF(ISBLANK(InputA1A3[[#This Row],[Anläggningsdel ]]),"",IF(KontrollTabell[[#This Row],[TRUE/FALSE om kategori saknas.]] =FALSE,InputA1A3[[#This Row],[Kategori (egen kategorisering)]],"Kategori saknas")) -> 
J28: =IF(ISBLANK(InputA1A3[[#This Row],[Anläggningsdel ]]),"",IF(OR(KontrollTabell[[#This Row],[True/False A1A3 Enhet]]=TRUE,KontrollTabell[[#This Row],[True/False A1A3 Enhet]]="Värde Behövs",KontrollTabell[[#This Row],[True/False A1A3 Enhet]]=""), "", InputA1A3[[#This Row],[FU/DU (EF A1A3)]] & "/" & InputA1A3[[#This Row],[Enhet Mängd (A1A3)]])) ->  | O28: =IF(ISBLANK(InputA1A3[[#This Row],[EPD - EF A4]]),"",InputA1A3[[#This Row],[FU/DU (EF A1A3)]]) ->  | T28: =IFERROR(INDEX(TabellEFDrivmedel[],MATCH(InputA1A3[[#This Row],[Drivmedel (A4) (endast förval ur lista)]],TabellEFDrivmedel[Drivmedel],0),4),"") ->  | X28: =IF(InputA1A3[[#This Row],[*DU/FU (EF A4) för valt drivmedel (schablon)]]="","",IF(OR(InputA1A3[[#This Row],[*DU/FU (EF A4) för valt drivmedel (schablon)]]=InputA1A3[[#This Row],[Enhet (bränsleförbrukning per km)]],KontrollTabell[[#This Row],[True/False A4 - Alt 2]]="Värde Behövs"),"",InputA1A3[[#This Row],[Enhet (bränsleförbrukning per km)]]& "/" & InputA1A3[[#This Row],[*DU/FU (EF A4) för valt drivmedel (schablon)]])) ->  | AF28: =IFERROR(INDEX(TabellEFDrivmedel[],MATCH(InputA1A3[[#This Row],[Drivmedel (A5.2)]],TabellEFDrivmedel[Drivmedel],0),2),"") ->  | AG28: =IFERROR(INDEX(TabellEFDrivmedel[],MATCH(InputA1A3[[#This Row],[Drivmedel (A5.2)]],TabellEFDrivmedel[Drivmedel],0),4),"") ->  | AH28: =IF(OR(KontrollTabell[[#This Row],[True/False A5 Enhet]]=TRUE,KontrollTabell[[#This Row],[True/False A5 Enhet]]=""), "", InputA1A3[[#This Row],[*DU/FU (EF A5.2)]] & "/" & InputA1A3[[#This Row],[Enhet för mängd (A5.2)]]) ->  | BW28: =IF(ISBLANK(InputA1A3[[#This Row],[Anläggningsdel ]]),FALSE,TRUE) -> FALSE | BX28: =IF(ISBLANK(InputA1A3[[#This Row],[Anläggningsdel ]]),"",IF(ISBLANK(InputA1A3[[#This Row],[Enhet Mängd (A1A3)]]),"",IF(ISBLANK(InputA1A3[[#This Row],[FU/DU (EF A1A3)]]),"Värde Behövs",IF(InputA1A3[[#This Row],[Enhet Mängd (A1A3)]] = InputA1A3[[#This Row],[FU/DU (EF A1A3)]], TRUE, FALSE)))) ->  | BY28: =IF(KontrollTabell[[#This Row],[Finns anläggningsdel-namn.]]=FALSE,"",(IF(KontrollTabell[[#This Row],[True/False A1A3 Enhet]]=TRUE,TRUE,IF(OR(KontrollTabell[[#This Row],[True/False A1A3 Enhet]]="Värde Behövs",(KontrollTabell[[#This Row],[True/False A1A3 Enhet]]="")),"",IF(ISBLANK(InputA1A3[[#This Row],[Omräkning till FU/DU (Skriv in värde, ej formel)]]),FALSE,TRUE))))) ->  | BZ28: =IF(KontrollTabell[[#This Row],[Finns anläggningsdel-namn.]]=FALSE,,IF(KontrollTabell[[#This Row],[True/False A1A3 Enhet]]=TRUE,InputA1A3[[#This Row],[Mängd A1A3]]*InputA1A3[[#This Row],[EF A1A3 '[kg CO₂-ekv.']]],IF(KontrollTabell[[#This Row],[True/False A1A3 om A1A3 kan beräknas]]=TRUE,InputA1A3[[#This Row],[Mängd A1A3]]*InputA1A3[[#This Row],[EF A1A3 '[kg CO₂-ekv.']]]*InputA1A3[[#This Row],[Omräkning till FU/DU (Skriv in värde, ej formel)]],0))) -> 0 | CA28: =IF(ISBLANK(InputA1A3[[#This Row],[Anläggningsdel ]]),"",IF(ISBLANK(InputA1A3[[#This Row],[EPD - EF A4]]),FALSE,TRUE)) ->  | CB28: =IF(InputA1A3[[#This Row],[*DU/FU (EF A4) för valt drivmedel (schablon)]]="","",IF(InputA1A3[[#This Row],[Enhet (bränsleförbrukning per km)]]="","Värde Behövs",IF(OR(InputA1A3[[#This Row],[Enhet (bränsleförbrukning per km)]]=InputA1A3[[#This Row],[*DU/FU (EF A4) för valt drivmedel (schablon)]],AND(InputA1A3[[#This Row],[Enhet (bränsleförbrukning per km)]]<>InputA1A3[[#This Row],[*DU/FU (EF A4) för valt drivmedel (schablon)]],ISNUMBER(InputA1A3[[#This Row],[Omräkningsfaktor (A4), (vid behov, värde eller formel)]]))),TRUE(),FALSE()))) ->  | CC28: =IF(KontrollTabell[[#This Row],[Finns anläggningsdel-namn.]]=FALSE,"",(IF(InputA1A3[[#This Row],[Enhet (bränsleförbrukning per km)]] =InputA1A3[[#This Row],[*DU/FU (EF A4) för valt drivmedel (schablon)]],TRUE,IF(KontrollTabell[[#This Row],[True/False A4 - Alt 2]]="Värde Behövs","",IF(ISBLANK(InputA1A3[[#This Row],[Omräkningsfaktor (A4), (vid behov, värde eller formel)]]),FALSE,TRUE))))) ->  | CD28: =IF(ISBLANK(InputA1A3[[#This Row],[EPD - EF A4]]),"",IF(ISBLANK(InputA1A3[[#This Row],[Omräkning till FU/DU (Skriv in värde, ej formel)]]),InputA1A3[[#This Row],[EPD - EF A4]]*InputA1A3[[#This Row],[Mängd A1A3]],InputA1A3[[#This Row],[Mängd A1A3]]*InputA1A3[[#This Row],[Omräkning till FU/DU (Skriv in värde, ej formel)]]*InputA1A3[[#This Row],[EPD - EF A4]])) ->  | CE28: =IFERROR(IF(KontrollTabell[[#This Row],[True/False A4 - Alt 2]]="","",IF(KontrollTabell[[#This Row],[True/False A4 Enhet - Alt2]]=TRUE, IF(ISNUMBER(InputA1A3[[#This Row],[Omräkningsfaktor (A4), (vid behov, värde eller formel)]]),InputA1A3[[#This Row],[Sträcka - totalt '[km'], (tur och retur, alla transporter)]]*InputA1A3[[#This Row],[(Bränsle-) Förbrukning per km]]/InputA1A3[[#This Row],[Omräkningsfaktor (A4), (vid behov, värde eller formel)]]*InputA1A3[[#This Row],[*EF (A4) '[kg CO₂-ekv.']]], InputA1A3[[#This Row],[Sträcka - totalt '[km'], (tur och retur, alla transporter)]]*InputA1A3[[#This Row],[(Bränsle-) Förbrukning per km]]*InputA1A3[[#This Row],[*EF (A4) '[kg CO₂-ekv.']]]),"Sen då")),0) ->  | CF28: =SUM(KontrollTabell[[#This Row],[A4 - Resultat alt 1 '[kg']]:[A4 - Alt 2 - beräkning utsläpp]]) -> 0 | CG28: =IF(KontrollTabell[[#This Row],[Finns anläggningsdel-namn.]]=FALSE,"",IF(ISBLANK(InputA1A3[[#This Row],[EPD - EF A4]]),FALSE,TRUE)) ->  | CH28: =IFERROR(IF(KontrollTabell[[#This Row],[True/False A5]]=FALSE(),"Enheter",IF(ISBLANK(InputA1A3[[#This Row],[Omräkningsfaktor (A5.2) (ange värde), (vid behov)]]),InputA1A3[[#This Row],[Mängd (A5.2)]]*InputA1A3[[#This Row],[*EF (A5.2) '[kg CO₂-ekv.']]],InputA1A3[[#This Row],[Mängd (A5.2)]]*InputA1A3[[#This Row],[*EF (A5.2) '[kg CO₂-ekv.']]]*InputA1A3[[#This Row],[Omräkningsfaktor (A5.2) (ange värde), (vid behov)]])),0) -> 0 | CI28: =IF(InputA1A3[[#This Row],[*DU/FU (EF A5.2)]]="","",IF(InputA1A3[[#This Row],[Enhet för mängd (A5.2)]]="","Värde Behövs",IF(OR(InputA1A3[[#This Row],[Enhet för mängd (A5.2)]]=InputA1A3[[#This Row],[*DU/FU (EF A5.2)]],AND(InputA1A3[[#This Row],[Enhet för mängd (A5.2)]]<>InputA1A3[[#This Row],[*DU/FU (EF A5.2)]],ISNUMBER(InputA1A3[[#This Row],[Omräkningsfaktor (A5.2) (ange värde), (vid behov)]]))),TRUE,FALSE))) ->  | CJ28: =IF(OR(KontrollTabell[[#This Row],[Finns anläggningsdel-namn.]]=FALSE,KontrollTabell[[#This Row],[True/False A5]]="Värde Behövs"),"",IF(InputA1A3[[#This Row],[Enhet för mängd (A5.2)]] = InputA1A3[[#This Row],[*DU/FU (EF A5.2)]], TRUE, FALSE)) ->  | CK28: =IF(KontrollTabell[[#This Row],[Finns anläggningsdel-namn.]]=FALSE,"",IF(OR(ISBLANK(InputA1A3[[#This Row],[Kategori (egen kategorisering)]])=FALSE,ISBLANK(InputA1A3[[#This Row],[Anläggningsdel ]]))=FALSE,TRUE,FALSE)) ->  | CL28: =IF(ISBLANK(InputA1A3[[#This Row],[Anläggningsdel ]]),"",IF(KontrollTabell[[#This Row],[TRUE/FALSE om kategori saknas.]] =FALSE,InputA1A3[[#This Row],[Kategori (egen kategorisering)]],"Kategori saknas")) -> 
J29: =IF(ISBLANK(InputA1A3[[#This Row],[Anläggningsdel ]]),"",IF(OR(KontrollTabell[[#This Row],[True/False A1A3 Enhet]]=TRUE,KontrollTabell[[#This Row],[True/False A1A3 Enhet]]="Värde Behövs",KontrollTabell[[#This Row],[True/False A1A3 Enhet]]=""), "", InputA1A3[[#This Row],[FU/DU (EF A1A3)]] & "/" & InputA1A3[[#This Row],[Enhet Mängd (A1A3)]])) ->  | O29: =IF(ISBLANK(InputA1A3[[#This Row],[EPD - EF A4]]),"",InputA1A3[[#This Row],[FU/DU (EF A1A3)]]) ->  | T29: =IFERROR(INDEX(TabellEFDrivmedel[],MATCH(InputA1A3[[#This Row],[Drivmedel (A4) (endast förval ur lista)]],TabellEFDrivmedel[Drivmedel],0),4),"") ->  | X29: =IF(InputA1A3[[#This Row],[*DU/FU (EF A4) för valt drivmedel (schablon)]]="","",IF(OR(InputA1A3[[#This Row],[*DU/FU (EF A4) för valt drivmedel (schablon)]]=InputA1A3[[#This Row],[Enhet (bränsleförbrukning per km)]],KontrollTabell[[#This Row],[True/False A4 - Alt 2]]="Värde Behövs"),"",InputA1A3[[#This Row],[Enhet (bränsleförbrukning per km)]]& "/" & InputA1A3[[#This Row],[*DU/FU (EF A4) för valt drivmedel (schablon)]])) ->  | AF29: =IFERROR(INDEX(TabellEFDrivmedel[],MATCH(InputA1A3[[#This Row],[Drivmedel (A5.2)]],TabellEFDrivmedel[Drivmedel],0),2),"") ->  | AG29: =IFERROR(INDEX(TabellEFDrivmedel[],MATCH(InputA1A3[[#This Row],[Drivmedel (A5.2)]],TabellEFDrivmedel[Drivmedel],0),4),"") ->  | AH29: =IF(OR(KontrollTabell[[#This Row],[True/False A5 Enhet]]=TRUE,KontrollTabell[[#This Row],[True/False A5 Enhet]]=""), "", InputA1A3[[#This Row],[*DU/FU (EF A5.2)]] & "/" & InputA1A3[[#This Row],[Enhet för mängd (A5.2)]]) ->  | BW29: =IF(ISBLANK(InputA1A3[[#This Row],[Anläggningsdel ]]),FALSE,TRUE) -> FALSE | BX29: =IF(ISBLANK(InputA1A3[[#This Row],[Anläggningsdel ]]),"",IF(ISBLANK(InputA1A3[[#This Row],[Enhet Mängd (A1A3)]]),"",IF(ISBLANK(InputA1A3[[#This Row],[FU/DU (EF A1A3)]]),"Värde Behövs",IF(InputA1A3[[#This Row],[Enhet Mängd (A1A3)]] = InputA1A3[[#This Row],[FU/DU (EF A1A3)]], TRUE, FALSE)))) ->  | BY29: =IF(KontrollTabell[[#This Row],[Finns anläggningsdel-namn.]]=FALSE,"",(IF(KontrollTabell[[#This Row],[True/False A1A3 Enhet]]=TRUE,TRUE,IF(OR(KontrollTabell[[#This Row],[True/False A1A3 Enhet]]="Värde Behövs",(KontrollTabell[[#This Row],[True/False A1A3 Enhet]]="")),"",IF(ISBLANK(InputA1A3[[#This Row],[Omräkning till FU/DU (Skriv in värde, ej formel)]]),FALSE,TRUE))))) ->  | BZ29: =IF(KontrollTabell[[#This Row],[Finns anläggningsdel-namn.]]=FALSE,,IF(KontrollTabell[[#This Row],[True/False A1A3 Enhet]]=TRUE,InputA1A3[[#This Row],[Mängd A1A3]]*InputA1A3[[#This Row],[EF A1A3 '[kg CO₂-ekv.']]],IF(KontrollTabell[[#This Row],[True/False A1A3 om A1A3 kan beräknas]]=TRUE,InputA1A3[[#This Row],[Mängd A1A3]]*InputA1A3[[#This Row],[EF A1A3 '[kg CO₂-ekv.']]]*InputA1A3[[#This Row],[Omräkning till FU/DU (Skriv in värde, ej formel)]],0))) -> 0 | CA29: =IF(ISBLANK(InputA1A3[[#This Row],[Anläggningsdel ]]),"",IF(ISBLANK(InputA1A3[[#This Row],[EPD - EF A4]]),FALSE,TRUE)) ->  | CB29: =IF(InputA1A3[[#This Row],[*DU/FU (EF A4) för valt drivmedel (schablon)]]="","",IF(InputA1A3[[#This Row],[Enhet (bränsleförbrukning per km)]]="","Värde Behövs",IF(OR(InputA1A3[[#This Row],[Enhet (bränsleförbrukning per km)]]=InputA1A3[[#This Row],[*DU/FU (EF A4) för valt drivmedel (schablon)]],AND(InputA1A3[[#This Row],[Enhet (bränsleförbrukning per km)]]<>InputA1A3[[#This Row],[*DU/FU (EF A4) för valt drivmedel (schablon)]],ISNUMBER(InputA1A3[[#This Row],[Omräkningsfaktor (A4), (vid behov, värde eller formel)]]))),TRUE(),FALSE()))) ->  | CC29: =IF(KontrollTabell[[#This Row],[Finns anläggningsdel-namn.]]=FALSE,"",(IF(InputA1A3[[#This Row],[Enhet (bränsleförbrukning per km)]] =InputA1A3[[#This Row],[*DU/FU (EF A4) för valt drivmedel (schablon)]],TRUE,IF(KontrollTabell[[#This Row],[True/False A4 - Alt 2]]="Värde Behövs","",IF(ISBLANK(InputA1A3[[#This Row],[Omräkningsfaktor (A4), (vid behov, värde eller formel)]]),FALSE,TRUE))))) ->  | CD29: =IF(ISBLANK(InputA1A3[[#This Row],[EPD - EF A4]]),"",IF(ISBLANK(InputA1A3[[#This Row],[Omräkning till FU/DU (Skriv in värde, ej formel)]]),InputA1A3[[#This Row],[EPD - EF A4]]*InputA1A3[[#This Row],[Mängd A1A3]],InputA1A3[[#This Row],[Mängd A1A3]]*InputA1A3[[#This Row],[Omräkning till FU/DU (Skriv in värde, ej formel)]]*InputA1A3[[#This Row],[EPD - EF A4]])) ->  | CE29: =IFERROR(IF(KontrollTabell[[#This Row],[True/False A4 - Alt 2]]="","",IF(KontrollTabell[[#This Row],[True/False A4 Enhet - Alt2]]=TRUE, IF(ISNUMBER(InputA1A3[[#This Row],[Omräkningsfaktor (A4), (vid behov, värde eller formel)]]),InputA1A3[[#This Row],[Sträcka - totalt '[km'], (tur och retur, alla transporter)]]*InputA1A3[[#This Row],[(Bränsle-) Förbrukning per km]]/InputA1A3[[#This Row],[Omräkningsfaktor (A4), (vid behov, värde eller formel)]]*InputA1A3[[#This Row],[*EF (A4) '[kg CO₂-ekv.']]], InputA1A3[[#This Row],[Sträcka - totalt '[km'], (tur och retur, alla transporter)]]*InputA1A3[[#This Row],[(Bränsle-) Förbrukning per km]]*InputA1A3[[#This Row],[*EF (A4) '[kg CO₂-ekv.']]]),"Sen då")),0) ->  | CF29: =SUM(KontrollTabell[[#This Row],[A4 - Resultat alt 1 '[kg']]:[A4 - Alt 2 - beräkning utsläpp]]) -> 0 | CG29: =IF(KontrollTabell[[#This Row],[Finns anläggningsdel-namn.]]=FALSE,"",IF(ISBLANK(InputA1A3[[#This Row],[EPD - EF A4]]),FALSE,TRUE)) ->  | CH29: =IFERROR(IF(KontrollTabell[[#This Row],[True/False A5]]=FALSE(),"Enheter",IF(ISBLANK(InputA1A3[[#This Row],[Omräkningsfaktor (A5.2) (ange värde), (vid behov)]]),InputA1A3[[#This Row],[Mängd (A5.2)]]*InputA1A3[[#This Row],[*EF (A5.2) '[kg CO₂-ekv.']]],InputA1A3[[#This Row],[Mängd (A5.2)]]*InputA1A3[[#This Row],[*EF (A5.2) '[kg CO₂-ekv.']]]*InputA1A3[[#This Row],[Omräkningsfaktor (A5.2) (ange värde), (vid behov)]])),0) -> 0 | CI29: =IF(InputA1A3[[#This Row],[*DU/FU (EF A5.2)]]="","",IF(InputA1A3[[#This Row],[Enhet för mängd (A5.2)]]="","Värde Behövs",IF(OR(InputA1A3[[#This Row],[Enhet för mängd (A5.2)]]=InputA1A3[[#This Row],[*DU/FU (EF A5.2)]],AND(InputA1A3[[#This Row],[Enhet för mängd (A5.2)]]<>InputA1A3[[#This Row],[*DU/FU (EF A5.2)]],ISNUMBER(InputA1A3[[#This Row],[Omräkningsfaktor (A5.2) (ange värde), (vid behov)]]))),TRUE,FALSE))) ->  | CJ29: =IF(OR(KontrollTabell[[#This Row],[Finns anläggningsdel-namn.]]=FALSE,KontrollTabell[[#This Row],[True/False A5]]="Värde Behövs"),"",IF(InputA1A3[[#This Row],[Enhet för mängd (A5.2)]] = InputA1A3[[#This Row],[*DU/FU (EF A5.2)]], TRUE, FALSE)) ->  | CK29: =IF(KontrollTabell[[#This Row],[Finns anläggningsdel-namn.]]=FALSE,"",IF(OR(ISBLANK(InputA1A3[[#This Row],[Kategori (egen kategorisering)]])=FALSE,ISBLANK(InputA1A3[[#This Row],[Anläggningsdel ]]))=FALSE,TRUE,FALSE)) ->  | CL29: =IF(ISBLANK(InputA1A3[[#This Row],[Anläggningsdel ]]),"",IF(KontrollTabell[[#This Row],[TRUE/FALSE om kategori saknas.]] =FALSE,InputA1A3[[#This Row],[Kategori (egen kategorisering)]],"Kategori saknas")) -> 
J30: =IF(ISBLANK(InputA1A3[[#This Row],[Anläggningsdel ]]),"",IF(OR(KontrollTabell[[#This Row],[True/False A1A3 Enhet]]=TRUE,KontrollTabell[[#This Row],[True/False A1A3 Enhet]]="Värde Behövs",KontrollTabell[[#This Row],[True/False A1A3 Enhet]]=""), "", InputA1A3[[#This Row],[FU/DU (EF A1A3)]] & "/" & InputA1A3[[#This Row],[Enhet Mängd (A1A3)]])) ->  | O30: =IF(ISBLANK(InputA1A3[[#This Row],[EPD - EF A4]]),"",InputA1A3[[#This Row],[FU/DU (EF A1A3)]]) ->  | T30: =IFERROR(INDEX(TabellEFDrivmedel[],MATCH(InputA1A3[[#This Row],[Drivmedel (A4) (endast förval ur lista)]],TabellEFDrivmedel[Drivmedel],0),4),"") ->  | X30: =IF(InputA1A3[[#This Row],[*DU/FU (EF A4) för valt drivmedel (schablon)]]="","",IF(OR(InputA1A3[[#This Row],[*DU/FU (EF A4) för valt drivmedel (schablon)]]=InputA1A3[[#This Row],[Enhet (bränsleförbrukning per km)]],KontrollTabell[[#This Row],[True/False A4 - Alt 2]]="Värde Behövs"),"",InputA1A3[[#This Row],[Enhet (bränsleförbrukning per km)]]& "/" & InputA1A3[[#This Row],[*DU/FU (EF A4) för valt drivmedel (schablon)]])) ->  | AF30: =IFERROR(INDEX(TabellEFDrivmedel[],MATCH(InputA1A3[[#This Row],[Drivmedel (A5.2)]],TabellEFDrivmedel[Drivmedel],0),2),"") ->  | AG30: =IFERROR(INDEX(TabellEFDrivmedel[],MATCH(InputA1A3[[#This Row],[Drivmedel (A5.2)]],TabellEFDrivmedel[Drivmedel],0),4),"") ->  | AH30: =IF(OR(KontrollTabell[[#This Row],[True/False A5 Enhet]]=TRUE,KontrollTabell[[#This Row],[True/False A5 Enhet]]=""), "", InputA1A3[[#This Row],[*DU/FU (EF A5.2)]] & "/" & InputA1A3[[#This Row],[Enhet för mängd (A5.2)]]) ->  | BW30: =IF(ISBLANK(InputA1A3[[#This Row],[Anläggningsdel ]]),FALSE,TRUE) -> FALSE | BX30: =IF(ISBLANK(InputA1A3[[#This Row],[Anläggningsdel ]]),"",IF(ISBLANK(InputA1A3[[#This Row],[Enhet Mängd (A1A3)]]),"",IF(ISBLANK(InputA1A3[[#This Row],[FU/DU (EF A1A3)]]),"Värde Behövs",IF(InputA1A3[[#This Row],[Enhet Mängd (A1A3)]] = InputA1A3[[#This Row],[FU/DU (EF A1A3)]], TRUE, FALSE)))) ->  | BY30: =IF(KontrollTabell[[#This Row],[Finns anläggningsdel-namn.]]=FALSE,"",(IF(KontrollTabell[[#This Row],[True/False A1A3 Enhet]]=TRUE,TRUE,IF(OR(KontrollTabell[[#This Row],[True/False A1A3 Enhet]]="Värde Behövs",(KontrollTabell[[#This Row],[True/False A1A3 Enhet]]="")),"",IF(ISBLANK(InputA1A3[[#This Row],[Omräkning till FU/DU (Skriv in värde, ej formel)]]),FALSE,TRUE))))) ->  | BZ30: =IF(KontrollTabell[[#This Row],[Finns anläggningsdel-namn.]]=FALSE,,IF(KontrollTabell[[#This Row],[True/False A1A3 Enhet]]=TRUE,InputA1A3[[#This Row],[Mängd A1A3]]*InputA1A3[[#This Row],[EF A1A3 '[kg CO₂-ekv.']]],IF(KontrollTabell[[#This Row],[True/False A1A3 om A1A3 kan beräknas]]=TRUE,InputA1A3[[#This Row],[Mängd A1A3]]*InputA1A3[[#This Row],[EF A1A3 '[kg CO₂-ekv.']]]*InputA1A3[[#This Row],[Omräkning till FU/DU (Skriv in värde, ej formel)]],0))) -> 0 | CA30: =IF(ISBLANK(InputA1A3[[#This Row],[Anläggningsdel ]]),"",IF(ISBLANK(InputA1A3[[#This Row],[EPD - EF A4]]),FALSE,TRUE)) ->  | CB30: =IF(InputA1A3[[#This Row],[*DU/FU (EF A4) för valt drivmedel (schablon)]]="","",IF(InputA1A3[[#This Row],[Enhet (bränsleförbrukning per km)]]="","Värde Behövs",IF(OR(InputA1A3[[#This Row],[Enhet (bränsleförbrukning per km)]]=InputA1A3[[#This Row],[*DU/FU (EF A4) för valt drivmedel (schablon)]],AND(InputA1A3[[#This Row],[Enhet (bränsleförbrukning per km)]]<>InputA1A3[[#This Row],[*DU/FU (EF A4) för valt drivmedel (schablon)]],ISNUMBER(InputA1A3[[#This Row],[Omräkningsfaktor (A4), (vid behov, värde eller formel)]]))),TRUE(),FALSE()))) ->  | CC30: =IF(KontrollTabell[[#This Row],[Finns anläggningsdel-namn.]]=FALSE,"",(IF(InputA1A3[[#This Row],[Enhet (bränsleförbrukning per km)]] =InputA1A3[[#This Row],[*DU/FU (EF A4) för valt drivmedel (schablon)]],TRUE,IF(KontrollTabell[[#This Row],[True/False A4 - Alt 2]]="Värde Behövs","",IF(ISBLANK(InputA1A3[[#This Row],[Omräkningsfaktor (A4), (vid behov, värde eller formel)]]),FALSE,TRUE))))) ->  | CD30: =IF(ISBLANK(InputA1A3[[#This Row],[EPD - EF A4]]),"",IF(ISBLANK(InputA1A3[[#This Row],[Omräkning till FU/DU (Skriv in värde, ej formel)]]),InputA1A3[[#This Row],[EPD - EF A4]]*InputA1A3[[#This Row],[Mängd A1A3]],InputA1A3[[#This Row],[Mängd A1A3]]*InputA1A3[[#This Row],[Omräkning till FU/DU (Skriv in värde, ej formel)]]*InputA1A3[[#This Row],[EPD - EF A4]])) ->  | CE30: =IFERROR(IF(KontrollTabell[[#This Row],[True/False A4 - Alt 2]]="","",IF(KontrollTabell[[#This Row],[True/False A4 Enhet - Alt2]]=TRUE, IF(ISNUMBER(InputA1A3[[#This Row],[Omräkningsfaktor (A4), (vid behov, värde eller formel)]]),InputA1A3[[#This Row],[Sträcka - totalt '[km'], (tur och retur, alla transporter)]]*InputA1A3[[#This Row],[(Bränsle-) Förbrukning per km]]/InputA1A3[[#This Row],[Omräkningsfaktor (A4), (vid behov, värde eller formel)]]*InputA1A3[[#This Row],[*EF (A4) '[kg CO₂-ekv.']]], InputA1A3[[#This Row],[Sträcka - totalt '[km'], (tur och retur, alla transporter)]]*InputA1A3[[#This Row],[(Bränsle-) Förbrukning per km]]*InputA1A3[[#This Row],[*EF (A4) '[kg CO₂-ekv.']]]),"Sen då")),0) ->  | CF30: =SUM(KontrollTabell[[#This Row],[A4 - Resultat alt 1 '[kg']]:[A4 - Alt 2 - beräkning utsläpp]]) -> 0 | CG30: =IF(KontrollTabell[[#This Row],[Finns anläggningsdel-namn.]]=FALSE,"",IF(ISBLANK(InputA1A3[[#This Row],[EPD - EF A4]]),FALSE,TRUE)) ->  | CH30: =IFERROR(IF(KontrollTabell[[#This Row],[True/False A5]]=FALSE(),"Enheter",IF(ISBLANK(InputA1A3[[#This Row],[Omräkningsfaktor (A5.2) (ange värde), (vid behov)]]),InputA1A3[[#This Row],[Mängd (A5.2)]]*InputA1A3[[#This Row],[*EF (A5.2) '[kg CO₂-ekv.']]],InputA1A3[[#This Row],[Mängd (A5.2)]]*InputA1A3[[#This Row],[*EF (A5.2) '[kg CO₂-ekv.']]]*InputA1A3[[#This Row],[Omräkningsfaktor (A5.2) (ange värde), (vid behov)]])),0) -> 0 | CI30: =IF(InputA1A3[[#This Row],[*DU/FU (EF A5.2)]]="","",IF(InputA1A3[[#This Row],[Enhet för mängd (A5.2)]]="","Värde Behövs",IF(OR(InputA1A3[[#This Row],[Enhet för mängd (A5.2)]]=InputA1A3[[#This Row],[*DU/FU (EF A5.2)]],AND(InputA1A3[[#This Row],[Enhet för mängd (A5.2)]]<>InputA1A3[[#This Row],[*DU/FU (EF A5.2)]],ISNUMBER(InputA1A3[[#This Row],[Omräkningsfaktor (A5.2) (ange värde), (vid behov)]]))),TRUE,FALSE))) ->  | CJ30: =IF(OR(KontrollTabell[[#This Row],[Finns anläggningsdel-namn.]]=FALSE,KontrollTabell[[#This Row],[True/False A5]]="Värde Behövs"),"",IF(InputA1A3[[#This Row],[Enhet för mängd (A5.2)]] = InputA1A3[[#This Row],[*DU/FU (EF A5.2)]], TRUE, FALSE)) ->  | CK30: =IF(KontrollTabell[[#This Row],[Finns anläggningsdel-namn.]]=FALSE,"",IF(OR(ISBLANK(InputA1A3[[#This Row],[Kategori (egen kategorisering)]])=FALSE,ISBLANK(InputA1A3[[#This Row],[Anläggningsdel ]]))=FALSE,TRUE,FALSE)) ->  | CL30: =IF(ISBLANK(InputA1A3[[#This Row],[Anläggningsdel ]]),"",IF(KontrollTabell[[#This Row],[TRUE/FALSE om kategori saknas.]] =FALSE,InputA1A3[[#This Row],[Kategori (egen kategorisering)]],"Kategori saknas")) -> 
J31: =IF(ISBLANK(InputA1A3[[#This Row],[Anläggningsdel ]]),"",IF(OR(KontrollTabell[[#This Row],[True/False A1A3 Enhet]]=TRUE,KontrollTabell[[#This Row],[True/False A1A3 Enhet]]="Värde Behövs",KontrollTabell[[#This Row],[True/False A1A3 Enhet]]=""), "", InputA1A3[[#This Row],[FU/DU (EF A1A3)]] & "/" & InputA1A3[[#This Row],[Enhet Mängd (A1A3)]])) ->  | O31: =IF(ISBLANK(InputA1A3[[#This Row],[EPD - EF A4]]),"",InputA1A3[[#This Row],[FU/DU (EF A1A3)]]) ->  | T31: =IFERROR(INDEX(TabellEFDrivmedel[],MATCH(InputA1A3[[#This Row],[Drivmedel (A4) (endast förval ur lista)]],TabellEFDrivmedel[Drivmedel],0),4),"") ->  | X31: =IF(InputA1A3[[#This Row],[*DU/FU (EF A4) för valt drivmedel (schablon)]]="","",IF(OR(InputA1A3[[#This Row],[*DU/FU (EF A4) för valt drivmedel (schablon)]]=InputA1A3[[#This Row],[Enhet (bränsleförbrukning per km)]],KontrollTabell[[#This Row],[True/False A4 - Alt 2]]="Värde Behövs"),"",InputA1A3[[#This Row],[Enhet (bränsleförbrukning per km)]]& "/" & InputA1A3[[#This Row],[*DU/FU (EF A4) för valt drivmedel (schablon)]])) ->  | AF31: =IFERROR(INDEX(TabellEFDrivmedel[],MATCH(InputA1A3[[#This Row],[Drivmedel (A5.2)]],TabellEFDrivmedel[Drivmedel],0),2),"") ->  | AG31: =IFERROR(INDEX(TabellEFDrivmedel[],MATCH(InputA1A3[[#This Row],[Drivmedel (A5.2)]],TabellEFDrivmedel[Drivmedel],0),4),"") ->  | AH31: =IF(OR(KontrollTabell[[#This Row],[True/False A5 Enhet]]=TRUE,KontrollTabell[[#This Row],[True/False A5 Enhet]]=""), "", InputA1A3[[#This Row],[*DU/FU (EF A5.2)]] & "/" & InputA1A3[[#This Row],[Enhet för mängd (A5.2)]]) ->  | BW31: =IF(ISBLANK(InputA1A3[[#This Row],[Anläggningsdel ]]),FALSE,TRUE) -> FALSE | BX31: =IF(ISBLANK(InputA1A3[[#This Row],[Anläggningsdel ]]),"",IF(ISBLANK(InputA1A3[[#This Row],[Enhet Mängd (A1A3)]]),"",IF(ISBLANK(InputA1A3[[#This Row],[FU/DU (EF A1A3)]]),"Värde Behövs",IF(InputA1A3[[#This Row],[Enhet Mängd (A1A3)]] = InputA1A3[[#This Row],[FU/DU (EF A1A3)]], TRUE, FALSE)))) ->  | BY31: =IF(KontrollTabell[[#This Row],[Finns anläggningsdel-namn.]]=FALSE,"",(IF(KontrollTabell[[#This Row],[True/False A1A3 Enhet]]=TRUE,TRUE,IF(OR(KontrollTabell[[#This Row],[True/False A1A3 Enhet]]="Värde Behövs",(KontrollTabell[[#This Row],[True/False A1A3 Enhet]]="")),"",IF(ISBLANK(InputA1A3[[#This Row],[Omräkning till FU/DU (Skriv in värde, ej formel)]]),FALSE,TRUE))))) ->  | BZ31: =IF(KontrollTabell[[#This Row],[Finns anläggningsdel-namn.]]=FALSE,,IF(KontrollTabell[[#This Row],[True/False A1A3 Enhet]]=TRUE,InputA1A3[[#This Row],[Mängd A1A3]]*InputA1A3[[#This Row],[EF A1A3 '[kg CO₂-ekv.']]],IF(KontrollTabell[[#This Row],[True/False A1A3 om A1A3 kan beräknas]]=TRUE,InputA1A3[[#This Row],[Mängd A1A3]]*InputA1A3[[#This Row],[EF A1A3 '[kg CO₂-ekv.']]]*InputA1A3[[#This Row],[Omräkning till FU/DU (Skriv in värde, ej formel)]],0))) -> 0 | CA31: =IF(ISBLANK(InputA1A3[[#This Row],[Anläggningsdel ]]),"",IF(ISBLANK(InputA1A3[[#This Row],[EPD - EF A4]]),FALSE,TRUE)) ->  | CB31: =IF(InputA1A3[[#This Row],[*DU/FU (EF A4) för valt drivmedel (schablon)]]="","",IF(InputA1A3[[#This Row],[Enhet (bränsleförbrukning per km)]]="","Värde Behövs",IF(OR(InputA1A3[[#This Row],[Enhet (bränsleförbrukning per km)]]=InputA1A3[[#This Row],[*DU/FU (EF A4) för valt drivmedel (schablon)]],AND(InputA1A3[[#This Row],[Enhet (bränsleförbrukning per km)]]<>InputA1A3[[#This Row],[*DU/FU (EF A4) för valt drivmedel (schablon)]],ISNUMBER(InputA1A3[[#This Row],[Omräkningsfaktor (A4), (vid behov, värde eller formel)]]))),TRUE(),FALSE()))) ->  | CC31: =IF(KontrollTabell[[#This Row],[Finns anläggningsdel-namn.]]=FALSE,"",(IF(InputA1A3[[#This Row],[Enhet (bränsleförbrukning per km)]] =InputA1A3[[#This Row],[*DU/FU (EF A4) för valt drivmedel (schablon)]],TRUE,IF(KontrollTabell[[#This Row],[True/False A4 - Alt 2]]="Värde Behövs","",IF(ISBLANK(InputA1A3[[#This Row],[Omräkningsfaktor (A4), (vid behov, värde eller formel)]]),FALSE,TRUE))))) ->  | CD31: =IF(ISBLANK(InputA1A3[[#This Row],[EPD - EF A4]]),"",IF(ISBLANK(InputA1A3[[#This Row],[Omräkning till FU/DU (Skriv in värde, ej formel)]]),InputA1A3[[#This Row],[EPD - EF A4]]*InputA1A3[[#This Row],[Mängd A1A3]],InputA1A3[[#This Row],[Mängd A1A3]]*InputA1A3[[#This Row],[Omräkning till FU/DU (Skriv in värde, ej formel)]]*InputA1A3[[#This Row],[EPD - EF A4]])) ->  | CE31: =IFERROR(IF(KontrollTabell[[#This Row],[True/False A4 - Alt 2]]="","",IF(KontrollTabell[[#This Row],[True/False A4 Enhet - Alt2]]=TRUE, IF(ISNUMBER(InputA1A3[[#This Row],[Omräkningsfaktor (A4), (vid behov, värde eller formel)]]),InputA1A3[[#This Row],[Sträcka - totalt '[km'], (tur och retur, alla transporter)]]*InputA1A3[[#This Row],[(Bränsle-) Förbrukning per km]]/InputA1A3[[#This Row],[Omräkningsfaktor (A4), (vid behov, värde eller formel)]]*InputA1A3[[#This Row],[*EF (A4) '[kg CO₂-ekv.']]], InputA1A3[[#This Row],[Sträcka - totalt '[km'], (tur och retur, alla transporter)]]*InputA1A3[[#This Row],[(Bränsle-) Förbrukning per km]]*InputA1A3[[#This Row],[*EF (A4) '[kg CO₂-ekv.']]]),"Sen då")),0) ->  | CF31: =SUM(KontrollTabell[[#This Row],[A4 - Resultat alt 1 '[kg']]:[A4 - Alt 2 - beräkning utsläpp]]) -> 0 | CG31: =IF(KontrollTabell[[#This Row],[Finns anläggningsdel-namn.]]=FALSE,"",IF(ISBLANK(InputA1A3[[#This Row],[EPD - EF A4]]),FALSE,TRUE)) ->  | CH31: =IFERROR(IF(KontrollTabell[[#This Row],[True/False A5]]=FALSE(),"Enheter",IF(ISBLANK(InputA1A3[[#This Row],[Omräkningsfaktor (A5.2) (ange värde), (vid behov)]]),InputA1A3[[#This Row],[Mängd (A5.2)]]*InputA1A3[[#This Row],[*EF (A5.2) '[kg CO₂-ekv.']]],InputA1A3[[#This Row],[Mängd (A5.2)]]*InputA1A3[[#This Row],[*EF (A5.2) '[kg CO₂-ekv.']]]*InputA1A3[[#This Row],[Omräkningsfaktor (A5.2) (ange värde), (vid behov)]])),0) -> 0 | CI31: =IF(InputA1A3[[#This Row],[*DU/FU (EF A5.2)]]="","",IF(InputA1A3[[#This Row],[Enhet för mängd (A5.2)]]="","Värde Behövs",IF(OR(InputA1A3[[#This Row],[Enhet för mängd (A5.2)]]=InputA1A3[[#This Row],[*DU/FU (EF A5.2)]],AND(InputA1A3[[#This Row],[Enhet för mängd (A5.2)]]<>InputA1A3[[#This Row],[*DU/FU (EF A5.2)]],ISNUMBER(InputA1A3[[#This Row],[Omräkningsfaktor (A5.2) (ange värde), (vid behov)]]))),TRUE,FALSE))) ->  | CJ31: =IF(OR(KontrollTabell[[#This Row],[Finns anläggningsdel-namn.]]=FALSE,KontrollTabell[[#This Row],[True/False A5]]="Värde Behövs"),"",IF(InputA1A3[[#This Row],[Enhet för mängd (A5.2)]] = InputA1A3[[#This Row],[*DU/FU (EF A5.2)]], TRUE, FALSE)) ->  | CK31: =IF(KontrollTabell[[#This Row],[Finns anläggningsdel-namn.]]=FALSE,"",IF(OR(ISBLANK(InputA1A3[[#This Row],[Kategori (egen kategorisering)]])=FALSE,ISBLANK(InputA1A3[[#This Row],[Anläggningsdel ]]))=FALSE,TRUE,FALSE)) ->  | CL31: =IF(ISBLANK(InputA1A3[[#This Row],[Anläggningsdel ]]),"",IF(KontrollTabell[[#This Row],[TRUE/FALSE om kategori saknas.]] =FALSE,InputA1A3[[#This Row],[Kategori (egen kategorisering)]],"Kategori saknas")) -> 
J32: =IF(ISBLANK(InputA1A3[[#This Row],[Anläggningsdel ]]),"",IF(OR(KontrollTabell[[#This Row],[True/False A1A3 Enhet]]=TRUE,KontrollTabell[[#This Row],[True/False A1A3 Enhet]]="Värde Behövs",KontrollTabell[[#This Row],[True/False A1A3 Enhet]]=""), "", InputA1A3[[#This Row],[FU/DU (EF A1A3)]] & "/" & InputA1A3[[#This Row],[Enhet Mängd (A1A3)]])) ->  | O32: =IF(ISBLANK(InputA1A3[[#This Row],[EPD - EF A4]]),"",InputA1A3[[#This Row],[FU/DU (EF A1A3)]]) ->  | T32: =IFERROR(INDEX(TabellEFDrivmedel[],MATCH(InputA1A3[[#This Row],[Drivmedel (A4) (endast förval ur lista)]],TabellEFDrivmedel[Drivmedel],0),4),"") ->  | X32: =IF(InputA1A3[[#This Row],[*DU/FU (EF A4) för valt drivmedel (schablon)]]="","",IF(OR(InputA1A3[[#This Row],[*DU/FU (EF A4) för valt drivmedel (schablon)]]=InputA1A3[[#This Row],[Enhet (bränsleförbrukning per km)]],KontrollTabell[[#This Row],[True/False A4 - Alt 2]]="Värde Behövs"),"",InputA1A3[[#This Row],[Enhet (bränsleförbrukning per km)]]& "/" & InputA1A3[[#This Row],[*DU/FU (EF A4) för valt drivmedel (schablon)]])) ->  | AF32: =IFERROR(INDEX(TabellEFDrivmedel[],MATCH(InputA1A3[[#This Row],[Drivmedel (A5.2)]],TabellEFDrivmedel[Drivmedel],0),2),"") ->  | AG32: =IFERROR(INDEX(TabellEFDrivmedel[],MATCH(InputA1A3[[#This Row],[Drivmedel (A5.2)]],TabellEFDrivmedel[Drivmedel],0),4),"") ->  | AH32: =IF(OR(KontrollTabell[[#This Row],[True/False A5 Enhet]]=TRUE,KontrollTabell[[#This Row],[True/False A5 Enhet]]=""), "", InputA1A3[[#This Row],[*DU/FU (EF A5.2)]] & "/" & InputA1A3[[#This Row],[Enhet för mängd (A5.2)]]) ->  | BW32: =IF(ISBLANK(InputA1A3[[#This Row],[Anläggningsdel ]]),FALSE,TRUE) -> FALSE | BX32: =IF(ISBLANK(InputA1A3[[#This Row],[Anläggningsdel ]]),"",IF(ISBLANK(InputA1A3[[#This Row],[Enhet Mängd (A1A3)]]),"",IF(ISBLANK(InputA1A3[[#This Row],[FU/DU (EF A1A3)]]),"Värde Behövs",IF(InputA1A3[[#This Row],[Enhet Mängd (A1A3)]] = InputA1A3[[#This Row],[FU/DU (EF A1A3)]], TRUE, FALSE)))) ->  | BY32: =IF(KontrollTabell[[#This Row],[Finns anläggningsdel-namn.]]=FALSE,"",(IF(KontrollTabell[[#This Row],[True/False A1A3 Enhet]]=TRUE,TRUE,IF(OR(KontrollTabell[[#This Row],[True/False A1A3 Enhet]]="Värde Behövs",(KontrollTabell[[#This Row],[True/False A1A3 Enhet]]="")),"",IF(ISBLANK(InputA1A3[[#This Row],[Omräkning till FU/DU (Skriv in värde, ej formel)]]),FALSE,TRUE))))) ->  | BZ32: =IF(KontrollTabell[[#This Row],[Finns anläggningsdel-namn.]]=FALSE,,IF(KontrollTabell[[#This Row],[True/False A1A3 Enhet]]=TRUE,InputA1A3[[#This Row],[Mängd A1A3]]*InputA1A3[[#This Row],[EF A1A3 '[kg CO₂-ekv.']]],IF(KontrollTabell[[#This Row],[True/False A1A3 om A1A3 kan beräknas]]=TRUE,InputA1A3[[#This Row],[Mängd A1A3]]*InputA1A3[[#This Row],[EF A1A3 '[kg CO₂-ekv.']]]*InputA1A3[[#This Row],[Omräkning till FU/DU (Skriv in värde, ej formel)]],0))) -> 0 | CA32: =IF(ISBLANK(InputA1A3[[#This Row],[Anläggningsdel ]]),"",IF(ISBLANK(InputA1A3[[#This Row],[EPD - EF A4]]),FALSE,TRUE)) ->  | CB32: =IF(InputA1A3[[#This Row],[*DU/FU (EF A4) för valt drivmedel (schablon)]]="","",IF(InputA1A3[[#This Row],[Enhet (bränsleförbrukning per km)]]="","Värde Behövs",IF(OR(InputA1A3[[#This Row],[Enhet (bränsleförbrukning per km)]]=InputA1A3[[#This Row],[*DU/FU (EF A4) för valt drivmedel (schablon)]],AND(InputA1A3[[#This Row],[Enhet (bränsleförbrukning per km)]]<>InputA1A3[[#This Row],[*DU/FU (EF A4) för valt drivmedel (schablon)]],ISNUMBER(InputA1A3[[#This Row],[Omräkningsfaktor (A4), (vid behov, värde eller formel)]]))),TRUE(),FALSE()))) ->  | CC32: =IF(KontrollTabell[[#This Row],[Finns anläggningsdel-namn.]]=FALSE,"",(IF(InputA1A3[[#This Row],[Enhet (bränsleförbrukning per km)]] =InputA1A3[[#This Row],[*DU/FU (EF A4) för valt drivmedel (schablon)]],TRUE,IF(KontrollTabell[[#This Row],[True/False A4 - Alt 2]]="Värde Behövs","",IF(ISBLANK(InputA1A3[[#This Row],[Omräkningsfaktor (A4), (vid behov, värde eller formel)]]),FALSE,TRUE))))) ->  | CD32: =IF(ISBLANK(InputA1A3[[#This Row],[EPD - EF A4]]),"",IF(ISBLANK(InputA1A3[[#This Row],[Omräkning till FU/DU (Skriv in värde, ej formel)]]),InputA1A3[[#This Row],[EPD - EF A4]]*InputA1A3[[#This Row],[Mängd A1A3]],InputA1A3[[#This Row],[Mängd A1A3]]*InputA1A3[[#This Row],[Omräkning till FU/DU (Skriv in värde, ej formel)]]*InputA1A3[[#This Row],[EPD - EF A4]])) ->  | CE32: =IFERROR(IF(KontrollTabell[[#This Row],[True/False A4 - Alt 2]]="","",IF(KontrollTabell[[#This Row],[True/False A4 Enhet - Alt2]]=TRUE, IF(ISNUMBER(InputA1A3[[#This Row],[Omräkningsfaktor (A4), (vid behov, värde eller formel)]]),InputA1A3[[#This Row],[Sträcka - totalt '[km'], (tur och retur, alla transporter)]]*InputA1A3[[#This Row],[(Bränsle-) Förbrukning per km]]/InputA1A3[[#This Row],[Omräkningsfaktor (A4), (vid behov, värde eller formel)]]*InputA1A3[[#This Row],[*EF (A4) '[kg CO₂-ekv.']]], InputA1A3[[#This Row],[Sträcka - totalt '[km'], (tur och retur, alla transporter)]]*InputA1A3[[#This Row],[(Bränsle-) Förbrukning per km]]*InputA1A3[[#This Row],[*EF (A4) '[kg CO₂-ekv.']]]),"Sen då")),0) ->  | CF32: =SUM(KontrollTabell[[#This Row],[A4 - Resultat alt 1 '[kg']]:[A4 - Alt 2 - beräkning utsläpp]]) -> 0 | CG32: =IF(KontrollTabell[[#This Row],[Finns anläggningsdel-namn.]]=FALSE,"",IF(ISBLANK(InputA1A3[[#This Row],[EPD - EF A4]]),FALSE,TRUE)) ->  | CH32: =IFERROR(IF(KontrollTabell[[#This Row],[True/False A5]]=FALSE(),"Enheter",IF(ISBLANK(InputA1A3[[#This Row],[Omräkningsfaktor (A5.2) (ange värde), (vid behov)]]),InputA1A3[[#This Row],[Mängd (A5.2)]]*InputA1A3[[#This Row],[*EF (A5.2) '[kg CO₂-ekv.']]],InputA1A3[[#This Row],[Mängd (A5.2)]]*InputA1A3[[#This Row],[*EF (A5.2) '[kg CO₂-ekv.']]]*InputA1A3[[#This Row],[Omräkningsfaktor (A5.2) (ange värde), (vid behov)]])),0) -> 0 | CI32: =IF(InputA1A3[[#This Row],[*DU/FU (EF A5.2)]]="","",IF(InputA1A3[[#This Row],[Enhet för mängd (A5.2)]]="","Värde Behövs",IF(OR(InputA1A3[[#This Row],[Enhet för mängd (A5.2)]]=InputA1A3[[#This Row],[*DU/FU (EF A5.2)]],AND(InputA1A3[[#This Row],[Enhet för mängd (A5.2)]]<>InputA1A3[[#This Row],[*DU/FU (EF A5.2)]],ISNUMBER(InputA1A3[[#This Row],[Omräkningsfaktor (A5.2) (ange värde), (vid behov)]]))),TRUE,FALSE))) ->  | CJ32: =IF(OR(KontrollTabell[[#This Row],[Finns anläggningsdel-namn.]]=FALSE,KontrollTabell[[#This Row],[True/False A5]]="Värde Behövs"),"",IF(InputA1A3[[#This Row],[Enhet för mängd (A5.2)]] = InputA1A3[[#This Row],[*DU/FU (EF A5.2)]], TRUE, FALSE)) ->  | CK32: =IF(KontrollTabell[[#This Row],[Finns anläggningsdel-namn.]]=FALSE,"",IF(OR(ISBLANK(InputA1A3[[#This Row],[Kategori (egen kategorisering)]])=FALSE,ISBLANK(InputA1A3[[#This Row],[Anläggningsdel ]]))=FALSE,TRUE,FALSE)) ->  | CL32: =IF(ISBLANK(InputA1A3[[#This Row],[Anläggningsdel ]]),"",IF(KontrollTabell[[#This Row],[TRUE/FALSE om kategori saknas.]] =FALSE,InputA1A3[[#This Row],[Kategori (egen kategorisering)]],"Kategori saknas")) -> 
J33: =IF(ISBLANK(InputA1A3[[#This Row],[Anläggningsdel ]]),"",IF(OR(KontrollTabell[[#This Row],[True/False A1A3 Enhet]]=TRUE,KontrollTabell[[#This Row],[True/False A1A3 Enhet]]="Värde Behövs",KontrollTabell[[#This Row],[True/False A1A3 Enhet]]=""), "", InputA1A3[[#This Row],[FU/DU (EF A1A3)]] & "/" & InputA1A3[[#This Row],[Enhet Mängd (A1A3)]])) ->  | O33: =IF(ISBLANK(InputA1A3[[#This Row],[EPD - EF A4]]),"",InputA1A3[[#This Row],[FU/DU (EF A1A3)]]) ->  | T33: =IFERROR(INDEX(TabellEFDrivmedel[],MATCH(InputA1A3[[#This Row],[Drivmedel (A4) (endast förval ur lista)]],TabellEFDrivmedel[Drivmedel],0),4),"") ->  | X33: =IF(InputA1A3[[#This Row],[*DU/FU (EF A4) för valt drivmedel (schablon)]]="","",IF(OR(InputA1A3[[#This Row],[*DU/FU (EF A4) för valt drivmedel (schablon)]]=InputA1A3[[#This Row],[Enhet (bränsleförbrukning per km)]],KontrollTabell[[#This Row],[True/False A4 - Alt 2]]="Värde Behövs"),"",InputA1A3[[#This Row],[Enhet (bränsleförbrukning per km)]]& "/" & InputA1A3[[#This Row],[*DU/FU (EF A4) för valt drivmedel (schablon)]])) ->  | AF33: =IFERROR(INDEX(TabellEFDrivmedel[],MATCH(InputA1A3[[#This Row],[Drivmedel (A5.2)]],TabellEFDrivmedel[Drivmedel],0),2),"") ->  | AG33: =IFERROR(INDEX(TabellEFDrivmedel[],MATCH(InputA1A3[[#This Row],[Drivmedel (A5.2)]],TabellEFDrivmedel[Drivmedel],0),4),"") ->  | AH33: =IF(OR(KontrollTabell[[#This Row],[True/False A5 Enhet]]=TRUE,KontrollTabell[[#This Row],[True/False A5 Enhet]]=""), "", InputA1A3[[#This Row],[*DU/FU (EF A5.2)]] & "/" & InputA1A3[[#This Row],[Enhet för mängd (A5.2)]]) ->  | BW33: =IF(ISBLANK(InputA1A3[[#This Row],[Anläggningsdel ]]),FALSE,TRUE) -> FALSE | BX33: =IF(ISBLANK(InputA1A3[[#This Row],[Anläggningsdel ]]),"",IF(ISBLANK(InputA1A3[[#This Row],[Enhet Mängd (A1A3)]]),"",IF(ISBLANK(InputA1A3[[#This Row],[FU/DU (EF A1A3)]]),"Värde Behövs",IF(InputA1A3[[#This Row],[Enhet Mängd (A1A3)]] = InputA1A3[[#This Row],[FU/DU (EF A1A3)]], TRUE, FALSE)))) ->  | BY33: =IF(KontrollTabell[[#This Row],[Finns anläggningsdel-namn.]]=FALSE,"",(IF(KontrollTabell[[#This Row],[True/False A1A3 Enhet]]=TRUE,TRUE,IF(OR(KontrollTabell[[#This Row],[True/False A1A3 Enhet]]="Värde Behövs",(KontrollTabell[[#This Row],[True/False A1A3 Enhet]]="")),"",IF(ISBLANK(InputA1A3[[#This Row],[Omräkning till FU/DU (Skriv in värde, ej formel)]]),FALSE,TRUE))))) ->  | BZ33: =IF(KontrollTabell[[#This Row],[Finns anläggningsdel-namn.]]=FALSE,,IF(KontrollTabell[[#This Row],[True/False A1A3 Enhet]]=TRUE,InputA1A3[[#This Row],[Mängd A1A3]]*InputA1A3[[#This Row],[EF A1A3 '[kg CO₂-ekv.']]],IF(KontrollTabell[[#This Row],[True/False A1A3 om A1A3 kan beräknas]]=TRUE,InputA1A3[[#This Row],[Mängd A1A3]]*InputA1A3[[#This Row],[EF A1A3 '[kg CO₂-ekv.']]]*InputA1A3[[#This Row],[Omräkning till FU/DU (Skriv in värde, ej formel)]],0))) -> 0 | CA33: =IF(ISBLANK(InputA1A3[[#This Row],[Anläggningsdel ]]),"",IF(ISBLANK(InputA1A3[[#This Row],[EPD - EF A4]]),FALSE,TRUE)) ->  | CB33: =IF(InputA1A3[[#This Row],[*DU/FU (EF A4) för valt drivmedel (schablon)]]="","",IF(InputA1A3[[#This Row],[Enhet (bränsleförbrukning per km)]]="","Värde Behövs",IF(OR(InputA1A3[[#This Row],[Enhet (bränsleförbrukning per km)]]=InputA1A3[[#This Row],[*DU/FU (EF A4) för valt drivmedel (schablon)]],AND(InputA1A3[[#This Row],[Enhet (bränsleförbrukning per km)]]<>InputA1A3[[#This Row],[*DU/FU (EF A4) för valt drivmedel (schablon)]],ISNUMBER(InputA1A3[[#This Row],[Omräkningsfaktor (A4), (vid behov, värde eller formel)]]))),TRUE(),FALSE()))) ->  | CC33: =IF(KontrollTabell[[#This Row],[Finns anläggningsdel-namn.]]=FALSE,"",(IF(InputA1A3[[#This Row],[Enhet (bränsleförbrukning per km)]] =InputA1A3[[#This Row],[*DU/FU (EF A4) för valt drivmedel (schablon)]],TRUE,IF(KontrollTabell[[#This Row],[True/False A4 - Alt 2]]="Värde Behövs","",IF(ISBLANK(InputA1A3[[#This Row],[Omräkningsfaktor (A4), (vid behov, värde eller formel)]]),FALSE,TRUE))))) ->  | CD33: =IF(ISBLANK(InputA1A3[[#This Row],[EPD - EF A4]]),"",IF(ISBLANK(InputA1A3[[#This Row],[Omräkning till FU/DU (Skriv in värde, ej formel)]]),InputA1A3[[#This Row],[EPD - EF A4]]*InputA1A3[[#This Row],[Mängd A1A3]],InputA1A3[[#This Row],[Mängd A1A3]]*InputA1A3[[#This Row],[Omräkning till FU/DU (Skriv in värde, ej formel)]]*InputA1A3[[#This Row],[EPD - EF A4]])) ->  | CE33: =IFERROR(IF(KontrollTabell[[#This Row],[True/False A4 - Alt 2]]="","",IF(KontrollTabell[[#This Row],[True/False A4 Enhet - Alt2]]=TRUE, IF(ISNUMBER(InputA1A3[[#This Row],[Omräkningsfaktor (A4), (vid behov, värde eller formel)]]),InputA1A3[[#This Row],[Sträcka - totalt '[km'], (tur och retur, alla transporter)]]*InputA1A3[[#This Row],[(Bränsle-) Förbrukning per km]]/InputA1A3[[#This Row],[Omräkningsfaktor (A4), (vid behov, värde eller formel)]]*InputA1A3[[#This Row],[*EF (A4) '[kg CO₂-ekv.']]], InputA1A3[[#This Row],[Sträcka - totalt '[km'], (tur och retur, alla transporter)]]*InputA1A3[[#This Row],[(Bränsle-) Förbrukning per km]]*InputA1A3[[#This Row],[*EF (A4) '[kg CO₂-ekv.']]]),"Sen då")),0) ->  | CF33: =SUM(KontrollTabell[[#This Row],[A4 - Resultat alt 1 '[kg']]:[A4 - Alt 2 - beräkning utsläpp]]) -> 0 | CG33: =IF(KontrollTabell[[#This Row],[Finns anläggningsdel-namn.]]=FALSE,"",IF(ISBLANK(InputA1A3[[#This Row],[EPD - EF A4]]),FALSE,TRUE)) ->  | CH33: =IFERROR(IF(KontrollTabell[[#This Row],[True/False A5]]=FALSE(),"Enheter",IF(ISBLANK(InputA1A3[[#This Row],[Omräkningsfaktor (A5.2) (ange värde), (vid behov)]]),InputA1A3[[#This Row],[Mängd (A5.2)]]*InputA1A3[[#This Row],[*EF (A5.2) '[kg CO₂-ekv.']]],InputA1A3[[#This Row],[Mängd (A5.2)]]*InputA1A3[[#This Row],[*EF (A5.2) '[kg CO₂-ekv.']]]*InputA1A3[[#This Row],[Omräkningsfaktor (A5.2) (ange värde), (vid behov)]])),0) -> 0 | CI33: =IF(InputA1A3[[#This Row],[*DU/FU (EF A5.2)]]="","",IF(InputA1A3[[#This Row],[Enhet för mängd (A5.2)]]="","Värde Behövs",IF(OR(InputA1A3[[#This Row],[Enhet för mängd (A5.2)]]=InputA1A3[[#This Row],[*DU/FU (EF A5.2)]],AND(InputA1A3[[#This Row],[Enhet för mängd (A5.2)]]<>InputA1A3[[#This Row],[*DU/FU (EF A5.2)]],ISNUMBER(InputA1A3[[#This Row],[Omräkningsfaktor (A5.2) (ange värde), (vid behov)]]))),TRUE,FALSE))) ->  | CJ33: =IF(OR(KontrollTabell[[#This Row],[Finns anläggningsdel-namn.]]=FALSE,KontrollTabell[[#This Row],[True/False A5]]="Värde Behövs"),"",IF(InputA1A3[[#This Row],[Enhet för mängd (A5.2)]] = InputA1A3[[#This Row],[*DU/FU (EF A5.2)]], TRUE, FALSE)) ->  | CK33: =IF(KontrollTabell[[#This Row],[Finns anläggningsdel-namn.]]=FALSE,"",IF(OR(ISBLANK(InputA1A3[[#This Row],[Kategori (egen kategorisering)]])=FALSE,ISBLANK(InputA1A3[[#This Row],[Anläggningsdel ]]))=FALSE,TRUE,FALSE)) ->  | CL33: =IF(ISBLANK(InputA1A3[[#This Row],[Anläggningsdel ]]),"",IF(KontrollTabell[[#This Row],[TRUE/FALSE om kategori saknas.]] =FALSE,InputA1A3[[#This Row],[Kategori (egen kategorisering)]],"Kategori saknas")) -> 
J34: =IF(ISBLANK(InputA1A3[[#This Row],[Anläggningsdel ]]),"",IF(OR(KontrollTabell[[#This Row],[True/False A1A3 Enhet]]=TRUE,KontrollTabell[[#This Row],[True/False A1A3 Enhet]]="Värde Behövs",KontrollTabell[[#This Row],[True/False A1A3 Enhet]]=""), "", InputA1A3[[#This Row],[FU/DU (EF A1A3)]] & "/" & InputA1A3[[#This Row],[Enhet Mängd (A1A3)]])) ->  | O34: =IF(ISBLANK(InputA1A3[[#This Row],[EPD - EF A4]]),"",InputA1A3[[#This Row],[FU/DU (EF A1A3)]]) ->  | T34: =IFERROR(INDEX(TabellEFDrivmedel[],MATCH(InputA1A3[[#This Row],[Drivmedel (A4) (endast förval ur lista)]],TabellEFDrivmedel[Drivmedel],0),4),"") ->  | X34: =IF(InputA1A3[[#This Row],[*DU/FU (EF A4) för valt drivmedel (schablon)]]="","",IF(OR(InputA1A3[[#This Row],[*DU/FU (EF A4) för valt drivmedel (schablon)]]=InputA1A3[[#This Row],[Enhet (bränsleförbrukning per km)]],KontrollTabell[[#This Row],[True/False A4 - Alt 2]]="Värde Behövs"),"",InputA1A3[[#This Row],[Enhet (bränsleförbrukning per km)]]& "/" & InputA1A3[[#This Row],[*DU/FU (EF A4) för valt drivmedel (schablon)]])) ->  | AF34: =IFERROR(INDEX(TabellEFDrivmedel[],MATCH(InputA1A3[[#This Row],[Drivmedel (A5.2)]],TabellEFDrivmedel[Drivmedel],0),2),"") ->  | AG34: =IFERROR(INDEX(TabellEFDrivmedel[],MATCH(InputA1A3[[#This Row],[Drivmedel (A5.2)]],TabellEFDrivmedel[Drivmedel],0),4),"") ->  | AH34: =IF(OR(KontrollTabell[[#This Row],[True/False A5 Enhet]]=TRUE,KontrollTabell[[#This Row],[True/False A5 Enhet]]=""), "", InputA1A3[[#This Row],[*DU/FU (EF A5.2)]] & "/" & InputA1A3[[#This Row],[Enhet för mängd (A5.2)]]) ->  | BW34: =IF(ISBLANK(InputA1A3[[#This Row],[Anläggningsdel ]]),FALSE,TRUE) -> FALSE | BX34: =IF(ISBLANK(InputA1A3[[#This Row],[Anläggningsdel ]]),"",IF(ISBLANK(InputA1A3[[#This Row],[Enhet Mängd (A1A3)]]),"",IF(ISBLANK(InputA1A3[[#This Row],[FU/DU (EF A1A3)]]),"Värde Behövs",IF(InputA1A3[[#This Row],[Enhet Mängd (A1A3)]] = InputA1A3[[#This Row],[FU/DU (EF A1A3)]], TRUE, FALSE)))) ->  | BY34: =IF(KontrollTabell[[#This Row],[Finns anläggningsdel-namn.]]=FALSE,"",(IF(KontrollTabell[[#This Row],[True/False A1A3 Enhet]]=TRUE,TRUE,IF(OR(KontrollTabell[[#This Row],[True/False A1A3 Enhet]]="Värde Behövs",(KontrollTabell[[#This Row],[True/False A1A3 Enhet]]="")),"",IF(ISBLANK(InputA1A3[[#This Row],[Omräkning till FU/DU (Skriv in värde, ej formel)]]),FALSE,TRUE))))) ->  | BZ34: =IF(KontrollTabell[[#This Row],[Finns anläggningsdel-namn.]]=FALSE,,IF(KontrollTabell[[#This Row],[True/False A1A3 Enhet]]=TRUE,InputA1A3[[#This Row],[Mängd A1A3]]*InputA1A3[[#This Row],[EF A1A3 '[kg CO₂-ekv.']]],IF(KontrollTabell[[#This Row],[True/False A1A3 om A1A3 kan beräknas]]=TRUE,InputA1A3[[#This Row],[Mängd A1A3]]*InputA1A3[[#This Row],[EF A1A3 '[kg CO₂-ekv.']]]*InputA1A3[[#This Row],[Omräkning till FU/DU (Skriv in värde, ej formel)]],0))) -> 0 | CA34: =IF(ISBLANK(InputA1A3[[#This Row],[Anläggningsdel ]]),"",IF(ISBLANK(InputA1A3[[#This Row],[EPD - EF A4]]),FALSE,TRUE)) ->  | CB34: =IF(InputA1A3[[#This Row],[*DU/FU (EF A4) för valt drivmedel (schablon)]]="","",IF(InputA1A3[[#This Row],[Enhet (bränsleförbrukning per km)]]="","Värde Behövs",IF(OR(InputA1A3[[#This Row],[Enhet (bränsleförbrukning per km)]]=InputA1A3[[#This Row],[*DU/FU (EF A4) för valt drivmedel (schablon)]],AND(InputA1A3[[#This Row],[Enhet (bränsleförbrukning per km)]]<>InputA1A3[[#This Row],[*DU/FU (EF A4) för valt drivmedel (schablon)]],ISNUMBER(InputA1A3[[#This Row],[Omräkningsfaktor (A4), (vid behov, värde eller formel)]]))),TRUE(),FALSE()))) ->  | CC34: =IF(KontrollTabell[[#This Row],[Finns anläggningsdel-namn.]]=FALSE,"",(IF(InputA1A3[[#This Row],[Enhet (bränsleförbrukning per km)]] =InputA1A3[[#This Row],[*DU/FU (EF A4) för valt drivmedel (schablon)]],TRUE,IF(KontrollTabell[[#This Row],[True/False A4 - Alt 2]]="Värde Behövs","",IF(ISBLANK(InputA1A3[[#This Row],[Omräkningsfaktor (A4), (vid behov, värde eller formel)]]),FALSE,TRUE))))) ->  | CD34: =IF(ISBLANK(InputA1A3[[#This Row],[EPD - EF A4]]),"",IF(ISBLANK(InputA1A3[[#This Row],[Omräkning till FU/DU (Skriv in värde, ej formel)]]),InputA1A3[[#This Row],[EPD - EF A4]]*InputA1A3[[#This Row],[Mängd A1A3]],InputA1A3[[#This Row],[Mängd A1A3]]*InputA1A3[[#This Row],[Omräkning till FU/DU (Skriv in värde, ej formel)]]*InputA1A3[[#This Row],[EPD - EF A4]])) ->  | CE34: =IFERROR(IF(KontrollTabell[[#This Row],[True/False A4 - Alt 2]]="","",IF(KontrollTabell[[#This Row],[True/False A4 Enhet - Alt2]]=TRUE, IF(ISNUMBER(InputA1A3[[#This Row],[Omräkningsfaktor (A4), (vid behov, värde eller formel)]]),InputA1A3[[#This Row],[Sträcka - totalt '[km'], (tur och retur, alla transporter)]]*InputA1A3[[#This Row],[(Bränsle-) Förbrukning per km]]/InputA1A3[[#This Row],[Omräkningsfaktor (A4), (vid behov, värde eller formel)]]*InputA1A3[[#This Row],[*EF (A4) '[kg CO₂-ekv.']]], InputA1A3[[#This Row],[Sträcka - totalt '[km'], (tur och retur, alla transporter)]]*InputA1A3[[#This Row],[(Bränsle-) Förbrukning per km]]*InputA1A3[[#This Row],[*EF (A4) '[kg CO₂-ekv.']]]),"Sen då")),0) ->  | CF34: =SUM(KontrollTabell[[#This Row],[A4 - Resultat alt 1 '[kg']]:[A4 - Alt 2 - beräkning utsläpp]]) -> 0 | CG34: =IF(KontrollTabell[[#This Row],[Finns anläggningsdel-namn.]]=FALSE,"",IF(ISBLANK(InputA1A3[[#This Row],[EPD - EF A4]]),FALSE,TRUE)) ->  | CH34: =IFERROR(IF(KontrollTabell[[#This Row],[True/False A5]]=FALSE(),"Enheter",IF(ISBLANK(InputA1A3[[#This Row],[Omräkningsfaktor (A5.2) (ange värde), (vid behov)]]),InputA1A3[[#This Row],[Mängd (A5.2)]]*InputA1A3[[#This Row],[*EF (A5.2) '[kg CO₂-ekv.']]],InputA1A3[[#This Row],[Mängd (A5.2)]]*InputA1A3[[#This Row],[*EF (A5.2) '[kg CO₂-ekv.']]]*InputA1A3[[#This Row],[Omräkningsfaktor (A5.2) (ange värde), (vid behov)]])),0) -> 0 | CI34: =IF(InputA1A3[[#This Row],[*DU/FU (EF A5.2)]]="","",IF(InputA1A3[[#This Row],[Enhet för mängd (A5.2)]]="","Värde Behövs",IF(OR(InputA1A3[[#This Row],[Enhet för mängd (A5.2)]]=InputA1A3[[#This Row],[*DU/FU (EF A5.2)]],AND(InputA1A3[[#This Row],[Enhet för mängd (A5.2)]]<>InputA1A3[[#This Row],[*DU/FU (EF A5.2)]],ISNUMBER(InputA1A3[[#This Row],[Omräkningsfaktor (A5.2) (ange värde), (vid behov)]]))),TRUE,FALSE))) ->  | CJ34: =IF(OR(KontrollTabell[[#This Row],[Finns anläggningsdel-namn.]]=FALSE,KontrollTabell[[#This Row],[True/False A5]]="Värde Behövs"),"",IF(InputA1A3[[#This Row],[Enhet för mängd (A5.2)]] = InputA1A3[[#This Row],[*DU/FU (EF A5.2)]], TRUE, FALSE)) ->  | CK34: =IF(KontrollTabell[[#This Row],[Finns anläggningsdel-namn.]]=FALSE,"",IF(OR(ISBLANK(InputA1A3[[#This Row],[Kategori (egen kategorisering)]])=FALSE,ISBLANK(InputA1A3[[#This Row],[Anläggningsdel ]]))=FALSE,TRUE,FALSE)) ->  | CL34: =IF(ISBLANK(InputA1A3[[#This Row],[Anläggningsdel ]]),"",IF(KontrollTabell[[#This Row],[TRUE/FALSE om kategori saknas.]] =FALSE,InputA1A3[[#This Row],[Kategori (egen kategorisering)]],"Kategori saknas")) -> 
J35: =IF(ISBLANK(InputA1A3[[#This Row],[Anläggningsdel ]]),"",IF(OR(KontrollTabell[[#This Row],[True/False A1A3 Enhet]]=TRUE,KontrollTabell[[#This Row],[True/False A1A3 Enhet]]="Värde Behövs",KontrollTabell[[#This Row],[True/False A1A3 Enhet]]=""), "", InputA1A3[[#This Row],[FU/DU (EF A1A3)]] & "/" & InputA1A3[[#This Row],[Enhet Mängd (A1A3)]])) ->  | O35: =IF(ISBLANK(InputA1A3[[#This Row],[EPD - EF A4]]),"",InputA1A3[[#This Row],[FU/DU (EF A1A3)]]) ->  | T35: =IFERROR(INDEX(TabellEFDrivmedel[],MATCH(InputA1A3[[#This Row],[Drivmedel (A4) (endast förval ur lista)]],TabellEFDrivmedel[Drivmedel],0),4),"") ->  | X35: =IF(InputA1A3[[#This Row],[*DU/FU (EF A4) för valt drivmedel (schablon)]]="","",IF(OR(InputA1A3[[#This Row],[*DU/FU (EF A4) för valt drivmedel (schablon)]]=InputA1A3[[#This Row],[Enhet (bränsleförbrukning per km)]],KontrollTabell[[#This Row],[True/False A4 - Alt 2]]="Värde Behövs"),"",InputA1A3[[#This Row],[Enhet (bränsleförbrukning per km)]]& "/" & InputA1A3[[#This Row],[*DU/FU (EF A4) för valt drivmedel (schablon)]])) ->  | AF35: =IFERROR(INDEX(TabellEFDrivmedel[],MATCH(InputA1A3[[#This Row],[Drivmedel (A5.2)]],TabellEFDrivmedel[Drivmedel],0),2),"") ->  | AG35: =IFERROR(INDEX(TabellEFDrivmedel[],MATCH(InputA1A3[[#This Row],[Drivmedel (A5.2)]],TabellEFDrivmedel[Drivmedel],0),4),"") ->  | AH35: =IF(OR(KontrollTabell[[#This Row],[True/False A5 Enhet]]=TRUE,KontrollTabell[[#This Row],[True/False A5 Enhet]]=""), "", InputA1A3[[#This Row],[*DU/FU (EF A5.2)]] & "/" & InputA1A3[[#This Row],[Enhet för mängd (A5.2)]]) ->  | BW35: =IF(ISBLANK(InputA1A3[[#This Row],[Anläggningsdel ]]),FALSE,TRUE) -> FALSE | BX35: =IF(ISBLANK(InputA1A3[[#This Row],[Anläggningsdel ]]),"",IF(ISBLANK(InputA1A3[[#This Row],[Enhet Mängd (A1A3)]]),"",IF(ISBLANK(InputA1A3[[#This Row],[FU/DU (EF A1A3)]]),"Värde Behövs",IF(InputA1A3[[#This Row],[Enhet Mängd (A1A3)]] = InputA1A3[[#This Row],[FU/DU (EF A1A3)]], TRUE, FALSE)))) ->  | BY35: =IF(KontrollTabell[[#This Row],[Finns anläggningsdel-namn.]]=FALSE,"",(IF(KontrollTabell[[#This Row],[True/False A1A3 Enhet]]=TRUE,TRUE,IF(OR(KontrollTabell[[#This Row],[True/False A1A3 Enhet]]="Värde Behövs",(KontrollTabell[[#This Row],[True/False A1A3 Enhet]]="")),"",IF(ISBLANK(InputA1A3[[#This Row],[Omräkning till FU/DU (Skriv in värde, ej formel)]]),FALSE,TRUE))))) ->  | BZ35: =IF(KontrollTabell[[#This Row],[Finns anläggningsdel-namn.]]=FALSE,,IF(KontrollTabell[[#This Row],[True/False A1A3 Enhet]]=TRUE,InputA1A3[[#This Row],[Mängd A1A3]]*InputA1A3[[#This Row],[EF A1A3 '[kg CO₂-ekv.']]],IF(KontrollTabell[[#This Row],[True/False A1A3 om A1A3 kan beräknas]]=TRUE,InputA1A3[[#This Row],[Mängd A1A3]]*InputA1A3[[#This Row],[EF A1A3 '[kg CO₂-ekv.']]]*InputA1A3[[#This Row],[Omräkning till FU/DU (Skriv in värde, ej formel)]],0))) -> 0 | CA35: =IF(ISBLANK(InputA1A3[[#This Row],[Anläggningsdel ]]),"",IF(ISBLANK(InputA1A3[[#This Row],[EPD - EF A4]]),FALSE,TRUE)) ->  | CB35: =IF(InputA1A3[[#This Row],[*DU/FU (EF A4) för valt drivmedel (schablon)]]="","",IF(InputA1A3[[#This Row],[Enhet (bränsleförbrukning per km)]]="","Värde Behövs",IF(OR(InputA1A3[[#This Row],[Enhet (bränsleförbrukning per km)]]=InputA1A3[[#This Row],[*DU/FU (EF A4) för valt drivmedel (schablon)]],AND(InputA1A3[[#This Row],[Enhet (bränsleförbrukning per km)]]<>InputA1A3[[#This Row],[*DU/FU (EF A4) för valt drivmedel (schablon)]],ISNUMBER(InputA1A3[[#This Row],[Omräkningsfaktor (A4), (vid behov, värde eller formel)]]))),TRUE(),FALSE()))) ->  | CC35: =IF(KontrollTabell[[#This Row],[Finns anläggningsdel-namn.]]=FALSE,"",(IF(InputA1A3[[#This Row],[Enhet (bränsleförbrukning per km)]] =InputA1A3[[#This Row],[*DU/FU (EF A4) för valt drivmedel (schablon)]],TRUE,IF(KontrollTabell[[#This Row],[True/False A4 - Alt 2]]="Värde Behövs","",IF(ISBLANK(InputA1A3[[#This Row],[Omräkningsfaktor (A4), (vid behov, värde eller formel)]]),FALSE,TRUE))))) ->  | CD35: =IF(ISBLANK(InputA1A3[[#This Row],[EPD - EF A4]]),"",IF(ISBLANK(InputA1A3[[#This Row],[Omräkning till FU/DU (Skriv in värde, ej formel)]]),InputA1A3[[#This Row],[EPD - EF A4]]*InputA1A3[[#This Row],[Mängd A1A3]],InputA1A3[[#This Row],[Mängd A1A3]]*InputA1A3[[#This Row],[Omräkning till FU/DU (Skriv in värde, ej formel)]]*InputA1A3[[#This Row],[EPD - EF A4]])) ->  | CE35: =IFERROR(IF(KontrollTabell[[#This Row],[True/False A4 - Alt 2]]="","",IF(KontrollTabell[[#This Row],[True/False A4 Enhet - Alt2]]=TRUE, IF(ISNUMBER(InputA1A3[[#This Row],[Omräkningsfaktor (A4), (vid behov, värde eller formel)]]),InputA1A3[[#This Row],[Sträcka - totalt '[km'], (tur och retur, alla transporter)]]*InputA1A3[[#This Row],[(Bränsle-) Förbrukning per km]]/InputA1A3[[#This Row],[Omräkningsfaktor (A4), (vid behov, värde eller formel)]]*InputA1A3[[#This Row],[*EF (A4) '[kg CO₂-ekv.']]], InputA1A3[[#This Row],[Sträcka - totalt '[km'], (tur och retur, alla transporter)]]*InputA1A3[[#This Row],[(Bränsle-) Förbrukning per km]]*InputA1A3[[#This Row],[*EF (A4) '[kg CO₂-ekv.']]]),"Sen då")),0) ->  | CF35: =SUM(KontrollTabell[[#This Row],[A4 - Resultat alt 1 '[kg']]:[A4 - Alt 2 - beräkning utsläpp]]) -> 0 | CG35: =IF(KontrollTabell[[#This Row],[Finns anläggningsdel-namn.]]=FALSE,"",IF(ISBLANK(InputA1A3[[#This Row],[EPD - EF A4]]),FALSE,TRUE)) ->  | CH35: =IFERROR(IF(KontrollTabell[[#This Row],[True/False A5]]=FALSE(),"Enheter",IF(ISBLANK(InputA1A3[[#This Row],[Omräkningsfaktor (A5.2) (ange värde), (vid behov)]]),InputA1A3[[#This Row],[Mängd (A5.2)]]*InputA1A3[[#This Row],[*EF (A5.2) '[kg CO₂-ekv.']]],InputA1A3[[#This Row],[Mängd (A5.2)]]*InputA1A3[[#This Row],[*EF (A5.2) '[kg CO₂-ekv.']]]*InputA1A3[[#This Row],[Omräkningsfaktor (A5.2) (ange värde), (vid behov)]])),0) -> 0 | CI35: =IF(InputA1A3[[#This Row],[*DU/FU (EF A5.2)]]="","",IF(InputA1A3[[#This Row],[Enhet för mängd (A5.2)]]="","Värde Behövs",IF(OR(InputA1A3[[#This Row],[Enhet för mängd (A5.2)]]=InputA1A3[[#This Row],[*DU/FU (EF A5.2)]],AND(InputA1A3[[#This Row],[Enhet för mängd (A5.2)]]<>InputA1A3[[#This Row],[*DU/FU (EF A5.2)]],ISNUMBER(InputA1A3[[#This Row],[Omräkningsfaktor (A5.2) (ange värde), (vid behov)]]))),TRUE,FALSE))) ->  | CJ35: =IF(OR(KontrollTabell[[#This Row],[Finns anläggningsdel-namn.]]=FALSE,KontrollTabell[[#This Row],[True/False A5]]="Värde Behövs"),"",IF(InputA1A3[[#This Row],[Enhet för mängd (A5.2)]] = InputA1A3[[#This Row],[*DU/FU (EF A5.2)]], TRUE, FALSE)) ->  | CK35: =IF(KontrollTabell[[#This Row],[Finns anläggningsdel-namn.]]=FALSE,"",IF(OR(ISBLANK(InputA1A3[[#This Row],[Kategori (egen kategorisering)]])=FALSE,ISBLANK(InputA1A3[[#This Row],[Anläggningsdel ]]))=FALSE,TRUE,FALSE)) ->  | CL35: =IF(ISBLANK(InputA1A3[[#This Row],[Anläggningsdel ]]),"",IF(KontrollTabell[[#This Row],[TRUE/FALSE om kategori saknas.]] =FALSE,InputA1A3[[#This Row],[Kategori (egen kategorisering)]],"Kategori saknas")) -> 
J36: =IF(ISBLANK(InputA1A3[[#This Row],[Anläggningsdel ]]),"",IF(OR(KontrollTabell[[#This Row],[True/False A1A3 Enhet]]=TRUE,KontrollTabell[[#This Row],[True/False A1A3 Enhet]]="Värde Behövs",KontrollTabell[[#This Row],[True/False A1A3 Enhet]]=""), "", InputA1A3[[#This Row],[FU/DU (EF A1A3)]] & "/" & InputA1A3[[#This Row],[Enhet Mängd (A1A3)]])) ->  | O36: =IF(ISBLANK(InputA1A3[[#This Row],[EPD - EF A4]]),"",InputA1A3[[#This Row],[FU/DU (EF A1A3)]]) ->  | T36: =IFERROR(INDEX(TabellEFDrivmedel[],MATCH(InputA1A3[[#This Row],[Drivmedel (A4) (endast förval ur lista)]],TabellEFDrivmedel[Drivmedel],0),4),"") ->  | X36: =IF(InputA1A3[[#This Row],[*DU/FU (EF A4) för valt drivmedel (schablon)]]="","",IF(OR(InputA1A3[[#This Row],[*DU/FU (EF A4) för valt drivmedel (schablon)]]=InputA1A3[[#This Row],[Enhet (bränsleförbrukning per km)]],KontrollTabell[[#This Row],[True/False A4 - Alt 2]]="Värde Behövs"),"",InputA1A3[[#This Row],[Enhet (bränsleförbrukning per km)]]& "/" & InputA1A3[[#This Row],[*DU/FU (EF A4) för valt drivmedel (schablon)]])) ->  | AF36: =IFERROR(INDEX(TabellEFDrivmedel[],MATCH(InputA1A3[[#This Row],[Drivmedel (A5.2)]],TabellEFDrivmedel[Drivmedel],0),2),"") ->  | AG36: =IFERROR(INDEX(TabellEFDrivmedel[],MATCH(InputA1A3[[#This Row],[Drivmedel (A5.2)]],TabellEFDrivmedel[Drivmedel],0),4),"") ->  | AH36: =IF(OR(KontrollTabell[[#This Row],[True/False A5 Enhet]]=TRUE,KontrollTabell[[#This Row],[True/False A5 Enhet]]=""), "", InputA1A3[[#This Row],[*DU/FU (EF A5.2)]] & "/" & InputA1A3[[#This Row],[Enhet för mängd (A5.2)]]) ->  | BW36: =IF(ISBLANK(InputA1A3[[#This Row],[Anläggningsdel ]]),FALSE,TRUE) -> FALSE | BX36: =IF(ISBLANK(InputA1A3[[#This Row],[Anläggningsdel ]]),"",IF(ISBLANK(InputA1A3[[#This Row],[Enhet Mängd (A1A3)]]),"",IF(ISBLANK(InputA1A3[[#This Row],[FU/DU (EF A1A3)]]),"Värde Behövs",IF(InputA1A3[[#This Row],[Enhet Mängd (A1A3)]] = InputA1A3[[#This Row],[FU/DU (EF A1A3)]], TRUE, FALSE)))) ->  | BY36: =IF(KontrollTabell[[#This Row],[Finns anläggningsdel-namn.]]=FALSE,"",(IF(KontrollTabell[[#This Row],[True/False A1A3 Enhet]]=TRUE,TRUE,IF(OR(KontrollTabell[[#This Row],[True/False A1A3 Enhet]]="Värde Behövs",(KontrollTabell[[#This Row],[True/False A1A3 Enhet]]="")),"",IF(ISBLANK(InputA1A3[[#This Row],[Omräkning till FU/DU (Skriv in värde, ej formel)]]),FALSE,TRUE))))) ->  | BZ36: =IF(KontrollTabell[[#This Row],[Finns anläggningsdel-namn.]]=FALSE,,IF(KontrollTabell[[#This Row],[True/False A1A3 Enhet]]=TRUE,InputA1A3[[#This Row],[Mängd A1A3]]*InputA1A3[[#This Row],[EF A1A3 '[kg CO₂-ekv.']]],IF(KontrollTabell[[#This Row],[True/False A1A3 om A1A3 kan beräknas]]=TRUE,InputA1A3[[#This Row],[Mängd A1A3]]*InputA1A3[[#This Row],[EF A1A3 '[kg CO₂-ekv.']]]*InputA1A3[[#This Row],[Omräkning till FU/DU (Skriv in värde, ej formel)]],0))) -> 0 | CA36: =IF(ISBLANK(InputA1A3[[#This Row],[Anläggningsdel ]]),"",IF(ISBLANK(InputA1A3[[#This Row],[EPD - EF A4]]),FALSE,TRUE)) ->  | CB36: =IF(InputA1A3[[#This Row],[*DU/FU (EF A4) för valt drivmedel (schablon)]]="","",IF(InputA1A3[[#This Row],[Enhet (bränsleförbrukning per km)]]="","Värde Behövs",IF(OR(InputA1A3[[#This Row],[Enhet (bränsleförbrukning per km)]]=InputA1A3[[#This Row],[*DU/FU (EF A4) för valt drivmedel (schablon)]],AND(InputA1A3[[#This Row],[Enhet (bränsleförbrukning per km)]]<>InputA1A3[[#This Row],[*DU/FU (EF A4) för valt drivmedel (schablon)]],ISNUMBER(InputA1A3[[#This Row],[Omräkningsfaktor (A4), (vid behov, värde eller formel)]]))),TRUE(),FALSE()))) ->  | CC36: =IF(KontrollTabell[[#This Row],[Finns anläggningsdel-namn.]]=FALSE,"",(IF(InputA1A3[[#This Row],[Enhet (bränsleförbrukning per km)]] =InputA1A3[[#This Row],[*DU/FU (EF A4) för valt drivmedel (schablon)]],TRUE,IF(KontrollTabell[[#This Row],[True/False A4 - Alt 2]]="Värde Behövs","",IF(ISBLANK(InputA1A3[[#This Row],[Omräkningsfaktor (A4), (vid behov, värde eller formel)]]),FALSE,TRUE))))) ->  | CD36: =IF(ISBLANK(InputA1A3[[#This Row],[EPD - EF A4]]),"",IF(ISBLANK(InputA1A3[[#This Row],[Omräkning till FU/DU (Skriv in värde, ej formel)]]),InputA1A3[[#This Row],[EPD - EF A4]]*InputA1A3[[#This Row],[Mängd A1A3]],InputA1A3[[#This Row],[Mängd A1A3]]*InputA1A3[[#This Row],[Omräkning till FU/DU (Skriv in värde, ej formel)]]*InputA1A3[[#This Row],[EPD - EF A4]])) ->  | CE36: =IFERROR(IF(KontrollTabell[[#This Row],[True/False A4 - Alt 2]]="","",IF(KontrollTabell[[#This Row],[True/False A4 Enhet - Alt2]]=TRUE, IF(ISNUMBER(InputA1A3[[#This Row],[Omräkningsfaktor (A4), (vid behov, värde eller formel)]]),InputA1A3[[#This Row],[Sträcka - totalt '[km'], (tur och retur, alla transporter)]]*InputA1A3[[#This Row],[(Bränsle-) Förbrukning per km]]/InputA1A3[[#This Row],[Omräkningsfaktor (A4), (vid behov, värde eller formel)]]*InputA1A3[[#This Row],[*EF (A4) '[kg CO₂-ekv.']]], InputA1A3[[#This Row],[Sträcka - totalt '[km'], (tur och retur, alla transporter)]]*InputA1A3[[#This Row],[(Bränsle-) Förbrukning per km]]*InputA1A3[[#This Row],[*EF (A4) '[kg CO₂-ekv.']]]),"Sen då")),0) ->  | CF36: =SUM(KontrollTabell[[#This Row],[A4 - Resultat alt 1 '[kg']]:[A4 - Alt 2 - beräkning utsläpp]]) -> 0 | CG36: =IF(KontrollTabell[[#This Row],[Finns anläggningsdel-namn.]]=FALSE,"",IF(ISBLANK(InputA1A3[[#This Row],[EPD - EF A4]]),FALSE,TRUE)) ->  | CH36: =IFERROR(IF(KontrollTabell[[#This Row],[True/False A5]]=FALSE(),"Enheter",IF(ISBLANK(InputA1A3[[#This Row],[Omräkningsfaktor (A5.2) (ange värde), (vid behov)]]),InputA1A3[[#This Row],[Mängd (A5.2)]]*InputA1A3[[#This Row],[*EF (A5.2) '[kg CO₂-ekv.']]],InputA1A3[[#This Row],[Mängd (A5.2)]]*InputA1A3[[#This Row],[*EF (A5.2) '[kg CO₂-ekv.']]]*InputA1A3[[#This Row],[Omräkningsfaktor (A5.2) (ange värde), (vid behov)]])),0) -> 0 | CI36: =IF(InputA1A3[[#This Row],[*DU/FU (EF A5.2)]]="","",IF(InputA1A3[[#This Row],[Enhet för mängd (A5.2)]]="","Värde Behövs",IF(OR(InputA1A3[[#This Row],[Enhet för mängd (A5.2)]]=InputA1A3[[#This Row],[*DU/FU (EF A5.2)]],AND(InputA1A3[[#This Row],[Enhet för mängd (A5.2)]]<>InputA1A3[[#This Row],[*DU/FU (EF A5.2)]],ISNUMBER(InputA1A3[[#This Row],[Omräkningsfaktor (A5.2) (ange värde), (vid behov)]]))),TRUE,FALSE))) ->  | CJ36: =IF(OR(KontrollTabell[[#This Row],[Finns anläggningsdel-namn.]]=FALSE,KontrollTabell[[#This Row],[True/False A5]]="Värde Behövs"),"",IF(InputA1A3[[#This Row],[Enhet för mängd (A5.2)]] = InputA1A3[[#This Row],[*DU/FU (EF A5.2)]], TRUE, FALSE)) ->  | CK36: =IF(KontrollTabell[[#This Row],[Finns anläggningsdel-namn.]]=FALSE,"",IF(OR(ISBLANK(InputA1A3[[#This Row],[Kategori (egen kategorisering)]])=FALSE,ISBLANK(InputA1A3[[#This Row],[Anläggningsdel ]]))=FALSE,TRUE,FALSE)) ->  | CL36: =IF(ISBLANK(InputA1A3[[#This Row],[Anläggningsdel ]]),"",IF(KontrollTabell[[#This Row],[TRUE/FALSE om kategori saknas.]] =FALSE,InputA1A3[[#This Row],[Kategori (egen kategorisering)]],"Kategori saknas")) -> 
J37: =IF(ISBLANK(InputA1A3[[#This Row],[Anläggningsdel ]]),"",IF(OR(KontrollTabell[[#This Row],[True/False A1A3 Enhet]]=TRUE,KontrollTabell[[#This Row],[True/False A1A3 Enhet]]="Värde Behövs",KontrollTabell[[#This Row],[True/False A1A3 Enhet]]=""), "", InputA1A3[[#This Row],[FU/DU (EF A1A3)]] & "/" & InputA1A3[[#This Row],[Enhet Mängd (A1A3)]])) ->  | O37: =IF(ISBLANK(InputA1A3[[#This Row],[EPD - EF A4]]),"",InputA1A3[[#This Row],[FU/DU (EF A1A3)]]) ->  | T37: =IFERROR(INDEX(TabellEFDrivmedel[],MATCH(InputA1A3[[#This Row],[Drivmedel (A4) (endast förval ur lista)]],TabellEFDrivmedel[Drivmedel],0),4),"") ->  | X37: =IF(InputA1A3[[#This Row],[*DU/FU (EF A4) för valt drivmedel (schablon)]]="","",IF(OR(InputA1A3[[#This Row],[*DU/FU (EF A4) för valt drivmedel (schablon)]]=InputA1A3[[#This Row],[Enhet (bränsleförbrukning per km)]],KontrollTabell[[#This Row],[True/False A4 - Alt 2]]="Värde Behövs"),"",InputA1A3[[#This Row],[Enhet (bränsleförbrukning per km)]]& "/" & InputA1A3[[#This Row],[*DU/FU (EF A4) för valt drivmedel (schablon)]])) ->  | AF37: =IFERROR(INDEX(TabellEFDrivmedel[],MATCH(InputA1A3[[#This Row],[Drivmedel (A5.2)]],TabellEFDrivmedel[Drivmedel],0),2),"") ->  | AG37: =IFERROR(INDEX(TabellEFDrivmedel[],MATCH(InputA1A3[[#This Row],[Drivmedel (A5.2)]],TabellEFDrivmedel[Drivmedel],0),4),"") ->  | AH37: =IF(OR(KontrollTabell[[#This Row],[True/False A5 Enhet]]=TRUE,KontrollTabell[[#This Row],[True/False A5 Enhet]]=""), "", InputA1A3[[#This Row],[*DU/FU (EF A5.2)]] & "/" & InputA1A3[[#This Row],[Enhet för mängd (A5.2)]]) ->  | BW37: =IF(ISBLANK(InputA1A3[[#This Row],[Anläggningsdel ]]),FALSE,TRUE) -> FALSE | BX37: =IF(ISBLANK(InputA1A3[[#This Row],[Anläggningsdel ]]),"",IF(ISBLANK(InputA1A3[[#This Row],[Enhet Mängd (A1A3)]]),"",IF(ISBLANK(InputA1A3[[#This Row],[FU/DU (EF A1A3)]]),"Värde Behövs",IF(InputA1A3[[#This Row],[Enhet Mängd (A1A3)]] = InputA1A3[[#This Row],[FU/DU (EF A1A3)]], TRUE, FALSE)))) ->  | BY37: =IF(KontrollTabell[[#This Row],[Finns anläggningsdel-namn.]]=FALSE,"",(IF(KontrollTabell[[#This Row],[True/False A1A3 Enhet]]=TRUE,TRUE,IF(OR(KontrollTabell[[#This Row],[True/False A1A3 Enhet]]="Värde Behövs",(KontrollTabell[[#This Row],[True/False A1A3 Enhet]]="")),"",IF(ISBLANK(InputA1A3[[#This Row],[Omräkning till FU/DU (Skriv in värde, ej formel)]]),FALSE,TRUE))))) ->  | BZ37: =IF(KontrollTabell[[#This Row],[Finns anläggningsdel-namn.]]=FALSE,,IF(KontrollTabell[[#This Row],[True/False A1A3 Enhet]]=TRUE,InputA1A3[[#This Row],[Mängd A1A3]]*InputA1A3[[#This Row],[EF A1A3 '[kg CO₂-ekv.']]],IF(KontrollTabell[[#This Row],[True/False A1A3 om A1A3 kan beräknas]]=TRUE,InputA1A3[[#This Row],[Mängd A1A3]]*InputA1A3[[#This Row],[EF A1A3 '[kg CO₂-ekv.']]]*InputA1A3[[#This Row],[Omräkning till FU/DU (Skriv in värde, ej formel)]],0))) -> 0 | CA37: =IF(ISBLANK(InputA1A3[[#This Row],[Anläggningsdel ]]),"",IF(ISBLANK(InputA1A3[[#This Row],[EPD - EF A4]]),FALSE,TRUE)) ->  | CB37: =IF(InputA1A3[[#This Row],[*DU/FU (EF A4) för valt drivmedel (schablon)]]="","",IF(InputA1A3[[#This Row],[Enhet (bränsleförbrukning per km)]]="","Värde Behövs",IF(OR(InputA1A3[[#This Row],[Enhet (bränsleförbrukning per km)]]=InputA1A3[[#This Row],[*DU/FU (EF A4) för valt drivmedel (schablon)]],AND(InputA1A3[[#This Row],[Enhet (bränsleförbrukning per km)]]<>InputA1A3[[#This Row],[*DU/FU (EF A4) för valt drivmedel (schablon)]],ISNUMBER(InputA1A3[[#This Row],[Omräkningsfaktor (A4), (vid behov, värde eller formel)]]))),TRUE(),FALSE()))) ->  | CC37: =IF(KontrollTabell[[#This Row],[Finns anläggningsdel-namn.]]=FALSE,"",(IF(InputA1A3[[#This Row],[Enhet (bränsleförbrukning per km)]] =InputA1A3[[#This Row],[*DU/FU (EF A4) för valt drivmedel (schablon)]],TRUE,IF(KontrollTabell[[#This Row],[True/False A4 - Alt 2]]="Värde Behövs","",IF(ISBLANK(InputA1A3[[#This Row],[Omräkningsfaktor (A4), (vid behov, värde eller formel)]]),FALSE,TRUE))))) ->  | CD37: =IF(ISBLANK(InputA1A3[[#This Row],[EPD - EF A4]]),"",IF(ISBLANK(InputA1A3[[#This Row],[Omräkning till FU/DU (Skriv in värde, ej formel)]]),InputA1A3[[#This Row],[EPD - EF A4]]*InputA1A3[[#This Row],[Mängd A1A3]],InputA1A3[[#This Row],[Mängd A1A3]]*InputA1A3[[#This Row],[Omräkning till FU/DU (Skriv in värde, ej formel)]]*InputA1A3[[#This Row],[EPD - EF A4]])) ->  | CE37: =IFERROR(IF(KontrollTabell[[#This Row],[True/False A4 - Alt 2]]="","",IF(KontrollTabell[[#This Row],[True/False A4 Enhet - Alt2]]=TRUE, IF(ISNUMBER(InputA1A3[[#This Row],[Omräkningsfaktor (A4), (vid behov, värde eller formel)]]),InputA1A3[[#This Row],[Sträcka - totalt '[km'], (tur och retur, alla transporter)]]*InputA1A3[[#This Row],[(Bränsle-) Förbrukning per km]]/InputA1A3[[#This Row],[Omräkningsfaktor (A4), (vid behov, värde eller formel)]]*InputA1A3[[#This Row],[*EF (A4) '[kg CO₂-ekv.']]], InputA1A3[[#This Row],[Sträcka - totalt '[km'], (tur och retur, alla transporter)]]*InputA1A3[[#This Row],[(Bränsle-) Förbrukning per km]]*InputA1A3[[#This Row],[*EF (A4) '[kg CO₂-ekv.']]]),"Sen då")),0) ->  | CF37: =SUM(KontrollTabell[[#This Row],[A4 - Resultat alt 1 '[kg']]:[A4 - Alt 2 - beräkning utsläpp]]) -> 0 | CG37: =IF(KontrollTabell[[#This Row],[Finns anläggningsdel-namn.]]=FALSE,"",IF(ISBLANK(InputA1A3[[#This Row],[EPD - EF A4]]),FALSE,TRUE)) ->  | CH37: =IFERROR(IF(KontrollTabell[[#This Row],[True/False A5]]=FALSE(),"Enheter",IF(ISBLANK(InputA1A3[[#This Row],[Omräkningsfaktor (A5.2) (ange värde), (vid behov)]]),InputA1A3[[#This Row],[Mängd (A5.2)]]*InputA1A3[[#This Row],[*EF (A5.2) '[kg CO₂-ekv.']]],InputA1A3[[#This Row],[Mängd (A5.2)]]*InputA1A3[[#This Row],[*EF (A5.2) '[kg CO₂-ekv.']]]*InputA1A3[[#This Row],[Omräkningsfaktor (A5.2) (ange värde), (vid behov)]])),0) -> 0 | CI37: =IF(InputA1A3[[#This Row],[*DU/FU (EF A5.2)]]="","",IF(InputA1A3[[#This Row],[Enhet för mängd (A5.2)]]="","Värde Behövs",IF(OR(InputA1A3[[#This Row],[Enhet för mängd (A5.2)]]=InputA1A3[[#This Row],[*DU/FU (EF A5.2)]],AND(InputA1A3[[#This Row],[Enhet för mängd (A5.2)]]<>InputA1A3[[#This Row],[*DU/FU (EF A5.2)]],ISNUMBER(InputA1A3[[#This Row],[Omräkningsfaktor (A5.2) (ange värde), (vid behov)]]))),TRUE,FALSE))) ->  | CJ37: =IF(OR(KontrollTabell[[#This Row],[Finns anläggningsdel-namn.]]=FALSE,KontrollTabell[[#This Row],[True/False A5]]="Värde Behövs"),"",IF(InputA1A3[[#This Row],[Enhet för mängd (A5.2)]] = InputA1A3[[#This Row],[*DU/FU (EF A5.2)]], TRUE, FALSE)) ->  | CK37: =IF(KontrollTabell[[#This Row],[Finns anläggningsdel-namn.]]=FALSE,"",IF(OR(ISBLANK(InputA1A3[[#This Row],[Kategori (egen kategorisering)]])=FALSE,ISBLANK(InputA1A3[[#This Row],[Anläggningsdel ]]))=FALSE,TRUE,FALSE)) ->  | CL37: =IF(ISBLANK(InputA1A3[[#This Row],[Anläggningsdel ]]),"",IF(KontrollTabell[[#This Row],[TRUE/FALSE om kategori saknas.]] =FALSE,InputA1A3[[#This Row],[Kategori (egen kategorisering)]],"Kategori saknas")) -> 
J38: =IF(ISBLANK(InputA1A3[[#This Row],[Anläggningsdel ]]),"",IF(OR(KontrollTabell[[#This Row],[True/False A1A3 Enhet]]=TRUE,KontrollTabell[[#This Row],[True/False A1A3 Enhet]]="Värde Behövs",KontrollTabell[[#This Row],[True/False A1A3 Enhet]]=""), "", InputA1A3[[#This Row],[FU/DU (EF A1A3)]] & "/" & InputA1A3[[#This Row],[Enhet Mängd (A1A3)]])) ->  | O38: =IF(ISBLANK(InputA1A3[[#This Row],[EPD - EF A4]]),"",InputA1A3[[#This Row],[FU/DU (EF A1A3)]]) ->  | T38: =IFERROR(INDEX(TabellEFDrivmedel[],MATCH(InputA1A3[[#This Row],[Drivmedel (A4) (endast förval ur lista)]],TabellEFDrivmedel[Drivmedel],0),4),"") ->  | X38: =IF(InputA1A3[[#This Row],[*DU/FU (EF A4) för valt drivmedel (schablon)]]="","",IF(OR(InputA1A3[[#This Row],[*DU/FU (EF A4) för valt drivmedel (schablon)]]=InputA1A3[[#This Row],[Enhet (bränsleförbrukning per km)]],KontrollTabell[[#This Row],[True/False A4 - Alt 2]]="Värde Behövs"),"",InputA1A3[[#This Row],[Enhet (bränsleförbrukning per km)]]& "/" & InputA1A3[[#This Row],[*DU/FU (EF A4) för valt drivmedel (schablon)]])) ->  | AF38: =IFERROR(INDEX(TabellEFDrivmedel[],MATCH(InputA1A3[[#This Row],[Drivmedel (A5.2)]],TabellEFDrivmedel[Drivmedel],0),2),"") ->  | AG38: =IFERROR(INDEX(TabellEFDrivmedel[],MATCH(InputA1A3[[#This Row],[Drivmedel (A5.2)]],TabellEFDrivmedel[Drivmedel],0),4),"") ->  | AH38: =IF(OR(KontrollTabell[[#This Row],[True/False A5 Enhet]]=TRUE,KontrollTabell[[#This Row],[True/False A5 Enhet]]=""), "", InputA1A3[[#This Row],[*DU/FU (EF A5.2)]] & "/" & InputA1A3[[#This Row],[Enhet för mängd (A5.2)]]) ->  | BW38: =IF(ISBLANK(InputA1A3[[#This Row],[Anläggningsdel ]]),FALSE,TRUE) -> FALSE | BX38: =IF(ISBLANK(InputA1A3[[#This Row],[Anläggningsdel ]]),"",IF(ISBLANK(InputA1A3[[#This Row],[Enhet Mängd (A1A3)]]),"",IF(ISBLANK(InputA1A3[[#This Row],[FU/DU (EF A1A3)]]),"Värde Behövs",IF(InputA1A3[[#This Row],[Enhet Mängd (A1A3)]] = InputA1A3[[#This Row],[FU/DU (EF A1A3)]], TRUE, FALSE)))) ->  | BY38: =IF(KontrollTabell[[#This Row],[Finns anläggningsdel-namn.]]=FALSE,"",(IF(KontrollTabell[[#This Row],[True/False A1A3 Enhet]]=TRUE,TRUE,IF(OR(KontrollTabell[[#This Row],[True/False A1A3 Enhet]]="Värde Behövs",(KontrollTabell[[#This Row],[True/False A1A3 Enhet]]="")),"",IF(ISBLANK(InputA1A3[[#This Row],[Omräkning till FU/DU (Skriv in värde, ej formel)]]),FALSE,TRUE))))) ->  | BZ38: =IF(KontrollTabell[[#This Row],[Finns anläggningsdel-namn.]]=FALSE,,IF(KontrollTabell[[#This Row],[True/False A1A3 Enhet]]=TRUE,InputA1A3[[#This Row],[Mängd A1A3]]*InputA1A3[[#This Row],[EF A1A3 '[kg CO₂-ekv.']]],IF(KontrollTabell[[#This Row],[True/False A1A3 om A1A3 kan beräknas]]=TRUE,InputA1A3[[#This Row],[Mängd A1A3]]*InputA1A3[[#This Row],[EF A1A3 '[kg CO₂-ekv.']]]*InputA1A3[[#This Row],[Omräkning till FU/DU (Skriv in värde, ej formel)]],0))) -> 0 | CA38: =IF(ISBLANK(InputA1A3[[#This Row],[Anläggningsdel ]]),"",IF(ISBLANK(InputA1A3[[#This Row],[EPD - EF A4]]),FALSE,TRUE)) ->  | CB38: =IF(InputA1A3[[#This Row],[*DU/FU (EF A4) för valt drivmedel (schablon)]]="","",IF(InputA1A3[[#This Row],[Enhet (bränsleförbrukning per km)]]="","Värde Behövs",IF(OR(InputA1A3[[#This Row],[Enhet (bränsleförbrukning per km)]]=InputA1A3[[#This Row],[*DU/FU (EF A4) för valt drivmedel (schablon)]],AND(InputA1A3[[#This Row],[Enhet (bränsleförbrukning per km)]]<>InputA1A3[[#This Row],[*DU/FU (EF A4) för valt drivmedel (schablon)]],ISNUMBER(InputA1A3[[#This Row],[Omräkningsfaktor (A4), (vid behov, värde eller formel)]]))),TRUE(),FALSE()))) ->  | CC38: =IF(KontrollTabell[[#This Row],[Finns anläggningsdel-namn.]]=FALSE,"",(IF(InputA1A3[[#This Row],[Enhet (bränsleförbrukning per km)]] =InputA1A3[[#This Row],[*DU/FU (EF A4) för valt drivmedel (schablon)]],TRUE,IF(KontrollTabell[[#This Row],[True/False A4 - Alt 2]]="Värde Behövs","",IF(ISBLANK(InputA1A3[[#This Row],[Omräkningsfaktor (A4), (vid behov, värde eller formel)]]),FALSE,TRUE))))) ->  | CD38: =IF(ISBLANK(InputA1A3[[#This Row],[EPD - EF A4]]),"",IF(ISBLANK(InputA1A3[[#This Row],[Omräkning till FU/DU (Skriv in värde, ej formel)]]),InputA1A3[[#This Row],[EPD - EF A4]]*InputA1A3[[#This Row],[Mängd A1A3]],InputA1A3[[#This Row],[Mängd A1A3]]*InputA1A3[[#This Row],[Omräkning till FU/DU (Skriv in värde, ej formel)]]*InputA1A3[[#This Row],[EPD - EF A4]])) ->  | CE38: =IFERROR(IF(KontrollTabell[[#This Row],[True/False A4 - Alt 2]]="","",IF(KontrollTabell[[#This Row],[True/False A4 Enhet - Alt2]]=TRUE, IF(ISNUMBER(InputA1A3[[#This Row],[Omräkningsfaktor (A4), (vid behov, värde eller formel)]]),InputA1A3[[#This Row],[Sträcka - totalt '[km'], (tur och retur, alla transporter)]]*InputA1A3[[#This Row],[(Bränsle-) Förbrukning per km]]/InputA1A3[[#This Row],[Omräkningsfaktor (A4), (vid behov, värde eller formel)]]*InputA1A3[[#This Row],[*EF (A4) '[kg CO₂-ekv.']]], InputA1A3[[#This Row],[Sträcka - totalt '[km'], (tur och retur, alla transporter)]]*InputA1A3[[#This Row],[(Bränsle-) Förbrukning per km]]*InputA1A3[[#This Row],[*EF (A4) '[kg CO₂-ekv.']]]),"Sen då")),0) ->  | CF38: =SUM(KontrollTabell[[#This Row],[A4 - Resultat alt 1 '[kg']]:[A4 - Alt 2 - beräkning utsläpp]]) -> 0 | CG38: =IF(KontrollTabell[[#This Row],[Finns anläggningsdel-namn.]]=FALSE,"",IF(ISBLANK(InputA1A3[[#This Row],[EPD - EF A4]]),FALSE,TRUE)) ->  | CH38: =IFERROR(IF(KontrollTabell[[#This Row],[True/False A5]]=FALSE(),"Enheter",IF(ISBLANK(InputA1A3[[#This Row],[Omräkningsfaktor (A5.2) (ange värde), (vid behov)]]),InputA1A3[[#This Row],[Mängd (A5.2)]]*InputA1A3[[#This Row],[*EF (A5.2) '[kg CO₂-ekv.']]],InputA1A3[[#This Row],[Mängd (A5.2)]]*InputA1A3[[#This Row],[*EF (A5.2) '[kg CO₂-ekv.']]]*InputA1A3[[#This Row],[Omräkningsfaktor (A5.2) (ange värde), (vid behov)]])),0) -> 0 | CI38: =IF(InputA1A3[[#This Row],[*DU/FU (EF A5.2)]]="","",IF(InputA1A3[[#This Row],[Enhet för mängd (A5.2)]]="","Värde Behövs",IF(OR(InputA1A3[[#This Row],[Enhet för mängd (A5.2)]]=InputA1A3[[#This Row],[*DU/FU (EF A5.2)]],AND(InputA1A3[[#This Row],[Enhet för mängd (A5.2)]]<>InputA1A3[[#This Row],[*DU/FU (EF A5.2)]],ISNUMBER(InputA1A3[[#This Row],[Omräkningsfaktor (A5.2) (ange värde), (vid behov)]]))),TRUE,FALSE))) ->  | CJ38: =IF(OR(KontrollTabell[[#This Row],[Finns anläggningsdel-namn.]]=FALSE,KontrollTabell[[#This Row],[True/False A5]]="Värde Behövs"),"",IF(InputA1A3[[#This Row],[Enhet för mängd (A5.2)]] = InputA1A3[[#This Row],[*DU/FU (EF A5.2)]], TRUE, FALSE)) ->  | CK38: =IF(KontrollTabell[[#This Row],[Finns anläggningsdel-namn.]]=FALSE,"",IF(OR(ISBLANK(InputA1A3[[#This Row],[Kategori (egen kategorisering)]])=FALSE,ISBLANK(InputA1A3[[#This Row],[Anläggningsdel ]]))=FALSE,TRUE,FALSE)) ->  | CL38: =IF(ISBLANK(InputA1A3[[#This Row],[Anläggningsdel ]]),"",IF(KontrollTabell[[#This Row],[TRUE/FALSE om kategori saknas.]] =FALSE,InputA1A3[[#This Row],[Kategori (egen kategorisering)]],"Kategori saknas")) -> 
J39: =IF(ISBLANK(InputA1A3[[#This Row],[Anläggningsdel ]]),"",IF(OR(KontrollTabell[[#This Row],[True/False A1A3 Enhet]]=TRUE,KontrollTabell[[#This Row],[True/False A1A3 Enhet]]="Värde Behövs",KontrollTabell[[#This Row],[True/False A1A3 Enhet]]=""), "", InputA1A3[[#This Row],[FU/DU (EF A1A3)]] & "/" & InputA1A3[[#This Row],[Enhet Mängd (A1A3)]])) ->  | O39: =IF(ISBLANK(InputA1A3[[#This Row],[EPD - EF A4]]),"",InputA1A3[[#This Row],[FU/DU (EF A1A3)]]) ->  | T39: =IFERROR(INDEX(TabellEFDrivmedel[],MATCH(InputA1A3[[#This Row],[Drivmedel (A4) (endast förval ur lista)]],TabellEFDrivmedel[Drivmedel],0),4),"") ->  | X39: =IF(InputA1A3[[#This Row],[*DU/FU (EF A4) för valt drivmedel (schablon)]]="","",IF(OR(InputA1A3[[#This Row],[*DU/FU (EF A4) för valt drivmedel (schablon)]]=InputA1A3[[#This Row],[Enhet (bränsleförbrukning per km)]],KontrollTabell[[#This Row],[True/False A4 - Alt 2]]="Värde Behövs"),"",InputA1A3[[#This Row],[Enhet (bränsleförbrukning per km)]]& "/" & InputA1A3[[#This Row],[*DU/FU (EF A4) för valt drivmedel (schablon)]])) ->  | AF39: =IFERROR(INDEX(TabellEFDrivmedel[],MATCH(InputA1A3[[#This Row],[Drivmedel (A5.2)]],TabellEFDrivmedel[Drivmedel],0),2),"") ->  | AG39: =IFERROR(INDEX(TabellEFDrivmedel[],MATCH(InputA1A3[[#This Row],[Drivmedel (A5.2)]],TabellEFDrivmedel[Drivmedel],0),4),"") ->  | AH39: =IF(OR(KontrollTabell[[#This Row],[True/False A5 Enhet]]=TRUE,KontrollTabell[[#This Row],[True/False A5 Enhet]]=""), "", InputA1A3[[#This Row],[*DU/FU (EF A5.2)]] & "/" & InputA1A3[[#This Row],[Enhet för mängd (A5.2)]]) ->  | BW39: =IF(ISBLANK(InputA1A3[[#This Row],[Anläggningsdel ]]),FALSE,TRUE) -> FALSE | BX39: =IF(ISBLANK(InputA1A3[[#This Row],[Anläggningsdel ]]),"",IF(ISBLANK(InputA1A3[[#This Row],[Enhet Mängd (A1A3)]]),"",IF(ISBLANK(InputA1A3[[#This Row],[FU/DU (EF A1A3)]]),"Värde Behövs",IF(InputA1A3[[#This Row],[Enhet Mängd (A1A3)]] = InputA1A3[[#This Row],[FU/DU (EF A1A3)]], TRUE, FALSE)))) ->  | BY39: =IF(KontrollTabell[[#This Row],[Finns anläggningsdel-namn.]]=FALSE,"",(IF(KontrollTabell[[#This Row],[True/False A1A3 Enhet]]=TRUE,TRUE,IF(OR(KontrollTabell[[#This Row],[True/False A1A3 Enhet]]="Värde Behövs",(KontrollTabell[[#This Row],[True/False A1A3 Enhet]]="")),"",IF(ISBLANK(InputA1A3[[#This Row],[Omräkning till FU/DU (Skriv in värde, ej formel)]]),FALSE,TRUE))))) ->  | BZ39: =IF(KontrollTabell[[#This Row],[Finns anläggningsdel-namn.]]=FALSE,,IF(KontrollTabell[[#This Row],[True/False A1A3 Enhet]]=TRUE,InputA1A3[[#This Row],[Mängd A1A3]]*InputA1A3[[#This Row],[EF A1A3 '[kg CO₂-ekv.']]],IF(KontrollTabell[[#This Row],[True/False A1A3 om A1A3 kan beräknas]]=TRUE,InputA1A3[[#This Row],[Mängd A1A3]]*InputA1A3[[#This Row],[EF A1A3 '[kg CO₂-ekv.']]]*InputA1A3[[#This Row],[Omräkning till FU/DU (Skriv in värde, ej formel)]],0))) -> 0 | CA39: =IF(ISBLANK(InputA1A3[[#This Row],[Anläggningsdel ]]),"",IF(ISBLANK(InputA1A3[[#This Row],[EPD - EF A4]]),FALSE,TRUE)) ->  | CB39: =IF(InputA1A3[[#This Row],[*DU/FU (EF A4) för valt drivmedel (schablon)]]="","",IF(InputA1A3[[#This Row],[Enhet (bränsleförbrukning per km)]]="","Värde Behövs",IF(OR(InputA1A3[[#This Row],[Enhet (bränsleförbrukning per km)]]=InputA1A3[[#This Row],[*DU/FU (EF A4) för valt drivmedel (schablon)]],AND(InputA1A3[[#This Row],[Enhet (bränsleförbrukning per km)]]<>InputA1A3[[#This Row],[*DU/FU (EF A4) för valt drivmedel (schablon)]],ISNUMBER(InputA1A3[[#This Row],[Omräkningsfaktor (A4), (vid behov, värde eller formel)]]))),TRUE(),FALSE()))) ->  | CC39: =IF(KontrollTabell[[#This Row],[Finns anläggningsdel-namn.]]=FALSE,"",(IF(InputA1A3[[#This Row],[Enhet (bränsleförbrukning per km)]] =InputA1A3[[#This Row],[*DU/FU (EF A4) för valt drivmedel (schablon)]],TRUE,IF(KontrollTabell[[#This Row],[True/False A4 - Alt 2]]="Värde Behövs","",IF(ISBLANK(InputA1A3[[#This Row],[Omräkningsfaktor (A4), (vid behov, värde eller formel)]]),FALSE,TRUE))))) ->  | CD39: =IF(ISBLANK(InputA1A3[[#This Row],[EPD - EF A4]]),"",IF(ISBLANK(InputA1A3[[#This Row],[Omräkning till FU/DU (Skriv in värde, ej formel)]]),InputA1A3[[#This Row],[EPD - EF A4]]*InputA1A3[[#This Row],[Mängd A1A3]],InputA1A3[[#This Row],[Mängd A1A3]]*InputA1A3[[#This Row],[Omräkning till FU/DU (Skriv in värde, ej formel)]]*InputA1A3[[#This Row],[EPD - EF A4]])) ->  | CE39: =IFERROR(IF(KontrollTabell[[#This Row],[True/False A4 - Alt 2]]="","",IF(KontrollTabell[[#This Row],[True/False A4 Enhet - Alt2]]=TRUE, IF(ISNUMBER(InputA1A3[[#This Row],[Omräkningsfaktor (A4), (vid behov, värde eller formel)]]),InputA1A3[[#This Row],[Sträcka - totalt '[km'], (tur och retur, alla transporter)]]*InputA1A3[[#This Row],[(Bränsle-) Förbrukning per km]]/InputA1A3[[#This Row],[Omräkningsfaktor (A4), (vid behov, värde eller formel)]]*InputA1A3[[#This Row],[*EF (A4) '[kg CO₂-ekv.']]], InputA1A3[[#This Row],[Sträcka - totalt '[km'], (tur och retur, alla transporter)]]*InputA1A3[[#This Row],[(Bränsle-) Förbrukning per km]]*InputA1A3[[#This Row],[*EF (A4) '[kg CO₂-ekv.']]]),"Sen då")),0) ->  | CF39: =SUM(KontrollTabell[[#This Row],[A4 - Resultat alt 1 '[kg']]:[A4 - Alt 2 - beräkning utsläpp]]) -> 0 | CG39: =IF(KontrollTabell[[#This Row],[Finns anläggningsdel-namn.]]=FALSE,"",IF(ISBLANK(InputA1A3[[#This Row],[EPD - EF A4]]),FALSE,TRUE)) ->  | CH39: =IFERROR(IF(KontrollTabell[[#This Row],[True/False A5]]=FALSE(),"Enheter",IF(ISBLANK(InputA1A3[[#This Row],[Omräkningsfaktor (A5.2) (ange värde), (vid behov)]]),InputA1A3[[#This Row],[Mängd (A5.2)]]*InputA1A3[[#This Row],[*EF (A5.2) '[kg CO₂-ekv.']]],InputA1A3[[#This Row],[Mängd (A5.2)]]*InputA1A3[[#This Row],[*EF (A5.2) '[kg CO₂-ekv.']]]*InputA1A3[[#This Row],[Omräkningsfaktor (A5.2) (ange värde), (vid behov)]])),0) -> 0 | CI39: =IF(InputA1A3[[#This Row],[*DU/FU (EF A5.2)]]="","",IF(InputA1A3[[#This Row],[Enhet för mängd (A5.2)]]="","Värde Behövs",IF(OR(InputA1A3[[#This Row],[Enhet för mängd (A5.2)]]=InputA1A3[[#This Row],[*DU/FU (EF A5.2)]],AND(InputA1A3[[#This Row],[Enhet för mängd (A5.2)]]<>InputA1A3[[#This Row],[*DU/FU (EF A5.2)]],ISNUMBER(InputA1A3[[#This Row],[Omräkningsfaktor (A5.2) (ange värde), (vid behov)]]))),TRUE,FALSE))) ->  | CJ39: =IF(OR(KontrollTabell[[#This Row],[Finns anläggningsdel-namn.]]=FALSE,KontrollTabell[[#This Row],[True/False A5]]="Värde Behövs"),"",IF(InputA1A3[[#This Row],[Enhet för mängd (A5.2)]] = InputA1A3[[#This Row],[*DU/FU (EF A5.2)]], TRUE, FALSE)) ->  | CK39: =IF(KontrollTabell[[#This Row],[Finns anläggningsdel-namn.]]=FALSE,"",IF(OR(ISBLANK(InputA1A3[[#This Row],[Kategori (egen kategorisering)]])=FALSE,ISBLANK(InputA1A3[[#This Row],[Anläggningsdel ]]))=FALSE,TRUE,FALSE)) ->  | CL39: =IF(ISBLANK(InputA1A3[[#This Row],[Anläggningsdel ]]),"",IF(KontrollTabell[[#This Row],[TRUE/FALSE om kategori saknas.]] =FALSE,InputA1A3[[#This Row],[Kategori (egen kategorisering)]],"Kategori saknas")) -> 
J40: =IF(ISBLANK(InputA1A3[[#This Row],[Anläggningsdel ]]),"",IF(OR(KontrollTabell[[#This Row],[True/False A1A3 Enhet]]=TRUE,KontrollTabell[[#This Row],[True/False A1A3 Enhet]]="Värde Behövs",KontrollTabell[[#This Row],[True/False A1A3 Enhet]]=""), "", InputA1A3[[#This Row],[FU/DU (EF A1A3)]] & "/" & InputA1A3[[#This Row],[Enhet Mängd (A1A3)]])) ->  | O40: =IF(ISBLANK(InputA1A3[[#This Row],[EPD - EF A4]]),"",InputA1A3[[#This Row],[FU/DU (EF A1A3)]]) ->  | T40: =IFERROR(INDEX(TabellEFDrivmedel[],MATCH(InputA1A3[[#This Row],[Drivmedel (A4) (endast förval ur lista)]],TabellEFDrivmedel[Drivmedel],0),4),"") ->  | X40: =IF(InputA1A3[[#This Row],[*DU/FU (EF A4) för valt drivmedel (schablon)]]="","",IF(OR(InputA1A3[[#This Row],[*DU/FU (EF A4) för valt drivmedel (schablon)]]=InputA1A3[[#This Row],[Enhet (bränsleförbrukning per km)]],KontrollTabell[[#This Row],[True/False A4 - Alt 2]]="Värde Behövs"),"",InputA1A3[[#This Row],[Enhet (bränsleförbrukning per km)]]& "/" & InputA1A3[[#This Row],[*DU/FU (EF A4) för valt drivmedel (schablon)]])) ->  | AF40: =IFERROR(INDEX(TabellEFDrivmedel[],MATCH(InputA1A3[[#This Row],[Drivmedel (A5.2)]],TabellEFDrivmedel[Drivmedel],0),2),"") ->  | AG40: =IFERROR(INDEX(TabellEFDrivmedel[],MATCH(InputA1A3[[#This Row],[Drivmedel (A5.2)]],TabellEFDrivmedel[Drivmedel],0),4),"") ->  | AH40: =IF(OR(KontrollTabell[[#This Row],[True/False A5 Enhet]]=TRUE,KontrollTabell[[#This Row],[True/False A5 Enhet]]=""), "", InputA1A3[[#This Row],[*DU/FU (EF A5.2)]] & "/" & InputA1A3[[#This Row],[Enhet för mängd (A5.2)]]) ->  | BW40: =IF(ISBLANK(InputA1A3[[#This Row],[Anläggningsdel ]]),FALSE,TRUE) -> FALSE | BX40: =IF(ISBLANK(InputA1A3[[#This Row],[Anläggningsdel ]]),"",IF(ISBLANK(InputA1A3[[#This Row],[Enhet Mängd (A1A3)]]),"",IF(ISBLANK(InputA1A3[[#This Row],[FU/DU (EF A1A3)]]),"Värde Behövs",IF(InputA1A3[[#This Row],[Enhet Mängd (A1A3)]] = InputA1A3[[#This Row],[FU/DU (EF A1A3)]], TRUE, FALSE)))) ->  | BY40: =IF(KontrollTabell[[#This Row],[Finns anläggningsdel-namn.]]=FALSE,"",(IF(KontrollTabell[[#This Row],[True/False A1A3 Enhet]]=TRUE,TRUE,IF(OR(KontrollTabell[[#This Row],[True/False A1A3 Enhet]]="Värde Behövs",(KontrollTabell[[#This Row],[True/False A1A3 Enhet]]="")),"",IF(ISBLANK(InputA1A3[[#This Row],[Omräkning till FU/DU (Skriv in värde, ej formel)]]),FALSE,TRUE))))) ->  | BZ40: =IF(KontrollTabell[[#This Row],[Finns anläggningsdel-namn.]]=FALSE,,IF(KontrollTabell[[#This Row],[True/False A1A3 Enhet]]=TRUE,InputA1A3[[#This Row],[Mängd A1A3]]*InputA1A3[[#This Row],[EF A1A3 '[kg CO₂-ekv.']]],IF(KontrollTabell[[#This Row],[True/False A1A3 om A1A3 kan beräknas]]=TRUE,InputA1A3[[#This Row],[Mängd A1A3]]*InputA1A3[[#This Row],[EF A1A3 '[kg CO₂-ekv.']]]*InputA1A3[[#This Row],[Omräkning till FU/DU (Skriv in värde, ej formel)]],0))) -> 0 | CA40: =IF(ISBLANK(InputA1A3[[#This Row],[Anläggningsdel ]]),"",IF(ISBLANK(InputA1A3[[#This Row],[EPD - EF A4]]),FALSE,TRUE)) ->  | CB40: =IF(InputA1A3[[#This Row],[*DU/FU (EF A4) för valt drivmedel (schablon)]]="","",IF(InputA1A3[[#This Row],[Enhet (bränsleförbrukning per km)]]="","Värde Behövs",IF(OR(InputA1A3[[#This Row],[Enhet (bränsleförbrukning per km)]]=InputA1A3[[#This Row],[*DU/FU (EF A4) för valt drivmedel (schablon)]],AND(InputA1A3[[#This Row],[Enhet (bränsleförbrukning per km)]]<>InputA1A3[[#This Row],[*DU/FU (EF A4) för valt drivmedel (schablon)]],ISNUMBER(InputA1A3[[#This Row],[Omräkningsfaktor (A4), (vid behov, värde eller formel)]]))),TRUE(),FALSE()))) ->  | CC40: =IF(KontrollTabell[[#This Row],[Finns anläggningsdel-namn.]]=FALSE,"",(IF(InputA1A3[[#This Row],[Enhet (bränsleförbrukning per km)]] =InputA1A3[[#This Row],[*DU/FU (EF A4) för valt drivmedel (schablon)]],TRUE,IF(KontrollTabell[[#This Row],[True/False A4 - Alt 2]]="Värde Behövs","",IF(ISBLANK(InputA1A3[[#This Row],[Omräkningsfaktor (A4), (vid behov, värde eller formel)]]),FALSE,TRUE))))) ->  | CD40: =IF(ISBLANK(InputA1A3[[#This Row],[EPD - EF A4]]),"",IF(ISBLANK(InputA1A3[[#This Row],[Omräkning till FU/DU (Skriv in värde, ej formel)]]),InputA1A3[[#This Row],[EPD - EF A4]]*InputA1A3[[#This Row],[Mängd A1A3]],InputA1A3[[#This Row],[Mängd A1A3]]*InputA1A3[[#This Row],[Omräkning till FU/DU (Skriv in värde, ej formel)]]*InputA1A3[[#This Row],[EPD - EF A4]])) ->  | CE40: =IFERROR(IF(KontrollTabell[[#This Row],[True/False A4 - Alt 2]]="","",IF(KontrollTabell[[#This Row],[True/False A4 Enhet - Alt2]]=TRUE, IF(ISNUMBER(InputA1A3[[#This Row],[Omräkningsfaktor (A4), (vid behov, värde eller formel)]]),InputA1A3[[#This Row],[Sträcka - totalt '[km'], (tur och retur, alla transporter)]]*InputA1A3[[#This Row],[(Bränsle-) Förbrukning per km]]/InputA1A3[[#This Row],[Omräkningsfaktor (A4), (vid behov, värde eller formel)]]*InputA1A3[[#This Row],[*EF (A4) '[kg CO₂-ekv.']]], InputA1A3[[#This Row],[Sträcka - totalt '[km'], (tur och retur, alla transporter)]]*InputA1A3[[#This Row],[(Bränsle-) Förbrukning per km]]*InputA1A3[[#This Row],[*EF (A4) '[kg CO₂-ekv.']]]),"Sen då")),0) ->  | CF40: =SUM(KontrollTabell[[#This Row],[A4 - Resultat alt 1 '[kg']]:[A4 - Alt 2 - beräkning utsläpp]]) -> 0 | CG40: =IF(KontrollTabell[[#This Row],[Finns anläggningsdel-namn.]]=FALSE,"",IF(ISBLANK(InputA1A3[[#This Row],[EPD - EF A4]]),FALSE,TRUE)) ->  | CH40: =IFERROR(IF(KontrollTabell[[#This Row],[True/False A5]]=FALSE(),"Enheter",IF(ISBLANK(InputA1A3[[#This Row],[Omräkningsfaktor (A5.2) (ange värde), (vid behov)]]),InputA1A3[[#This Row],[Mängd (A5.2)]]*InputA1A3[[#This Row],[*EF (A5.2) '[kg CO₂-ekv.']]],InputA1A3[[#This Row],[Mängd (A5.2)]]*InputA1A3[[#This Row],[*EF (A5.2) '[kg CO₂-ekv.']]]*InputA1A3[[#This Row],[Omräkningsfaktor (A5.2) (ange värde), (vid behov)]])),0) -> 0 | CI40: =IF(InputA1A3[[#This Row],[*DU/FU (EF A5.2)]]="","",IF(InputA1A3[[#This Row],[Enhet för mängd (A5.2)]]="","Värde Behövs",IF(OR(InputA1A3[[#This Row],[Enhet för mängd (A5.2)]]=InputA1A3[[#This Row],[*DU/FU (EF A5.2)]],AND(InputA1A3[[#This Row],[Enhet för mängd (A5.2)]]<>InputA1A3[[#This Row],[*DU/FU (EF A5.2)]],ISNUMBER(InputA1A3[[#This Row],[Omräkningsfaktor (A5.2) (ange värde), (vid behov)]]))),TRUE,FALSE))) ->  | CJ40: =IF(OR(KontrollTabell[[#This Row],[Finns anläggningsdel-namn.]]=FALSE,KontrollTabell[[#This Row],[True/False A5]]="Värde Behövs"),"",IF(InputA1A3[[#This Row],[Enhet för mängd (A5.2)]] = InputA1A3[[#This Row],[*DU/FU (EF A5.2)]], TRUE, FALSE)) ->  | CK40: =IF(KontrollTabell[[#This Row],[Finns anläggningsdel-namn.]]=FALSE,"",IF(OR(ISBLANK(InputA1A3[[#This Row],[Kategori (egen kategorisering)]])=FALSE,ISBLANK(InputA1A3[[#This Row],[Anläggningsdel ]]))=FALSE,TRUE,FALSE)) ->  | CL40: =IF(ISBLANK(InputA1A3[[#This Row],[Anläggningsdel ]]),"",IF(KontrollTabell[[#This Row],[TRUE/FALSE om kategori saknas.]] =FALSE,InputA1A3[[#This Row],[Kategori (egen kategorisering)]],"Kategori saknas")) -> 
J41: =IF(ISBLANK(InputA1A3[[#This Row],[Anläggningsdel ]]),"",IF(OR(KontrollTabell[[#This Row],[True/False A1A3 Enhet]]=TRUE,KontrollTabell[[#This Row],[True/False A1A3 Enhet]]="Värde Behövs",KontrollTabell[[#This Row],[True/False A1A3 Enhet]]=""), "", InputA1A3[[#This Row],[FU/DU (EF A1A3)]] & "/" & InputA1A3[[#This Row],[Enhet Mängd (A1A3)]])) ->  | O41: =IF(ISBLANK(InputA1A3[[#This Row],[EPD - EF A4]]),"",InputA1A3[[#This Row],[FU/DU (EF A1A3)]]) ->  | T41: =IFERROR(INDEX(TabellEFDrivmedel[],MATCH(InputA1A3[[#This Row],[Drivmedel (A4) (endast förval ur lista)]],TabellEFDrivmedel[Drivmedel],0),4),"") ->  | X41: =IF(InputA1A3[[#This Row],[*DU/FU (EF A4) för valt drivmedel (schablon)]]="","",IF(OR(InputA1A3[[#This Row],[*DU/FU (EF A4) för valt drivmedel (schablon)]]=InputA1A3[[#This Row],[Enhet (bränsleförbrukning per km)]],KontrollTabell[[#This Row],[True/False A4 - Alt 2]]="Värde Behövs"),"",InputA1A3[[#This Row],[Enhet (bränsleförbrukning per km)]]& "/" & InputA1A3[[#This Row],[*DU/FU (EF A4) för valt drivmedel (schablon)]])) ->  | AF41: =IFERROR(INDEX(TabellEFDrivmedel[],MATCH(InputA1A3[[#This Row],[Drivmedel (A5.2)]],TabellEFDrivmedel[Drivmedel],0),2),"") ->  | AG41: =IFERROR(INDEX(TabellEFDrivmedel[],MATCH(InputA1A3[[#This Row],[Drivmedel (A5.2)]],TabellEFDrivmedel[Drivmedel],0),4),"") ->  | AH41: =IF(OR(KontrollTabell[[#This Row],[True/False A5 Enhet]]=TRUE,KontrollTabell[[#This Row],[True/False A5 Enhet]]=""), "", InputA1A3[[#This Row],[*DU/FU (EF A5.2)]] & "/" & InputA1A3[[#This Row],[Enhet för mängd (A5.2)]]) ->  | BW41: =IF(ISBLANK(InputA1A3[[#This Row],[Anläggningsdel ]]),FALSE,TRUE) -> FALSE | BX41: =IF(ISBLANK(InputA1A3[[#This Row],[Anläggningsdel ]]),"",IF(ISBLANK(InputA1A3[[#This Row],[Enhet Mängd (A1A3)]]),"",IF(ISBLANK(InputA1A3[[#This Row],[FU/DU (EF A1A3)]]),"Värde Behövs",IF(InputA1A3[[#This Row],[Enhet Mängd (A1A3)]] = InputA1A3[[#This Row],[FU/DU (EF A1A3)]], TRUE, FALSE)))) ->  | BY41: =IF(KontrollTabell[[#This Row],[Finns anläggningsdel-namn.]]=FALSE,"",(IF(KontrollTabell[[#This Row],[True/False A1A3 Enhet]]=TRUE,TRUE,IF(OR(KontrollTabell[[#This Row],[True/False A1A3 Enhet]]="Värde Behövs",(KontrollTabell[[#This Row],[True/False A1A3 Enhet]]="")),"",IF(ISBLANK(InputA1A3[[#This Row],[Omräkning till FU/DU (Skriv in värde, ej formel)]]),FALSE,TRUE))))) ->  | BZ41: =IF(KontrollTabell[[#This Row],[Finns anläggningsdel-namn.]]=FALSE,,IF(KontrollTabell[[#This Row],[True/False A1A3 Enhet]]=TRUE,InputA1A3[[#This Row],[Mängd A1A3]]*InputA1A3[[#This Row],[EF A1A3 '[kg CO₂-ekv.']]],IF(KontrollTabell[[#This Row],[True/False A1A3 om A1A3 kan beräknas]]=TRUE,InputA1A3[[#This Row],[Mängd A1A3]]*InputA1A3[[#This Row],[EF A1A3 '[kg CO₂-ekv.']]]*InputA1A3[[#This Row],[Omräkning till FU/DU (Skriv in värde, ej formel)]],0))) -> 0 | CA41: =IF(ISBLANK(InputA1A3[[#This Row],[Anläggningsdel ]]),"",IF(ISBLANK(InputA1A3[[#This Row],[EPD - EF A4]]),FALSE,TRUE)) ->  | CB41: =IF(InputA1A3[[#This Row],[*DU/FU (EF A4) för valt drivmedel (schablon)]]="","",IF(InputA1A3[[#This Row],[Enhet (bränsleförbrukning per km)]]="","Värde Behövs",IF(OR(InputA1A3[[#This Row],[Enhet (bränsleförbrukning per km)]]=InputA1A3[[#This Row],[*DU/FU (EF A4) för valt drivmedel (schablon)]],AND(InputA1A3[[#This Row],[Enhet (bränsleförbrukning per km)]]<>InputA1A3[[#This Row],[*DU/FU (EF A4) för valt drivmedel (schablon)]],ISNUMBER(InputA1A3[[#This Row],[Omräkningsfaktor (A4), (vid behov, värde eller formel)]]))),TRUE(),FALSE()))) ->  | CC41: =IF(KontrollTabell[[#This Row],[Finns anläggningsdel-namn.]]=FALSE,"",(IF(InputA1A3[[#This Row],[Enhet (bränsleförbrukning per km)]] =InputA1A3[[#This Row],[*DU/FU (EF A4) för valt drivmedel (schablon)]],TRUE,IF(KontrollTabell[[#This Row],[True/False A4 - Alt 2]]="Värde Behövs","",IF(ISBLANK(InputA1A3[[#This Row],[Omräkningsfaktor (A4), (vid behov, värde eller formel)]]),FALSE,TRUE))))) ->  | CD41: =IF(ISBLANK(InputA1A3[[#This Row],[EPD - EF A4]]),"",IF(ISBLANK(InputA1A3[[#This Row],[Omräkning till FU/DU (Skriv in värde, ej formel)]]),InputA1A3[[#This Row],[EPD - EF A4]]*InputA1A3[[#This Row],[Mängd A1A3]],InputA1A3[[#This Row],[Mängd A1A3]]*InputA1A3[[#This Row],[Omräkning till FU/DU (Skriv in värde, ej formel)]]*InputA1A3[[#This Row],[EPD - EF A4]])) ->  | CE41: =IFERROR(IF(KontrollTabell[[#This Row],[True/False A4 - Alt 2]]="","",IF(KontrollTabell[[#This Row],[True/False A4 Enhet - Alt2]]=TRUE, IF(ISNUMBER(InputA1A3[[#This Row],[Omräkningsfaktor (A4), (vid behov, värde eller formel)]]),InputA1A3[[#This Row],[Sträcka - totalt '[km'], (tur och retur, alla transporter)]]*InputA1A3[[#This Row],[(Bränsle-) Förbrukning per km]]/InputA1A3[[#This Row],[Omräkningsfaktor (A4), (vid behov, värde eller formel)]]*InputA1A3[[#This Row],[*EF (A4) '[kg CO₂-ekv.']]], InputA1A3[[#This Row],[Sträcka - totalt '[km'], (tur och retur, alla transporter)]]*InputA1A3[[#This Row],[(Bränsle-) Förbrukning per km]]*InputA1A3[[#This Row],[*EF (A4) '[kg CO₂-ekv.']]]),"Sen då")),0) ->  | CF41: =SUM(KontrollTabell[[#This Row],[A4 - Resultat alt 1 '[kg']]:[A4 - Alt 2 - beräkning utsläpp]]) -> 0 | CG41: =IF(KontrollTabell[[#This Row],[Finns anläggningsdel-namn.]]=FALSE,"",IF(ISBLANK(InputA1A3[[#This Row],[EPD - EF A4]]),FALSE,TRUE)) ->  | CH41: =IFERROR(IF(KontrollTabell[[#This Row],[True/False A5]]=FALSE(),"Enheter",IF(ISBLANK(InputA1A3[[#This Row],[Omräkningsfaktor (A5.2) (ange värde), (vid behov)]]),InputA1A3[[#This Row],[Mängd (A5.2)]]*InputA1A3[[#This Row],[*EF (A5.2) '[kg CO₂-ekv.']]],InputA1A3[[#This Row],[Mängd (A5.2)]]*InputA1A3[[#This Row],[*EF (A5.2) '[kg CO₂-ekv.']]]*InputA1A3[[#This Row],[Omräkningsfaktor (A5.2) (ange värde), (vid behov)]])),0) -> 0 | CI41: =IF(InputA1A3[[#This Row],[*DU/FU (EF A5.2)]]="","",IF(InputA1A3[[#This Row],[Enhet för mängd (A5.2)]]="","Värde Behövs",IF(OR(InputA1A3[[#This Row],[Enhet för mängd (A5.2)]]=InputA1A3[[#This Row],[*DU/FU (EF A5.2)]],AND(InputA1A3[[#This Row],[Enhet för mängd (A5.2)]]<>InputA1A3[[#This Row],[*DU/FU (EF A5.2)]],ISNUMBER(InputA1A3[[#This Row],[Omräkningsfaktor (A5.2) (ange värde), (vid behov)]]))),TRUE,FALSE))) ->  | CJ41: =IF(OR(KontrollTabell[[#This Row],[Finns anläggningsdel-namn.]]=FALSE,KontrollTabell[[#This Row],[True/False A5]]="Värde Behövs"),"",IF(InputA1A3[[#This Row],[Enhet för mängd (A5.2)]] = InputA1A3[[#This Row],[*DU/FU (EF A5.2)]], TRUE, FALSE)) ->  | CK41: =IF(KontrollTabell[[#This Row],[Finns anläggningsdel-namn.]]=FALSE,"",IF(OR(ISBLANK(InputA1A3[[#This Row],[Kategori (egen kategorisering)]])=FALSE,ISBLANK(InputA1A3[[#This Row],[Anläggningsdel ]]))=FALSE,TRUE,FALSE)) ->  | CL41: =IF(ISBLANK(InputA1A3[[#This Row],[Anläggningsdel ]]),"",IF(KontrollTabell[[#This Row],[TRUE/FALSE om kategori saknas.]] =FALSE,InputA1A3[[#This Row],[Kategori (egen kategorisering)]],"Kategori saknas")) -> 
J42: =IF(ISBLANK(InputA1A3[[#This Row],[Anläggningsdel ]]),"",IF(OR(KontrollTabell[[#This Row],[True/False A1A3 Enhet]]=TRUE,KontrollTabell[[#This Row],[True/False A1A3 Enhet]]="Värde Behövs",KontrollTabell[[#This Row],[True/False A1A3 Enhet]]=""), "", InputA1A3[[#This Row],[FU/DU (EF A1A3)]] & "/" & InputA1A3[[#This Row],[Enhet Mängd (A1A3)]])) ->  | O42: =IF(ISBLANK(InputA1A3[[#This Row],[EPD - EF A4]]),"",InputA1A3[[#This Row],[FU/DU (EF A1A3)]]) ->  | T42: =IFERROR(INDEX(TabellEFDrivmedel[],MATCH(InputA1A3[[#This Row],[Drivmedel (A4) (endast förval ur lista)]],TabellEFDrivmedel[Drivmedel],0),4),"") ->  | X42: =IF(InputA1A3[[#This Row],[*DU/FU (EF A4) för valt drivmedel (schablon)]]="","",IF(OR(InputA1A3[[#This Row],[*DU/FU (EF A4) för valt drivmedel (schablon)]]=InputA1A3[[#This Row],[Enhet (bränsleförbrukning per km)]],KontrollTabell[[#This Row],[True/False A4 - Alt 2]]="Värde Behövs"),"",InputA1A3[[#This Row],[Enhet (bränsleförbrukning per km)]]& "/" & InputA1A3[[#This Row],[*DU/FU (EF A4) för valt drivmedel (schablon)]])) ->  | AF42: =IFERROR(INDEX(TabellEFDrivmedel[],MATCH(InputA1A3[[#This Row],[Drivmedel (A5.2)]],TabellEFDrivmedel[Drivmedel],0),2),"") ->  | AG42: =IFERROR(INDEX(TabellEFDrivmedel[],MATCH(InputA1A3[[#This Row],[Drivmedel (A5.2)]],TabellEFDrivmedel[Drivmedel],0),4),"") ->  | AH42: =IF(OR(KontrollTabell[[#This Row],[True/False A5 Enhet]]=TRUE,KontrollTabell[[#This Row],[True/False A5 Enhet]]=""), "", InputA1A3[[#This Row],[*DU/FU (EF A5.2)]] & "/" & InputA1A3[[#This Row],[Enhet för mängd (A5.2)]]) ->  | BW42: =IF(ISBLANK(InputA1A3[[#This Row],[Anläggningsdel ]]),FALSE,TRUE) -> FALSE | BX42: =IF(ISBLANK(InputA1A3[[#This Row],[Anläggningsdel ]]),"",IF(ISBLANK(InputA1A3[[#This Row],[Enhet Mängd (A1A3)]]),"",IF(ISBLANK(InputA1A3[[#This Row],[FU/DU (EF A1A3)]]),"Värde Behövs",IF(InputA1A3[[#This Row],[Enhet Mängd (A1A3)]] = InputA1A3[[#This Row],[FU/DU (EF A1A3)]], TRUE, FALSE)))) ->  | BY42: =IF(KontrollTabell[[#This Row],[Finns anläggningsdel-namn.]]=FALSE,"",(IF(KontrollTabell[[#This Row],[True/False A1A3 Enhet]]=TRUE,TRUE,IF(OR(KontrollTabell[[#This Row],[True/False A1A3 Enhet]]="Värde Behövs",(KontrollTabell[[#This Row],[True/False A1A3 Enhet]]="")),"",IF(ISBLANK(InputA1A3[[#This Row],[Omräkning till FU/DU (Skriv in värde, ej formel)]]),FALSE,TRUE))))) ->  | BZ42: =IF(KontrollTabell[[#This Row],[Finns anläggningsdel-namn.]]=FALSE,,IF(KontrollTabell[[#This Row],[True/False A1A3 Enhet]]=TRUE,InputA1A3[[#This Row],[Mängd A1A3]]*InputA1A3[[#This Row],[EF A1A3 '[kg CO₂-ekv.']]],IF(KontrollTabell[[#This Row],[True/False A1A3 om A1A3 kan beräknas]]=TRUE,InputA1A3[[#This Row],[Mängd A1A3]]*InputA1A3[[#This Row],[EF A1A3 '[kg CO₂-ekv.']]]*InputA1A3[[#This Row],[Omräkning till FU/DU (Skriv in värde, ej formel)]],0))) -> 0 | CA42: =IF(ISBLANK(InputA1A3[[#This Row],[Anläggningsdel ]]),"",IF(ISBLANK(InputA1A3[[#This Row],[EPD - EF A4]]),FALSE,TRUE)) ->  | CB42: =IF(InputA1A3[[#This Row],[*DU/FU (EF A4) för valt drivmedel (schablon)]]="","",IF(InputA1A3[[#This Row],[Enhet (bränsleförbrukning per km)]]="","Värde Behövs",IF(OR(InputA1A3[[#This Row],[Enhet (bränsleförbrukning per km)]]=InputA1A3[[#This Row],[*DU/FU (EF A4) för valt drivmedel (schablon)]],AND(InputA1A3[[#This Row],[Enhet (bränsleförbrukning per km)]]<>InputA1A3[[#This Row],[*DU/FU (EF A4) för valt drivmedel (schablon)]],ISNUMBER(InputA1A3[[#This Row],[Omräkningsfaktor (A4), (vid behov, värde eller formel)]]))),TRUE(),FALSE()))) ->  | CC42: =IF(KontrollTabell[[#This Row],[Finns anläggningsdel-namn.]]=FALSE,"",(IF(InputA1A3[[#This Row],[Enhet (bränsleförbrukning per km)]] =InputA1A3[[#This Row],[*DU/FU (EF A4) för valt drivmedel (schablon)]],TRUE,IF(KontrollTabell[[#This Row],[True/False A4 - Alt 2]]="Värde Behövs","",IF(ISBLANK(InputA1A3[[#This Row],[Omräkningsfaktor (A4), (vid behov, värde eller formel)]]),FALSE,TRUE))))) ->  | CD42: =IF(ISBLANK(InputA1A3[[#This Row],[EPD - EF A4]]),"",IF(ISBLANK(InputA1A3[[#This Row],[Omräkning till FU/DU (Skriv in värde, ej formel)]]),InputA1A3[[#This Row],[EPD - EF A4]]*InputA1A3[[#This Row],[Mängd A1A3]],InputA1A3[[#This Row],[Mängd A1A3]]*InputA1A3[[#This Row],[Omräkning till FU/DU (Skriv in värde, ej formel)]]*InputA1A3[[#This Row],[EPD - EF A4]])) ->  | CE42: =IFERROR(IF(KontrollTabell[[#This Row],[True/False A4 - Alt 2]]="","",IF(KontrollTabell[[#This Row],[True/False A4 Enhet - Alt2]]=TRUE, IF(ISNUMBER(InputA1A3[[#This Row],[Omräkningsfaktor (A4), (vid behov, värde eller formel)]]),InputA1A3[[#This Row],[Sträcka - totalt '[km'], (tur och retur, alla transporter)]]*InputA1A3[[#This Row],[(Bränsle-) Förbrukning per km]]/InputA1A3[[#This Row],[Omräkningsfaktor (A4), (vid behov, värde eller formel)]]*InputA1A3[[#This Row],[*EF (A4) '[kg CO₂-ekv.']]], InputA1A3[[#This Row],[Sträcka - totalt '[km'], (tur och retur, alla transporter)]]*InputA1A3[[#This Row],[(Bränsle-) Förbrukning per km]]*InputA1A3[[#This Row],[*EF (A4) '[kg CO₂-ekv.']]]),"Sen då")),0) ->  | CF42: =SUM(KontrollTabell[[#This Row],[A4 - Resultat alt 1 '[kg']]:[A4 - Alt 2 - beräkning utsläpp]]) -> 0 | CG42: =IF(KontrollTabell[[#This Row],[Finns anläggningsdel-namn.]]=FALSE,"",IF(ISBLANK(InputA1A3[[#This Row],[EPD - EF A4]]),FALSE,TRUE)) ->  | CH42: =IFERROR(IF(KontrollTabell[[#This Row],[True/False A5]]=FALSE(),"Enheter",IF(ISBLANK(InputA1A3[[#This Row],[Omräkningsfaktor (A5.2) (ange värde), (vid behov)]]),InputA1A3[[#This Row],[Mängd (A5.2)]]*InputA1A3[[#This Row],[*EF (A5.2) '[kg CO₂-ekv.']]],InputA1A3[[#This Row],[Mängd (A5.2)]]*InputA1A3[[#This Row],[*EF (A5.2) '[kg CO₂-ekv.']]]*InputA1A3[[#This Row],[Omräkningsfaktor (A5.2) (ange värde), (vid behov)]])),0) -> 0 | CI42: =IF(InputA1A3[[#This Row],[*DU/FU (EF A5.2)]]="","",IF(InputA1A3[[#This Row],[Enhet för mängd (A5.2)]]="","Värde Behövs",IF(OR(InputA1A3[[#This Row],[Enhet för mängd (A5.2)]]=InputA1A3[[#This Row],[*DU/FU (EF A5.2)]],AND(InputA1A3[[#This Row],[Enhet för mängd (A5.2)]]<>InputA1A3[[#This Row],[*DU/FU (EF A5.2)]],ISNUMBER(InputA1A3[[#This Row],[Omräkningsfaktor (A5.2) (ange värde), (vid behov)]]))),TRUE,FALSE))) ->  | CJ42: =IF(OR(KontrollTabell[[#This Row],[Finns anläggningsdel-namn.]]=FALSE,KontrollTabell[[#This Row],[True/False A5]]="Värde Behövs"),"",IF(InputA1A3[[#This Row],[Enhet för mängd (A5.2)]] = InputA1A3[[#This Row],[*DU/FU (EF A5.2)]], TRUE, FALSE)) ->  | CK42: =IF(KontrollTabell[[#This Row],[Finns anläggningsdel-namn.]]=FALSE,"",IF(OR(ISBLANK(InputA1A3[[#This Row],[Kategori (egen kategorisering)]])=FALSE,ISBLANK(InputA1A3[[#This Row],[Anläggningsdel ]]))=FALSE,TRUE,FALSE)) ->  | CL42: =IF(ISBLANK(InputA1A3[[#This Row],[Anläggningsdel ]]),"",IF(KontrollTabell[[#This Row],[TRUE/FALSE om kategori saknas.]] =FALSE,InputA1A3[[#This Row],[Kategori (egen kategorisering)]],"Kategori saknas")) -> 
J43: =IF(ISBLANK(InputA1A3[[#This Row],[Anläggningsdel ]]),"",IF(OR(KontrollTabell[[#This Row],[True/False A1A3 Enhet]]=TRUE,KontrollTabell[[#This Row],[True/False A1A3 Enhet]]="Värde Behövs",KontrollTabell[[#This Row],[True/False A1A3 Enhet]]=""), "", InputA1A3[[#This Row],[FU/DU (EF A1A3)]] & "/" & InputA1A3[[#This Row],[Enhet Mängd (A1A3)]])) ->  | O43: =IF(ISBLANK(InputA1A3[[#This Row],[EPD - EF A4]]),"",InputA1A3[[#This Row],[FU/DU (EF A1A3)]]) ->  | T43: =IFERROR(INDEX(TabellEFDrivmedel[],MATCH(InputA1A3[[#This Row],[Drivmedel (A4) (endast förval ur lista)]],TabellEFDrivmedel[Drivmedel],0),4),"") ->  | X43: =IF(InputA1A3[[#This Row],[*DU/FU (EF A4) för valt drivmedel (schablon)]]="","",IF(OR(InputA1A3[[#This Row],[*DU/FU (EF A4) för valt drivmedel (schablon)]]=InputA1A3[[#This Row],[Enhet (bränsleförbrukning per km)]],KontrollTabell[[#This Row],[True/False A4 - Alt 2]]="Värde Behövs"),"",InputA1A3[[#This Row],[Enhet (bränsleförbrukning per km)]]& "/" & InputA1A3[[#This Row],[*DU/FU (EF A4) för valt drivmedel (schablon)]])) ->  | AF43: =IFERROR(INDEX(TabellEFDrivmedel[],MATCH(InputA1A3[[#This Row],[Drivmedel (A5.2)]],TabellEFDrivmedel[Drivmedel],0),2),"") ->  | AG43: =IFERROR(INDEX(TabellEFDrivmedel[],MATCH(InputA1A3[[#This Row],[Drivmedel (A5.2)]],TabellEFDrivmedel[Drivmedel],0),4),"") ->  | AH43: =IF(OR(KontrollTabell[[#This Row],[True/False A5 Enhet]]=TRUE,KontrollTabell[[#This Row],[True/False A5 Enhet]]=""), "", InputA1A3[[#This Row],[*DU/FU (EF A5.2)]] & "/" & InputA1A3[[#This Row],[Enhet för mängd (A5.2)]]) ->  | BW43: =IF(ISBLANK(InputA1A3[[#This Row],[Anläggningsdel ]]),FALSE,TRUE) -> FALSE | BX43: =IF(ISBLANK(InputA1A3[[#This Row],[Anläggningsdel ]]),"",IF(ISBLANK(InputA1A3[[#This Row],[Enhet Mängd (A1A3)]]),"",IF(ISBLANK(InputA1A3[[#This Row],[FU/DU (EF A1A3)]]),"Värde Behövs",IF(InputA1A3[[#This Row],[Enhet Mängd (A1A3)]] = InputA1A3[[#This Row],[FU/DU (EF A1A3)]], TRUE, FALSE)))) ->  | BY43: =IF(KontrollTabell[[#This Row],[Finns anläggningsdel-namn.]]=FALSE,"",(IF(KontrollTabell[[#This Row],[True/False A1A3 Enhet]]=TRUE,TRUE,IF(OR(KontrollTabell[[#This Row],[True/False A1A3 Enhet]]="Värde Behövs",(KontrollTabell[[#This Row],[True/False A1A3 Enhet]]="")),"",IF(ISBLANK(InputA1A3[[#This Row],[Omräkning till FU/DU (Skriv in värde, ej formel)]]),FALSE,TRUE))))) ->  | BZ43: =IF(KontrollTabell[[#This Row],[Finns anläggningsdel-namn.]]=FALSE,,IF(KontrollTabell[[#This Row],[True/False A1A3 Enhet]]=TRUE,InputA1A3[[#This Row],[Mängd A1A3]]*InputA1A3[[#This Row],[EF A1A3 '[kg CO₂-ekv.']]],IF(KontrollTabell[[#This Row],[True/False A1A3 om A1A3 kan beräknas]]=TRUE,InputA1A3[[#This Row],[Mängd A1A3]]*InputA1A3[[#This Row],[EF A1A3 '[kg CO₂-ekv.']]]*InputA1A3[[#This Row],[Omräkning till FU/DU (Skriv in värde, ej formel)]],0))) -> 0 | CA43: =IF(ISBLANK(InputA1A3[[#This Row],[Anläggningsdel ]]),"",IF(ISBLANK(InputA1A3[[#This Row],[EPD - EF A4]]),FALSE,TRUE)) ->  | CB43: =IF(InputA1A3[[#This Row],[*DU/FU (EF A4) för valt drivmedel (schablon)]]="","",IF(InputA1A3[[#This Row],[Enhet (bränsleförbrukning per km)]]="","Värde Behövs",IF(OR(InputA1A3[[#This Row],[Enhet (bränsleförbrukning per km)]]=InputA1A3[[#This Row],[*DU/FU (EF A4) för valt drivmedel (schablon)]],AND(InputA1A3[[#This Row],[Enhet (bränsleförbrukning per km)]]<>InputA1A3[[#This Row],[*DU/FU (EF A4) för valt drivmedel (schablon)]],ISNUMBER(InputA1A3[[#This Row],[Omräkningsfaktor (A4), (vid behov, värde eller formel)]]))),TRUE(),FALSE()))) ->  | CC43: =IF(KontrollTabell[[#This Row],[Finns anläggningsdel-namn.]]=FALSE,"",(IF(InputA1A3[[#This Row],[Enhet (bränsleförbrukning per km)]] =InputA1A3[[#This Row],[*DU/FU (EF A4) för valt drivmedel (schablon)]],TRUE,IF(KontrollTabell[[#This Row],[True/False A4 - Alt 2]]="Värde Behövs","",IF(ISBLANK(InputA1A3[[#This Row],[Omräkningsfaktor (A4), (vid behov, värde eller formel)]]),FALSE,TRUE))))) ->  | CD43: =IF(ISBLANK(InputA1A3[[#This Row],[EPD - EF A4]]),"",IF(ISBLANK(InputA1A3[[#This Row],[Omräkning till FU/DU (Skriv in värde, ej formel)]]),InputA1A3[[#This Row],[EPD - EF A4]]*InputA1A3[[#This Row],[Mängd A1A3]],InputA1A3[[#This Row],[Mängd A1A3]]*InputA1A3[[#This Row],[Omräkning till FU/DU (Skriv in värde, ej formel)]]*InputA1A3[[#This Row],[EPD - EF A4]])) ->  | CE43: =IFERROR(IF(KontrollTabell[[#This Row],[True/False A4 - Alt 2]]="","",IF(KontrollTabell[[#This Row],[True/False A4 Enhet - Alt2]]=TRUE, IF(ISNUMBER(InputA1A3[[#This Row],[Omräkningsfaktor (A4), (vid behov, värde eller formel)]]),InputA1A3[[#This Row],[Sträcka - totalt '[km'], (tur och retur, alla transporter)]]*InputA1A3[[#This Row],[(Bränsle-) Förbrukning per km]]/InputA1A3[[#This Row],[Omräkningsfaktor (A4), (vid behov, värde eller formel)]]*InputA1A3[[#This Row],[*EF (A4) '[kg CO₂-ekv.']]], InputA1A3[[#This Row],[Sträcka - totalt '[km'], (tur och retur, alla transporter)]]*InputA1A3[[#This Row],[(Bränsle-) Förbrukning per km]]*InputA1A3[[#This Row],[*EF (A4) '[kg CO₂-ekv.']]]),"Sen då")),0) ->  | CF43: =SUM(KontrollTabell[[#This Row],[A4 - Resultat alt 1 '[kg']]:[A4 - Alt 2 - beräkning utsläpp]]) -> 0 | CG43: =IF(KontrollTabell[[#This Row],[Finns anläggningsdel-namn.]]=FALSE,"",IF(ISBLANK(InputA1A3[[#This Row],[EPD - EF A4]]),FALSE,TRUE)) ->  | CH43: =IFERROR(IF(KontrollTabell[[#This Row],[True/False A5]]=FALSE(),"Enheter",IF(ISBLANK(InputA1A3[[#This Row],[Omräkningsfaktor (A5.2) (ange värde), (vid behov)]]),InputA1A3[[#This Row],[Mängd (A5.2)]]*InputA1A3[[#This Row],[*EF (A5.2) '[kg CO₂-ekv.']]],InputA1A3[[#This Row],[Mängd (A5.2)]]*InputA1A3[[#This Row],[*EF (A5.2) '[kg CO₂-ekv.']]]*InputA1A3[[#This Row],[Omräkningsfaktor (A5.2) (ange värde), (vid behov)]])),0) -> 0 | CI43: =IF(InputA1A3[[#This Row],[*DU/FU (EF A5.2)]]="","",IF(InputA1A3[[#This Row],[Enhet för mängd (A5.2)]]="","Värde Behövs",IF(OR(InputA1A3[[#This Row],[Enhet för mängd (A5.2)]]=InputA1A3[[#This Row],[*DU/FU (EF A5.2)]],AND(InputA1A3[[#This Row],[Enhet för mängd (A5.2)]]<>InputA1A3[[#This Row],[*DU/FU (EF A5.2)]],ISNUMBER(InputA1A3[[#This Row],[Omräkningsfaktor (A5.2) (ange värde), (vid behov)]]))),TRUE,FALSE))) ->  | CJ43: =IF(OR(KontrollTabell[[#This Row],[Finns anläggningsdel-namn.]]=FALSE,KontrollTabell[[#This Row],[True/False A5]]="Värde Behövs"),"",IF(InputA1A3[[#This Row],[Enhet för mängd (A5.2)]] = InputA1A3[[#This Row],[*DU/FU (EF A5.2)]], TRUE, FALSE)) ->  | CK43: =IF(KontrollTabell[[#This Row],[Finns anläggningsdel-namn.]]=FALSE,"",IF(OR(ISBLANK(InputA1A3[[#This Row],[Kategori (egen kategorisering)]])=FALSE,ISBLANK(InputA1A3[[#This Row],[Anläggningsdel ]]))=FALSE,TRUE,FALSE)) ->  | CL43: =IF(ISBLANK(InputA1A3[[#This Row],[Anläggningsdel ]]),"",IF(KontrollTabell[[#This Row],[TRUE/FALSE om kategori saknas.]] =FALSE,InputA1A3[[#This Row],[Kategori (egen kategorisering)]],"Kategori saknas")) -> 
J44: =IF(ISBLANK(InputA1A3[[#This Row],[Anläggningsdel ]]),"",IF(OR(KontrollTabell[[#This Row],[True/False A1A3 Enhet]]=TRUE,KontrollTabell[[#This Row],[True/False A1A3 Enhet]]="Värde Behövs",KontrollTabell[[#This Row],[True/False A1A3 Enhet]]=""), "", InputA1A3[[#This Row],[FU/DU (EF A1A3)]] & "/" & InputA1A3[[#This Row],[Enhet Mängd (A1A3)]])) ->  | O44: =IF(ISBLANK(InputA1A3[[#This Row],[EPD - EF A4]]),"",InputA1A3[[#This Row],[FU/DU (EF A1A3)]]) ->  | T44: =IFERROR(INDEX(TabellEFDrivmedel[],MATCH(InputA1A3[[#This Row],[Drivmedel (A4) (endast förval ur lista)]],TabellEFDrivmedel[Drivmedel],0),4),"") ->  | X44: =IF(InputA1A3[[#This Row],[*DU/FU (EF A4) för valt drivmedel (schablon)]]="","",IF(OR(InputA1A3[[#This Row],[*DU/FU (EF A4) för valt drivmedel (schablon)]]=InputA1A3[[#This Row],[Enhet (bränsleförbrukning per km)]],KontrollTabell[[#This Row],[True/False A4 - Alt 2]]="Värde Behövs"),"",InputA1A3[[#This Row],[Enhet (bränsleförbrukning per km)]]& "/" & InputA1A3[[#This Row],[*DU/FU (EF A4) för valt drivmedel (schablon)]])) ->  | AF44: =IFERROR(INDEX(TabellEFDrivmedel[],MATCH(InputA1A3[[#This Row],[Drivmedel (A5.2)]],TabellEFDrivmedel[Drivmedel],0),2),"") ->  | AG44: =IFERROR(INDEX(TabellEFDrivmedel[],MATCH(InputA1A3[[#This Row],[Drivmedel (A5.2)]],TabellEFDrivmedel[Drivmedel],0),4),"") ->  | AH44: =IF(OR(KontrollTabell[[#This Row],[True/False A5 Enhet]]=TRUE,KontrollTabell[[#This Row],[True/False A5 Enhet]]=""), "", InputA1A3[[#This Row],[*DU/FU (EF A5.2)]] & "/" & InputA1A3[[#This Row],[Enhet för mängd (A5.2)]]) ->  | BW44: =IF(ISBLANK(InputA1A3[[#This Row],[Anläggningsdel ]]),FALSE,TRUE) -> FALSE | BX44: =IF(ISBLANK(InputA1A3[[#This Row],[Anläggningsdel ]]),"",IF(ISBLANK(InputA1A3[[#This Row],[Enhet Mängd (A1A3)]]),"",IF(ISBLANK(InputA1A3[[#This Row],[FU/DU (EF A1A3)]]),"Värde Behövs",IF(InputA1A3[[#This Row],[Enhet Mängd (A1A3)]] = InputA1A3[[#This Row],[FU/DU (EF A1A3)]], TRUE, FALSE)))) ->  | BY44: =IF(KontrollTabell[[#This Row],[Finns anläggningsdel-namn.]]=FALSE,"",(IF(KontrollTabell[[#This Row],[True/False A1A3 Enhet]]=TRUE,TRUE,IF(OR(KontrollTabell[[#This Row],[True/False A1A3 Enhet]]="Värde Behövs",(KontrollTabell[[#This Row],[True/False A1A3 Enhet]]="")),"",IF(ISBLANK(InputA1A3[[#This Row],[Omräkning till FU/DU (Skriv in värde, ej formel)]]),FALSE,TRUE))))) ->  | BZ44: =IF(KontrollTabell[[#This Row],[Finns anläggningsdel-namn.]]=FALSE,,IF(KontrollTabell[[#This Row],[True/False A1A3 Enhet]]=TRUE,InputA1A3[[#This Row],[Mängd A1A3]]*InputA1A3[[#This Row],[EF A1A3 '[kg CO₂-ekv.']]],IF(KontrollTabell[[#This Row],[True/False A1A3 om A1A3 kan beräknas]]=TRUE,InputA1A3[[#This Row],[Mängd A1A3]]*InputA1A3[[#This Row],[EF A1A3 '[kg CO₂-ekv.']]]*InputA1A3[[#This Row],[Omräkning till FU/DU (Skriv in värde, ej formel)]],0))) -> 0 | CA44: =IF(ISBLANK(InputA1A3[[#This Row],[Anläggningsdel ]]),"",IF(ISBLANK(InputA1A3[[#This Row],[EPD - EF A4]]),FALSE,TRUE)) ->  | CB44: =IF(InputA1A3[[#This Row],[*DU/FU (EF A4) för valt drivmedel (schablon)]]="","",IF(InputA1A3[[#This Row],[Enhet (bränsleförbrukning per km)]]="","Värde Behövs",IF(OR(InputA1A3[[#This Row],[Enhet (bränsleförbrukning per km)]]=InputA1A3[[#This Row],[*DU/FU (EF A4) för valt drivmedel (schablon)]],AND(InputA1A3[[#This Row],[Enhet (bränsleförbrukning per km)]]<>InputA1A3[[#This Row],[*DU/FU (EF A4) för valt drivmedel (schablon)]],ISNUMBER(InputA1A3[[#This Row],[Omräkningsfaktor (A4), (vid behov, värde eller formel)]]))),TRUE(),FALSE()))) ->  | CC44: =IF(KontrollTabell[[#This Row],[Finns anläggningsdel-namn.]]=FALSE,"",(IF(InputA1A3[[#This Row],[Enhet (bränsleförbrukning per km)]] =InputA1A3[[#This Row],[*DU/FU (EF A4) för valt drivmedel (schablon)]],TRUE,IF(KontrollTabell[[#This Row],[True/False A4 - Alt 2]]="Värde Behövs","",IF(ISBLANK(InputA1A3[[#This Row],[Omräkningsfaktor (A4), (vid behov, värde eller formel)]]),FALSE,TRUE))))) ->  | CD44: =IF(ISBLANK(InputA1A3[[#This Row],[EPD - EF A4]]),"",IF(ISBLANK(InputA1A3[[#This Row],[Omräkning till FU/DU (Skriv in värde, ej formel)]]),InputA1A3[[#This Row],[EPD - EF A4]]*InputA1A3[[#This Row],[Mängd A1A3]],InputA1A3[[#This Row],[Mängd A1A3]]*InputA1A3[[#This Row],[Omräkning till FU/DU (Skriv in värde, ej formel)]]*InputA1A3[[#This Row],[EPD - EF A4]])) ->  | CE44: =IFERROR(IF(KontrollTabell[[#This Row],[True/False A4 - Alt 2]]="","",IF(KontrollTabell[[#This Row],[True/False A4 Enhet - Alt2]]=TRUE, IF(ISNUMBER(InputA1A3[[#This Row],[Omräkningsfaktor (A4), (vid behov, värde eller formel)]]),InputA1A3[[#This Row],[Sträcka - totalt '[km'], (tur och retur, alla transporter)]]*InputA1A3[[#This Row],[(Bränsle-) Förbrukning per km]]/InputA1A3[[#This Row],[Omräkningsfaktor (A4), (vid behov, värde eller formel)]]*InputA1A3[[#This Row],[*EF (A4) '[kg CO₂-ekv.']]], InputA1A3[[#This Row],[Sträcka - totalt '[km'], (tur och retur, alla transporter)]]*InputA1A3[[#This Row],[(Bränsle-) Förbrukning per km]]*InputA1A3[[#This Row],[*EF (A4) '[kg CO₂-ekv.']]]),"Sen då")),0) ->  | CF44: =SUM(KontrollTabell[[#This Row],[A4 - Resultat alt 1 '[kg']]:[A4 - Alt 2 - beräkning utsläpp]]) -> 0 | CG44: =IF(KontrollTabell[[#This Row],[Finns anläggningsdel-namn.]]=FALSE,"",IF(ISBLANK(InputA1A3[[#This Row],[EPD - EF A4]]),FALSE,TRUE)) ->  | CH44: =IFERROR(IF(KontrollTabell[[#This Row],[True/False A5]]=FALSE(),"Enheter",IF(ISBLANK(InputA1A3[[#This Row],[Omräkningsfaktor (A5.2) (ange värde), (vid behov)]]),InputA1A3[[#This Row],[Mängd (A5.2)]]*InputA1A3[[#This Row],[*EF (A5.2) '[kg CO₂-ekv.']]],InputA1A3[[#This Row],[Mängd (A5.2)]]*InputA1A3[[#This Row],[*EF (A5.2) '[kg CO₂-ekv.']]]*InputA1A3[[#This Row],[Omräkningsfaktor (A5.2) (ange värde), (vid behov)]])),0) -> 0 | CI44: =IF(InputA1A3[[#This Row],[*DU/FU (EF A5.2)]]="","",IF(InputA1A3[[#This Row],[Enhet för mängd (A5.2)]]="","Värde Behövs",IF(OR(InputA1A3[[#This Row],[Enhet för mängd (A5.2)]]=InputA1A3[[#This Row],[*DU/FU (EF A5.2)]],AND(InputA1A3[[#This Row],[Enhet för mängd (A5.2)]]<>InputA1A3[[#This Row],[*DU/FU (EF A5.2)]],ISNUMBER(InputA1A3[[#This Row],[Omräkningsfaktor (A5.2) (ange värde), (vid behov)]]))),TRUE,FALSE))) ->  | CJ44: =IF(OR(KontrollTabell[[#This Row],[Finns anläggningsdel-namn.]]=FALSE,KontrollTabell[[#This Row],[True/False A5]]="Värde Behövs"),"",IF(InputA1A3[[#This Row],[Enhet för mängd (A5.2)]] = InputA1A3[[#This Row],[*DU/FU (EF A5.2)]], TRUE, FALSE)) ->  | CK44: =IF(KontrollTabell[[#This Row],[Finns anläggningsdel-namn.]]=FALSE,"",IF(OR(ISBLANK(InputA1A3[[#This Row],[Kategori (egen kategorisering)]])=FALSE,ISBLANK(InputA1A3[[#This Row],[Anläggningsdel ]]))=FALSE,TRUE,FALSE)) ->  | CL44: =IF(ISBLANK(InputA1A3[[#This Row],[Anläggningsdel ]]),"",IF(KontrollTabell[[#This Row],[TRUE/FALSE om kategori saknas.]] =FALSE,InputA1A3[[#This Row],[Kategori (egen kategorisering)]],"Kategori saknas")) -> 
J45: =IF(ISBLANK(InputA1A3[[#This Row],[Anläggningsdel ]]),"",IF(OR(KontrollTabell[[#This Row],[True/False A1A3 Enhet]]=TRUE,KontrollTabell[[#This Row],[True/False A1A3 Enhet]]="Värde Behövs",KontrollTabell[[#This Row],[True/False A1A3 Enhet]]=""), "", InputA1A3[[#This Row],[FU/DU (EF A1A3)]] & "/" & InputA1A3[[#This Row],[Enhet Mängd (A1A3)]])) ->  | O45: =IF(ISBLANK(InputA1A3[[#This Row],[EPD - EF A4]]),"",InputA1A3[[#This Row],[FU/DU (EF A1A3)]]) ->  | T45: =IFERROR(INDEX(TabellEFDrivmedel[],MATCH(InputA1A3[[#This Row],[Drivmedel (A4) (endast förval ur lista)]],TabellEFDrivmedel[Drivmedel],0),4),"") ->  | X45: =IF(InputA1A3[[#This Row],[*DU/FU (EF A4) för valt drivmedel (schablon)]]="","",IF(OR(InputA1A3[[#This Row],[*DU/FU (EF A4) för valt drivmedel (schablon)]]=InputA1A3[[#This Row],[Enhet (bränsleförbrukning per km)]],KontrollTabell[[#This Row],[True/False A4 - Alt 2]]="Värde Behövs"),"",InputA1A3[[#This Row],[Enhet (bränsleförbrukning per km)]]& "/" & InputA1A3[[#This Row],[*DU/FU (EF A4) för valt drivmedel (schablon)]])) ->  | AF45: =IFERROR(INDEX(TabellEFDrivmedel[],MATCH(InputA1A3[[#This Row],[Drivmedel (A5.2)]],TabellEFDrivmedel[Drivmedel],0),2),"") ->  | AG45: =IFERROR(INDEX(TabellEFDrivmedel[],MATCH(InputA1A3[[#This Row],[Drivmedel (A5.2)]],TabellEFDrivmedel[Drivmedel],0),4),"") ->  | AH45: =IF(OR(KontrollTabell[[#This Row],[True/False A5 Enhet]]=TRUE,KontrollTabell[[#This Row],[True/False A5 Enhet]]=""), "", InputA1A3[[#This Row],[*DU/FU (EF A5.2)]] & "/" & InputA1A3[[#This Row],[Enhet för mängd (A5.2)]]) ->  | BW45: =IF(ISBLANK(InputA1A3[[#This Row],[Anläggningsdel ]]),FALSE,TRUE) -> FALSE | BX45: =IF(ISBLANK(InputA1A3[[#This Row],[Anläggningsdel ]]),"",IF(ISBLANK(InputA1A3[[#This Row],[Enhet Mängd (A1A3)]]),"",IF(ISBLANK(InputA1A3[[#This Row],[FU/DU (EF A1A3)]]),"Värde Behövs",IF(InputA1A3[[#This Row],[Enhet Mängd (A1A3)]] = InputA1A3[[#This Row],[FU/DU (EF A1A3)]], TRUE, FALSE)))) ->  | BY45: =IF(KontrollTabell[[#This Row],[Finns anläggningsdel-namn.]]=FALSE,"",(IF(KontrollTabell[[#This Row],[True/False A1A3 Enhet]]=TRUE,TRUE,IF(OR(KontrollTabell[[#This Row],[True/False A1A3 Enhet]]="Värde Behövs",(KontrollTabell[[#This Row],[True/False A1A3 Enhet]]="")),"",IF(ISBLANK(InputA1A3[[#This Row],[Omräkning till FU/DU (Skriv in värde, ej formel)]]),FALSE,TRUE))))) ->  | BZ45: =IF(KontrollTabell[[#This Row],[Finns anläggningsdel-namn.]]=FALSE,,IF(KontrollTabell[[#This Row],[True/False A1A3 Enhet]]=TRUE,InputA1A3[[#This Row],[Mängd A1A3]]*InputA1A3[[#This Row],[EF A1A3 '[kg CO₂-ekv.']]],IF(KontrollTabell[[#This Row],[True/False A1A3 om A1A3 kan beräknas]]=TRUE,InputA1A3[[#This Row],[Mängd A1A3]]*InputA1A3[[#This Row],[EF A1A3 '[kg CO₂-ekv.']]]*InputA1A3[[#This Row],[Omräkning till FU/DU (Skriv in värde, ej formel)]],0))) -> 0 | CA45: =IF(ISBLANK(InputA1A3[[#This Row],[Anläggningsdel ]]),"",IF(ISBLANK(InputA1A3[[#This Row],[EPD - EF A4]]),FALSE,TRUE)) ->  | CB45: =IF(InputA1A3[[#This Row],[*DU/FU (EF A4) för valt drivmedel (schablon)]]="","",IF(InputA1A3[[#This Row],[Enhet (bränsleförbrukning per km)]]="","Värde Behövs",IF(OR(InputA1A3[[#This Row],[Enhet (bränsleförbrukning per km)]]=InputA1A3[[#This Row],[*DU/FU (EF A4) för valt drivmedel (schablon)]],AND(InputA1A3[[#This Row],[Enhet (bränsleförbrukning per km)]]<>InputA1A3[[#This Row],[*DU/FU (EF A4) för valt drivmedel (schablon)]],ISNUMBER(InputA1A3[[#This Row],[Omräkningsfaktor (A4), (vid behov, värde eller formel)]]))),TRUE(),FALSE()))) ->  | CC45: =IF(KontrollTabell[[#This Row],[Finns anläggningsdel-namn.]]=FALSE,"",(IF(InputA1A3[[#This Row],[Enhet (bränsleförbrukning per km)]] =InputA1A3[[#This Row],[*DU/FU (EF A4) för valt drivmedel (schablon)]],TRUE,IF(KontrollTabell[[#This Row],[True/False A4 - Alt 2]]="Värde Behövs","",IF(ISBLANK(InputA1A3[[#This Row],[Omräkningsfaktor (A4), (vid behov, värde eller formel)]]),FALSE,TRUE))))) ->  | CD45: =IF(ISBLANK(InputA1A3[[#This Row],[EPD - EF A4]]),"",IF(ISBLANK(InputA1A3[[#This Row],[Omräkning till FU/DU (Skriv in värde, ej formel)]]),InputA1A3[[#This Row],[EPD - EF A4]]*InputA1A3[[#This Row],[Mängd A1A3]],InputA1A3[[#This Row],[Mängd A1A3]]*InputA1A3[[#This Row],[Omräkning till FU/DU (Skriv in värde, ej formel)]]*InputA1A3[[#This Row],[EPD - EF A4]])) ->  | CE45: =IFERROR(IF(KontrollTabell[[#This Row],[True/False A4 - Alt 2]]="","",IF(KontrollTabell[[#This Row],[True/False A4 Enhet - Alt2]]=TRUE, IF(ISNUMBER(InputA1A3[[#This Row],[Omräkningsfaktor (A4), (vid behov, värde eller formel)]]),InputA1A3[[#This Row],[Sträcka - totalt '[km'], (tur och retur, alla transporter)]]*InputA1A3[[#This Row],[(Bränsle-) Förbrukning per km]]/InputA1A3[[#This Row],[Omräkningsfaktor (A4), (vid behov, värde eller formel)]]*InputA1A3[[#This Row],[*EF (A4) '[kg CO₂-ekv.']]], InputA1A3[[#This Row],[Sträcka - totalt '[km'], (tur och retur, alla transporter)]]*InputA1A3[[#This Row],[(Bränsle-) Förbrukning per km]]*InputA1A3[[#This Row],[*EF (A4) '[kg CO₂-ekv.']]]),"Sen då")),0) ->  | CF45: =SUM(KontrollTabell[[#This Row],[A4 - Resultat alt 1 '[kg']]:[A4 - Alt 2 - beräkning utsläpp]]) -> 0 | CG45: =IF(KontrollTabell[[#This Row],[Finns anläggningsdel-namn.]]=FALSE,"",IF(ISBLANK(InputA1A3[[#This Row],[EPD - EF A4]]),FALSE,TRUE)) ->  | CH45: =IFERROR(IF(KontrollTabell[[#This Row],[True/False A5]]=FALSE(),"Enheter",IF(ISBLANK(InputA1A3[[#This Row],[Omräkningsfaktor (A5.2) (ange värde), (vid behov)]]),InputA1A3[[#This Row],[Mängd (A5.2)]]*InputA1A3[[#This Row],[*EF (A5.2) '[kg CO₂-ekv.']]],InputA1A3[[#This Row],[Mängd (A5.2)]]*InputA1A3[[#This Row],[*EF (A5.2) '[kg CO₂-ekv.']]]*InputA1A3[[#This Row],[Omräkningsfaktor (A5.2) (ange värde), (vid behov)]])),0) -> 0 | CI45: =IF(InputA1A3[[#This Row],[*DU/FU (EF A5.2)]]="","",IF(InputA1A3[[#This Row],[Enhet för mängd (A5.2)]]="","Värde Behövs",IF(OR(InputA1A3[[#This Row],[Enhet för mängd (A5.2)]]=InputA1A3[[#This Row],[*DU/FU (EF A5.2)]],AND(InputA1A3[[#This Row],[Enhet för mängd (A5.2)]]<>InputA1A3[[#This Row],[*DU/FU (EF A5.2)]],ISNUMBER(InputA1A3[[#This Row],[Omräkningsfaktor (A5.2) (ange värde), (vid behov)]]))),TRUE,FALSE))) ->  | CJ45: =IF(OR(KontrollTabell[[#This Row],[Finns anläggningsdel-namn.]]=FALSE,KontrollTabell[[#This Row],[True/False A5]]="Värde Behövs"),"",IF(InputA1A3[[#This Row],[Enhet för mängd (A5.2)]] = InputA1A3[[#This Row],[*DU/FU (EF A5.2)]], TRUE, FALSE)) ->  | CK45: =IF(KontrollTabell[[#This Row],[Finns anläggningsdel-namn.]]=FALSE,"",IF(OR(ISBLANK(InputA1A3[[#This Row],[Kategori (egen kategorisering)]])=FALSE,ISBLANK(InputA1A3[[#This Row],[Anläggningsdel ]]))=FALSE,TRUE,FALSE)) ->  | CL45: =IF(ISBLANK(InputA1A3[[#This Row],[Anläggningsdel ]]),"",IF(KontrollTabell[[#This Row],[TRUE/FALSE om kategori saknas.]] =FALSE,InputA1A3[[#This Row],[Kategori (egen kategorisering)]],"Kategori saknas")) -> 
J46: =IF(ISBLANK(InputA1A3[[#This Row],[Anläggningsdel ]]),"",IF(OR(KontrollTabell[[#This Row],[True/False A1A3 Enhet]]=TRUE,KontrollTabell[[#This Row],[True/False A1A3 Enhet]]="Värde Behövs",KontrollTabell[[#This Row],[True/False A1A3 Enhet]]=""), "", InputA1A3[[#This Row],[FU/DU (EF A1A3)]] & "/" & InputA1A3[[#This Row],[Enhet Mängd (A1A3)]])) ->  | O46: =IF(ISBLANK(InputA1A3[[#This Row],[EPD - EF A4]]),"",InputA1A3[[#This Row],[FU/DU (EF A1A3)]]) ->  | T46: =IFERROR(INDEX(TabellEFDrivmedel[],MATCH(InputA1A3[[#This Row],[Drivmedel (A4) (endast förval ur lista)]],TabellEFDrivmedel[Drivmedel],0),4),"") ->  | X46: =IF(InputA1A3[[#This Row],[*DU/FU (EF A4) för valt drivmedel (schablon)]]="","",IF(OR(InputA1A3[[#This Row],[*DU/FU (EF A4) för valt drivmedel (schablon)]]=InputA1A3[[#This Row],[Enhet (bränsleförbrukning per km)]],KontrollTabell[[#This Row],[True/False A4 - Alt 2]]="Värde Behövs"),"",InputA1A3[[#This Row],[Enhet (bränsleförbrukning per km)]]& "/" & InputA1A3[[#This Row],[*DU/FU (EF A4) för valt drivmedel (schablon)]])) ->  | AF46: =IFERROR(INDEX(TabellEFDrivmedel[],MATCH(InputA1A3[[#This Row],[Drivmedel (A5.2)]],TabellEFDrivmedel[Drivmedel],0),2),"") ->  | AG46: =IFERROR(INDEX(TabellEFDrivmedel[],MATCH(InputA1A3[[#This Row],[Drivmedel (A5.2)]],TabellEFDrivmedel[Drivmedel],0),4),"") ->  | AH46: =IF(OR(KontrollTabell[[#This Row],[True/False A5 Enhet]]=TRUE,KontrollTabell[[#This Row],[True/False A5 Enhet]]=""), "", InputA1A3[[#This Row],[*DU/FU (EF A5.2)]] & "/" & InputA1A3[[#This Row],[Enhet för mängd (A5.2)]]) ->  | BW46: =IF(ISBLANK(InputA1A3[[#This Row],[Anläggningsdel ]]),FALSE,TRUE) -> FALSE | BX46: =IF(ISBLANK(InputA1A3[[#This Row],[Anläggningsdel ]]),"",IF(ISBLANK(InputA1A3[[#This Row],[Enhet Mängd (A1A3)]]),"",IF(ISBLANK(InputA1A3[[#This Row],[FU/DU (EF A1A3)]]),"Värde Behövs",IF(InputA1A3[[#This Row],[Enhet Mängd (A1A3)]] = InputA1A3[[#This Row],[FU/DU (EF A1A3)]], TRUE, FALSE)))) ->  | BY46: =IF(KontrollTabell[[#This Row],[Finns anläggningsdel-namn.]]=FALSE,"",(IF(KontrollTabell[[#This Row],[True/False A1A3 Enhet]]=TRUE,TRUE,IF(OR(KontrollTabell[[#This Row],[True/False A1A3 Enhet]]="Värde Behövs",(KontrollTabell[[#This Row],[True/False A1A3 Enhet]]="")),"",IF(ISBLANK(InputA1A3[[#This Row],[Omräkning till FU/DU (Skriv in värde, ej formel)]]),FALSE,TRUE))))) ->  | BZ46: =IF(KontrollTabell[[#This Row],[Finns anläggningsdel-namn.]]=FALSE,,IF(KontrollTabell[[#This Row],[True/False A1A3 Enhet]]=TRUE,InputA1A3[[#This Row],[Mängd A1A3]]*InputA1A3[[#This Row],[EF A1A3 '[kg CO₂-ekv.']]],IF(KontrollTabell[[#This Row],[True/False A1A3 om A1A3 kan beräknas]]=TRUE,InputA1A3[[#This Row],[Mängd A1A3]]*InputA1A3[[#This Row],[EF A1A3 '[kg CO₂-ekv.']]]*InputA1A3[[#This Row],[Omräkning till FU/DU (Skriv in värde, ej formel)]],0))) -> 0 | CA46: =IF(ISBLANK(InputA1A3[[#This Row],[Anläggningsdel ]]),"",IF(ISBLANK(InputA1A3[[#This Row],[EPD - EF A4]]),FALSE,TRUE)) ->  | CB46: =IF(InputA1A3[[#This Row],[*DU/FU (EF A4) för valt drivmedel (schablon)]]="","",IF(InputA1A3[[#This Row],[Enhet (bränsleförbrukning per km)]]="","Värde Behövs",IF(OR(InputA1A3[[#This Row],[Enhet (bränsleförbrukning per km)]]=InputA1A3[[#This Row],[*DU/FU (EF A4) för valt drivmedel (schablon)]],AND(InputA1A3[[#This Row],[Enhet (bränsleförbrukning per km)]]<>InputA1A3[[#This Row],[*DU/FU (EF A4) för valt drivmedel (schablon)]],ISNUMBER(InputA1A3[[#This Row],[Omräkningsfaktor (A4), (vid behov, värde eller formel)]]))),TRUE(),FALSE()))) ->  | CC46: =IF(KontrollTabell[[#This Row],[Finns anläggningsdel-namn.]]=FALSE,"",(IF(InputA1A3[[#This Row],[Enhet (bränsleförbrukning per km)]] =InputA1A3[[#This Row],[*DU/FU (EF A4) för valt drivmedel (schablon)]],TRUE,IF(KontrollTabell[[#This Row],[True/False A4 - Alt 2]]="Värde Behövs","",IF(ISBLANK(InputA1A3[[#This Row],[Omräkningsfaktor (A4), (vid behov, värde eller formel)]]),FALSE,TRUE))))) ->  | CD46: =IF(ISBLANK(InputA1A3[[#This Row],[EPD - EF A4]]),"",IF(ISBLANK(InputA1A3[[#This Row],[Omräkning till FU/DU (Skriv in värde, ej formel)]]),InputA1A3[[#This Row],[EPD - EF A4]]*InputA1A3[[#This Row],[Mängd A1A3]],InputA1A3[[#This Row],[Mängd A1A3]]*InputA1A3[[#This Row],[Omräkning till FU/DU (Skriv in värde, ej formel)]]*InputA1A3[[#This Row],[EPD - EF A4]])) ->  | CE46: =IFERROR(IF(KontrollTabell[[#This Row],[True/False A4 - Alt 2]]="","",IF(KontrollTabell[[#This Row],[True/False A4 Enhet - Alt2]]=TRUE, IF(ISNUMBER(InputA1A3[[#This Row],[Omräkningsfaktor (A4), (vid behov, värde eller formel)]]),InputA1A3[[#This Row],[Sträcka - totalt '[km'], (tur och retur, alla transporter)]]*InputA1A3[[#This Row],[(Bränsle-) Förbrukning per km]]/InputA1A3[[#This Row],[Omräkningsfaktor (A4), (vid behov, värde eller formel)]]*InputA1A3[[#This Row],[*EF (A4) '[kg CO₂-ekv.']]], InputA1A3[[#This Row],[Sträcka - totalt '[km'], (tur och retur, alla transporter)]]*InputA1A3[[#This Row],[(Bränsle-) Förbrukning per km]]*InputA1A3[[#This Row],[*EF (A4) '[kg CO₂-ekv.']]]),"Sen då")),0) ->  | CF46: =SUM(KontrollTabell[[#This Row],[A4 - Resultat alt 1 '[kg']]:[A4 - Alt 2 - beräkning utsläpp]]) -> 0 | CG46: =IF(KontrollTabell[[#This Row],[Finns anläggningsdel-namn.]]=FALSE,"",IF(ISBLANK(InputA1A3[[#This Row],[EPD - EF A4]]),FALSE,TRUE)) ->  | CH46: =IFERROR(IF(KontrollTabell[[#This Row],[True/False A5]]=FALSE(),"Enheter",IF(ISBLANK(InputA1A3[[#This Row],[Omräkningsfaktor (A5.2) (ange värde), (vid behov)]]),InputA1A3[[#This Row],[Mängd (A5.2)]]*InputA1A3[[#This Row],[*EF (A5.2) '[kg CO₂-ekv.']]],InputA1A3[[#This Row],[Mängd (A5.2)]]*InputA1A3[[#This Row],[*EF (A5.2) '[kg CO₂-ekv.']]]*InputA1A3[[#This Row],[Omräkningsfaktor (A5.2) (ange värde), (vid behov)]])),0) -> 0 | CI46: =IF(InputA1A3[[#This Row],[*DU/FU (EF A5.2)]]="","",IF(InputA1A3[[#This Row],[Enhet för mängd (A5.2)]]="","Värde Behövs",IF(OR(InputA1A3[[#This Row],[Enhet för mängd (A5.2)]]=InputA1A3[[#This Row],[*DU/FU (EF A5.2)]],AND(InputA1A3[[#This Row],[Enhet för mängd (A5.2)]]<>InputA1A3[[#This Row],[*DU/FU (EF A5.2)]],ISNUMBER(InputA1A3[[#This Row],[Omräkningsfaktor (A5.2) (ange värde), (vid behov)]]))),TRUE,FALSE))) ->  | CJ46: =IF(OR(KontrollTabell[[#This Row],[Finns anläggningsdel-namn.]]=FALSE,KontrollTabell[[#This Row],[True/False A5]]="Värde Behövs"),"",IF(InputA1A3[[#This Row],[Enhet för mängd (A5.2)]] = InputA1A3[[#This Row],[*DU/FU (EF A5.2)]], TRUE, FALSE)) ->  | CK46: =IF(KontrollTabell[[#This Row],[Finns anläggningsdel-namn.]]=FALSE,"",IF(OR(ISBLANK(InputA1A3[[#This Row],[Kategori (egen kategorisering)]])=FALSE,ISBLANK(InputA1A3[[#This Row],[Anläggningsdel ]]))=FALSE,TRUE,FALSE)) ->  | CL46: =IF(ISBLANK(InputA1A3[[#This Row],[Anläggningsdel ]]),"",IF(KontrollTabell[[#This Row],[TRUE/FALSE om kategori saknas.]] =FALSE,InputA1A3[[#This Row],[Kategori (egen kategorisering)]],"Kategori saknas")) -> 
J47: =IF(ISBLANK(InputA1A3[[#This Row],[Anläggningsdel ]]),"",IF(OR(KontrollTabell[[#This Row],[True/False A1A3 Enhet]]=TRUE,KontrollTabell[[#This Row],[True/False A1A3 Enhet]]="Värde Behövs",KontrollTabell[[#This Row],[True/False A1A3 Enhet]]=""), "", InputA1A3[[#This Row],[FU/DU (EF A1A3)]] & "/" & InputA1A3[[#This Row],[Enhet Mängd (A1A3)]])) ->  | O47: =IF(ISBLANK(InputA1A3[[#This Row],[EPD - EF A4]]),"",InputA1A3[[#This Row],[FU/DU (EF A1A3)]]) ->  | T47: =IFERROR(INDEX(TabellEFDrivmedel[],MATCH(InputA1A3[[#This Row],[Drivmedel (A4) (endast förval ur lista)]],TabellEFDrivmedel[Drivmedel],0),4),"") ->  | X47: =IF(InputA1A3[[#This Row],[*DU/FU (EF A4) för valt drivmedel (schablon)]]="","",IF(OR(InputA1A3[[#This Row],[*DU/FU (EF A4) för valt drivmedel (schablon)]]=InputA1A3[[#This Row],[Enhet (bränsleförbrukning per km)]],KontrollTabell[[#This Row],[True/False A4 - Alt 2]]="Värde Behövs"),"",InputA1A3[[#This Row],[Enhet (bränsleförbrukning per km)]]& "/" & InputA1A3[[#This Row],[*DU/FU (EF A4) för valt drivmedel (schablon)]])) ->  | AF47: =IFERROR(INDEX(TabellEFDrivmedel[],MATCH(InputA1A3[[#This Row],[Drivmedel (A5.2)]],TabellEFDrivmedel[Drivmedel],0),2),"") ->  | AG47: =IFERROR(INDEX(TabellEFDrivmedel[],MATCH(InputA1A3[[#This Row],[Drivmedel (A5.2)]],TabellEFDrivmedel[Drivmedel],0),4),"") ->  | AH47: =IF(OR(KontrollTabell[[#This Row],[True/False A5 Enhet]]=TRUE,KontrollTabell[[#This Row],[True/False A5 Enhet]]=""), "", InputA1A3[[#This Row],[*DU/FU (EF A5.2)]] & "/" & InputA1A3[[#This Row],[Enhet för mängd (A5.2)]]) ->  | BW47: =IF(ISBLANK(InputA1A3[[#This Row],[Anläggningsdel ]]),FALSE,TRUE) -> FALSE | BX47: =IF(ISBLANK(InputA1A3[[#This Row],[Anläggningsdel ]]),"",IF(ISBLANK(InputA1A3[[#This Row],[Enhet Mängd (A1A3)]]),"",IF(ISBLANK(InputA1A3[[#This Row],[FU/DU (EF A1A3)]]),"Värde Behövs",IF(InputA1A3[[#This Row],[Enhet Mängd (A1A3)]] = InputA1A3[[#This Row],[FU/DU (EF A1A3)]], TRUE, FALSE)))) ->  | BY47: =IF(KontrollTabell[[#This Row],[Finns anläggningsdel-namn.]]=FALSE,"",(IF(KontrollTabell[[#This Row],[True/False A1A3 Enhet]]=TRUE,TRUE,IF(OR(KontrollTabell[[#This Row],[True/False A1A3 Enhet]]="Värde Behövs",(KontrollTabell[[#This Row],[True/False A1A3 Enhet]]="")),"",IF(ISBLANK(InputA1A3[[#This Row],[Omräkning till FU/DU (Skriv in värde, ej formel)]]),FALSE,TRUE))))) ->  | BZ47: =IF(KontrollTabell[[#This Row],[Finns anläggningsdel-namn.]]=FALSE,,IF(KontrollTabell[[#This Row],[True/False A1A3 Enhet]]=TRUE,InputA1A3[[#This Row],[Mängd A1A3]]*InputA1A3[[#This Row],[EF A1A3 '[kg CO₂-ekv.']]],IF(KontrollTabell[[#This Row],[True/False A1A3 om A1A3 kan beräknas]]=TRUE,InputA1A3[[#This Row],[Mängd A1A3]]*InputA1A3[[#This Row],[EF A1A3 '[kg CO₂-ekv.']]]*InputA1A3[[#This Row],[Omräkning till FU/DU (Skriv in värde, ej formel)]],0))) -> 0 | CA47: =IF(ISBLANK(InputA1A3[[#This Row],[Anläggningsdel ]]),"",IF(ISBLANK(InputA1A3[[#This Row],[EPD - EF A4]]),FALSE,TRUE)) ->  | CB47: =IF(InputA1A3[[#This Row],[*DU/FU (EF A4) för valt drivmedel (schablon)]]="","",IF(InputA1A3[[#This Row],[Enhet (bränsleförbrukning per km)]]="","Värde Behövs",IF(OR(InputA1A3[[#This Row],[Enhet (bränsleförbrukning per km)]]=InputA1A3[[#This Row],[*DU/FU (EF A4) för valt drivmedel (schablon)]],AND(InputA1A3[[#This Row],[Enhet (bränsleförbrukning per km)]]<>InputA1A3[[#This Row],[*DU/FU (EF A4) för valt drivmedel (schablon)]],ISNUMBER(InputA1A3[[#This Row],[Omräkningsfaktor (A4), (vid behov, värde eller formel)]]))),TRUE(),FALSE()))) ->  | CC47: =IF(KontrollTabell[[#This Row],[Finns anläggningsdel-namn.]]=FALSE,"",(IF(InputA1A3[[#This Row],[Enhet (bränsleförbrukning per km)]] =InputA1A3[[#This Row],[*DU/FU (EF A4) för valt drivmedel (schablon)]],TRUE,IF(KontrollTabell[[#This Row],[True/False A4 - Alt 2]]="Värde Behövs","",IF(ISBLANK(InputA1A3[[#This Row],[Omräkningsfaktor (A4), (vid behov, värde eller formel)]]),FALSE,TRUE))))) ->  | CD47: =IF(ISBLANK(InputA1A3[[#This Row],[EPD - EF A4]]),"",IF(ISBLANK(InputA1A3[[#This Row],[Omräkning till FU/DU (Skriv in värde, ej formel)]]),InputA1A3[[#This Row],[EPD - EF A4]]*InputA1A3[[#This Row],[Mängd A1A3]],InputA1A3[[#This Row],[Mängd A1A3]]*InputA1A3[[#This Row],[Omräkning till FU/DU (Skriv in värde, ej formel)]]*InputA1A3[[#This Row],[EPD - EF A4]])) ->  | CE47: =IFERROR(IF(KontrollTabell[[#This Row],[True/False A4 - Alt 2]]="","",IF(KontrollTabell[[#This Row],[True/False A4 Enhet - Alt2]]=TRUE, IF(ISNUMBER(InputA1A3[[#This Row],[Omräkningsfaktor (A4), (vid behov, värde eller formel)]]),InputA1A3[[#This Row],[Sträcka - totalt '[km'], (tur och retur, alla transporter)]]*InputA1A3[[#This Row],[(Bränsle-) Förbrukning per km]]/InputA1A3[[#This Row],[Omräkningsfaktor (A4), (vid behov, värde eller formel)]]*InputA1A3[[#This Row],[*EF (A4) '[kg CO₂-ekv.']]], InputA1A3[[#This Row],[Sträcka - totalt '[km'], (tur och retur, alla transporter)]]*InputA1A3[[#This Row],[(Bränsle-) Förbrukning per km]]*InputA1A3[[#This Row],[*EF (A4) '[kg CO₂-ekv.']]]),"Sen då")),0) ->  | CF47: =SUM(KontrollTabell[[#This Row],[A4 - Resultat alt 1 '[kg']]:[A4 - Alt 2 - beräkning utsläpp]]) -> 0 | CG47: =IF(KontrollTabell[[#This Row],[Finns anläggningsdel-namn.]]=FALSE,"",IF(ISBLANK(InputA1A3[[#This Row],[EPD - EF A4]]),FALSE,TRUE)) ->  | CH47: =IFERROR(IF(KontrollTabell[[#This Row],[True/False A5]]=FALSE(),"Enheter",IF(ISBLANK(InputA1A3[[#This Row],[Omräkningsfaktor (A5.2) (ange värde), (vid behov)]]),InputA1A3[[#This Row],[Mängd (A5.2)]]*InputA1A3[[#This Row],[*EF (A5.2) '[kg CO₂-ekv.']]],InputA1A3[[#This Row],[Mängd (A5.2)]]*InputA1A3[[#This Row],[*EF (A5.2) '[kg CO₂-ekv.']]]*InputA1A3[[#This Row],[Omräkningsfaktor (A5.2) (ange värde), (vid behov)]])),0) -> 0 | CI47: =IF(InputA1A3[[#This Row],[*DU/FU (EF A5.2)]]="","",IF(InputA1A3[[#This Row],[Enhet för mängd (A5.2)]]="","Värde Behövs",IF(OR(InputA1A3[[#This Row],[Enhet för mängd (A5.2)]]=InputA1A3[[#This Row],[*DU/FU (EF A5.2)]],AND(InputA1A3[[#This Row],[Enhet för mängd (A5.2)]]<>InputA1A3[[#This Row],[*DU/FU (EF A5.2)]],ISNUMBER(InputA1A3[[#This Row],[Omräkningsfaktor (A5.2) (ange värde), (vid behov)]]))),TRUE,FALSE))) ->  | CJ47: =IF(OR(KontrollTabell[[#This Row],[Finns anläggningsdel-namn.]]=FALSE,KontrollTabell[[#This Row],[True/False A5]]="Värde Behövs"),"",IF(InputA1A3[[#This Row],[Enhet för mängd (A5.2)]] = InputA1A3[[#This Row],[*DU/FU (EF A5.2)]], TRUE, FALSE)) ->  | CK47: =IF(KontrollTabell[[#This Row],[Finns anläggningsdel-namn.]]=FALSE,"",IF(OR(ISBLANK(InputA1A3[[#This Row],[Kategori (egen kategorisering)]])=FALSE,ISBLANK(InputA1A3[[#This Row],[Anläggningsdel ]]))=FALSE,TRUE,FALSE)) ->  | CL47: =IF(ISBLANK(InputA1A3[[#This Row],[Anläggningsdel ]]),"",IF(KontrollTabell[[#This Row],[TRUE/FALSE om kategori saknas.]] =FALSE,InputA1A3[[#This Row],[Kategori (egen kategorisering)]],"Kategori saknas")) -> 
AF48: =IFERROR(INDEX(TabellEFDrivmedel[],MATCH(InputA1A3[[#This Row],[Drivmedel (A5.2)]],TabellEFDrivmedel[Drivmedel],0),2),"") ->  | AG48: =IFERROR(INDEX(TabellEFDrivmedel[],MATCH(InputA1A3[[#This Row],[Drivmedel (A5.2)]],TabellEFDrivmedel[Drivmedel],0),4),"") -> 
R54: =IFERROR(INDEX(TabellEFDrivmedel[],MATCH(InputA1A3[[#This Row],[Drivmedel (A4) (endast förval ur lista)]],TabellEFDrivmedel[Drivmedel],0),2),"") -> 
R55: =IFERROR(INDEX(TabellEFDrivmedel[],MATCH(InputA1A3[[#This Row],[Drivmedel (A4) (endast förval ur lista)]],TabellEFDrivmedel[Drivmedel],0),2),"") -> 
R56: =IFERROR(INDEX(TabellEFDrivmedel[],MATCH(InputA1A3[[#This Row],[Drivmedel (A4) (endast förval ur lista)]],TabellEFDrivmedel[Drivmedel],0),2),"") -> 

Sheet Underlag rörmaterial
A2: Rörmaterial | B2: Genomsnittlig emissionsfaktor (EF) A1-A3 [kg CO₂-ekv./kg]
A3: Plast (PE) | B3: =AVERAGEIF(C:C,Table6[[#This Row],[Rörmaterial]],G:G) -> 2.0525
A4: Plast (PP) | B4: =AVERAGEIF(C:C,Table6[[#This Row],[Rörmaterial]],G:G) -> 2.1025
A5: Plast (PVC) | B5: =AVERAGEIF(C:C,Table6[[#This Row],[Rörmaterial]],G:G) -> 2.080091717
A6: Stål | B6: =AVERAGEIF(C:C,Table6[[#This Row],[Rörmaterial]],G:G) -> 2.624
A7: Segjärn | B7: =AVERAGEIF(C:C,Table6[[#This Row],[Rörmaterial]],G:G) -> 1.328166667
A8: Betong | B8: =AVERAGEIF(C:C,Table6[[#This Row],[Rörmaterial]],G:G) -> 0.1383508895
A10: De genomsnittliga emissionsfaktorerna som redovisas ovan är baserade på nedan angivna EPD:er. Vänligen notera att emissionsfaktor (EF) enligt EPD (kolumn E) inte är angiven per kg för alla produkterna. I vissa fall har därför en omräkning behövts för att redovisa EF i kg CO₂-ekv/kg (kolumn G).
A11: Produktnamn | B11: Tillverkare | C11: Typ av rörmaterial | D11: EPD nr. | E11: EF enligt EPD A1-A3 [kg CO₂-ekv.] | F11: FU/DU enligt EPD (EF A1A3) | G11: EF A1-A3 [kg CO₂-ekv./kg] | H11: Materials | I11: Notes | J11: EPD valid to | K11: Density [kg/m³] | L11: EF A1A3 [kg CO₂-ekv./m3] | M11: Unit conversion | N11: Conversion factor
A12: PE 100-RC Pressure pipe | B12: HALLINGPLAST | C12: Plast (PE) | D12: NEPD-6384-5640 | E12: 2.15 | F12: [kg] | G12: =E12 -> 2.15 | H12: HDPE | J12: 04.04.2029 | K12: 960 | L12: =N12*G12 -> 2064 | M12: [m³/kg] | N12: 960
A13: PE100 RC Pressure Sewage pipes SDR 11 | B13: Pipelife | C13: Plast (PE) | D13: NEPD-4474-3731-EN | E13: 2.23 | F13: [kg] | G13: =Table16[[#This Row],[EF enligt EPD A1-A3 '[kg CO₂-ekv.']]] -> 2.23 | H13: Polyethylene (HDPE) 100% | J13: 15.05.2028
A14: Weholite PLUS | B14: Uponor | C14: Plast (PE) | D14: EPDHUB-0103 | E14: 1.82 | F14: [kg] | G14: =Table16[[#This Row],[EF enligt EPD A1-A3 '[kg CO₂-ekv.']]] -> 1.82 | H14: PE | J14: 08.09.2027
A15: PE100 Pipes | B15: Externa | C15: Plast (PE) | D15: S-P-13318 | E15: 2.01 | F15: [kg] | G15: =Table16[[#This Row],[EF enligt EPD A1-A3 '[kg CO₂-ekv.']]] -> 2.01 | H15: HDPE | J15: 09.04.2029
A16: PP Nordic Pipe | B16: Pipelife Sverige | C16: Plast (PP) | D16: NEPD-4322-3559 | E16: 2.25 | F16: [kg] | G16: =E16 -> 2.25 | H16: PP 99.20% | I16: FU: The unit is with socket included. Density: 905 kg/m3 | J16: 03.04.2028 | K16: 905 | M16: [m³/kg] | N16: 905
A17: INFRA Sewage pipes | B17: Pipelife Sverige | C17: Plast (PP) | D17: NEPD-4434-3699 | E17: 2.03 | F17: [kg] | G17: =E17 -> 2.03 | H17: Polypropylene (PP) 90% Pigments 10% | I17: FU: The unit is with socket included. | J17: 05.05.2028
A18: IQ STORM WATER PIPE | B18: UPONOR CORPORATION | C18: Plast (PP) | D18: RTS_100_21 | E18: 2.06 | F18: [kg] | G18: =E18 -> 2.06 | H18: PP 99% | I18: RANGE ID (INNER DIAMETER) 150 – 1200 mm | J18: 01.03.2026 | K18: 900
A19: Ultra Rib 2 | B19: Uponor Corporation | C19: Plast (PP) | D19: HUB-0039 | E19: 2.07 | F19: [kg] | G19: =E19 -> 2.07 | H19: unplasticized poly(vinyl chloride) (PVC-U), polypropylene (PP) and polyethylene (PE). | J19: 23.05.2027
A20: PVC Sewage pipe 160x4,7 SN8 6m | B20: Pipelife Sverige | C20: Plast (PVC) | D20: NEPD-2871-1565 | E20: 4.7 | F20: [m] | G20: =E20/3.67 -> 1.280653951 | H20: Polyvinylchloride (PVC) 81.59% Filler 16.36% | I20: FU: The unit is with socket included (one socket/6m) Results are per declared unit = 1m Weight: 3.67 kg (3.76 kg with packaging) PVC density: 1400 kg/m3 | J20: 03.06.2026 | K20: 1400
A21: PVC Sewage pipe 200x5,9 SN8 1m | B21: Pipelife Sverige | C21: Plast (PVC) | D21: NEPD-3001-1676 | E21: 8.4 | F21: [m] | G21: =E21/6.27 -> 1.339712919 | H21: Polyvinylchloride (PVC) 80.35% Filler 16.12% | I21: FU: The unit is with socket included (one socket/1m) Results are per declared unit = 1m Weight: 6.27 kg (6.72 kg with packaging) PVC density: 1400 kg/m3 | J21: 12.08.2026 | K21: 1400
A22: Uponor PVC Sewer pipes | B22: Uponor Corporation | C22: Plast (PVC) | D22: EPDHUB-1576 | E22: 3.04 | F22: [kg] | G22: =Table16[[#This Row],[EF enligt EPD A1-A3 '[kg CO₂-ekv.']]] -> 3.04 | H22: unplasticized polyvinyl chloride (PVC-U) | J22: 30.06.2029
A23: Uponor PVC Storm water pipes | B23: Uponor Corporation | C23: Plast (PVC) | D23: EPDHUB-1575 | E23: 2.66 | F23: [kg] | G23: =Table16[[#This Row],[EF enligt EPD A1-A3 '[kg CO₂-ekv.']]] -> 2.66 | H23: unplasticized polyvinyl chloride (PVC-U) | J23: 30.06.2029
A24: Pressure pipes | B24: SSAB | C24: Stål | D24: EPD S-P-05437 | E24: 2300 | F24: [ton] | G24: =E24/1000 -> 2.3 | H24: Uncoated: Hot rolled steel 100% Coated: Hot rolled steel 80% Concrete 16.5% PE 2.8% | J24: 12.11.2026
A25: Steel Pipe | B25: ERCIYAS | C25: Stål | D25: EPD-ERC-20200034-IBC1-EN | E25: =2900+15.2+32.8 -> 2948 | F25: [ton] | G25: =E25/1000 -> 2.948 | H25: Hot-rolled coils >94% | J25: 02.12.2025
A26: Pipe system Natural DN1200 | B26: Saint-Gobain PAM | C26: Segjärn | D26: S-P-06964 | E26: 970 | F26: [m] | G26: =E26/465.6 -> 2.083333333 | H26: Ductile iron 87% Blast furnace cement mortar 11.6% | I26: Mass: 465.6 kg / FU | J26: 09.09.2027
A27: Ferdig produkt av seigjern fra Furnes Jernstøperi AS. | B27: Furnes Jernstøperi AS | C27: Segjärn | D27: NEPD-2706-1309-NO | E27: 573 | F27: [ton] | G27: =E27/1000 -> 0.573 | H27: Skrapjern 92.2% | J27: 08.03.2026
A28: DC Bantrumma ø800-1800 | B28: Dahlgrens Cementgjuteri AB | C28: Betong | D28: NEPD-6216-5480_SE | E28: 200 | F28: [ton] | G28: 0.2 | H28: Ballast 66.8% Bascement 22.7% | I28: Results for an average product (across different diameters) | J28: 04.03.2029
A29: Water- and Sewage system concrete pipes without reinforcement: KANMAX PG | B29: S:t Eriks AB | C29: Betong | D29: S-P-02093 | E29: 116 | F29: [ton] | G29: 0.116 | H29: Gravel, crushed <40% Gravel, natural round <40% Cement <17% | J29: 18.08.2025
A30: Water- and Sewage system concrete pipes withreinforcement: GERMAX PG | B30: S:t Eriks AB | C30: Betong | D30: S-P-02092 | E30: 131 | F30: [ton] | G30: 0.131 | H30: Gravel, crushed <45% Gravel, natural round <35% Cement <17% | J30: 18.08.2025
A31: Betonrør Ø300-Ø1600 | B31: CRH Concrete A/S | C31: Betong | D31: NEPD-6301-5561 | E31: =141+16.7+8.45 -> 166.15 | F31: [ton] | G31: 0.16615 | H31: Aggregate 45% Sand 33% Cement 14% | J31: 21.03.2029
A32: IG-rør Ø800-1600 | B32: Gammelrand Beton | C32: Betong | D32: NEPD-7373-6764-DK | E32: =94.4+1.86+10.6 -> 106.86 | F32: [ton] | G32: 0.10686 | H32: Aggregate 44% Sand 35% Cement 13% | J32: 02.09.2029
A33: IG-rør Ø500-700 | B33: Gammelrand Beton | C33: Betong | D33: NEPD-7174-6582-DK | E33: =92.5+1.84+10.6 -> 104.94 | F33: [ton] | G33: 0.10494 | H33: Aggregate 41.5% Sand 38% Cement 13% | J33: 06.08.2029
A34: Betonrør med diameter 400mm | B34: Dansk Beton | C34: Betong | D34: MD-20020-DA_rev1 | E34: 38.6 | F34: [m] | G34: =E34/266 -> 0.145112782 | H34: Aggregate 36-48% Sand 32-44% Cement 14-15% | I34: 266 kg/m | J34: 20.07.2025
A35: Betonrør med diameter 1000mm | B35: Dansk Beton | C35: Betong | D35: MD-20020-DA_rev1 | E35: 229 | F35: [m] | G35: =E35/1545 -> 0.1482200647 | H35: Aggregate 36-48% Sand 32-44% Cement 14-15% | I35: 1545 kg/m | J35: 20.07.2025
A36: Betonrør med diameter 1600mm | B36: Dansk Beton | C36: Betong | D36: MD-20020-DA_rev1 | E36: 499 | F36: [m] | G36: =E36/3933 -> 0.1268751589 | H36: Aggregate 36-48% Sand 32-44% Cement 14-15% | I36: 3933 kg/m | J36: 20.07.2025

Sheet Kommentarer
C1: =IF(ISBLANK(ProjektNamn), "Du har inte angett ett namn för projekt",IF(ISBLANK(ScenarioNamn),"Du har inte angett ett namn för scenariot","Komentarer "&ProjektNamn & " " &ScenarioNamn)) -> Du har inte angett ett namn för projekt
B3: Här kan ange mer utförliggare kommentarer till anläggningsdelarna
B5: Färgförklaringar: | C5: Text med denna färg autofylls från input-fliken - ändra den inte.
B7: Anläggningsdel | C7: Kommentar | D7: Uförlig kommentar | E7: Kommentar ang omräkningsfaktorer | F7: Kommentar ang emissionsfaktorer som används, t ex källa, m.m.
B8: =IF(INDEX(InputA1A3[Anläggningsdel ],ROW()-ROW(TblKommentar[#Headers]))="","",INDEX(InputA1A3[Anläggningsdel ], ROW()-ROW(TblKommentar[#Headers]))) ->  | C8: =IF(INDEX(InputA1A3[Kommentar],ROW()-ROW(TblKommentar[#Headers]))="","",INDEX(InputA1A3[Kommentar], ROW()-ROW(TblKommentar[#Headers]))) -> 
B9: =IF(INDEX(InputA1A3[Anläggningsdel ],ROW()-ROW(TblKommentar[#Headers]))="","",INDEX(InputA1A3[Anläggningsdel ], ROW()-ROW(TblKommentar[#Headers]))) ->  | C9: =IF(INDEX(InputA1A3[Kommentar],ROW()-ROW(TblKommentar[#Headers]))="","",INDEX(InputA1A3[Kommentar], ROW()-ROW(TblKommentar[#Headers]))) -> 
B10: =IF(INDEX(InputA1A3[Anläggningsdel ],ROW()-ROW(TblKommentar[#Headers]))="","",INDEX(InputA1A3[Anläggningsdel ], ROW()-ROW(TblKommentar[#Headers]))) ->  | C10: =IF(INDEX(InputA1A3[Kommentar],ROW()-ROW(TblKommentar[#Headers]))="","",INDEX(InputA1A3[Kommentar], ROW()-ROW(TblKommentar[#Headers]))) -> 
B11: =IF(INDEX(InputA1A3[Anläggningsdel ],ROW()-ROW(TblKommentar[#Headers]))="","",INDEX(InputA1A3[Anläggningsdel ], ROW()-ROW(TblKommentar[#Headers]))) ->  | C11: =IF(INDEX(InputA1A3[Kommentar],ROW()-ROW(TblKommentar[#Headers]))="","",INDEX(InputA1A3[Kommentar], ROW()-ROW(TblKommentar[#Headers]))) -> 
B12: =IF(INDEX(InputA1A3[Anläggningsdel ],ROW()-ROW(TblKommentar[#Headers]))="","",INDEX(InputA1A3[Anläggningsdel ], ROW()-ROW(TblKommentar[#Headers]))) ->  | C12: =IF(INDEX(InputA1A3[Kommentar],ROW()-ROW(TblKommentar[#Headers]))="","",INDEX(InputA1A3[Kommentar], ROW()-ROW(TblKommentar[#Headers]))) -> 

Sheet Resultat - enskilt scenario
B2: Här presenteras resultatet, utsläppen av växthusgaser per anläggningsdel, i tabellen nedan.
B4: =IF(ISBLANK(ProjektNamn), "Du har inte angett ett namn för projekt",IF(ISBLANK(ScenarioNamn),"Du har inte angett ett namn för scenariot","Resultat "&ProjektNamn&" " &ScenarioNamn)) -> Du har inte angett ett namn för projekt
B5: ='Instruktion och Projektinfo'!O5 -> 0 | C5: ='Instruktion och Projektinfo'!N3:O3 -> Organisation: | D5: 0
B6: ='Instruktion och Projektinfo'!M5 -> 202X-XX-XX | C6: ='Instruktion och Projektinfo'!P3:Q3 -> Kontaktperson: | D6: 0 | E6: Utsläpp [ton CO₂-ekv.]
B7: Anläggningsdel | C7: Kategorisering | D7: Kommentar | E7: A1-A3 | F7: A4 | G7: A5 | H7: Totalt | I7: Procentandel av totala utsläppen
B8: =IF(INDEX(InputA1A3[Anläggningsdel ],ROW()-ROW(OutputScenario[#Headers]))="","",INDEX(InputA1A3[Anläggningsdel ], ROW()-ROW(OutputScenario[#Headers]))) ->  | C8: =IF(INDEX(KontrollTabell[Kategorier],ROW()-ROW(OutputScenario[#Headers]))="","",INDEX(KontrollTabell[Kategorier], ROW()-ROW(OutputScenario[#Headers]))) ->  | D8: =IF(INDEX(InputA1A3[Kommentar],ROW()-ROW(OutputScenario[#Headers]))="","",INDEX(InputA1A3[Kommentar], ROW()-ROW(OutputScenario[#Headers]))) ->  | E8: =KontrollTabell[[#This Row],[Utsläpp A1A3 '[kg']]]/1000 -> 0 | F8: =KontrollTabell[[#This Row],[Utsläpp A2 '[kg'] (alt1 och alt2)]]/1000 -> 0 | G8: =KontrollTabell[[#This Row],[Utsläpp A5'[kg']]]/1000 -> 0 | H8: =SUM(OutputScenario[[#This Row],[A1-A3]:[A5]]) -> 0 | I8: =OutputScenario[[#This Row],[Totalt]]/OutputScenario[[#Totals],[Totalt]] -> 
B9: =IF(INDEX(InputA1A3[Anläggningsdel ],ROW()-ROW(OutputScenario[#Headers]))="","",INDEX(InputA1A3[Anläggningsdel ], ROW()-ROW(OutputScenario[#Headers]))) ->  | C9: =IF(INDEX(KontrollTabell[Kategorier],ROW()-ROW(OutputScenario[#Headers]))="","",INDEX(KontrollTabell[Kategorier], ROW()-ROW(OutputScenario[#Headers]))) ->  | D9: =IF(INDEX(InputA1A3[Kommentar],ROW()-ROW(OutputScenario[#Headers]))="","",INDEX(InputA1A3[Kommentar], ROW()-ROW(OutputScenario[#Headers]))) ->  | E9: =KontrollTabell[[#This Row],[Utsläpp A1A3 '[kg']]]/1000 -> 0 | F9: =KontrollTabell[[#This Row],[Utsläpp A2 '[kg'] (alt1 och alt2)]]/1000 -> 0 | G9: =KontrollTabell[[#This Row],[Utsläpp A5'[kg']]]/1000 -> 0 | H9: =SUM(OutputScenario[[#This Row],[A1-A3]:[A5]]) -> 0 | I9: =OutputScenario[[#This Row],[Totalt]]/OutputScenario[[#Totals],[Totalt]] -> 
B10: =IF(INDEX(InputA1A3[Anläggningsdel ],ROW()-ROW(OutputScenario[#Headers]))="","",INDEX(InputA1A3[Anläggningsdel ], ROW()-ROW(OutputScenario[#Headers]))) ->  | C10: =IF(INDEX(KontrollTabell[Kategorier],ROW()-ROW(OutputScenario[#Headers]))="","",INDEX(KontrollTabell[Kategorier], ROW()-ROW(OutputScenario[#Headers]))) ->  | D10: =IF(INDEX(InputA1A3[Kommentar],ROW()-ROW(OutputScenario[#Headers]))="","",INDEX(InputA1A3[Kommentar], ROW()-ROW(OutputScenario[#Headers]))) ->  | E10: =KontrollTabell[[#This Row],[Utsläpp A1A3 '[kg']]]/1000 -> 0 | F10: =KontrollTabell[[#This Row],[Utsläpp A2 '[kg'] (alt1 och alt2)]]/1000 -> 0 | G10: =KontrollTabell[[#This Row],[Utsläpp A5'[kg']]]/1000 -> 0 | H10: =SUM(OutputScenario[[#This Row],[A1-A3]:[A5]]) -> 0 | I10: =OutputScenario[[#This Row],[Totalt]]/OutputScenario[[#Totals],[Totalt]] -> 
B11: =IF(INDEX(InputA1A3[Anläggningsdel ],ROW()-ROW(OutputScenario[#Headers]))="","",INDEX(InputA1A3[Anläggningsdel ], ROW()-ROW(OutputScenario[#Headers]))) ->  | C11: =IF(INDEX(KontrollTabell[Kategorier],ROW()-ROW(OutputScenario[#Headers]))="","",INDEX(KontrollTabell[Kategorier], ROW()-ROW(OutputScenario[#Headers]))) ->  | D11: =IF(INDEX(InputA1A3[Kommentar],ROW()-ROW(OutputScenario[#Headers]))="","",INDEX(InputA1A3[Kommentar], ROW()-ROW(OutputScenario[#Headers]))) ->  | E11: =KontrollTabell[[#This Row],[Utsläpp A1A3 '[kg']]]/1000 -> 0 | F11: =KontrollTabell[[#This Row],[Utsläpp A2 '[kg'] (alt1 och alt2)]]/1000 -> 0 | G11: =KontrollTabell[[#This Row],[Utsläpp A5'[kg']]]/1000 -> 0 | H11: =SUM(OutputScenario[[#This Row],[A1-A3]:[A5]]) -> 0 | I11: =OutputScenario[[#This Row],[Totalt]]/OutputScenario[[#Totals],[Totalt]] -> 
B12: =IF(INDEX(InputA1A3[Anläggningsdel ],ROW()-ROW(OutputScenario[#Headers]))="","",INDEX(InputA1A3[Anläggningsdel ], ROW()-ROW(OutputScenario[#Headers]))) ->  | C12: =IF(INDEX(KontrollTabell[Kategorier],ROW()-ROW(OutputScenario[#Headers]))="","",INDEX(KontrollTabell[Kategorier], ROW()-ROW(OutputScenario[#Headers]))) ->  | D12: =IF(INDEX(InputA1A3[Kommentar],ROW()-ROW(OutputScenario[#Headers]))="","",INDEX(InputA1A3[Kommentar], ROW()-ROW(OutputScenario[#Headers]))) ->  | E12: =KontrollTabell[[#This Row],[Utsläpp A1A3 '[kg']]]/1000 -> 0 | F12: =KontrollTabell[[#This Row],[Utsläpp A2 '[kg'] (alt1 och alt2)]]/1000 -> 0 | G12: =KontrollTabell[[#This Row],[Utsläpp A5'[kg']]]/1000 -> 0 | H12: =SUM(OutputScenario[[#This Row],[A1-A3]:[A5]]) -> 0 | I12: =OutputScenario[[#This Row],[Totalt]]/OutputScenario[[#Totals],[Totalt]] -> 
B13: Total | E13: =SUBTOTAL(109,OutputScenario[A1-A3]) -> 0 | F13: =SUBTOTAL(109,OutputScenario[A4]) -> 0 | G13: =SUBTOTAL(109,OutputScenario[A5]) -> 0 | H13: =SUBTOTAL(109,OutputScenario[Totalt]) -> 0

Sheet Stödtabeller (hidden)
A1: Rör, justera eller ändra inget i denna flik, även lägg inte till rader eller kolumner.
K2: Rött - beräknade från flik "Emissionsfaktorer - rör ej cellerna
I3: Här behöver scenarionamn sparas för de scenarion som sparas, och tas bort när de raderas - även från Excel NameManager!!!
A5: Enheter | B5: Enhet för omräkningsfaktor | D5: FU/DU | E5: Bränsleförbrukning | F5: Scenarier | G5: Fordon | H5: Fordon/Arbetsmaskiner | K5: Drivmedel | L5: Emissionsfaktor | M5: Emissionsfaktor - Enhet | N5: DU/FU | O5: Källa
A6: kg | B6: [kg/m³] | D6: [kg] | E6: [Liter (l)] | F6: Referensscenario | H6: Hjullastare | K6: Bensin MK1 | L6: =Emissionsfaktorer!F10*Emissionsfaktorer!G10 -> 2.72376 | M6: [kg CO₂-ekv./liter] | N6: [Liter (l)] | O6: Boverkets klimatdatabas
A7: Liter (l) | B7: [kg/Liter (l)] | D7: [ton] | E7: [MJ] | H7: Grävlastare | K7: Diesel MK1 | L7: =Emissionsfaktorer!F8*Emissionsfaktorer!G8 -> 3.21842 | M7: [kg CO₂-ekv./liter] | N7: [Liter (l)] | O7: Boverkets klimatdatabas
A8: m | B8: [kg/m] | D8: [m] | E8: [kWh] | H8: Bandgrävningsmaskin | K8: E85 Etanol | L8: =INDEX(TabellBoverketsKDB[],MATCH(TabellEFDrivmedel[[#This Row],[Drivmedel]],TabellBoverketsKDB[Produktnamn],0),6)*INDEX(TabellBoverketsKDB[],MATCH(TabellEFDrivmedel[[#This Row],[Drivmedel]],TabellBoverketsKDB[Produktnamn],0),7) -> 1.0764 | M8: [kg CO₂-ekv./liter] | N8: [Liter (l)] | O8: Boverkets klimatdatabas
A9: m² | B9: [kg/m²] | D9: [m²] | E9: [m³] | H9: Dumper | K9: ED95 | L9: =INDEX(TabellBoverketsKDB[],MATCH(TabellEFDrivmedel[[#This Row],[Drivmedel]],TabellBoverketsKDB[Produktnamn],0),6)*INDEX(TabellBoverketsKDB[],MATCH(TabellEFDrivmedel[[#This Row],[Drivmedel]],TabellBoverketsKDB[Produktnamn],0),7) -> 0.39432 | M9: [kg CO₂-ekv./liter] | N9: [Liter (l)] | O9: Boverkets klimatdatabas
A10: m³ | B10: [kg/m³] | D10: [m³] | E10: [kg] | H10: Hjulgrävsmaskin | K10: El - nordisk mix | L10: =93.2/1000 -> 0.0932 | M10: [kg CO₂-ekv./kWh] | N10: [kWh] | O10: SMED Rapport nr 4, 2021
A11: st | B11: [kg/st] | D11: [MJ] | H11: Kompaktlastare | K11: El - nordisk residualmix | L11: =468/1000 -> 0.468 | M11: kg CO₂/kWh] | N11: [kWh] | O11: Miljövärdering 2023, Energiföretagen - OBS, ej ekvivalenter
A12: ton | B12: [kg/ton] | D12: [kWh] | H12: Gruvtruck/Tipptruck | K12: El - svensk elmix | L12: =INDEX(TabellBoverketsKDB[],MATCH(TabellEFDrivmedel[[#This Row],[Drivmedel]],TabellBoverketsKDB[Produktnamn],0),6)*INDEX(TabellBoverketsKDB[],MATCH(TabellEFDrivmedel[[#This Row],[Drivmedel]],TabellBoverketsKDB[Produktnamn],0),7) -> 0.037 | M12: [kg CO₂-ekv./kWh] | N12: [kWh] | O12: Boverkets klimatdatabas
A13: MJ | B13: [kg/MJ] | D13: [Liter (l)] | H13: Mobilkran | K13: FAME100 | L13: =INDEX(TabellBoverketsKDB[],MATCH(TabellEFDrivmedel[[#This Row],[Drivmedel]],TabellBoverketsKDB[Produktnamn],0),6)*INDEX(TabellBoverketsKDB[],MATCH(TabellEFDrivmedel[[#This Row],[Drivmedel]],TabellBoverketsKDB[Produktnamn],0),7) -> 1.1583 | M13: [kg CO₂-ekv./MJ] | N13: [MJ] | O13: Boverkets klimatdatabas
A14: kWh | B14: [kg/kWh] | D14: [st] | H14: Truck | K14: Fordonsgas | L14: =INDEX(TabellBoverketsKDB[],MATCH(TabellEFDrivmedel[[#This Row],[Drivmedel]],TabellBoverketsKDB[Produktnamn],0),6)*INDEX(TabellBoverketsKDB[],MATCH(TabellEFDrivmedel[[#This Row],[Drivmedel]],TabellBoverketsKDB[Produktnamn],0),7) -> 0.03388 | M14: [kg CO₂-ekv./kg] | N14: [kg] | O14: Boverkets klimatdatabas
D15: [km] | K15: HVO100 | L15: =INDEX(TabellBoverketsKDB[],MATCH(TabellEFDrivmedel[[#This Row],[Drivmedel]],TabellBoverketsKDB[Produktnamn],0),6)*INDEX(TabellBoverketsKDB[],MATCH(TabellEFDrivmedel[[#This Row],[Drivmedel]],TabellBoverketsKDB[Produktnamn],0),7) -> 0.5456 | M15: [kg CO₂-ekv./liter] | N15: [Liter (l)] | O15: Boverkets klimatdatabas
K16: El - grön el | L16: 0.0012 | M16: [kg CO₂-ekv./kWh] | N16: [kWh] | O16: Trafikverkets Klimakalkyl v.8

Sheet Emissionsfaktorer (hidden)
A1: Rör, justera eller ändra inget i denna flik, även lägg inte till rader eller kolumner.
A4: Emissionsfaktorer - Drivmedel | C4: Källa: | D4: Boverkets klimatdatabas v. 02.07.000 (2026-01-21)
A6: ResursId | B6: Produktnamn | C6: Kategori | D6: Uppdaterad | E6: Enhet för klimatpåverkan | F6: Energislagets klimatpåverkan GWP-GHG, typiskt värde | G6: Omräkningsfaktor | H6: Enhet för omräkningsfaktor | I6: Produktstandard | J6: Komponentkod enligt BK04 | K6: Komponentnamn enligt BK04 | L6: Produktens användningsområde
A7: 6000000008 | B7: El - svensk elmix | C7: Energi och bränsle | D7: 2026-01-21 | E7: kg CO₂e/kWh | F7: 0.037 | G7: 1 | H7: kWh | I7: EN 15804 A1 | J7: 195 | K7: Elektricitet | L7: El köps från elnätet för flera olika ändamål.
A8: 6000000010 | B8: Diesel, reduktionsplikt (2024) | C8: Energi och bränsle | D8: 2026-01-21 | E8: kg CO₂e/MJ | F8: 0.0899 | G8: 35.8 | H8: MJ/Liter | I8: EN 15804 A1 | J8: 19201 | K8: Bränsle | L8: Diesel köps och förbränns i olika maskiner och fordon, dvs omfattar WtW (Well to Wheel)
A9: 6000000011 | B9: Diesel, fossil | C9: Energi och bränsle | D9: 2026-01-21 | E9: kg CO₂e/MJ | F9: 0.0951 | G9: 35.9 | H9: MJ/Liter | I9: EN 15804 A1 | J9: 19201 | K9: Bränsle | L9: Diesel köps och förbränns i olika maskiner och fordon, dvs omfattar WtW (Well to Wheel).
A10: 6000000012 | B10: Bensin, reduktionsplikt (2024) | C10: Energi och bränsle | D10: 2026-01-21 | E10: kg CO₂e/MJ | F10: 0.0873 | G10: 31.2 | H10: MJ/Liter | I10: EN 15804 A1 | J10: 19201 | K10: Bränsle | L10: Diesel köps och förbränns i olika maskiner och fordon, dvs omfattar WtW (Well to Wheel).
A11: 6000000013 | B11: Bensin, fossil | C11: Energi och bränsle | D11: 2026-01-21 | E11: kg CO₂e/MJ | F11: 0.0933 | G11: 32.2 | H11: MJ/Liter | I11: EN 15804 A1 | J11: 19201 | K11: Bränsle | L11: Bensin köps och förbränns i olika maskiner och fordon, dvs omfattar WtW (Well to Wheel)
A12: 6000000017 | B12: HVO100 | C12: Energi och bränsle | D12: 2026-01-21 | E12: kg CO₂e/MJ | F12: 0.016 | G12: 34.1 | H12: MJ/Liter | I12: EN 15804 A1 | J12: 19201 | K12: Bränsle | L12: HVO100 köps och förbränns i olika maskiner och fordon, dvs omfattar WtW (Well to Wheel).
A13: 6100000002 | B13: E85 etanol | C13: Energi och bränsle | D13: 2026-01-21 | E13: kg CO₂e/MJ | F13: 0.0468 | G13: 23 | H13: MJ/Liter | I13: SS-EN 15293:2018 | J13: 19201 | K13: Bränsle | L13: E85 etanol köps och förbränns i olika maskiner och fordon, dvs omfattar WtW (Well to Wheel).
